Workbook

Sheet الصفحة الرئيسية

Sheet مخازن
L1: اسم الصنف | M1: رصيد اخر المدة
C2: حركة المخزن | L2: ايفون 6 | M2: =SUMIF($E$4:$E$27,L2,$G$4:$G$27) -> 25
B3: رقم الحركة | C3: التاريخ | D3: رقم الفاتورة | E3: اسم الصنف | F3: رصيد اول المدة | G3: رصيد اخر المدة | H3: سعر الشراء | I3: نسبة الربح | J3: سعر البيع
B4: =IF(G4<>"",1,0) -> 1 | C4: 2017-01-01 | D4: 1000 | E4: بنطلون جينز رجالى | F4: 150 | G4: =F4+SUMIF('مشتريات ومردودات المبيعات'!$E:$E,مخازن!E4,'مشتريات ومردودات المبيعات'!$F:$F)-SUMIF('مبيعات ومردودات المشتريات'!$E:$E,مخازن!E4,'مبيعات ومردودات المشتريات'!$F:$F) -> 188 | H4: 300 | I4: 0.1 | J4: =H4*I4+H4 -> 330 | Q4: قائمة بدون تكرار
B5: =IF(G5<>"",B4+1,0) -> 2 | C5: 2017-01-01 | D5: 1001 | E5: بنطلون جينز أولاد | F5: 100 | G5: =F5+SUMIF('مشتريات ومردودات المبيعات'!$E:$E,مخازن!E5,'مشتريات ومردودات المبيعات'!$F:$F)-SUMIF('مبيعات ومردودات المشتريات'!$E:$E,مخازن!E5,'مبيعات ومردودات المشتريات'!$F:$F) -> 375 | H5: 200 | I5: 0.1 | J5: =H5*I5+H5 -> 220 | Q5: =IFERROR(INDEX(EM,MATCH(0,IF(ISBLANK(EM),1,COUNTIF(Q$4:$Q4,EM)),0)),"") -> بنطلون جينز رجالى | R5: =OFFSET($Q$4,,,COUNTIF($Q$4:$Q$1000,"?*")) -> بنطلون جينز رجالى
B6: 3 | C6: 2017-01-01 | D6: 1002 | E6: تى شيرت رجالى | F6: 100 | G6: =F6+SUMIF('مشتريات ومردودات المبيعات'!$E:$E,مخازن!E6,'مشتريات ومردودات المبيعات'!$F:$F)-SUMIF('مبيعات ومردودات المشتريات'!$E:$E,مخازن!E6,'مبيعات ومردودات المشتريات'!$F:$F) -> 105 | H6: 180 | I6: 0.1 | J6: 198 | Q6: =IFERROR(INDEX(EM,MATCH(0,IF(ISBLANK(EM),1,COUNTIF(Q$4:$Q5,EM)),0)),"") -> بنطلون جينز أولاد
B7: 4 | C7: 2017-01-01 | D7: 1003 | E7: تى شيرت أولاد | F7: 150 | G7: =F7+SUMIF('مشتريات ومردودات المبيعات'!$E:$E,مخازن!E7,'مشتريات ومردودات المبيعات'!$F:$F)-SUMIF('مبيعات ومردودات المشتريات'!$E:$E,مخازن!E7,'مبيعات ومردودات المشتريات'!$F:$F) -> 180 | H7: 150 | I7: 0.1 | J7: 165 | Q7: =IFERROR(INDEX(EM,MATCH(0,IF(ISBLANK(EM),1,COUNTIF(Q$4:$Q6,EM)),0)),"") -> تى شيرت رجالى
B8: 5 | C8: 2017-01-01 | D8: 1004 | E8: قميص كم طويل رجالى | F8: 200 | G8: =F8+SUMIF('مشتريات ومردودات المبيعات'!$E:$E,مخازن!E8,'مشتريات ومردودات المبيعات'!$F:$F)-SUMIF('مبيعات ومردودات المشتريات'!$E:$E,مخازن!E8,'مبيعات ومردودات المشتريات'!$F:$F) -> 160 | H8: 190 | I8: 0.1 | J8: 209 | Q8: =IFERROR(INDEX(EM,MATCH(0,IF(ISBLANK(EM),1,COUNTIF(Q$4:$Q7,EM)),0)),"") -> تى شيرت أولاد
B9: 6 | C9: 2017-01-01 | D9: 1005 | E9: قميص كم طويل أولاد | F9: 100 | G9: =F9+SUMIF('مشتريات ومردودات المبيعات'!$E:$E,مخازن!E9,'مشتريات ومردودات المبيعات'!$F:$F)-SUMIF('مبيعات ومردودات المشتريات'!$E:$E,مخازن!E9,'مبيعات ومردودات المشتريات'!$F:$F) -> 60 | H9: 150 | I9: 0.1 | J9: 165 | Q9: =IFERROR(INDEX(EM,MATCH(0,IF(ISBLANK(EM),1,COUNTIF(Q$4:$Q8,EM)),0)),"") -> قميص كم طويل رجالى
B10: 7 | C10: 2017-01-01 | D10: 1006 | E10: بنطلون قماش أولاد | F10: 100 | G10: =F10+SUMIF('مشتريات ومردودات المبيعات'!$E:$E,مخازن!E10,'مشتريات ومردودات المبيعات'!$F:$F)-SUMIF('مبيعات ومردودات المشتريات'!$E:$E,مخازن!E10,'مبيعات ومردودات المشتريات'!$F:$F) -> 50 | J10: 0 | Q10: =IFERROR(INDEX(EM,MATCH(0,IF(ISBLANK(EM),1,COUNTIF(Q$4:$Q9,EM)),0)),"") -> قميص كم طويل أولاد
B11: 8 | C11: 2017-01-01 | D11: 1007 | E11: بنطلون قماش رجالى | F11: 100 | G11: =F11+SUMIF('مشتريات ومردودات المبيعات'!$E:$E,مخازن!E11,'مشتريات ومردودات المبيعات'!$F:$F)-SUMIF('مبيعات ومردودات المشتريات'!$E:$E,مخازن!E11,'مبيعات ومردودات المشتريات'!$F:$F) -> 120 | J11: 0 | Q11: =IFERROR(INDEX(EM,MATCH(0,IF(ISBLANK(EM),1,COUNTIF(Q$4:$Q10,EM)),0)),"") -> بنطلون قماش أولاد
B12: 9 | C12: 2017-01-01 | D12: 1008 | E12: بدلة 3 قطع | F12: 100 | G12: =F12+SUMIF('مشتريات ومردودات المبيعات'!$E:$E,مخازن!E12,'مشتريات ومردودات المبيعات'!$F:$F)-SUMIF('مبيعات ومردودات المشتريات'!$E:$E,مخازن!E12,'مبيعات ومردودات المشتريات'!$F:$F) -> 55 | J12: 0 | Q12: =IFERROR(INDEX(EM,MATCH(0,IF(ISBLANK(EM),1,COUNTIF(Q$4:$Q11,EM)),0)),"") -> بنطلون قماش رجالى
B13: 10 | C13: 2017-01-01 | D13: 1009 | E13: بدلة 2 قطعة | F13: 100 | G13: =F13+SUMIF('مشتريات ومردودات المبيعات'!$E:$E,مخازن!E13,'مشتريات ومردودات المبيعات'!$F:$F)-SUMIF('مبيعات ومردودات المشتريات'!$E:$E,مخازن!E13,'مبيعات ومردودات المشتريات'!$F:$F) -> 130 | J13: 0 | Q13: =IFERROR(INDEX(EM,MATCH(0,IF(ISBLANK(EM),1,COUNTIF(Q$4:$Q12,EM)),0)),"") -> بدلة 3 قطع
B14: 11 | C14: 2017-01-01 | D14: 1010 | E14: كرفتة ستان | F14: 150 | G14: =F14+SUMIF('مشتريات ومردودات المبيعات'!$E:$E,مخازن!E14,'مشتريات ومردودات المبيعات'!$F:$F)-SUMIF('مبيعات ومردودات المشتريات'!$E:$E,مخازن!E14,'مبيعات ومردودات المشتريات'!$F:$F) -> 135 | J14: 0 | Q14: =IFERROR(INDEX(EM,MATCH(0,IF(ISBLANK(EM),1,COUNTIF(Q$4:$Q13,EM)),0)),"") -> بدلة 2 قطعة
B15: 12 | C15: 2017-01-01 | D15: 1011 | E15: كرفته باريس | F15: 180 | G15: =F15+SUMIF('مشتريات ومردودات المبيعات'!$E:$E,مخازن!E15,'مشتريات ومردودات المبيعات'!$F:$F)-SUMIF('مبيعات ومردودات المشتريات'!$E:$E,مخازن!E15,'مبيعات ومردودات المشتريات'!$F:$F) -> 195 | J15: 0 | Q15: =IFERROR(INDEX(EM,MATCH(0,IF(ISBLANK(EM),1,COUNTIF(Q$4:$Q14,EM)),0)),"") -> كرفتة ستان
B16: 13 | C16: 20/01/2017 | D16: 1012 | E16: قميص بدلة | F16: 300 | G16: =F16+SUMIF('مشتريات ومردودات المبيعات'!$E:$E,مخازن!E16,'مشتريات ومردودات المبيعات'!$F:$F)-SUMIF('مبيعات ومردودات المشتريات'!$E:$E,مخازن!E16,'مبيعات ومردودات المشتريات'!$F:$F) -> 375 | J16: 0 | Q16: =IFERROR(INDEX(EM,MATCH(0,IF(ISBLANK(EM),1,COUNTIF(Q$4:$Q15,EM)),0)),"") -> كرفته باريس
B17: 14 | C17: 2017-10-21 | D17: 1013 | E17: حزام جلد طبيعى | F17: 100 | G17: =F17+SUMIF('مشتريات ومردودات المبيعات'!$E:$E,مخازن!E17,'مشتريات ومردودات المبيعات'!$F:$F)-SUMIF('مبيعات ومردودات المشتريات'!$E:$E,مخازن!E17,'مبيعات ومردودات المشتريات'!$F:$F) -> 100 | J17: 0 | Q17: =IFERROR(INDEX(EM,MATCH(0,IF(ISBLANK(EM),1,COUNTIF(Q$4:$Q16,EM)),0)),"") -> قميص بدلة
B18: 15 | C18: 2017-10-22 | D18: 1014 | E18: بكوليت شبابى | F18: 50 | G18: =F18+SUMIF('مشتريات ومردودات المبيعات'!$E:$E,مخازن!E18,'مشتريات ومردودات المبيعات'!$F:$F)-SUMIF('مبيعات ومردودات المشتريات'!$E:$E,مخازن!E18,'مبيعات ومردودات المشتريات'!$F:$F) -> 50 | J18: 0 | Q18: =IFERROR(INDEX(EM,MATCH(0,IF(ISBLANK(EM),1,COUNTIF(Q$4:$Q17,EM)),0)),"") -> حزام جلد طبيعى
B19: 16 | C19: 2017-12-01 | D19: 5000 | E19: ايفون 6 | F19: 30 | G19: =F19+SUMIF('مشتريات ومردودات المبيعات'!$E:$E,مخازن!E19,'مشتريات ومردودات المبيعات'!$F:$F)-SUMIF('مبيعات ومردودات المشتريات'!$E:$E,مخازن!E19,'مبيعات ومردودات المشتريات'!$F:$F) -> 25 | H19: 260 | I19: 0.4 | J19: 364 | Q19: =IFERROR(INDEX(EM,MATCH(0,IF(ISBLANK(EM),1,COUNTIF(Q$4:$Q18,EM)),0)),"") -> بكوليت شبابى
B20: 17 | G20: =F20+SUMIF('مشتريات ومردودات المبيعات'!$E:$E,مخازن!E20,'مشتريات ومردودات المبيعات'!$F:$F)-SUMIF('مبيعات ومردودات المشتريات'!$E:$E,مخازن!E20,'مبيعات ومردودات المشتريات'!$F:$F) -> 0 | J20: 0 | Q20: =IFERROR(INDEX(EM,MATCH(0,IF(ISBLANK(EM),1,COUNTIF(Q$4:$Q19,EM)),0)),"") -> ايفون 6
B21: 18 | G21: =F21+SUMIF('مشتريات ومردودات المبيعات'!$E:$E,مخازن!E21,'مشتريات ومردودات المبيعات'!$F:$F)-SUMIF('مبيعات ومردودات المشتريات'!$E:$E,مخازن!E21,'مبيعات ومردودات المشتريات'!$F:$F) -> 0 | J21: 0 | Q21: =IFERROR(INDEX(EM,MATCH(0,IF(ISBLANK(EM),1,COUNTIF(Q$4:$Q20,EM)),0)),"") -> 
B22: 19 | G22: =F22+SUMIF('مشتريات ومردودات المبيعات'!$E:$E,مخازن!E22,'مشتريات ومردودات المبيعات'!$F:$F)-SUMIF('مبيعات ومردودات المشتريات'!$E:$E,مخازن!E22,'مبيعات ومردودات المشتريات'!$F:$F) -> 0 | J22: 0 | Q22: =IFERROR(INDEX(EM,MATCH(0,IF(ISBLANK(EM),1,COUNTIF(Q$4:$Q21,EM)),0)),"") -> 
B23: 20 | G23: =F23+SUMIF('مشتريات ومردودات المبيعات'!$E:$E,مخازن!E23,'مشتريات ومردودات المبيعات'!$F:$F)-SUMIF('مبيعات ومردودات المشتريات'!$E:$E,مخازن!E23,'مبيعات ومردودات المشتريات'!$F:$F) -> 0 | J23: 0 | Q23: =IFERROR(INDEX(EM,MATCH(0,IF(ISBLANK(EM),1,COUNTIF(Q$4:$Q22,EM)),0)),"") -> 
B24: 21 | G24: =F24+SUMIF('مشتريات ومردودات المبيعات'!$E:$E,مخازن!E24,'مشتريات ومردودات المبيعات'!$F:$F)-SUMIF('مبيعات ومردودات المشتريات'!$E:$E,مخازن!E24,'مبيعات ومردودات المشتريات'!$F:$F) -> 0 | J24: 0 | Q24: =IFERROR(INDEX(EM,MATCH(0,IF(ISBLANK(EM),1,COUNTIF(Q$4:$Q23,EM)),0)),"") -> 
B25: 22 | G25: =F25+SUMIF('مشتريات ومردودات المبيعات'!$E:$E,مخازن!E25,'مشتريات ومردودات المبيعات'!$F:$F)-SUMIF('مبيعات ومردودات المشتريات'!$E:$E,مخازن!E25,'مبيعات ومردودات المشتريات'!$F:$F) -> 0 | J25: 0 | Q25: =IFERROR(INDEX(EM,MATCH(0,IF(ISBLANK(EM),1,COUNTIF(Q$4:$Q24,EM)),0)),"") -> 
B26: 23 | G26: =F26+SUMIF('مشتريات ومردودات المبيعات'!$E:$E,مخازن!E26,'مشتريات ومردودات المبيعات'!$F:$F)-SUMIF('مبيعات ومردودات المشتريات'!$E:$E,مخازن!E26,'مبيعات ومردودات المشتريات'!$F:$F) -> 0 | J26: 0 | Q26: =IFERROR(INDEX(EM,MATCH(0,IF(ISBLANK(EM),1,COUNTIF(Q$4:$Q25,EM)),0)),"") -> 
B27: 24 | G27: =F27+SUMIF('مشتريات ومردودات المبيعات'!$E:$E,مخازن!E27,'مشتريات ومردودات المبيعات'!$F:$F)-SUMIF('مبيعات ومردودات المشتريات'!$E:$E,مخازن!E27,'مبيعات ومردودات المشتريات'!$F:$F) -> 0 | J27: 0 | Q27: =IFERROR(INDEX(EM,MATCH(0,IF(ISBLANK(EM),1,COUNTIF(Q$4:$Q26,EM)),0)),"") -> 
B28: 25 | G28: =F28+SUMIF('مشتريات ومردودات المبيعات'!$E:$E,مخازن!E28,'مشتريات ومردودات المبيعات'!$F:$F)-SUMIF('مبيعات ومردودات المشتريات'!$E:$E,مخازن!E28,'مبيعات ومردودات المشتريات'!$F:$F) -> 0 | J28: 0 | Q28: =IFERROR(INDEX(EM,MATCH(0,IF(ISBLANK(EM),1,COUNTIF(Q$4:$Q27,EM)),0)),"") -> 
B29: 26 | G29: =F29+SUMIF('مشتريات ومردودات المبيعات'!$E:$E,مخازن!E29,'مشتريات ومردودات المبيعات'!$F:$F)-SUMIF('مبيعات ومردودات المشتريات'!$E:$E,مخازن!E29,'مبيعات ومردودات المشتريات'!$F:$F) -> 0 | J29: 0 | Q29: =IFERROR(INDEX(EM,MATCH(0,IF(ISBLANK(EM),1,COUNTIF(Q$4:$Q28,EM)),0)),"") -> 
B30: 27 | G30: =F30+SUMIF('مشتريات ومردودات المبيعات'!$E:$E,مخازن!E30,'مشتريات ومردودات المبيعات'!$F:$F)-SUMIF('مبيعات ومردودات المشتريات'!$E:$E,مخازن!E30,'مبيعات ومردودات المشتريات'!$F:$F) -> 0 | J30: 0 | Q30: =IFERROR(INDEX(EM,MATCH(0,IF(ISBLANK(EM),1,COUNTIF(Q$4:$Q29,EM)),0)),"") -> 
B31: 28 | G31: =F31+SUMIF('مشتريات ومردودات المبيعات'!$E:$E,مخازن!E31,'مشتريات ومردودات المبيعات'!$F:$F)-SUMIF('مبيعات ومردودات المشتريات'!$E:$E,مخازن!E31,'مبيعات ومردودات المشتريات'!$F:$F) -> 0 | J31: 0 | Q31: =IFERROR(INDEX(EM,MATCH(0,IF(ISBLANK(EM),1,COUNTIF(Q$4:$Q30,EM)),0)),"") -> 
B32: 29 | G32: =F32+SUMIF('مشتريات ومردودات المبيعات'!$E:$E,مخازن!E32,'مشتريات ومردودات المبيعات'!$F:$F)-SUMIF('مبيعات ومردودات المشتريات'!$E:$E,مخازن!E32,'مبيعات ومردودات المشتريات'!$F:$F) -> 0 | J32: 0 | Q32: =IFERROR(INDEX(EM,MATCH(0,IF(ISBLANK(EM),1,COUNTIF(Q$4:$Q31,EM)),0)),"") -> 
B33: 30 | G33: =F33+SUMIF('مشتريات ومردودات المبيعات'!$E:$E,مخازن!E33,'مشتريات ومردودات المبيعات'!$F:$F)-SUMIF('مبيعات ومردودات المشتريات'!$E:$E,مخازن!E33,'مبيعات ومردودات المشتريات'!$F:$F) -> 0 | J33: 0 | Q33: =IFERROR(INDEX(EM,MATCH(0,IF(ISBLANK(EM),1,COUNTIF(Q$4:$Q32,EM)),0)),"") -> 
B34: 31 | G34: =F34+SUMIF('مشتريات ومردودات المبيعات'!$E:$E,مخازن!E34,'مشتريات ومردودات المبيعات'!$F:$F)-SUMIF('مبيعات ومردودات المشتريات'!$E:$E,مخازن!E34,'مبيعات ومردودات المشتريات'!$F:$F) -> 0 | J34: 0 | Q34: =IFERROR(INDEX(EM,MATCH(0,IF(ISBLANK(EM),1,COUNTIF(Q$4:$Q33,EM)),0)),"") -> 
B35: 32 | G35: =F35+SUMIF('مشتريات ومردودات المبيعات'!$E:$E,مخازن!E35,'مشتريات ومردودات المبيعات'!$F:$F)-SUMIF('مبيعات ومردودات المشتريات'!$E:$E,مخازن!E35,'مبيعات ومردودات المشتريات'!$F:$F) -> 0 | J35: 0 | Q35: =IFERROR(INDEX(EM,MATCH(0,IF(ISBLANK(EM),1,COUNTIF(Q$4:$Q34,EM)),0)),"") -> 
B36: 33 | G36: =F36+SUMIF('مشتريات ومردودات المبيعات'!$E:$E,مخازن!E36,'مشتريات ومردودات المبيعات'!$F:$F)-SUMIF('مبيعات ومردودات المشتريات'!$E:$E,مخازن!E36,'مبيعات ومردودات المشتريات'!$F:$F) -> 0 | J36: 0 | Q36: =IFERROR(INDEX(EM,MATCH(0,IF(ISBLANK(EM),1,COUNTIF(Q$4:$Q35,EM)),0)),"") -> 
B37: =IF(G37<>"",B36+1,0) -> 34 | G37: =F37+SUMIF('مشتريات ومردودات المبيعات'!$E:$E,مخازن!E37,'مشتريات ومردودات المبيعات'!$F:$F)-SUMIF('مبيعات ومردودات المشتريات'!$E:$E,مخازن!E37,'مبيعات ومردودات المشتريات'!$F:$F) -> 0 | J37: 0 | Q37: =IFERROR(INDEX(EM,MATCH(0,IF(ISBLANK(EM),1,COUNTIF(Q$4:$Q36,EM)),0)),"") -> 
B38: 35 | G38: =F38+SUMIF('مشتريات ومردودات المبيعات'!$E:$E,مخازن!E38,'مشتريات ومردودات المبيعات'!$F:$F)-SUMIF('مبيعات ومردودات المشتريات'!$E:$E,مخازن!E38,'مبيعات ومردودات المشتريات'!$F:$F) -> 0 | J38: 0 | Q38: =IFERROR(INDEX(EM,MATCH(0,IF(ISBLANK(EM),1,COUNTIF(Q$4:$Q37,EM)),0)),"") -> 
B39: 36 | G39: =F39+SUMIF('مشتريات ومردودات المبيعات'!$E:$E,مخازن!E39,'مشتريات ومردودات المبيعات'!$F:$F)-SUMIF('مبيعات ومردودات المشتريات'!$E:$E,مخازن!E39,'مبيعات ومردودات المشتريات'!$F:$F) -> 0 | J39: 0 | Q39: =IFERROR(INDEX(EM,MATCH(0,IF(ISBLANK(EM),1,COUNTIF(Q$4:$Q38,EM)),0)),"") -> 
B40: 37 | G40: =F40+SUMIF('مشتريات ومردودات المبيعات'!$E:$E,مخازن!E40,'مشتريات ومردودات المبيعات'!$F:$F)-SUMIF('مبيعات ومردودات المشتريات'!$E:$E,مخازن!E40,'مبيعات ومردودات المشتريات'!$F:$F) -> 0 | J40: 0 | Q40: =IFERROR(INDEX(EM,MATCH(0,IF(ISBLANK(EM),1,COUNTIF(Q$4:$Q39,EM)),0)),"") -> 
B41: 38 | G41: =F41+SUMIF('مشتريات ومردودات المبيعات'!$E:$E,مخازن!E41,'مشتريات ومردودات المبيعات'!$F:$F)-SUMIF('مبيعات ومردودات المشتريات'!$E:$E,مخازن!E41,'مبيعات ومردودات المشتريات'!$F:$F) -> 0 | J41: 0 | Q41: =IFERROR(INDEX(EM,MATCH(0,IF(ISBLANK(EM),1,COUNTIF(Q$4:$Q40,EM)),0)),"") -> 
B42: 39 | G42: =F42+SUMIF('مشتريات ومردودات المبيعات'!$E:$E,مخازن!E42,'مشتريات ومردودات المبيعات'!$F:$F)-SUMIF('مبيعات ومردودات المشتريات'!$E:$E,مخازن!E42,'مبيعات ومردودات المشتريات'!$F:$F) -> 0 | J42: 0 | Q42: =IFERROR(INDEX(EM,MATCH(0,IF(ISBLANK(EM),1,COUNTIF(Q$4:$Q41,EM)),0)),"") -> 
B43: 40 | G43: =F43+SUMIF('مشتريات ومردودات المبيعات'!$E:$E,مخازن!E43,'مشتريات ومردودات المبيعات'!$F:$F)-SUMIF('مبيعات ومردودات المشتريات'!$E:$E,مخازن!E43,'مبيعات ومردودات المشتريات'!$F:$F) -> 0 | J43: 0 | Q43: =IFERROR(INDEX(EM,MATCH(0,IF(ISBLANK(EM),1,COUNTIF(Q$4:$Q42,EM)),0)),"") -> 
B44: 41 | G44: =F44+SUMIF('مشتريات ومردودات المبيعات'!$E:$E,مخازن!E44,'مشتريات ومردودات المبيعات'!$F:$F)-SUMIF('مبيعات ومردودات المشتريات'!$E:$E,مخازن!E44,'مبيعات ومردودات المشتريات'!$F:$F) -> 0 | J44: 0 | Q44: =IFERROR(INDEX(EM,MATCH(0,IF(ISBLANK(EM),1,COUNTIF(Q$4:$Q43,EM)),0)),"") -> 
B45: 42 | G45: =F45+SUMIF('مشتريات ومردودات المبيعات'!$E:$E,مخازن!E45,'مشتريات ومردودات المبيعات'!$F:$F)-SUMIF('مبيعات ومردودات المشتريات'!$E:$E,مخازن!E45,'مبيعات ومردودات المشتريات'!$F:$F) -> 0 | J45: 0 | Q45: =IFERROR(INDEX(EM,MATCH(0,IF(ISBLANK(EM),1,COUNTIF(Q$4:$Q44,EM)),0)),"") -> 
B46: 43 | G46: =F46+SUMIF('مشتريات ومردودات المبيعات'!$E:$E,مخازن!E46,'مشتريات ومردودات المبيعات'!$F:$F)-SUMIF('مبيعات ومردودات المشتريات'!$E:$E,مخازن!E46,'مبيعات ومردودات المشتريات'!$F:$F) -> 0 | J46: 0 | Q46: =IFERROR(INDEX(EM,MATCH(0,IF(ISBLANK(EM),1,COUNTIF(Q$4:$Q45,EM)),0)),"") -> 
B47: 44 | G47: =F47+SUMIF('مشتريات ومردودات المبيعات'!$E:$E,مخازن!E47,'مشتريات ومردودات المبيعات'!$F:$F)-SUMIF('مبيعات ومردودات المشتريات'!$E:$E,مخازن!E47,'مبيعات ومردودات المشتريات'!$F:$F) -> 0 | J47: 0 | Q47: =IFERROR(INDEX(EM,MATCH(0,IF(ISBLANK(EM),1,COUNTIF(Q$4:$Q46,EM)),0)),"") -> 
B48: 45 | G48: =F48+SUMIF('مشتريات ومردودات المبيعات'!$E:$E,مخازن!E48,'مشتريات ومردودات المبيعات'!$F:$F)-SUMIF('مبيعات ومردودات المشتريات'!$E:$E,مخازن!E48,'مبيعات ومردودات المشتريات'!$F:$F) -> 0 | J48: 0 | Q48: =IFERROR(INDEX(EM,MATCH(0,IF(ISBLANK(EM),1,COUNTIF(Q$4:$Q47,EM)),0)),"") -> 
B49: 46 | G49: =F49+SUMIF('مشتريات ومردودات المبيعات'!$E:$E,مخازن!E49,'مشتريات ومردودات المبيعات'!$F:$F)-SUMIF('مبيعات ومردودات المشتريات'!$E:$E,مخازن!E49,'مبيعات ومردودات المشتريات'!$F:$F) -> 0 | J49: 0 | Q49: =IFERROR(INDEX(EM,MATCH(0,IF(ISBLANK(EM),1,COUNTIF(Q$4:$Q48,EM)),0)),"") -> 
B50: 47 | G50: =F50+SUMIF('مشتريات ومردودات المبيعات'!$E:$E,مخازن!E50,'مشتريات ومردودات المبيعات'!$F:$F)-SUMIF('مبيعات ومردودات المشتريات'!$E:$E,مخازن!E50,'مبيعات ومردودات المشتريات'!$F:$F) -> 0 | J50: 0 | Q50: =IFERROR(INDEX(EM,MATCH(0,IF(ISBLANK(EM),1,COUNTIF(Q$4:$Q49,EM)),0)),"") -> 
B51: 48 | G51: =F51+SUMIF('مشتريات ومردودات المبيعات'!$E:$E,مخازن!E51,'مشتريات ومردودات المبيعات'!$F:$F)-SUMIF('مبيعات ومردودات المشتريات'!$E:$E,مخازن!E51,'مبيعات ومردودات المشتريات'!$F:$F) -> 0 | J51: 0 | Q51: =IFERROR(INDEX(EM,MATCH(0,IF(ISBLANK(EM),1,COUNTIF(Q$4:$Q50,EM)),0)),"") -> 
B52: 49 | G52: =F52+SUMIF('مشتريات ومردودات المبيعات'!$E:$E,مخازن!E52,'مشتريات ومردودات المبيعات'!$F:$F)-SUMIF('مبيعات ومردودات المشتريات'!$E:$E,مخازن!E52,'مبيعات ومردودات المشتريات'!$F:$F) -> 0 | J52: 0 | Q52: =IFERROR(INDEX(EM,MATCH(0,IF(ISBLANK(EM),1,COUNTIF(Q$4:$Q51,EM)),0)),"") -> 
B53: 50 | G53: =F53+SUMIF('مشتريات ومردودات المبيعات'!$E:$E,مخازن!E53,'مشتريات ومردودات المبيعات'!$F:$F)-SUMIF('مبيعات ومردودات المشتريات'!$E:$E,مخازن!E53,'مبيعات ومردودات المشتريات'!$F:$F) -> 0 | J53: 0 | Q53: =IFERROR(INDEX(EM,MATCH(0,IF(ISBLANK(EM),1,COUNTIF(Q$4:$Q52,EM)),0)),"") -> 
B54: 51 | G54: =F54+SUMIF('مشتريات ومردودات المبيعات'!$E:$E,مخازن!E54,'مشتريات ومردودات المبيعات'!$F:$F)-SUMIF('مبيعات ومردودات المشتريات'!$E:$E,مخازن!E54,'مبيعات ومردودات المشتريات'!$F:$F) -> 0 | J54: 0 | Q54: =IFERROR(INDEX(EM,MATCH(0,IF(ISBLANK(EM),1,COUNTIF(Q$4:$Q53,EM)),0)),"") -> 
B55: 52 | G55: =F55+SUMIF('مشتريات ومردودات المبيعات'!$E:$E,مخازن!E55,'مشتريات ومردودات المبيعات'!$F:$F)-SUMIF('مبيعات ومردودات المشتريات'!$E:$E,مخازن!E55,'مبيعات ومردودات المشتريات'!$F:$F) -> 0 | J55: 0 | Q55: =IFERROR(INDEX(EM,MATCH(0,IF(ISBLANK(EM),1,COUNTIF(Q$4:$Q54,EM)),0)),"") -> 
B56: 53 | G56: =F56+SUMIF('مشتريات ومردودات المبيعات'!$E:$E,مخازن!E56,'مشتريات ومردودات المبيعات'!$F:$F)-SUMIF('مبيعات ومردودات المشتريات'!$E:$E,مخازن!E56,'مبيعات ومردودات المشتريات'!$F:$F) -> 0 | J56: 0 | Q56: =IFERROR(INDEX(EM,MATCH(0,IF(ISBLANK(EM),1,COUNTIF(Q$4:$Q55,EM)),0)),"") -> 
B57: 54 | G57: =F57+SUMIF('مشتريات ومردودات المبيعات'!$E:$E,مخازن!E57,'مشتريات ومردودات المبيعات'!$F:$F)-SUMIF('مبيعات ومردودات المشتريات'!$E:$E,مخازن!E57,'مبيعات ومردودات المشتريات'!$F:$F) -> 0 | J57: 0 | Q57: =IFERROR(INDEX(EM,MATCH(0,IF(ISBLANK(EM),1,COUNTIF(Q$4:$Q56,EM)),0)),"") -> 
B58: 55 | G58: =F58+SUMIF('مشتريات ومردودات المبيعات'!$E:$E,مخازن!E58,'مشتريات ومردودات المبيعات'!$F:$F)-SUMIF('مبيعات ومردودات المشتريات'!$E:$E,مخازن!E58,'مبيعات ومردودات المشتريات'!$F:$F) -> 0 | J58: 0 | Q58: =IFERROR(INDEX(EM,MATCH(0,IF(ISBLANK(EM),1,COUNTIF(Q$4:$Q57,EM)),0)),"") -> 
B59: 56 | G59: =F59+SUMIF('مشتريات ومردودات المبيعات'!$E:$E,مخازن!E59,'مشتريات ومردودات المبيعات'!$F:$F)-SUMIF('مبيعات ومردودات المشتريات'!$E:$E,مخازن!E59,'مبيعات ومردودات المشتريات'!$F:$F) -> 0 | J59: 0 | Q59: =IFERROR(INDEX(EM,MATCH(0,IF(ISBLANK(EM),1,COUNTIF(Q$4:$Q58,EM)),0)),"") -> 
B60: 57 | G60: =F60+SUMIF('مشتريات ومردودات المبيعات'!$E:$E,مخازن!E60,'مشتريات ومردودات المبيعات'!$F:$F)-SUMIF('مبيعات ومردودات المشتريات'!$E:$E,مخازن!E60,'مبيعات ومردودات المشتريات'!$F:$F) -> 0 | J60: 0 | Q60: =IFERROR(INDEX(EM,MATCH(0,IF(ISBLANK(EM),1,COUNTIF(Q$4:$Q59,EM)),0)),"") -> 
B61: 58 | G61: =F61+SUMIF('مشتريات ومردودات المبيعات'!$E:$E,مخازن!E61,'مشتريات ومردودات المبيعات'!$F:$F)-SUMIF('مبيعات ومردودات المشتريات'!$E:$E,مخازن!E61,'مبيعات ومردودات المشتريات'!$F:$F) -> 0 | J61: 0 | Q61: =IFERROR(INDEX(EM,MATCH(0,IF(ISBLANK(EM),1,COUNTIF(Q$4:$Q60,EM)),0)),"") -> 
B62: 59 | G62: =F62+SUMIF('مشتريات ومردودات المبيعات'!$E:$E,مخازن!E62,'مشتريات ومردودات المبيعات'!$F:$F)-SUMIF('مبيعات ومردودات المشتريات'!$E:$E,مخازن!E62,'مبيعات ومردودات المشتريات'!$F:$F) -> 0 | J62: 0 | Q62: =IFERROR(INDEX(EM,MATCH(0,IF(ISBLANK(EM),1,COUNTIF(Q$4:$Q61,EM)),0)),"") -> 
B63: 60 | G63: =F63+SUMIF('مشتريات ومردودات المبيعات'!$E:$E,مخازن!E63,'مشتريات ومردودات المبيعات'!$F:$F)-SUMIF('مبيعات ومردودات المشتريات'!$E:$E,مخازن!E63,'مبيعات ومردودات المشتريات'!$F:$F) -> 0 | J63: 0 | Q63: =IFERROR(INDEX(EM,MATCH(0,IF(ISBLANK(EM),1,COUNTIF(Q$4:$Q62,EM)),0)),"") -> 
B64: 61 | G64: =F64+SUMIF('مشتريات ومردودات المبيعات'!$E:$E,مخازن!E64,'مشتريات ومردودات المبيعات'!$F:$F)-SUMIF('مبيعات ومردودات المشتريات'!$E:$E,مخازن!E64,'مبيعات ومردودات المشتريات'!$F:$F) -> 0 | J64: 0 | Q64: =IFERROR(INDEX(EM,MATCH(0,IF(ISBLANK(EM),1,COUNTIF(Q$4:$Q63,EM)),0)),"") -> 
B65: 62 | G65: =F65+SUMIF('مشتريات ومردودات المبيعات'!$E:$E,مخازن!E65,'مشتريات ومردودات المبيعات'!$F:$F)-SUMIF('مبيعات ومردودات المشتريات'!$E:$E,مخازن!E65,'مبيعات ومردودات المشتريات'!$F:$F) -> 0 | J65: 0 | Q65: =IFERROR(INDEX(EM,MATCH(0,IF(ISBLANK(EM),1,COUNTIF(Q$4:$Q64,EM)),0)),"") -> 
B66: 63 | G66: =F66+SUMIF('مشتريات ومردودات المبيعات'!$E:$E,مخازن!E66,'مشتريات ومردودات المبيعات'!$F:$F)-SUMIF('مبيعات ومردودات المشتريات'!$E:$E,مخازن!E66,'مبيعات ومردودات المشتريات'!$F:$F) -> 0 | J66: 0 | Q66: =IFERROR(INDEX(EM,MATCH(0,IF(ISBLANK(EM),1,COUNTIF(Q$4:$Q65,EM)),0)),"") -> 
B67: 64 | G67: =F67+SUMIF('مشتريات ومردودات المبيعات'!$E:$E,مخازن!E67,'مشتريات ومردودات المبيعات'!$F:$F)-SUMIF('مبيعات ومردودات المشتريات'!$E:$E,مخازن!E67,'مبيعات ومردودات المشتريات'!$F:$F) -> 0 | J67: 0 | Q67: =IFERROR(INDEX(EM,MATCH(0,IF(ISBLANK(EM),1,COUNTIF(Q$4:$Q66,EM)),0)),"") -> 
B68: 65 | G68: =F68+SUMIF('مشتريات ومردودات المبيعات'!$E:$E,مخازن!E68,'مشتريات ومردودات المبيعات'!$F:$F)-SUMIF('مبيعات ومردودات المشتريات'!$E:$E,مخازن!E68,'مبيعات ومردودات المشتريات'!$F:$F) -> 0 | J68: 0 | Q68: =IFERROR(INDEX(EM,MATCH(0,IF(ISBLANK(EM),1,COUNTIF(Q$4:$Q67,EM)),0)),"") -> 
B69: 66 | G69: =F69+SUMIF('مشتريات ومردودات المبيعات'!$E:$E,مخازن!E69,'مشتريات ومردودات المبيعات'!$F:$F)-SUMIF('مبيعات ومردودات المشتريات'!$E:$E,مخازن!E69,'مبيعات ومردودات المشتريات'!$F:$F) -> 0 | J69: =H69*I69+H69 -> 0 | Q69: =IFERROR(INDEX(EM,MATCH(0,IF(ISBLANK(EM),1,COUNTIF(Q$4:$Q68,EM)),0)),"") -> 
B70: =IF(G70<>"",B69+1,0) -> 67 | G70: =F70+SUMIF('مشتريات ومردودات المبيعات'!$E:$E,مخازن!E70,'مشتريات ومردودات المبيعات'!$F:$F)-SUMIF('مبيعات ومردودات المشتريات'!$E:$E,مخازن!E70,'مبيعات ومردودات المشتريات'!$F:$F) -> 0 | J70: 0 | Q70: =IFERROR(INDEX(EM,MATCH(0,IF(ISBLANK(EM),1,COUNTIF(Q$4:$Q69,EM)),0)),"") -> 
B71: 68 | G71: =F71+SUMIF('مشتريات ومردودات المبيعات'!$E:$E,مخازن!E71,'مشتريات ومردودات المبيعات'!$F:$F)-SUMIF('مبيعات ومردودات المشتريات'!$E:$E,مخازن!E71,'مبيعات ومردودات المشتريات'!$F:$F) -> 0 | J71: 0 | Q71: =IFERROR(INDEX(EM,MATCH(0,IF(ISBLANK(EM),1,COUNTIF(Q$4:$Q70,EM)),0)),"") -> 
B72: 69 | G72: =F72+SUMIF('مشتريات ومردودات المبيعات'!$E:$E,مخازن!E72,'مشتريات ومردودات المبيعات'!$F:$F)-SUMIF('مبيعات ومردودات المشتريات'!$E:$E,مخازن!E72,'مبيعات ومردودات المشتريات'!$F:$F) -> 0 | J72: 0 | Q72: =IFERROR(INDEX(EM,MATCH(0,IF(ISBLANK(EM),1,COUNTIF(Q$4:$Q71,EM)),0)),"") -> 
B73: 70 | G73: =F73+SUMIF('مشتريات ومردودات المبيعات'!$E:$E,مخازن!E73,'مشتريات ومردودات المبيعات'!$F:$F)-SUMIF('مبيعات ومردودات المشتريات'!$E:$E,مخازن!E73,'مبيعات ومردودات المشتريات'!$F:$F) -> 0 | J73: 0 | Q73: =IFERROR(INDEX(EM,MATCH(0,IF(ISBLANK(EM),1,COUNTIF(Q$4:$Q72,EM)),0)),"") -> 
B74: 71 | G74: =F74+SUMIF('مشتريات ومردودات المبيعات'!$E:$E,مخازن!E74,'مشتريات ومردودات المبيعات'!$F:$F)-SUMIF('مبيعات ومردودات المشتريات'!$E:$E,مخازن!E74,'مبيعات ومردودات المشتريات'!$F:$F) -> 0 | J74: 0 | Q74: =IFERROR(INDEX(EM,MATCH(0,IF(ISBLANK(EM),1,COUNTIF(Q$4:$Q73,EM)),0)),"") -> 
B75: 72 | G75: =F75+SUMIF('مشتريات ومردودات المبيعات'!$E:$E,مخازن!E75,'مشتريات ومردودات المبيعات'!$F:$F)-SUMIF('مبيعات ومردودات المشتريات'!$E:$E,مخازن!E75,'مبيعات ومردودات المشتريات'!$F:$F) -> 0 | J75: 0 | Q75: =IFERROR(INDEX(EM,MATCH(0,IF(ISBLANK(EM),1,COUNTIF(Q$4:$Q74,EM)),0)),"") -> 
B76: 73 | G76: =F76+SUMIF('مشتريات ومردودات المبيعات'!$E:$E,مخازن!E76,'مشتريات ومردودات المبيعات'!$F:$F)-SUMIF('مبيعات ومردودات المشتريات'!$E:$E,مخازن!E76,'مبيعات ومردودات المشتريات'!$F:$F) -> 0 | J76: 0 | Q76: =IFERROR(INDEX(EM,MATCH(0,IF(ISBLANK(EM),1,COUNTIF(Q$4:$Q75,EM)),0)),"") -> 
B77: 74 | G77: =F77+SUMIF('مشتريات ومردودات المبيعات'!$E:$E,مخازن!E77,'مشتريات ومردودات المبيعات'!$F:$F)-SUMIF('مبيعات ومردودات المشتريات'!$E:$E,مخازن!E77,'مبيعات ومردودات المشتريات'!$F:$F) -> 0 | J77: 0 | Q77: =IFERROR(INDEX(EM,MATCH(0,IF(ISBLANK(EM),1,COUNTIF(Q$4:$Q76,EM)),0)),"") -> 
B78: 75 | G78: =F78+SUMIF('مشتريات ومردودات المبيعات'!$E:$E,مخازن!E78,'مشتريات ومردودات المبيعات'!$F:$F)-SUMIF('مبيعات ومردودات المشتريات'!$E:$E,مخازن!E78,'مبيعات ومردودات المشتريات'!$F:$F) -> 0 | J78: 0 | Q78: =IFERROR(INDEX(EM,MATCH(0,IF(ISBLANK(EM),1,COUNTIF(Q$4:$Q77,EM)),0)),"") -> 
B79: 76 | G79: =F79+SUMIF('مشتريات ومردودات المبيعات'!$E:$E,مخازن!E79,'مشتريات ومردودات المبيعات'!$F:$F)-SUMIF('مبيعات ومردودات المشتريات'!$E:$E,مخازن!E79,'مبيعات ومردودات المشتريات'!$F:$F) -> 0 | J79: 0 | Q79: =IFERROR(INDEX(EM,MATCH(0,IF(ISBLANK(EM),1,COUNTIF(Q$4:$Q78,EM)),0)),"") -> 
B80: 77 | G80: =F80+SUMIF('مشتريات ومردودات المبيعات'!$E:$E,مخازن!E80,'مشتريات ومردودات المبيعات'!$F:$F)-SUMIF('مبيعات ومردودات المشتريات'!$E:$E,مخازن!E80,'مبيعات ومردودات المشتريات'!$F:$F) -> 0 | J80: 0 | Q80: =IFERROR(INDEX(EM,MATCH(0,IF(ISBLANK(EM),1,COUNTIF(Q$4:$Q79,EM)),0)),"") -> 
B81: 78 | G81: =F81+SUMIF('مشتريات ومردودات المبيعات'!$E:$E,مخازن!E81,'مشتريات ومردودات المبيعات'!$F:$F)-SUMIF('مبيعات ومردودات المشتريات'!$E:$E,مخازن!E81,'مبيعات ومردودات المشتريات'!$F:$F) -> 0 | J81: 0 | Q81: =IFERROR(INDEX(EM,MATCH(0,IF(ISBLANK(EM),1,COUNTIF(Q$4:$Q80,EM)),0)),"") -> 
B82: 79 | G82: =F82+SUMIF('مشتريات ومردودات المبيعات'!$E:$E,مخازن!E82,'مشتريات ومردودات المبيعات'!$F:$F)-SUMIF('مبيعات ومردودات المشتريات'!$E:$E,مخازن!E82,'مبيعات ومردودات المشتريات'!$F:$F) -> 0 | J82: 0 | Q82: =IFERROR(INDEX(EM,MATCH(0,IF(ISBLANK(EM),1,COUNTIF(Q$4:$Q81,EM)),0)),"") -> 
B83: 80 | G83: =F83+SUMIF('مشتريات ومردودات المبيعات'!$E:$E,مخازن!E83,'مشتريات ومردودات المبيعات'!$F:$F)-SUMIF('مبيعات ومردودات المشتريات'!$E:$E,مخازن!E83,'مبيعات ومردودات المشتريات'!$F:$F) -> 0 | J83: 0 | Q83: =IFERROR(INDEX(EM,MATCH(0,IF(ISBLANK(EM),1,COUNTIF(Q$4:$Q82,EM)),0)),"") -> 
B84: 81 | G84: =F84+SUMIF('مشتريات ومردودات المبيعات'!$E:$E,مخازن!E84,'مشتريات ومردودات المبيعات'!$F:$F)-SUMIF('مبيعات ومردودات المشتريات'!$E:$E,مخازن!E84,'مبيعات ومردودات المشتريات'!$F:$F) -> 0 | J84: 0 | Q84: =IFERROR(INDEX(EM,MATCH(0,IF(ISBLANK(EM),1,COUNTIF(Q$4:$Q83,EM)),0)),"") -> 
B85: 82 | G85: =F85+SUMIF('مشتريات ومردودات المبيعات'!$E:$E,مخازن!E85,'مشتريات ومردودات المبيعات'!$F:$F)-SUMIF('مبيعات ومردودات المشتريات'!$E:$E,مخازن!E85,'مبيعات ومردودات المشتريات'!$F:$F) -> 0 | J85: 0 | Q85: =IFERROR(INDEX(EM,MATCH(0,IF(ISBLANK(EM),1,COUNTIF(Q$4:$Q84,EM)),0)),"") -> 
B86: 83 | G86: =F86+SUMIF('مشتريات ومردودات المبيعات'!$E:$E,مخازن!E86,'مشتريات ومردودات المبيعات'!$F:$F)-SUMIF('مبيعات ومردودات المشتريات'!$E:$E,مخازن!E86,'مبيعات ومردودات المشتريات'!$F:$F) -> 0 | J86: 0 | Q86: =IFERROR(INDEX(EM,MATCH(0,IF(ISBLANK(EM),1,COUNTIF(Q$4:$Q85,EM)),0)),"") -> 
B87: 84 | G87: =F87+SUMIF('مشتريات ومردودات المبيعات'!$E:$E,مخازن!E87,'مشتريات ومردودات المبيعات'!$F:$F)-SUMIF('مبيعات ومردودات المشتريات'!$E:$E,مخازن!E87,'مبيعات ومردودات المشتريات'!$F:$F) -> 0 | J87: 0 | Q87: =IFERROR(INDEX(EM,MATCH(0,IF(ISBLANK(EM),1,COUNTIF(Q$4:$Q86,EM)),0)),"") -> 
B88: 85 | G88: =F88+SUMIF('مشتريات ومردودات المبيعات'!$E:$E,مخازن!E88,'مشتريات ومردودات المبيعات'!$F:$F)-SUMIF('مبيعات ومردودات المشتريات'!$E:$E,مخازن!E88,'مبيعات ومردودات المشتريات'!$F:$F) -> 0 | J88: 0 | Q88: =IFERROR(INDEX(EM,MATCH(0,IF(ISBLANK(EM),1,COUNTIF(Q$4:$Q87,EM)),0)),"") -> 
B89: 86 | G89: =F89+SUMIF('مشتريات ومردودات المبيعات'!$E:$E,مخازن!E89,'مشتريات ومردودات المبيعات'!$F:$F)-SUMIF('مبيعات ومردودات المشتريات'!$E:$E,مخازن!E89,'مبيعات ومردودات المشتريات'!$F:$F) -> 0 | J89: 0 | Q89: =IFERROR(INDEX(EM,MATCH(0,IF(ISBLANK(EM),1,COUNTIF(Q$4:$Q88,EM)),0)),"") -> 
B90: 87 | G90: =F90+SUMIF('مشتريات ومردودات المبيعات'!$E:$E,مخازن!E90,'مشتريات ومردودات المبيعات'!$F:$F)-SUMIF('مبيعات ومردودات المشتريات'!$E:$E,مخازن!E90,'مبيعات ومردودات المشتريات'!$F:$F) -> 0 | J90: 0 | Q90: =IFERROR(INDEX(EM,MATCH(0,IF(ISBLANK(EM),1,COUNTIF(Q$4:$Q89,EM)),0)),"") -> 
B91: 88 | G91: =F91+SUMIF('مشتريات ومردودات المبيعات'!$E:$E,مخازن!E91,'مشتريات ومردودات المبيعات'!$F:$F)-SUMIF('مبيعات ومردودات المشتريات'!$E:$E,مخازن!E91,'مبيعات ومردودات المشتريات'!$F:$F) -> 0 | J91: 0 | Q91: =IFERROR(INDEX(EM,MATCH(0,IF(ISBLANK(EM),1,COUNTIF(Q$4:$Q90,EM)),0)),"") -> 
B92: 89 | G92: =F92+SUMIF('مشتريات ومردودات المبيعات'!$E:$E,مخازن!E92,'مشتريات ومردودات المبيعات'!$F:$F)-SUMIF('مبيعات ومردودات المشتريات'!$E:$E,مخازن!E92,'مبيعات ومردودات المشتريات'!$F:$F) -> 0 | J92: 0 | Q92: =IFERROR(INDEX(EM,MATCH(0,IF(ISBLANK(EM),1,COUNTIF(Q$4:$Q91,EM)),0)),"") -> 
B93: 90 | G93: =F93+SUMIF('مشتريات ومردودات المبيعات'!$E:$E,مخازن!E93,'مشتريات ومردودات المبيعات'!$F:$F)-SUMIF('مبيعات ومردودات المشتريات'!$E:$E,مخازن!E93,'مبيعات ومردودات المشتريات'!$F:$F) -> 0 | J93: 0 | Q93: =IFERROR(INDEX(EM,MATCH(0,IF(ISBLANK(EM),1,COUNTIF(Q$4:$Q92,EM)),0)),"") -> 
B94: 91 | G94: =F94+SUMIF('مشتريات ومردودات المبيعات'!$E:$E,مخازن!E94,'مشتريات ومردودات المبيعات'!$F:$F)-SUMIF('مبيعات ومردودات المشتريات'!$E:$E,مخازن!E94,'مبيعات ومردودات المشتريات'!$F:$F) -> 0 | J94: 0 | Q94: =IFERROR(INDEX(EM,MATCH(0,IF(ISBLANK(EM),1,COUNTIF(Q$4:$Q93,EM)),0)),"") -> 
B95: 92 | G95: =F95+SUMIF('مشتريات ومردودات المبيعات'!$E:$E,مخازن!E95,'مشتريات ومردودات المبيعات'!$F:$F)-SUMIF('مبيعات ومردودات المشتريات'!$E:$E,مخازن!E95,'مبيعات ومردودات المشتريات'!$F:$F) -> 0 | J95: 0 | Q95: =IFERROR(INDEX(EM,MATCH(0,IF(ISBLANK(EM),1,COUNTIF(Q$4:$Q94,EM)),0)),"") -> 
B96: 93 | G96: =F96+SUMIF('مشتريات ومردودات المبيعات'!$E:$E,مخازن!E96,'مشتريات ومردودات المبيعات'!$F:$F)-SUMIF('مبيعات ومردودات المشتريات'!$E:$E,مخازن!E96,'مبيعات ومردودات المشتريات'!$F:$F) -> 0 | J96: 0 | Q96: =IFERROR(INDEX(EM,MATCH(0,IF(ISBLANK(EM),1,COUNTIF(Q$4:$Q95,EM)),0)),"") -> 
B97: 94 | G97: =F97+SUMIF('مشتريات ومردودات المبيعات'!$E:$E,مخازن!E97,'مشتريات ومردودات المبيعات'!$F:$F)-SUMIF('مبيعات ومردودات المشتريات'!$E:$E,مخازن!E97,'مبيعات ومردودات المشتريات'!$F:$F) -> 0 | J97: 0 | Q97: =IFERROR(INDEX(EM,MATCH(0,IF(ISBLANK(EM),1,COUNTIF(Q$4:$Q96,EM)),0)),"") -> 
B98: 95 | G98: =F98+SUMIF('مشتريات ومردودات المبيعات'!$E:$E,مخازن!E98,'مشتريات ومردودات المبيعات'!$F:$F)-SUMIF('مبيعات ومردودات المشتريات'!$E:$E,مخازن!E98,'مبيعات ومردودات المشتريات'!$F:$F) -> 0 | J98: 0 | Q98: =IFERROR(INDEX(EM,MATCH(0,IF(ISBLANK(EM),1,COUNTIF(Q$4:$Q97,EM)),0)),"") -> 
B99: 96 | G99: =F99+SUMIF('مشتريات ومردودات المبيعات'!$E:$E,مخازن!E99,'مشتريات ومردودات المبيعات'!$F:$F)-SUMIF('مبيعات ومردودات المشتريات'!$E:$E,مخازن!E99,'مبيعات ومردودات المشتريات'!$F:$F) -> 0 | J99: 0 | Q99: =IFERROR(INDEX(EM,MATCH(0,IF(ISBLANK(EM),1,COUNTIF(Q$4:$Q98,EM)),0)),"") -> 
B100: 97 | G100: =F100+SUMIF('مشتريات ومردودات المبيعات'!$E:$E,مخازن!E100,'مشتريات ومردودات المبيعات'!$F:$F)-SUMIF('مبيعات ومردودات المشتريات'!$E:$E,مخازن!E100,'مبيعات ومردودات المشتريات'!$F:$F) -> 0 | J100: 0 | Q100: =IFERROR(INDEX(EM,MATCH(0,IF(ISBLANK(EM),1,COUNTIF(Q$4:$Q99,EM)),0)),"") -> 
B101: 98 | G101: =F101+SUMIF('مشتريات ومردودات المبيعات'!$E:$E,مخازن!E101,'مشتريات ومردودات المبيعات'!$F:$F)-SUMIF('مبيعات ومردودات المشتريات'!$E:$E,مخازن!E101,'مبيعات ومردودات المشتريات'!$F:$F) -> 0 | J101: 0 | Q101: =IFERROR(INDEX(EM,MATCH(0,IF(ISBLANK(EM),1,COUNTIF(Q$4:$Q100,EM)),0)),"") -> 
B102: 99 | G102: =F102+SUMIF('مشتريات ومردودات المبيعات'!$E:$E,مخازن!E102,'مشتريات ومردودات المبيعات'!$F:$F)-SUMIF('مبيعات ومردودات المشتريات'!$E:$E,مخازن!E102,'مبيعات ومردودات المشتريات'!$F:$F) -> 0 | J102: 0 | Q102: =IFERROR(INDEX(EM,MATCH(0,IF(ISBLANK(EM),1,COUNTIF(Q$4:$Q101,EM)),0)),"") -> 
B103: 100 | G103: =F103+SUMIF('مشتريات ومردودات المبيعات'!$E:$E,مخازن!E103,'مشتريات ومردودات المبيعات'!$F:$F)-SUMIF('مبيعات ومردودات المشتريات'!$E:$E,مخازن!E103,'مبيعات ومردودات المشتريات'!$F:$F) -> 0 | J103: 0 | Q103: =IFERROR(INDEX(EM,MATCH(0,IF(ISBLANK(EM),1,COUNTIF(Q$4:$Q102,EM)),0)),"") -> 
B104: 101 | G104: =F104+SUMIF('مشتريات ومردودات المبيعات'!$E:$E,مخازن!E104,'مشتريات ومردودات المبيعات'!$F:$F)-SUMIF('مبيعات ومردودات المشتريات'!$E:$E,مخازن!E104,'مبيعات ومردودات المشتريات'!$F:$F) -> 0 | J104: 0 | Q104: =IFERROR(INDEX(EM,MATCH(0,IF(ISBLANK(EM),1,COUNTIF(Q$4:$Q103,EM)),0)),"") -> 
B105: 102 | G105: =F105+SUMIF('مشتريات ومردودات المبيعات'!$E:$E,مخازن!E105,'مشتريات ومردودات المبيعات'!$F:$F)-SUMIF('مبيعات ومردودات المشتريات'!$E:$E,مخازن!E105,'مبيعات ومردودات المشتريات'!$F:$F) -> 0 | J105: 0 | Q105: =IFERROR(INDEX(EM,MATCH(0,IF(ISBLANK(EM),1,COUNTIF(Q$4:$Q104,EM)),0)),"") -> 
B106: 103 | G106: =F106+SUMIF('مشتريات ومردودات المبيعات'!$E:$E,مخازن!E106,'مشتريات ومردودات المبيعات'!$F:$F)-SUMIF('مبيعات ومردودات المشتريات'!$E:$E,مخازن!E106,'مبيعات ومردودات المشتريات'!$F:$F) -> 0 | J106: 0 | Q106: =IFERROR(INDEX(EM,MATCH(0,IF(ISBLANK(EM),1,COUNTIF(Q$4:$Q105,EM)),0)),"") -> 
B107: 104 | G107: =F107+SUMIF('مشتريات ومردودات المبيعات'!$E:$E,مخازن!E107,'مشتريات ومردودات المبيعات'!$F:$F)-SUMIF('مبيعات ومردودات المشتريات'!$E:$E,مخازن!E107,'مبيعات ومردودات المشتريات'!$F:$F) -> 0 | J107: 0 | Q107: =IFERROR(INDEX(EM,MATCH(0,IF(ISBLANK(EM),1,COUNTIF(Q$4:$Q106,EM)),0)),"") -> 
B108: 105 | G108: =F108+SUMIF('مشتريات ومردودات المبيعات'!$E:$E,مخازن!E108,'مشتريات ومردودات المبيعات'!$F:$F)-SUMIF('مبيعات ومردودات المشتريات'!$E:$E,مخازن!E108,'مبيعات ومردودات المشتريات'!$F:$F) -> 0 | J108: 0 | Q108: =IFERROR(INDEX(EM,MATCH(0,IF(ISBLANK(EM),1,COUNTIF(Q$4:$Q107,EM)),0)),"") -> 
B109: 106 | G109: =F109+SUMIF('مشتريات ومردودات المبيعات'!$E:$E,مخازن!E109,'مشتريات ومردودات المبيعات'!$F:$F)-SUMIF('مبيعات ومردودات المشتريات'!$E:$E,مخازن!E109,'مبيعات ومردودات المشتريات'!$F:$F) -> 0 | J109: 0 | Q109: =IFERROR(INDEX(EM,MATCH(0,IF(ISBLANK(EM),1,COUNTIF(Q$4:$Q108,EM)),0)),"") -> 
B110: 107 | G110: =F110+SUMIF('مشتريات ومردودات المبيعات'!$E:$E,مخازن!E110,'مشتريات ومردودات المبيعات'!$F:$F)-SUMIF('مبيعات ومردودات المشتريات'!$E:$E,مخازن!E110,'مبيعات ومردودات المشتريات'!$F:$F) -> 0 | J110: 0 | Q110: =IFERROR(INDEX(EM,MATCH(0,IF(ISBLANK(EM),1,COUNTIF(Q$4:$Q109,EM)),0)),"") -> 
B111: 108 | G111: =F111+SUMIF('مشتريات ومردودات المبيعات'!$E:$E,مخازن!E111,'مشتريات ومردودات المبيعات'!$F:$F)-SUMIF('مبيعات ومردودات المشتريات'!$E:$E,مخازن!E111,'مبيعات ومردودات المشتريات'!$F:$F) -> 0 | J111: 0 | Q111: =IFERROR(INDEX(EM,MATCH(0,IF(ISBLANK(EM),1,COUNTIF(Q$4:$Q110,EM)),0)),"") -> 
B112: 109 | G112: =F112+SUMIF('مشتريات ومردودات المبيعات'!$E:$E,مخازن!E112,'مشتريات ومردودات المبيعات'!$F:$F)-SUMIF('مبيعات ومردودات المشتريات'!$E:$E,مخازن!E112,'مبيعات ومردودات المشتريات'!$F:$F) -> 0 | J112: 0 | Q112: =IFERROR(INDEX(EM,MATCH(0,IF(ISBLANK(EM),1,COUNTIF(Q$4:$Q111,EM)),0)),"") -> 
B113: 110 | G113: =F113+SUMIF('مشتريات ومردودات المبيعات'!$E:$E,مخازن!E113,'مشتريات ومردودات المبيعات'!$F:$F)-SUMIF('مبيعات ومردودات المشتريات'!$E:$E,مخازن!E113,'مبيعات ومردودات المشتريات'!$F:$F) -> 0 | J113: 0 | Q113: =IFERROR(INDEX(EM,MATCH(0,IF(ISBLANK(EM),1,COUNTIF(Q$4:$Q112,EM)),0)),"") -> 
B114: 111 | G114: =F114+SUMIF('مشتريات ومردودات المبيعات'!$E:$E,مخازن!E114,'مشتريات ومردودات المبيعات'!$F:$F)-SUMIF('مبيعات ومردودات المشتريات'!$E:$E,مخازن!E114,'مبيعات ومردودات المشتريات'!$F:$F) -> 0 | J114: 0 | Q114: =IFERROR(INDEX(EM,MATCH(0,IF(ISBLANK(EM),1,COUNTIF(Q$4:$Q113,EM)),0)),"") -> 
B115: 112 | G115: =F115+SUMIF('مشتريات ومردودات المبيعات'!$E:$E,مخازن!E115,'مشتريات ومردودات المبيعات'!$F:$F)-SUMIF('مبيعات ومردودات المشتريات'!$E:$E,مخازن!E115,'مبيعات ومردودات المشتريات'!$F:$F) -> 0 | J115: 0 | Q115: =IFERROR(INDEX(EM,MATCH(0,IF(ISBLANK(EM),1,COUNTIF(Q$4:$Q114,EM)),0)),"") -> 
B116: 113 | G116: =F116+SUMIF('مشتريات ومردودات المبيعات'!$E:$E,مخازن!E116,'مشتريات ومردودات المبيعات'!$F:$F)-SUMIF('مبيعات ومردودات المشتريات'!$E:$E,مخازن!E116,'مبيعات ومردودات المشتريات'!$F:$F) -> 0 | J116: 0 | Q116: =IFERROR(INDEX(EM,MATCH(0,IF(ISBLANK(EM),1,COUNTIF(Q$4:$Q115,EM)),0)),"") -> 
B117: 114 | G117: =F117+SUMIF('مشتريات ومردودات المبيعات'!$E:$E,مخازن!E117,'مشتريات ومردودات المبيعات'!$F:$F)-SUMIF('مبيعات ومردودات المشتريات'!$E:$E,مخازن!E117,'مبيعات ومردودات المشتريات'!$F:$F) -> 0 | J117: 0 | Q117: =IFERROR(INDEX(EM,MATCH(0,IF(ISBLANK(EM),1,COUNTIF(Q$4:$Q116,EM)),0)),"") -> 
B118: 115 | G118: =F118+SUMIF('مشتريات ومردودات المبيعات'!$E:$E,مخازن!E118,'مشتريات ومردودات المبيعات'!$F:$F)-SUMIF('مبيعات ومردودات المشتريات'!$E:$E,مخازن!E118,'مبيعات ومردودات المشتريات'!$F:$F) -> 0 | J118: 0 | Q118: =IFERROR(INDEX(EM,MATCH(0,IF(ISBLANK(EM),1,COUNTIF(Q$4:$Q117,EM)),0)),"") -> 
B119: 116 | G119: =F119+SUMIF('مشتريات ومردودات المبيعات'!$E:$E,مخازن!E119,'مشتريات ومردودات المبيعات'!$F:$F)-SUMIF('مبيعات ومردودات المشتريات'!$E:$E,مخازن!E119,'مبيعات ومردودات المشتريات'!$F:$F) -> 0 | J119: 0 | Q119: =IFERROR(INDEX(EM,MATCH(0,IF(ISBLANK(EM),1,COUNTIF(Q$4:$Q118,EM)),0)),"") -> 
B120: 117 | G120: =F120+SUMIF('مشتريات ومردودات المبيعات'!$E:$E,مخازن!E120,'مشتريات ومردودات المبيعات'!$F:$F)-SUMIF('مبيعات ومردودات المشتريات'!$E:$E,مخازن!E120,'مبيعات ومردودات المشتريات'!$F:$F) -> 0 | J120: 0 | Q120: =IFERROR(INDEX(EM,MATCH(0,IF(ISBLANK(EM),1,COUNTIF(Q$4:$Q119,EM)),0)),"") -> 
B121: 118 | G121: =F121+SUMIF('مشتريات ومردودات المبيعات'!$E:$E,مخازن!E121,'مشتريات ومردودات المبيعات'!$F:$F)-SUMIF('مبيعات ومردودات المشتريات'!$E:$E,مخازن!E121,'مبيعات ومردودات المشتريات'!$F:$F) -> 0 | J121: 0 | Q121: =IFERROR(INDEX(EM,MATCH(0,IF(ISBLANK(EM),1,COUNTIF(Q$4:$Q120,EM)),0)),"") -> 
B122: 119 | G122: =F122+SUMIF('مشتريات ومردودات المبيعات'!$E:$E,مخازن!E122,'مشتريات ومردودات المبيعات'!$F:$F)-SUMIF('مبيعات ومردودات المشتريات'!$E:$E,مخازن!E122,'مبيعات ومردودات المشتريات'!$F:$F) -> 0 | J122: 0 | Q122: =IFERROR(INDEX(EM,MATCH(0,IF(ISBLANK(EM),1,COUNTIF(Q$4:$Q121,EM)),0)),"") -> 
B123: 120 | G123: =F123+SUMIF('مشتريات ومردودات المبيعات'!$E:$E,مخازن!E123,'مشتريات ومردودات المبيعات'!$F:$F)-SUMIF('مبيعات ومردودات المشتريات'!$E:$E,مخازن!E123,'مبيعات ومردودات المشتريات'!$F:$F) -> 0 | J123: 0 | Q123: =IFERROR(INDEX(EM,MATCH(0,IF(ISBLANK(EM),1,COUNTIF(Q$4:$Q122,EM)),0)),"") -> 
B124: 121 | G124: =F124+SUMIF('مشتريات ومردودات المبيعات'!$E:$E,مخازن!E124,'مشتريات ومردودات المبيعات'!$F:$F)-SUMIF('مبيعات ومردودات المشتريات'!$E:$E,مخازن!E124,'مبيعات ومردودات المشتريات'!$F:$F) -> 0 | J124: 0 | Q124: =IFERROR(INDEX(EM,MATCH(0,IF(ISBLANK(EM),1,COUNTIF(Q$4:$Q123,EM)),0)),"") -> 
B125: 122 | G125: =F125+SUMIF('مشتريات ومردودات المبيعات'!$E:$E,مخازن!E125,'مشتريات ومردودات المبيعات'!$F:$F)-SUMIF('مبيعات ومردودات المشتريات'!$E:$E,مخازن!E125,'مبيعات ومردودات المشتريات'!$F:$F) -> 0 | J125: 0 | Q125: =IFERROR(INDEX(EM,MATCH(0,IF(ISBLANK(EM),1,COUNTIF(Q$4:$Q124,EM)),0)),"") -> 
B126: 123 | G126: =F126+SUMIF('مشتريات ومردودات المبيعات'!$E:$E,مخازن!E126,'مشتريات ومردودات المبيعات'!$F:$F)-SUMIF('مبيعات ومردودات المشتريات'!$E:$E,مخازن!E126,'مبيعات ومردودات المشتريات'!$F:$F) -> 0 | J126: 0 | Q126: =IFERROR(INDEX(EM,MATCH(0,IF(ISBLANK(EM),1,COUNTIF(Q$4:$Q125,EM)),0)),"") -> 
B127: 124 | G127: =F127+SUMIF('مشتريات ومردودات المبيعات'!$E:$E,مخازن!E127,'مشتريات ومردودات المبيعات'!$F:$F)-SUMIF('مبيعات ومردودات المشتريات'!$E:$E,مخازن!E127,'مبيعات ومردودات المشتريات'!$F:$F) -> 0 | J127: 0 | Q127: =IFERROR(INDEX(EM,MATCH(0,IF(ISBLANK(EM),1,COUNTIF(Q$4:$Q126,EM)),0)),"") -> 
B128: 125 | G128: =F128+SUMIF('مشتريات ومردودات المبيعات'!$E:$E,مخازن!E128,'مشتريات ومردودات المبيعات'!$F:$F)-SUMIF('مبيعات ومردودات المشتريات'!$E:$E,مخازن!E128,'مبيعات ومردودات المشتريات'!$F:$F) -> 0 | J128: 0 | Q128: =IFERROR(INDEX(EM,MATCH(0,IF(ISBLANK(EM),1,COUNTIF(Q$4:$Q127,EM)),0)),"") -> 
B129: 126 | G129: =F129+SUMIF('مشتريات ومردودات المبيعات'!$E:$E,مخازن!E129,'مشتريات ومردودات المبيعات'!$F:$F)-SUMIF('مبيعات ومردودات المشتريات'!$E:$E,مخازن!E129,'مبيعات ومردودات المشتريات'!$F:$F) -> 0 | J129: 0 | Q129: =IFERROR(INDEX(EM,MATCH(0,IF(ISBLANK(EM),1,COUNTIF(Q$4:$Q128,EM)),0)),"") -> 
B130: 127 | G130: =F130+SUMIF('مشتريات ومردودات المبيعات'!$E:$E,مخازن!E130,'مشتريات ومردودات المبيعات'!$F:$F)-SUMIF('مبيعات ومردودات المشتريات'!$E:$E,مخازن!E130,'مبيعات ومردودات المشتريات'!$F:$F) -> 0 | J130: 0 | Q130: =IFERROR(INDEX(EM,MATCH(0,IF(ISBLANK(EM),1,COUNTIF(Q$4:$Q129,EM)),0)),"") -> 
B131: 128 | G131: =F131+SUMIF('مشتريات ومردودات المبيعات'!$E:$E,مخازن!E131,'مشتريات ومردودات المبيعات'!$F:$F)-SUMIF('مبيعات ومردودات المشتريات'!$E:$E,مخازن!E131,'مبيعات ومردودات المشتريات'!$F:$F) -> 0 | J131: 0 | Q131: =IFERROR(INDEX(EM,MATCH(0,IF(ISBLANK(EM),1,COUNTIF(Q$4:$Q130,EM)),0)),"") -> 
B132: 129 | G132: =F132+SUMIF('مشتريات ومردودات المبيعات'!$E:$E,مخازن!E132,'مشتريات ومردودات المبيعات'!$F:$F)-SUMIF('مبيعات ومردودات المشتريات'!$E:$E,مخازن!E132,'مبيعات ومردودات المشتريات'!$F:$F) -> 0 | J132: 0 | Q132: =IFERROR(INDEX(EM,MATCH(0,IF(ISBLANK(EM),1,COUNTIF(Q$4:$Q131,EM)),0)),"") -> 
B133: 130 | G133: =F133+SUMIF('مشتريات ومردودات المبيعات'!$E:$E,مخازن!E133,'مشتريات ومردودات المبيعات'!$F:$F)-SUMIF('مبيعات ومردودات المشتريات'!$E:$E,مخازن!E133,'مبيعات ومردودات المشتريات'!$F:$F) -> 0 | J133: =H133*I133+H133 -> 0 | Q133: =IFERROR(INDEX(EM,MATCH(0,IF(ISBLANK(EM),1,COUNTIF(Q$4:$Q132,EM)),0)),"") -> 
B134: =IF(G134<>"",B133+1,0) -> 131 | G134: =F134+SUMIF('مشتريات ومردودات المبيعات'!$E:$E,مخازن!E134,'مشتريات ومردودات المبيعات'!$F:$F)-SUMIF('مبيعات ومردودات المشتريات'!$E:$E,مخازن!E134,'مبيعات ومردودات المشتريات'!$F:$F) -> 0 | J134: 0 | Q134: =IFERROR(INDEX(EM,MATCH(0,IF(ISBLANK(EM),1,COUNTIF(Q$4:$Q133,EM)),0)),"") -> 
B135: 132 | G135: =F135+SUMIF('مشتريات ومردودات المبيعات'!$E:$E,مخازن!E135,'مشتريات ومردودات المبيعات'!$F:$F)-SUMIF('مبيعات ومردودات المشتريات'!$E:$E,مخازن!E135,'مبيعات ومردودات المشتريات'!$F:$F) -> 0 | J135: 0 | Q135: =IFERROR(INDEX(EM,MATCH(0,IF(ISBLANK(EM),1,COUNTIF(Q$4:$Q134,EM)),0)),"") -> 
B136: 133 | G136: =F136+SUMIF('مشتريات ومردودات المبيعات'!$E:$E,مخازن!E136,'مشتريات ومردودات المبيعات'!$F:$F)-SUMIF('مبيعات ومردودات المشتريات'!$E:$E,مخازن!E136,'مبيعات ومردودات المشتريات'!$F:$F) -> 0 | J136: 0 | Q136: =IFERROR(INDEX(EM,MATCH(0,IF(ISBLANK(EM),1,COUNTIF(Q$4:$Q135,EM)),0)),"") -> 
B137: 134 | G137: =F137+SUMIF('مشتريات ومردودات المبيعات'!$E:$E,مخازن!E137,'مشتريات ومردودات المبيعات'!$F:$F)-SUMIF('مبيعات ومردودات المشتريات'!$E:$E,مخازن!E137,'مبيعات ومردودات المشتريات'!$F:$F) -> 0 | J137: 0 | Q137: =IFERROR(INDEX(EM,MATCH(0,IF(ISBLANK(EM),1,COUNTIF(Q$4:$Q136,EM)),0)),"") -> 
B138: 135 | G138: =F138+SUMIF('مشتريات ومردودات المبيعات'!$E:$E,مخازن!E138,'مشتريات ومردودات المبيعات'!$F:$F)-SUMIF('مبيعات ومردودات المشتريات'!$E:$E,مخازن!E138,'مبيعات ومردودات المشتريات'!$F:$F) -> 0 | J138: 0 | Q138: =IFERROR(INDEX(EM,MATCH(0,IF(ISBLANK(EM),1,COUNTIF(Q$4:$Q137,EM)),0)),"") -> 
B139: 136 | G139: =F139+SUMIF('مشتريات ومردودات المبيعات'!$E:$E,مخازن!E139,'مشتريات ومردودات المبيعات'!$F:$F)-SUMIF('مبيعات ومردودات المشتريات'!$E:$E,مخازن!E139,'مبيعات ومردودات المشتريات'!$F:$F) -> 0 | J139: 0 | Q139: =IFERROR(INDEX(EM,MATCH(0,IF(ISBLANK(EM),1,COUNTIF(Q$4:$Q138,EM)),0)),"") -> 
B140: 137 | G140: =F140+SUMIF('مشتريات ومردودات المبيعات'!$E:$E,مخازن!E140,'مشتريات ومردودات المبيعات'!$F:$F)-SUMIF('مبيعات ومردودات المشتريات'!$E:$E,مخازن!E140,'مبيعات ومردودات المشتريات'!$F:$F) -> 0 | J140: 0 | Q140: =IFERROR(INDEX(EM,MATCH(0,IF(ISBLANK(EM),1,COUNTIF(Q$4:$Q139,EM)),0)),"") -> 
B141: 138 | G141: =F141+SUMIF('مشتريات ومردودات المبيعات'!$E:$E,مخازن!E141,'مشتريات ومردودات المبيعات'!$F:$F)-SUMIF('مبيعات ومردودات المشتريات'!$E:$E,مخازن!E141,'مبيعات ومردودات المشتريات'!$F:$F) -> 0 | J141: 0 | Q141: =IFERROR(INDEX(EM,MATCH(0,IF(ISBLANK(EM),1,COUNTIF(Q$4:$Q140,EM)),0)),"") -> 
B142: 139 | G142: =F142+SUMIF('مشتريات ومردودات المبيعات'!$E:$E,مخازن!E142,'مشتريات ومردودات المبيعات'!$F:$F)-SUMIF('مبيعات ومردودات المشتريات'!$E:$E,مخازن!E142,'مبيعات ومردودات المشتريات'!$F:$F) -> 0 | J142: 0 | Q142: =IFERROR(INDEX(EM,MATCH(0,IF(ISBLANK(EM),1,COUNTIF(Q$4:$Q141,EM)),0)),"") -> 
B143: 140 | G143: =F143+SUMIF('مشتريات ومردودات المبيعات'!$E:$E,مخازن!E143,'مشتريات ومردودات المبيعات'!$F:$F)-SUMIF('مبيعات ومردودات المشتريات'!$E:$E,مخازن!E143,'مبيعات ومردودات المشتريات'!$F:$F) -> 0 | J143: 0 | Q143: =IFERROR(INDEX(EM,MATCH(0,IF(ISBLANK(EM),1,COUNTIF(Q$4:$Q142,EM)),0)),"") -> 
B144: 141 | G144: =F144+SUMIF('مشتريات ومردودات المبيعات'!$E:$E,مخازن!E144,'مشتريات ومردودات المبيعات'!$F:$F)-SUMIF('مبيعات ومردودات المشتريات'!$E:$E,مخازن!E144,'مبيعات ومردودات المشتريات'!$F:$F) -> 0 | J144: 0 | Q144: =IFERROR(INDEX(EM,MATCH(0,IF(ISBLANK(EM),1,COUNTIF(Q$4:$Q143,EM)),0)),"") -> 
B145: 142 | G145: =F145+SUMIF('مشتريات ومردودات المبيعات'!$E:$E,مخازن!E145,'مشتريات ومردودات المبيعات'!$F:$F)-SUMIF('مبيعات ومردودات المشتريات'!$E:$E,مخازن!E145,'مبيعات ومردودات المشتريات'!$F:$F) -> 0 | J145: 0 | Q145: =IFERROR(INDEX(EM,MATCH(0,IF(ISBLANK(EM),1,COUNTIF(Q$4:$Q144,EM)),0)),"") -> 
B146: 143 | G146: =F146+SUMIF('مشتريات ومردودات المبيعات'!$E:$E,مخازن!E146,'مشتريات ومردودات المبيعات'!$F:$F)-SUMIF('مبيعات ومردودات المشتريات'!$E:$E,مخازن!E146,'مبيعات ومردودات المشتريات'!$F:$F) -> 0 | J146: 0 | Q146: =IFERROR(INDEX(EM,MATCH(0,IF(ISBLANK(EM),1,COUNTIF(Q$4:$Q145,EM)),0)),"") -> 
B147: 144 | G147: =F147+SUMIF('مشتريات ومردودات المبيعات'!$E:$E,مخازن!E147,'مشتريات ومردودات المبيعات'!$F:$F)-SUMIF('مبيعات ومردودات المشتريات'!$E:$E,مخازن!E147,'مبيعات ومردودات المشتريات'!$F:$F) -> 0 | J147: 0 | Q147: =IFERROR(INDEX(EM,MATCH(0,IF(ISBLANK(EM),1,COUNTIF(Q$4:$Q146,EM)),0)),"") -> 
B148: 145 | G148: =F148+SUMIF('مشتريات ومردودات المبيعات'!$E:$E,مخازن!E148,'مشتريات ومردودات المبيعات'!$F:$F)-SUMIF('مبيعات ومردودات المشتريات'!$E:$E,مخازن!E148,'مبيعات ومردودات المشتريات'!$F:$F) -> 0 | J148: 0 | Q148: =IFERROR(INDEX(EM,MATCH(0,IF(ISBLANK(EM),1,COUNTIF(Q$4:$Q147,EM)),0)),"") -> 
B149: 146 | G149: =F149+SUMIF('مشتريات ومردودات المبيعات'!$E:$E,مخازن!E149,'مشتريات ومردودات المبيعات'!$F:$F)-SUMIF('مبيعات ومردودات المشتريات'!$E:$E,مخازن!E149,'مبيعات ومردودات المشتريات'!$F:$F) -> 0 | J149: 0 | Q149: =IFERROR(INDEX(EM,MATCH(0,IF(ISBLANK(EM),1,COUNTIF(Q$4:$Q148,EM)),0)),"") -> 
B150: 147 | G150: =F150+SUMIF('مشتريات ومردودات المبيعات'!$E:$E,مخازن!E150,'مشتريات ومردودات المبيعات'!$F:$F)-SUMIF('مبيعات ومردودات المشتريات'!$E:$E,مخازن!E150,'مبيعات ومردودات المشتريات'!$F:$F) -> 0 | J150: 0 | Q150: =IFERROR(INDEX(EM,MATCH(0,IF(ISBLANK(EM),1,COUNTIF(Q$4:$Q149,EM)),0)),"") -> 
B151: 148 | G151: =F151+SUMIF('مشتريات ومردودات المبيعات'!$E:$E,مخازن!E151,'مشتريات ومردودات المبيعات'!$F:$F)-SUMIF('مبيعات ومردودات المشتريات'!$E:$E,مخازن!E151,'مبيعات ومردودات المشتريات'!$F:$F) -> 0 | J151: 0 | Q151: =IFERROR(INDEX(EM,MATCH(0,IF(ISBLANK(EM),1,COUNTIF(Q$4:$Q150,EM)),0)),"") -> 
B152: 149 | G152: =F152+SUMIF('مشتريات ومردودات المبيعات'!$E:$E,مخازن!E152,'مشتريات ومردودات المبيعات'!$F:$F)-SUMIF('مبيعات ومردودات المشتريات'!$E:$E,مخازن!E152,'مبيعات ومردودات المشتريات'!$F:$F) -> 0 | J152: 0 | Q152: =IFERROR(INDEX(EM,MATCH(0,IF(ISBLANK(EM),1,COUNTIF(Q$4:$Q151,EM)),0)),"") -> 
B153: 150 | G153: =F153+SUMIF('مشتريات ومردودات المبيعات'!$E:$E,مخازن!E153,'مشتريات ومردودات المبيعات'!$F:$F)-SUMIF('مبيعات ومردودات المشتريات'!$E:$E,مخازن!E153,'مبيعات ومردودات المشتريات'!$F:$F) -> 0 | J153: 0 | Q153: =IFERROR(INDEX(EM,MATCH(0,IF(ISBLANK(EM),1,COUNTIF(Q$4:$Q152,EM)),0)),"") -> 
B154: 151 | G154: =F154+SUMIF('مشتريات ومردودات المبيعات'!$E:$E,مخازن!E154,'مشتريات ومردودات المبيعات'!$F:$F)-SUMIF('مبيعات ومردودات المشتريات'!$E:$E,مخازن!E154,'مبيعات ومردودات المشتريات'!$F:$F) -> 0 | J154: 0 | Q154: =IFERROR(INDEX(EM,MATCH(0,IF(ISBLANK(EM),1,COUNTIF(Q$4:$Q153,EM)),0)),"") -> 
B155: 152 | G155: =F155+SUMIF('مشتريات ومردودات المبيعات'!$E:$E,مخازن!E155,'مشتريات ومردودات المبيعات'!$F:$F)-SUMIF('مبيعات ومردودات المشتريات'!$E:$E,مخازن!E155,'مبيعات ومردودات المشتريات'!$F:$F) -> 0 | J155: 0 | Q155: =IFERROR(INDEX(EM,MATCH(0,IF(ISBLANK(EM),1,COUNTIF(Q$4:$Q154,EM)),0)),"") -> 
B156: 153 | G156: =F156+SUMIF('مشتريات ومردودات المبيعات'!$E:$E,مخازن!E156,'مشتريات ومردودات المبيعات'!$F:$F)-SUMIF('مبيعات ومردودات المشتريات'!$E:$E,مخازن!E156,'مبيعات ومردودات المشتريات'!$F:$F) -> 0 | J156: 0 | Q156: =IFERROR(INDEX(EM,MATCH(0,IF(ISBLANK(EM),1,COUNTIF(Q$4:$Q155,EM)),0)),"") -> 
B157: 154 | G157: =F157+SUMIF('مشتريات ومردودات المبيعات'!$E:$E,مخازن!E157,'مشتريات ومردودات المبيعات'!$F:$F)-SUMIF('مبيعات ومردودات المشتريات'!$E:$E,مخازن!E157,'مبيعات ومردودات المشتريات'!$F:$F) -> 0 | J157: 0 | Q157: =IFERROR(INDEX(EM,MATCH(0,IF(ISBLANK(EM),1,COUNTIF(Q$4:$Q156,EM)),0)),"") -> 
B158: 155 | G158: =F158+SUMIF('مشتريات ومردودات المبيعات'!$E:$E,مخازن!E158,'مشتريات ومردودات المبيعات'!$F:$F)-SUMIF('مبيعات ومردودات المشتريات'!$E:$E,مخازن!E158,'مبيعات ومردودات المشتريات'!$F:$F) -> 0 | J158: 0 | Q158: =IFERROR(INDEX(EM,MATCH(0,IF(ISBLANK(EM),1,COUNTIF(Q$4:$Q157,EM)),0)),"") -> 
B159: 156 | G159: =F159+SUMIF('مشتريات ومردودات المبيعات'!$E:$E,مخازن!E159,'مشتريات ومردودات المبيعات'!$F:$F)-SUMIF('مبيعات ومردودات المشتريات'!$E:$E,مخازن!E159,'مبيعات ومردودات المشتريات'!$F:$F) -> 0 | J159: 0 | Q159: =IFERROR(INDEX(EM,MATCH(0,IF(ISBLANK(EM),1,COUNTIF(Q$4:$Q158,EM)),0)),"") -> 
B160: 157 | G160: =F160+SUMIF('مشتريات ومردودات المبيعات'!$E:$E,مخازن!E160,'مشتريات ومردودات المبيعات'!$F:$F)-SUMIF('مبيعات ومردودات المشتريات'!$E:$E,مخازن!E160,'مبيعات ومردودات المشتريات'!$F:$F) -> 0 | J160: 0 | Q160: =IFERROR(INDEX(EM,MATCH(0,IF(ISBLANK(EM),1,COUNTIF(Q$4:$Q159,EM)),0)),"") -> 
B161: 158 | G161: =F161+SUMIF('مشتريات ومردودات المبيعات'!$E:$E,مخازن!E161,'مشتريات ومردودات المبيعات'!$F:$F)-SUMIF('مبيعات ومردودات المشتريات'!$E:$E,مخازن!E161,'مبيعات ومردودات المشتريات'!$F:$F) -> 0 | J161: 0 | Q161: =IFERROR(INDEX(EM,MATCH(0,IF(ISBLANK(EM),1,COUNTIF(Q$4:$Q160,EM)),0)),"") -> 
B162: 159 | G162: =F162+SUMIF('مشتريات ومردودات المبيعات'!$E:$E,مخازن!E162,'مشتريات ومردودات المبيعات'!$F:$F)-SUMIF('مبيعات ومردودات المشتريات'!$E:$E,مخازن!E162,'مبيعات ومردودات المشتريات'!$F:$F) -> 0 | J162: 0 | Q162: =IFERROR(INDEX(EM,MATCH(0,IF(ISBLANK(EM),1,COUNTIF(Q$4:$Q161,EM)),0)),"") -> 
B163: 160 | G163: =F163+SUMIF('مشتريات ومردودات المبيعات'!$E:$E,مخازن!E163,'مشتريات ومردودات المبيعات'!$F:$F)-SUMIF('مبيعات ومردودات المشتريات'!$E:$E,مخازن!E163,'مبيعات ومردودات المشتريات'!$F:$F) -> 0 | J163: 0 | Q163: =IFERROR(INDEX(EM,MATCH(0,IF(ISBLANK(EM),1,COUNTIF(Q$4:$Q162,EM)),0)),"") -> 
B164: 161 | G164: =F164+SUMIF('مشتريات ومردودات المبيعات'!$E:$E,مخازن!E164,'مشتريات ومردودات المبيعات'!$F:$F)-SUMIF('مبيعات ومردودات المشتريات'!$E:$E,مخازن!E164,'مبيعات ومردودات المشتريات'!$F:$F) -> 0 | J164: 0 | Q164: =IFERROR(INDEX(EM,MATCH(0,IF(ISBLANK(EM),1,COUNTIF(Q$4:$Q163,EM)),0)),"") -> 
B165: 162 | G165: =F165+SUMIF('مشتريات ومردودات المبيعات'!$E:$E,مخازن!E165,'مشتريات ومردودات المبيعات'!$F:$F)-SUMIF('مبيعات ومردودات المشتريات'!$E:$E,مخازن!E165,'مبيعات ومردودات المشتريات'!$F:$F) -> 0 | J165: 0 | Q165: =IFERROR(INDEX(EM,MATCH(0,IF(ISBLANK(EM),1,COUNTIF(Q$4:$Q164,EM)),0)),"") -> 
B166: 163 | G166: =F166+SUMIF('مشتريات ومردودات المبيعات'!$E:$E,مخازن!E166,'مشتريات ومردودات المبيعات'!$F:$F)-SUMIF('مبيعات ومردودات المشتريات'!$E:$E,مخازن!E166,'مبيعات ومردودات المشتريات'!$F:$F) -> 0 | J166: 0 | Q166: =IFERROR(INDEX(EM,MATCH(0,IF(ISBLANK(EM),1,COUNTIF(Q$4:$Q165,EM)),0)),"") -> 
B167: 164 | G167: =F167+SUMIF('مشتريات ومردودات المبيعات'!$E:$E,مخازن!E167,'مشتريات ومردودات المبيعات'!$F:$F)-SUMIF('مبيعات ومردودات المشتريات'!$E:$E,مخازن!E167,'مبيعات ومردودات المشتريات'!$F:$F) -> 0 | J167: 0 | Q167: =IFERROR(INDEX(EM,MATCH(0,IF(ISBLANK(EM),1,COUNTIF(Q$4:$Q166,EM)),0)),"") -> 
B168: 165 | G168: =F168+SUMIF('مشتريات ومردودات المبيعات'!$E:$E,مخازن!E168,'مشتريات ومردودات المبيعات'!$F:$F)-SUMIF('مبيعات ومردودات المشتريات'!$E:$E,مخازن!E168,'مبيعات ومردودات المشتريات'!$F:$F) -> 0 | J168: 0 | Q168: =IFERROR(INDEX(EM,MATCH(0,IF(ISBLANK(EM),1,COUNTIF(Q$4:$Q167,EM)),0)),"") -> 
B169: 166 | G169: =F169+SUMIF('مشتريات ومردودات المبيعات'!$E:$E,مخازن!E169,'مشتريات ومردودات المبيعات'!$F:$F)-SUMIF('مبيعات ومردودات المشتريات'!$E:$E,مخازن!E169,'مبيعات ومردودات المشتريات'!$F:$F) -> 0 | J169: 0 | Q169: =IFERROR(INDEX(EM,MATCH(0,IF(ISBLANK(EM),1,COUNTIF(Q$4:$Q168,EM)),0)),"") -> 
B170: 167 | G170: =F170+SUMIF('مشتريات ومردودات المبيعات'!$E:$E,مخازن!E170,'مشتريات ومردودات المبيعات'!$F:$F)-SUMIF('مبيعات ومردودات المشتريات'!$E:$E,مخازن!E170,'مبيعات ومردودات المشتريات'!$F:$F) -> 0 | J170: 0 | Q170: =IFERROR(INDEX(EM,MATCH(0,IF(ISBLANK(EM),1,COUNTIF(Q$4:$Q169,EM)),0)),"") -> 
B171: 168 | G171: =F171+SUMIF('مشتريات ومردودات المبيعات'!$E:$E,مخازن!E171,'مشتريات ومردودات المبيعات'!$F:$F)-SUMIF('مبيعات ومردودات المشتريات'!$E:$E,مخازن!E171,'مبيعات ومردودات المشتريات'!$F:$F) -> 0 | J171: 0 | Q171: =IFERROR(INDEX(EM,MATCH(0,IF(ISBLANK(EM),1,COUNTIF(Q$4:$Q170,EM)),0)),"") -> 
B172: 169 | G172: =F172+SUMIF('مشتريات ومردودات المبيعات'!$E:$E,مخازن!E172,'مشتريات ومردودات المبيعات'!$F:$F)-SUMIF('مبيعات ومردودات المشتريات'!$E:$E,مخازن!E172,'مبيعات ومردودات المشتريات'!$F:$F) -> 0 | J172: 0 | Q172: =IFERROR(INDEX(EM,MATCH(0,IF(ISBLANK(EM),1,COUNTIF(Q$4:$Q171,EM)),0)),"") -> 
B173: 170 | G173: =F173+SUMIF('مشتريات ومردودات المبيعات'!$E:$E,مخازن!E173,'مشتريات ومردودات المبيعات'!$F:$F)-SUMIF('مبيعات ومردودات المشتريات'!$E:$E,مخازن!E173,'مبيعات ومردودات المشتريات'!$F:$F) -> 0 | J173: 0 | Q173: =IFERROR(INDEX(EM,MATCH(0,IF(ISBLANK(EM),1,COUNTIF(Q$4:$Q172,EM)),0)),"") -> 
B174: 171 | G174: =F174+SUMIF('مشتريات ومردودات المبيعات'!$E:$E,مخازن!E174,'مشتريات ومردودات المبيعات'!$F:$F)-SUMIF('مبيعات ومردودات المشتريات'!$E:$E,مخازن!E174,'مبيعات ومردودات المشتريات'!$F:$F) -> 0 | J174: 0 | Q174: =IFERROR(INDEX(EM,MATCH(0,IF(ISBLANK(EM),1,COUNTIF(Q$4:$Q173,EM)),0)),"") -> 
B175: 172 | G175: =F175+SUMIF('مشتريات ومردودات المبيعات'!$E:$E,مخازن!E175,'مشتريات ومردودات المبيعات'!$F:$F)-SUMIF('مبيعات ومردودات المشتريات'!$E:$E,مخازن!E175,'مبيعات ومردودات المشتريات'!$F:$F) -> 0 | J175: 0 | Q175: =IFERROR(INDEX(EM,MATCH(0,IF(ISBLANK(EM),1,COUNTIF(Q$4:$Q174,EM)),0)),"") -> 
B176: 173 | G176: =F176+SUMIF('مشتريات ومردودات المبيعات'!$E:$E,مخازن!E176,'مشتريات ومردودات المبيعات'!$F:$F)-SUMIF('مبيعات ومردودات المشتريات'!$E:$E,مخازن!E176,'مبيعات ومردودات المشتريات'!$F:$F) -> 0 | J176: 0 | Q176: =IFERROR(INDEX(EM,MATCH(0,IF(ISBLANK(EM),1,COUNTIF(Q$4:$Q175,EM)),0)),"") -> 
B177: 174 | G177: =F177+SUMIF('مشتريات ومردودات المبيعات'!$E:$E,مخازن!E177,'مشتريات ومردودات المبيعات'!$F:$F)-SUMIF('مبيعات ومردودات المشتريات'!$E:$E,مخازن!E177,'مبيعات ومردودات المشتريات'!$F:$F) -> 0 | J177: 0 | Q177: =IFERROR(INDEX(EM,MATCH(0,IF(ISBLANK(EM),1,COUNTIF(Q$4:$Q176,EM)),0)),"") -> 
B178: 175 | G178: =F178+SUMIF('مشتريات ومردودات المبيعات'!$E:$E,مخازن!E178,'مشتريات ومردودات المبيعات'!$F:$F)-SUMIF('مبيعات ومردودات المشتريات'!$E:$E,مخازن!E178,'مبيعات ومردودات المشتريات'!$F:$F) -> 0 | J178: 0 | Q178: =IFERROR(INDEX(EM,MATCH(0,IF(ISBLANK(EM),1,COUNTIF(Q$4:$Q177,EM)),0)),"") -> 
B179: 176 | G179: =F179+SUMIF('مشتريات ومردودات المبيعات'!$E:$E,مخازن!E179,'مشتريات ومردودات المبيعات'!$F:$F)-SUMIF('مبيعات ومردودات المشتريات'!$E:$E,مخازن!E179,'مبيعات ومردودات المشتريات'!$F:$F) -> 0 | J179: 0 | Q179: =IFERROR(INDEX(EM,MATCH(0,IF(ISBLANK(EM),1,COUNTIF(Q$4:$Q178,EM)),0)),"") -> 
B180: 177 | G180: =F180+SUMIF('مشتريات ومردودات المبيعات'!$E:$E,مخازن!E180,'مشتريات ومردودات المبيعات'!$F:$F)-SUMIF('مبيعات ومردودات المشتريات'!$E:$E,مخازن!E180,'مبيعات ومردودات المشتريات'!$F:$F) -> 0 | J180: 0 | Q180: =IFERROR(INDEX(EM,MATCH(0,IF(ISBLANK(EM),1,COUNTIF(Q$4:$Q179,EM)),0)),"") -> 
B181: 178 | G181: =F181+SUMIF('مشتريات ومردودات المبيعات'!$E:$E,مخازن!E181,'مشتريات ومردودات المبيعات'!$F:$F)-SUMIF('مبيعات ومردودات المشتريات'!$E:$E,مخازن!E181,'مبيعات ومردودات المشتريات'!$F:$F) -> 0 | J181: 0 | Q181: =IFERROR(INDEX(EM,MATCH(0,IF(ISBLANK(EM),1,COUNTIF(Q$4:$Q180,EM)),0)),"") -> 
B182: 179 | G182: =F182+SUMIF('مشتريات ومردودات المبيعات'!$E:$E,مخازن!E182,'مشتريات ومردودات المبيعات'!$F:$F)-SUMIF('مبيعات ومردودات المشتريات'!$E:$E,مخازن!E182,'مبيعات ومردودات المشتريات'!$F:$F) -> 0 | J182: 0 | Q182: =IFERROR(INDEX(EM,MATCH(0,IF(ISBLANK(EM),1,COUNTIF(Q$4:$Q181,EM)),0)),"") -> 
B183: 180 | G183: =F183+SUMIF('مشتريات ومردودات المبيعات'!$E:$E,مخازن!E183,'مشتريات ومردودات المبيعات'!$F:$F)-SUMIF('مبيعات ومردودات المشتريات'!$E:$E,مخازن!E183,'مبيعات ومردودات المشتريات'!$F:$F) -> 0 | J183: 0 | Q183: =IFERROR(INDEX(EM,MATCH(0,IF(ISBLANK(EM),1,COUNTIF(Q$4:$Q182,EM)),0)),"") -> 
B184: 181 | G184: =F184+SUMIF('مشتريات ومردودات المبيعات'!$E:$E,مخازن!E184,'مشتريات ومردودات المبيعات'!$F:$F)-SUMIF('مبيعات ومردودات المشتريات'!$E:$E,مخازن!E184,'مبيعات ومردودات المشتريات'!$F:$F) -> 0 | J184: 0 | Q184: =IFERROR(INDEX(EM,MATCH(0,IF(ISBLANK(EM),1,COUNTIF(Q$4:$Q183,EM)),0)),"") -> 
B185: 182 | G185: =F185+SUMIF('مشتريات ومردودات المبيعات'!$E:$E,مخازن!E185,'مشتريات ومردودات المبيعات'!$F:$F)-SUMIF('مبيعات ومردودات المشتريات'!$E:$E,مخازن!E185,'مبيعات ومردودات المشتريات'!$F:$F) -> 0 | J185: 0 | Q185: =IFERROR(INDEX(EM,MATCH(0,IF(ISBLANK(EM),1,COUNTIF(Q$4:$Q184,EM)),0)),"") -> 
B186: 183 | G186: =F186+SUMIF('مشتريات ومردودات المبيعات'!$E:$E,مخازن!E186,'مشتريات ومردودات المبيعات'!$F:$F)-SUMIF('مبيعات ومردودات المشتريات'!$E:$E,مخازن!E186,'مبيعات ومردودات المشتريات'!$F:$F) -> 0 | J186: 0 | Q186: =IFERROR(INDEX(EM,MATCH(0,IF(ISBLANK(EM),1,COUNTIF(Q$4:$Q185,EM)),0)),"") -> 
B187: 184 | G187: =F187+SUMIF('مشتريات ومردودات المبيعات'!$E:$E,مخازن!E187,'مشتريات ومردودات المبيعات'!$F:$F)-SUMIF('مبيعات ومردودات المشتريات'!$E:$E,مخازن!E187,'مبيعات ومردودات المشتريات'!$F:$F) -> 0 | J187: 0 | Q187: =IFERROR(INDEX(EM,MATCH(0,IF(ISBLANK(EM),1,COUNTIF(Q$4:$Q186,EM)),0)),"") -> 
B188: 185 | G188: =F188+SUMIF('مشتريات ومردودات المبيعات'!$E:$E,مخازن!E188,'مشتريات ومردودات المبيعات'!$F:$F)-SUMIF('مبيعات ومردودات المشتريات'!$E:$E,مخازن!E188,'مبيعات ومردودات المشتريات'!$F:$F) -> 0 | J188: 0 | Q188: =IFERROR(INDEX(EM,MATCH(0,IF(ISBLANK(EM),1,COUNTIF(Q$4:$Q187,EM)),0)),"") -> 
B189: 186 | G189: =F189+SUMIF('مشتريات ومردودات المبيعات'!$E:$E,مخازن!E189,'مشتريات ومردودات المبيعات'!$F:$F)-SUMIF('مبيعات ومردودات المشتريات'!$E:$E,مخازن!E189,'مبيعات ومردودات المشتريات'!$F:$F) -> 0 | J189: 0 | Q189: =IFERROR(INDEX(EM,MATCH(0,IF(ISBLANK(EM),1,COUNTIF(Q$4:$Q188,EM)),0)),"") -> 
B190: 187 | G190: =F190+SUMIF('مشتريات ومردودات المبيعات'!$E:$E,مخازن!E190,'مشتريات ومردودات المبيعات'!$F:$F)-SUMIF('مبيعات ومردودات المشتريات'!$E:$E,مخازن!E190,'مبيعات ومردودات المشتريات'!$F:$F) -> 0 | J190: 0 | Q190: =IFERROR(INDEX(EM,MATCH(0,IF(ISBLANK(EM),1,COUNTIF(Q$4:$Q189,EM)),0)),"") -> 
B191: 188 | G191: =F191+SUMIF('مشتريات ومردودات المبيعات'!$E:$E,مخازن!E191,'مشتريات ومردودات المبيعات'!$F:$F)-SUMIF('مبيعات ومردودات المشتريات'!$E:$E,مخازن!E191,'مبيعات ومردودات المشتريات'!$F:$F) -> 0 | J191: 0 | Q191: =IFERROR(INDEX(EM,MATCH(0,IF(ISBLANK(EM),1,COUNTIF(Q$4:$Q190,EM)),0)),"") -> 
B192: 189 | G192: =F192+SUMIF('مشتريات ومردودات المبيعات'!$E:$E,مخازن!E192,'مشتريات ومردودات المبيعات'!$F:$F)-SUMIF('مبيعات ومردودات المشتريات'!$E:$E,مخازن!E192,'مبيعات ومردودات المشتريات'!$F:$F) -> 0 | J192: 0 | Q192: =IFERROR(INDEX(EM,MATCH(0,IF(ISBLANK(EM),1,COUNTIF(Q$4:$Q191,EM)),0)),"") -> 
B193: 190 | G193: =F193+SUMIF('مشتريات ومردودات المبيعات'!$E:$E,مخازن!E193,'مشتريات ومردودات المبيعات'!$F:$F)-SUMIF('مبيعات ومردودات المشتريات'!$E:$E,مخازن!E193,'مبيعات ومردودات المشتريات'!$F:$F) -> 0 | J193: 0 | Q193: =IFERROR(INDEX(EM,MATCH(0,IF(ISBLANK(EM),1,COUNTIF(Q$4:$Q192,EM)),0)),"") -> 
B194: 191 | G194: =F194+SUMIF('مشتريات ومردودات المبيعات'!$E:$E,مخازن!E194,'مشتريات ومردودات المبيعات'!$F:$F)-SUMIF('مبيعات ومردودات المشتريات'!$E:$E,مخازن!E194,'مبيعات ومردودات المشتريات'!$F:$F) -> 0 | J194: 0 | Q194: =IFERROR(INDEX(EM,MATCH(0,IF(ISBLANK(EM),1,COUNTIF(Q$4:$Q193,EM)),0)),"") -> 
B195: 192 | G195: =F195+SUMIF('مشتريات ومردودات المبيعات'!$E:$E,مخازن!E195,'مشتريات ومردودات المبيعات'!$F:$F)-SUMIF('مبيعات ومردودات المشتريات'!$E:$E,مخازن!E195,'مبيعات ومردودات المشتريات'!$F:$F) -> 0 | J195: 0 | Q195: =IFERROR(INDEX(EM,MATCH(0,IF(ISBLANK(EM),1,COUNTIF(Q$4:$Q194,EM)),0)),"") -> 
B196: 193 | G196: =F196+SUMIF('مشتريات ومردودات المبيعات'!$E:$E,مخازن!E196,'مشتريات ومردودات المبيعات'!$F:$F)-SUMIF('مبيعات ومردودات المشتريات'!$E:$E,مخازن!E196,'مبيعات ومردودات المشتريات'!$F:$F) -> 0 | J196: 0 | Q196: =IFERROR(INDEX(EM,MATCH(0,IF(ISBLANK(EM),1,COUNTIF(Q$4:$Q195,EM)),0)),"") -> 
B197: 194 | G197: =F197+SUMIF('مشتريات ومردودات المبيعات'!$E:$E,مخازن!E197,'مشتريات ومردودات المبيعات'!$F:$F)-SUMIF('مبيعات ومردودات المشتريات'!$E:$E,مخازن!E197,'مبيعات ومردودات المشتريات'!$F:$F) -> 0 | J197: =H197*I197+H197 -> 0 | Q197: =IFERROR(INDEX(EM,MATCH(0,IF(ISBLANK(EM),1,COUNTIF(Q$4:$Q196,EM)),0)),"") -> 
B198: =IF(G198<>"",B197+1,0) -> 195 | G198: =F198+SUMIF('مشتريات ومردودات المبيعات'!$E:$E,مخازن!E198,'مشتريات ومردودات المبيعات'!$F:$F)-SUMIF('مبيعات ومردودات المشتريات'!$E:$E,مخازن!E198,'مبيعات ومردودات المشتريات'!$F:$F) -> 0 | J198: 0 | Q198: =IFERROR(INDEX(EM,MATCH(0,IF(ISBLANK(EM),1,COUNTIF(Q$4:$Q197,EM)),0)),"") -> 
B199: 196 | G199: =F199+SUMIF('مشتريات ومردودات المبيعات'!$E:$E,مخازن!E199,'مشتريات ومردودات المبيعات'!$F:$F)-SUMIF('مبيعات ومردودات المشتريات'!$E:$E,مخازن!E199,'مبيعات ومردودات المشتريات'!$F:$F) -> 0 | J199: 0 | Q199: =IFERROR(INDEX(EM,MATCH(0,IF(ISBLANK(EM),1,COUNTIF(Q$4:$Q198,EM)),0)),"") -> 
B200: 197 | G200: =F200+SUMIF('مشتريات ومردودات المبيعات'!$E:$E,مخازن!E200,'مشتريات ومردودات المبيعات'!$F:$F)-SUMIF('مبيعات ومردودات المشتريات'!$E:$E,مخازن!E200,'مبيعات ومردودات المشتريات'!$F:$F) -> 0 | J200: 0 | Q200: =IFERROR(INDEX(EM,MATCH(0,IF(ISBLANK(EM),1,COUNTIF(Q$4:$Q199,EM)),0)),"") -> 
... 800 more rows

Sheet فاتورة
C1: موبيل رقم : 0100000000000 | D1: اسم الشركة او المحل | G1: فاكس رقم : 02000000000
C2: فاتــــورة مبيعــــــات رقــــــــــم : | D2: 2 | F2: سجل تجارى رقم : | G2: س ت : 444444444444
C3: تــــــاريــــــــــــخ الفاتـــــــــــــــــــــورة : | D3: =TODAY() -> 2021-02-09 | F3: اسم العميـــــــــل :
A4: التاريخ | B4: رقم الفاتورة | C4: اسم الصنف | D4: الكمية | E4: السعر | F4: اسم العميل | G4: القيمة | S4: قائمة بدون تكرار
A5: =IF(G5>0,$D$3,"") ->  | B5: =IF(G5>0,$D$2,"") ->  | E5: =IF(C5="","",VLOOKUP(C5,مخازن!$E$4:$K$1000,6,0)) ->  | F5: =IF(G5>0,$G$3,"") ->  | G5: =IFERROR((D5*E5),0) -> 0 | S5: =IFERROR(INDEX(EM,MATCH(0,IF(ISBLANK(EM),1,COUNTIF(S$4:$S4,EM)),0)),"") -> بنطلون جينز رجالى | T5: =OFFSET($S$5,,,COUNTIF($S$4:$S$1001,"?*")) -> بنطلون جينز رجالى
E6: =IF(C6="","",VLOOKUP(C6,مخازن!$E$4:$K$1000,6,0)) ->  | F6: =IF(G6>0,$G$3,"") ->  | G6: =IFERROR((D6*E6),0) -> 0 | S6: =IFERROR(INDEX(EM,MATCH(0,IF(ISBLANK(EM),1,COUNTIF(S$4:$S5,EM)),0)),"") -> بنطلون جينز أولاد
E7: =IF(C7="","",VLOOKUP(C7,مخازن!$E$4:$K$1000,6,0)) ->  | G7: 0 | S7: =IFERROR(INDEX(EM,MATCH(0,IF(ISBLANK(EM),1,COUNTIF(S$4:$S6,EM)),0)),"") -> تى شيرت رجالى
E8: =IF(C8="","",VLOOKUP(C8,مخازن!$E$4:$K$1000,6,0)) ->  | G8: 0 | S8: =IFERROR(INDEX(EM,MATCH(0,IF(ISBLANK(EM),1,COUNTIF(S$4:$S7,EM)),0)),"") -> تى شيرت أولاد
E9: =IF(C9="","",VLOOKUP(C9,مخازن!$E$4:$K$1000,6,0)) ->  | G9: 0 | S9: =IFERROR(INDEX(EM,MATCH(0,IF(ISBLANK(EM),1,COUNTIF(S$4:$S8,EM)),0)),"") -> قميص كم طويل رجالى
E10: =IF(C10="","",VLOOKUP(C10,مخازن!$E$4:$K$1000,6,0)) ->  | G10: 0 | S10: =IFERROR(INDEX(EM,MATCH(0,IF(ISBLANK(EM),1,COUNTIF(S$4:$S9,EM)),0)),"") -> قميص كم طويل أولاد
E11: =IF(C11="","",VLOOKUP(C11,مخازن!$E$4:$K$1000,6,0)) ->  | G11: 0 | S11: =IFERROR(INDEX(EM,MATCH(0,IF(ISBLANK(EM),1,COUNTIF(S$4:$S10,EM)),0)),"") -> بنطلون قماش أولاد
E12: =IF(C12="","",VLOOKUP(C12,مخازن!$E$4:$K$1000,6,0)) ->  | G12: 0 | S12: =IFERROR(INDEX(EM,MATCH(0,IF(ISBLANK(EM),1,COUNTIF(S$4:$S11,EM)),0)),"") -> بنطلون قماش رجالى
E13: =IF(C13="","",VLOOKUP(C13,مخازن!$E$4:$K$1000,6,0)) ->  | G13: 0 | S13: =IFERROR(INDEX(EM,MATCH(0,IF(ISBLANK(EM),1,COUNTIF(S$4:$S12,EM)),0)),"") -> بدلة 3 قطع
E14: =IF(C14="","",VLOOKUP(C14,مخازن!$E$4:$K$1000,6,0)) ->  | G14: 0 | S14: =IFERROR(INDEX(EM,MATCH(0,IF(ISBLANK(EM),1,COUNTIF(S$4:$S13,EM)),0)),"") -> بدلة 2 قطعة
E15: =IF(C15="","",VLOOKUP(C15,مخازن!$E$4:$K$1000,6,0)) ->  | G15: 0 | S15: =IFERROR(INDEX(EM,MATCH(0,IF(ISBLANK(EM),1,COUNTIF(S$4:$S14,EM)),0)),"") -> كرفتة ستان
E16: =IF(C16="","",VLOOKUP(C16,مخازن!$E$4:$K$1000,6,0)) ->  | G16: 0 | S16: =IFERROR(INDEX(EM,MATCH(0,IF(ISBLANK(EM),1,COUNTIF(S$4:$S15,EM)),0)),"") -> كرفته باريس
E17: =IF(C17="","",VLOOKUP(C17,مخازن!$E$4:$K$1000,6,0)) ->  | G17: 0 | S17: =IFERROR(INDEX(EM,MATCH(0,IF(ISBLANK(EM),1,COUNTIF(S$4:$S16,EM)),0)),"") -> قميص بدلة
E18: =IF(C18="","",VLOOKUP(C18,مخازن!$E$4:$K$1000,6,0)) ->  | G18: 0 | S18: =IFERROR(INDEX(EM,MATCH(0,IF(ISBLANK(EM),1,COUNTIF(S$4:$S17,EM)),0)),"") -> حزام جلد طبيعى
E19: =IF(C19="","",VLOOKUP(C19,مخازن!$E$4:$K$1000,6,0)) ->  | G19: 0 | S19: =IFERROR(INDEX(EM,MATCH(0,IF(ISBLANK(EM),1,COUNTIF(S$4:$S18,EM)),0)),"") -> بكوليت شبابى
E20: =IF(C20="","",VLOOKUP(C20,مخازن!$E$4:$K$1000,6,0)) ->  | G20: 0 | S20: =IFERROR(INDEX(EM,MATCH(0,IF(ISBLANK(EM),1,COUNTIF(S$4:$S19,EM)),0)),"") -> ايفون 6
E21: =IF(C21="","",VLOOKUP(C21,مخازن!$E$4:$K$1000,6,0)) ->  | G21: 0 | S21: =IFERROR(INDEX(EM,MATCH(0,IF(ISBLANK(EM),1,COUNTIF(S$4:$S20,EM)),0)),"") -> 
F22: قيمة الفاتــــــــــــورة | I22: 5000 | S22: =IFERROR(INDEX(EM,MATCH(0,IF(ISBLANK(EM),1,COUNTIF(S$4:$S21,EM)),0)),"") -> 
F23: قيمة الخصــــــــــــــم | S23: =IFERROR(INDEX(EM,MATCH(0,IF(ISBLANK(EM),1,COUNTIF(S$4:$S22,EM)),0)),"") -> 
F24: قيمة المبالغ المدفوعة | S24: =IFERROR(INDEX(EM,MATCH(0,IF(ISBLANK(EM),1,COUNTIF(S$4:$S23,EM)),0)),"") -> 
C25: قيمة الخصم والمبالغ المدفوعة | G25: =SUM(G23:G24) -> 0
C26: صـــافى المطلــــوب من العميـــــــــــل : | D26: =kh_TextNum(G26,0,"جنيه","جنيهات","قرشا لاغير",2) -> فقط وقدره صفر جنيه | G26: =(G22-G25) -> 0 | S26: =IFERROR(INDEX(EM,MATCH(0,IF(ISBLANK(EM),1,COUNTIF(S$4:$S24,EM)),0)),"") -> 
S27: =IFERROR(INDEX(EM,MATCH(0,IF(ISBLANK(EM),1,COUNTIF(S$4:$S26,EM)),0)),"") -> 
S28: =IFERROR(INDEX(EM,MATCH(0,IF(ISBLANK(EM),1,COUNTIF(S$4:$S27,EM)),0)),"") -> 
S29: =IFERROR(INDEX(EM,MATCH(0,IF(ISBLANK(EM),1,COUNTIF(S$4:$S28,EM)),0)),"") -> 
S30: =IFERROR(INDEX(EM,MATCH(0,IF(ISBLANK(EM),1,COUNTIF(S$4:$S29,EM)),0)),"") -> 
S31: =IFERROR(INDEX(EM,MATCH(0,IF(ISBLANK(EM),1,COUNTIF(S$4:$S30,EM)),0)),"") -> 
S32: =IFERROR(INDEX(EM,MATCH(0,IF(ISBLANK(EM),1,COUNTIF(S$4:$S31,EM)),0)),"") -> 
S33: =IFERROR(INDEX(EM,MATCH(0,IF(ISBLANK(EM),1,COUNTIF(S$4:$S32,EM)),0)),"") -> 
S34: =IFERROR(INDEX(EM,MATCH(0,IF(ISBLANK(EM),1,COUNTIF(S$4:$S33,EM)),0)),"") -> 
S35: =IFERROR(INDEX(EM,MATCH(0,IF(ISBLANK(EM),1,COUNTIF(S$4:$S34,EM)),0)),"") -> 
S36: =IFERROR(INDEX(EM,MATCH(0,IF(ISBLANK(EM),1,COUNTIF(S$4:$S35,EM)),0)),"") -> 
S37: =IFERROR(INDEX(EM,MATCH(0,IF(ISBLANK(EM),1,COUNTIF(S$4:$S36,EM)),0)),"") -> 
S38: =IFERROR(INDEX(EM,MATCH(0,IF(ISBLANK(EM),1,COUNTIF(S$4:$S37,EM)),0)),"") -> 
S39: =IFERROR(INDEX(EM,MATCH(0,IF(ISBLANK(EM),1,COUNTIF(S$4:$S38,EM)),0)),"") -> 
S40: =IFERROR(INDEX(EM,MATCH(0,IF(ISBLANK(EM),1,COUNTIF(S$4:$S39,EM)),0)),"") -> 
S41: =IFERROR(INDEX(EM,MATCH(0,IF(ISBLANK(EM),1,COUNTIF(S$4:$S40,EM)),0)),"") -> 
S42: =IFERROR(INDEX(EM,MATCH(0,IF(ISBLANK(EM),1,COUNTIF(S$4:$S41,EM)),0)),"") -> 
S43: =IFERROR(INDEX(EM,MATCH(0,IF(ISBLANK(EM),1,COUNTIF(S$4:$S42,EM)),0)),"") -> 
S44: =IFERROR(INDEX(EM,MATCH(0,IF(ISBLANK(EM),1,COUNTIF(S$4:$S43,EM)),0)),"") -> 
S45: =IFERROR(INDEX(EM,MATCH(0,IF(ISBLANK(EM),1,COUNTIF(S$4:$S44,EM)),0)),"") -> 
S46: =IFERROR(INDEX(EM,MATCH(0,IF(ISBLANK(EM),1,COUNTIF(S$4:$S45,EM)),0)),"") -> 
S47: =IFERROR(INDEX(EM,MATCH(0,IF(ISBLANK(EM),1,COUNTIF(S$4:$S46,EM)),0)),"") -> 
S48: =IFERROR(INDEX(EM,MATCH(0,IF(ISBLANK(EM),1,COUNTIF(S$4:$S47,EM)),0)),"") -> 
S49: =IFERROR(INDEX(EM,MATCH(0,IF(ISBLANK(EM),1,COUNTIF(S$4:$S48,EM)),0)),"") -> 
S50: =IFERROR(INDEX(EM,MATCH(0,IF(ISBLANK(EM),1,COUNTIF(S$4:$S49,EM)),0)),"") -> 
S51: =IFERROR(INDEX(EM,MATCH(0,IF(ISBLANK(EM),1,COUNTIF(S$4:$S50,EM)),0)),"") -> 
S52: =IFERROR(INDEX(EM,MATCH(0,IF(ISBLANK(EM),1,COUNTIF(S$4:$S51,EM)),0)),"") -> 
S53: =IFERROR(INDEX(EM,MATCH(0,IF(ISBLANK(EM),1,COUNTIF(S$4:$S52,EM)),0)),"") -> 
S54: =IFERROR(INDEX(EM,MATCH(0,IF(ISBLANK(EM),1,COUNTIF(S$4:$S53,EM)),0)),"") -> 
S55: =IFERROR(INDEX(EM,MATCH(0,IF(ISBLANK(EM),1,COUNTIF(S$4:$S54,EM)),0)),"") -> 
S56: =IFERROR(INDEX(EM,MATCH(0,IF(ISBLANK(EM),1,COUNTIF(S$4:$S55,EM)),0)),"") -> 
S57: =IFERROR(INDEX(EM,MATCH(0,IF(ISBLANK(EM),1,COUNTIF(S$4:$S56,EM)),0)),"") -> 
S58: =IFERROR(INDEX(EM,MATCH(0,IF(ISBLANK(EM),1,COUNTIF(S$4:$S57,EM)),0)),"") -> 
S59: =IFERROR(INDEX(EM,MATCH(0,IF(ISBLANK(EM),1,COUNTIF(S$4:$S58,EM)),0)),"") -> 
S60: =IFERROR(INDEX(EM,MATCH(0,IF(ISBLANK(EM),1,COUNTIF(S$4:$S59,EM)),0)),"") -> 
S61: =IFERROR(INDEX(EM,MATCH(0,IF(ISBLANK(EM),1,COUNTIF(S$4:$S60,EM)),0)),"") -> 
S62: =IFERROR(INDEX(EM,MATCH(0,IF(ISBLANK(EM),1,COUNTIF(S$4:$S61,EM)),0)),"") -> 
S63: =IFERROR(INDEX(EM,MATCH(0,IF(ISBLANK(EM),1,COUNTIF(S$4:$S62,EM)),0)),"") -> 
S64: =IFERROR(INDEX(EM,MATCH(0,IF(ISBLANK(EM),1,COUNTIF(S$4:$S63,EM)),0)),"") -> 
S65: =IFERROR(INDEX(EM,MATCH(0,IF(ISBLANK(EM),1,COUNTIF(S$4:$S64,EM)),0)),"") -> 
S66: =IFERROR(INDEX(EM,MATCH(0,IF(ISBLANK(EM),1,COUNTIF(S$4:$S65,EM)),0)),"") -> 
S67: =IFERROR(INDEX(EM,MATCH(0,IF(ISBLANK(EM),1,COUNTIF(S$4:$S66,EM)),0)),"") -> 
S68: =IFERROR(INDEX(EM,MATCH(0,IF(ISBLANK(EM),1,COUNTIF(S$4:$S67,EM)),0)),"") -> 
S69: =IFERROR(INDEX(EM,MATCH(0,IF(ISBLANK(EM),1,COUNTIF(S$4:$S68,EM)),0)),"") -> 
S70: =IFERROR(INDEX(EM,MATCH(0,IF(ISBLANK(EM),1,COUNTIF(S$4:$S69,EM)),0)),"") -> 
S71: =IFERROR(INDEX(EM,MATCH(0,IF(ISBLANK(EM),1,COUNTIF(S$4:$S70,EM)),0)),"") -> 
S72: =IFERROR(INDEX(EM,MATCH(0,IF(ISBLANK(EM),1,COUNTIF(S$4:$S71,EM)),0)),"") -> 
S73: =IFERROR(INDEX(EM,MATCH(0,IF(ISBLANK(EM),1,COUNTIF(S$4:$S72,EM)),0)),"") -> 
S74: =IFERROR(INDEX(EM,MATCH(0,IF(ISBLANK(EM),1,COUNTIF(S$4:$S73,EM)),0)),"") -> 
S75: =IFERROR(INDEX(EM,MATCH(0,IF(ISBLANK(EM),1,COUNTIF(S$4:$S74,EM)),0)),"") -> 
S76: =IFERROR(INDEX(EM,MATCH(0,IF(ISBLANK(EM),1,COUNTIF(S$4:$S75,EM)),0)),"") -> 
S77: =IFERROR(INDEX(EM,MATCH(0,IF(ISBLANK(EM),1,COUNTIF(S$4:$S76,EM)),0)),"") -> 
S78: =IFERROR(INDEX(EM,MATCH(0,IF(ISBLANK(EM),1,COUNTIF(S$4:$S77,EM)),0)),"") -> 
S79: =IFERROR(INDEX(EM,MATCH(0,IF(ISBLANK(EM),1,COUNTIF(S$4:$S78,EM)),0)),"") -> 
S80: =IFERROR(INDEX(EM,MATCH(0,IF(ISBLANK(EM),1,COUNTIF(S$4:$S79,EM)),0)),"") -> 
S81: =IFERROR(INDEX(EM,MATCH(0,IF(ISBLANK(EM),1,COUNTIF(S$4:$S80,EM)),0)),"") -> 
S82: =IFERROR(INDEX(EM,MATCH(0,IF(ISBLANK(EM),1,COUNTIF(S$4:$S81,EM)),0)),"") -> 
S83: =IFERROR(INDEX(EM,MATCH(0,IF(ISBLANK(EM),1,COUNTIF(S$4:$S82,EM)),0)),"") -> 
S84: =IFERROR(INDEX(EM,MATCH(0,IF(ISBLANK(EM),1,COUNTIF(S$4:$S83,EM)),0)),"") -> 
S85: =IFERROR(INDEX(EM,MATCH(0,IF(ISBLANK(EM),1,COUNTIF(S$4:$S84,EM)),0)),"") -> 
S86: =IFERROR(INDEX(EM,MATCH(0,IF(ISBLANK(EM),1,COUNTIF(S$4:$S85,EM)),0)),"") -> 
S87: =IFERROR(INDEX(EM,MATCH(0,IF(ISBLANK(EM),1,COUNTIF(S$4:$S86,EM)),0)),"") -> 
S88: =IFERROR(INDEX(EM,MATCH(0,IF(ISBLANK(EM),1,COUNTIF(S$4:$S87,EM)),0)),"") -> 
S89: =IFERROR(INDEX(EM,MATCH(0,IF(ISBLANK(EM),1,COUNTIF(S$4:$S88,EM)),0)),"") -> 
S90: =IFERROR(INDEX(EM,MATCH(0,IF(ISBLANK(EM),1,COUNTIF(S$4:$S89,EM)),0)),"") -> 
S91: =IFERROR(INDEX(EM,MATCH(0,IF(ISBLANK(EM),1,COUNTIF(S$4:$S90,EM)),0)),"") -> 
S92: =IFERROR(INDEX(EM,MATCH(0,IF(ISBLANK(EM),1,COUNTIF(S$4:$S91,EM)),0)),"") -> 
S93: =IFERROR(INDEX(EM,MATCH(0,IF(ISBLANK(EM),1,COUNTIF(S$4:$S92,EM)),0)),"") -> 
S94: =IFERROR(INDEX(EM,MATCH(0,IF(ISBLANK(EM),1,COUNTIF(S$4:$S93,EM)),0)),"") -> 
S95: =IFERROR(INDEX(EM,MATCH(0,IF(ISBLANK(EM),1,COUNTIF(S$4:$S94,EM)),0)),"") -> 
S96: =IFERROR(INDEX(EM,MATCH(0,IF(ISBLANK(EM),1,COUNTIF(S$4:$S95,EM)),0)),"") -> 
S97: =IFERROR(INDEX(EM,MATCH(0,IF(ISBLANK(EM),1,COUNTIF(S$4:$S96,EM)),0)),"") -> 
S98: =IFERROR(INDEX(EM,MATCH(0,IF(ISBLANK(EM),1,COUNTIF(S$4:$S97,EM)),0)),"") -> 
S99: =IFERROR(INDEX(EM,MATCH(0,IF(ISBLANK(EM),1,COUNTIF(S$4:$S98,EM)),0)),"") -> 
S100: =IFERROR(INDEX(EM,MATCH(0,IF(ISBLANK(EM),1,COUNTIF(S$4:$S99,EM)),0)),"") -> 
S101: =IFERROR(INDEX(EM,MATCH(0,IF(ISBLANK(EM),1,COUNTIF(S$4:$S100,EM)),0)),"") -> 
S102: =IFERROR(INDEX(EM,MATCH(0,IF(ISBLANK(EM),1,COUNTIF(S$4:$S101,EM)),0)),"") -> 
S103: =IFERROR(INDEX(EM,MATCH(0,IF(ISBLANK(EM),1,COUNTIF(S$4:$S102,EM)),0)),"") -> 
S104: =IFERROR(INDEX(EM,MATCH(0,IF(ISBLANK(EM),1,COUNTIF(S$4:$S103,EM)),0)),"") -> 
S105: =IFERROR(INDEX(EM,MATCH(0,IF(ISBLANK(EM),1,COUNTIF(S$4:$S104,EM)),0)),"") -> 
S106: =IFERROR(INDEX(EM,MATCH(0,IF(ISBLANK(EM),1,COUNTIF(S$4:$S105,EM)),0)),"") -> 
S107: =IFERROR(INDEX(EM,MATCH(0,IF(ISBLANK(EM),1,COUNTIF(S$4:$S106,EM)),0)),"") -> 
S108: =IFERROR(INDEX(EM,MATCH(0,IF(ISBLANK(EM),1,COUNTIF(S$4:$S107,EM)),0)),"") -> 
S109: =IFERROR(INDEX(EM,MATCH(0,IF(ISBLANK(EM),1,COUNTIF(S$4:$S108,EM)),0)),"") -> 
S110: =IFERROR(INDEX(EM,MATCH(0,IF(ISBLANK(EM),1,COUNTIF(S$4:$S109,EM)),0)),"") -> 
S111: =IFERROR(INDEX(EM,MATCH(0,IF(ISBLANK(EM),1,COUNTIF(S$4:$S110,EM)),0)),"") -> 
S112: =IFERROR(INDEX(EM,MATCH(0,IF(ISBLANK(EM),1,COUNTIF(S$4:$S111,EM)),0)),"") -> 
S113: =IFERROR(INDEX(EM,MATCH(0,IF(ISBLANK(EM),1,COUNTIF(S$4:$S112,EM)),0)),"") -> 
S114: =IFERROR(INDEX(EM,MATCH(0,IF(ISBLANK(EM),1,COUNTIF(S$4:$S113,EM)),0)),"") -> 
S115: =IFERROR(INDEX(EM,MATCH(0,IF(ISBLANK(EM),1,COUNTIF(S$4:$S114,EM)),0)),"") -> 
S116: =IFERROR(INDEX(EM,MATCH(0,IF(ISBLANK(EM),1,COUNTIF(S$4:$S115,EM)),0)),"") -> 
S117: =IFERROR(INDEX(EM,MATCH(0,IF(ISBLANK(EM),1,COUNTIF(S$4:$S116,EM)),0)),"") -> 
S118: =IFERROR(INDEX(EM,MATCH(0,IF(ISBLANK(EM),1,COUNTIF(S$4:$S117,EM)),0)),"") -> 
S119: =IFERROR(INDEX(EM,MATCH(0,IF(ISBLANK(EM),1,COUNTIF(S$4:$S118,EM)),0)),"") -> 
S120: =IFERROR(INDEX(EM,MATCH(0,IF(ISBLANK(EM),1,COUNTIF(S$4:$S119,EM)),0)),"") -> 
S121: =IFERROR(INDEX(EM,MATCH(0,IF(ISBLANK(EM),1,COUNTIF(S$4:$S120,EM)),0)),"") -> 
S122: =IFERROR(INDEX(EM,MATCH(0,IF(ISBLANK(EM),1,COUNTIF(S$4:$S121,EM)),0)),"") -> 
S123: =IFERROR(INDEX(EM,MATCH(0,IF(ISBLANK(EM),1,COUNTIF(S$4:$S122,EM)),0)),"") -> 
S124: =IFERROR(INDEX(EM,MATCH(0,IF(ISBLANK(EM),1,COUNTIF(S$4:$S123,EM)),0)),"") -> 
S125: =IFERROR(INDEX(EM,MATCH(0,IF(ISBLANK(EM),1,COUNTIF(S$4:$S124,EM)),0)),"") -> 
S126: =IFERROR(INDEX(EM,MATCH(0,IF(ISBLANK(EM),1,COUNTIF(S$4:$S125,EM)),0)),"") -> 
S127: =IFERROR(INDEX(EM,MATCH(0,IF(ISBLANK(EM),1,COUNTIF(S$4:$S126,EM)),0)),"") -> 
S128: =IFERROR(INDEX(EM,MATCH(0,IF(ISBLANK(EM),1,COUNTIF(S$4:$S127,EM)),0)),"") -> 
S129: =IFERROR(INDEX(EM,MATCH(0,IF(ISBLANK(EM),1,COUNTIF(S$4:$S128,EM)),0)),"") -> 
S130: =IFERROR(INDEX(EM,MATCH(0,IF(ISBLANK(EM),1,COUNTIF(S$4:$S129,EM)),0)),"") -> 
S131: =IFERROR(INDEX(EM,MATCH(0,IF(ISBLANK(EM),1,COUNTIF(S$4:$S130,EM)),0)),"") -> 
S132: =IFERROR(INDEX(EM,MATCH(0,IF(ISBLANK(EM),1,COUNTIF(S$4:$S131,EM)),0)),"") -> 
S133: =IFERROR(INDEX(EM,MATCH(0,IF(ISBLANK(EM),1,COUNTIF(S$4:$S132,EM)),0)),"") -> 
S134: =IFERROR(INDEX(EM,MATCH(0,IF(ISBLANK(EM),1,COUNTIF(S$4:$S133,EM)),0)),"") -> 
S135: =IFERROR(INDEX(EM,MATCH(0,IF(ISBLANK(EM),1,COUNTIF(S$4:$S134,EM)),0)),"") -> 
S136: =IFERROR(INDEX(EM,MATCH(0,IF(ISBLANK(EM),1,COUNTIF(S$4:$S135,EM)),0)),"") -> 
S137: =IFERROR(INDEX(EM,MATCH(0,IF(ISBLANK(EM),1,COUNTIF(S$4:$S136,EM)),0)),"") -> 
S138: =IFERROR(INDEX(EM,MATCH(0,IF(ISBLANK(EM),1,COUNTIF(S$4:$S137,EM)),0)),"") -> 
S139: =IFERROR(INDEX(EM,MATCH(0,IF(ISBLANK(EM),1,COUNTIF(S$4:$S138,EM)),0)),"") -> 
S140: =IFERROR(INDEX(EM,MATCH(0,IF(ISBLANK(EM),1,COUNTIF(S$4:$S139,EM)),0)),"") -> 
S141: =IFERROR(INDEX(EM,MATCH(0,IF(ISBLANK(EM),1,COUNTIF(S$4:$S140,EM)),0)),"") -> 
S142: =IFERROR(INDEX(EM,MATCH(0,IF(ISBLANK(EM),1,COUNTIF(S$4:$S141,EM)),0)),"") -> 
S143: =IFERROR(INDEX(EM,MATCH(0,IF(ISBLANK(EM),1,COUNTIF(S$4:$S142,EM)),0)),"") -> 
S144: =IFERROR(INDEX(EM,MATCH(0,IF(ISBLANK(EM),1,COUNTIF(S$4:$S143,EM)),0)),"") -> 
S145: =IFERROR(INDEX(EM,MATCH(0,IF(ISBLANK(EM),1,COUNTIF(S$4:$S144,EM)),0)),"") -> 
S146: =IFERROR(INDEX(EM,MATCH(0,IF(ISBLANK(EM),1,COUNTIF(S$4:$S145,EM)),0)),"") -> 
S147: =IFERROR(INDEX(EM,MATCH(0,IF(ISBLANK(EM),1,COUNTIF(S$4:$S146,EM)),0)),"") -> 
S148: =IFERROR(INDEX(EM,MATCH(0,IF(ISBLANK(EM),1,COUNTIF(S$4:$S147,EM)),0)),"") -> 
S149: =IFERROR(INDEX(EM,MATCH(0,IF(ISBLANK(EM),1,COUNTIF(S$4:$S148,EM)),0)),"") -> 
S150: =IFERROR(INDEX(EM,MATCH(0,IF(ISBLANK(EM),1,COUNTIF(S$4:$S149,EM)),0)),"") -> 
S151: =IFERROR(INDEX(EM,MATCH(0,IF(ISBLANK(EM),1,COUNTIF(S$4:$S150,EM)),0)),"") -> 
S152: =IFERROR(INDEX(EM,MATCH(0,IF(ISBLANK(EM),1,COUNTIF(S$4:$S151,EM)),0)),"") -> 
S153: =IFERROR(INDEX(EM,MATCH(0,IF(ISBLANK(EM),1,COUNTIF(S$4:$S152,EM)),0)),"") -> 
S154: =IFERROR(INDEX(EM,MATCH(0,IF(ISBLANK(EM),1,COUNTIF(S$4:$S153,EM)),0)),"") -> 
S155: =IFERROR(INDEX(EM,MATCH(0,IF(ISBLANK(EM),1,COUNTIF(S$4:$S154,EM)),0)),"") -> 
S156: =IFERROR(INDEX(EM,MATCH(0,IF(ISBLANK(EM),1,COUNTIF(S$4:$S155,EM)),0)),"") -> 
S157: =IFERROR(INDEX(EM,MATCH(0,IF(ISBLANK(EM),1,COUNTIF(S$4:$S156,EM)),0)),"") -> 
S158: =IFERROR(INDEX(EM,MATCH(0,IF(ISBLANK(EM),1,COUNTIF(S$4:$S157,EM)),0)),"") -> 
S159: =IFERROR(INDEX(EM,MATCH(0,IF(ISBLANK(EM),1,COUNTIF(S$4:$S158,EM)),0)),"") -> 
S160: =IFERROR(INDEX(EM,MATCH(0,IF(ISBLANK(EM),1,COUNTIF(S$4:$S159,EM)),0)),"") -> 
S161: =IFERROR(INDEX(EM,MATCH(0,IF(ISBLANK(EM),1,COUNTIF(S$4:$S160,EM)),0)),"") -> 
S162: =IFERROR(INDEX(EM,MATCH(0,IF(ISBLANK(EM),1,COUNTIF(S$4:$S161,EM)),0)),"") -> 
S163: =IFERROR(INDEX(EM,MATCH(0,IF(ISBLANK(EM),1,COUNTIF(S$4:$S162,EM)),0)),"") -> 
S164: =IFERROR(INDEX(EM,MATCH(0,IF(ISBLANK(EM),1,COUNTIF(S$4:$S163,EM)),0)),"") -> 
S165: =IFERROR(INDEX(EM,MATCH(0,IF(ISBLANK(EM),1,COUNTIF(S$4:$S164,EM)),0)),"") -> 
S166: =IFERROR(INDEX(EM,MATCH(0,IF(ISBLANK(EM),1,COUNTIF(S$4:$S165,EM)),0)),"") -> 
S167: =IFERROR(INDEX(EM,MATCH(0,IF(ISBLANK(EM),1,COUNTIF(S$4:$S166,EM)),0)),"") -> 
S168: =IFERROR(INDEX(EM,MATCH(0,IF(ISBLANK(EM),1,COUNTIF(S$4:$S167,EM)),0)),"") -> 
S169: =IFERROR(INDEX(EM,MATCH(0,IF(ISBLANK(EM),1,COUNTIF(S$4:$S168,EM)),0)),"") -> 
S170: =IFERROR(INDEX(EM,MATCH(0,IF(ISBLANK(EM),1,COUNTIF(S$4:$S169,EM)),0)),"") -> 
S171: =IFERROR(INDEX(EM,MATCH(0,IF(ISBLANK(EM),1,COUNTIF(S$4:$S170,EM)),0)),"") -> 
S172: =IFERROR(INDEX(EM,MATCH(0,IF(ISBLANK(EM),1,COUNTIF(S$4:$S171,EM)),0)),"") -> 
S173: =IFERROR(INDEX(EM,MATCH(0,IF(ISBLANK(EM),1,COUNTIF(S$4:$S172,EM)),0)),"") -> 
S174: =IFERROR(INDEX(EM,MATCH(0,IF(ISBLANK(EM),1,COUNTIF(S$4:$S173,EM)),0)),"") -> 
S175: =IFERROR(INDEX(EM,MATCH(0,IF(ISBLANK(EM),1,COUNTIF(S$4:$S174,EM)),0)),"") -> 
S176: =IFERROR(INDEX(EM,MATCH(0,IF(ISBLANK(EM),1,COUNTIF(S$4:$S175,EM)),0)),"") -> 
S177: =IFERROR(INDEX(EM,MATCH(0,IF(ISBLANK(EM),1,COUNTIF(S$4:$S176,EM)),0)),"") -> 
S178: =IFERROR(INDEX(EM,MATCH(0,IF(ISBLANK(EM),1,COUNTIF(S$4:$S177,EM)),0)),"") -> 
S179: =IFERROR(INDEX(EM,MATCH(0,IF(ISBLANK(EM),1,COUNTIF(S$4:$S178,EM)),0)),"") -> 
S180: =IFERROR(INDEX(EM,MATCH(0,IF(ISBLANK(EM),1,COUNTIF(S$4:$S179,EM)),0)),"") -> 
S181: =IFERROR(INDEX(EM,MATCH(0,IF(ISBLANK(EM),1,COUNTIF(S$4:$S180,EM)),0)),"") -> 
S182: =IFERROR(INDEX(EM,MATCH(0,IF(ISBLANK(EM),1,COUNTIF(S$4:$S181,EM)),0)),"") -> 
S183: =IFERROR(INDEX(EM,MATCH(0,IF(ISBLANK(EM),1,COUNTIF(S$4:$S182,EM)),0)),"") -> 
S184: =IFERROR(INDEX(EM,MATCH(0,IF(ISBLANK(EM),1,COUNTIF(S$4:$S183,EM)),0)),"") -> 
S185: =IFERROR(INDEX(EM,MATCH(0,IF(ISBLANK(EM),1,COUNTIF(S$4:$S184,EM)),0)),"") -> 
S186: =IFERROR(INDEX(EM,MATCH(0,IF(ISBLANK(EM),1,COUNTIF(S$4:$S185,EM)),0)),"") -> 
S187: =IFERROR(INDEX(EM,MATCH(0,IF(ISBLANK(EM),1,COUNTIF(S$4:$S186,EM)),0)),"") -> 
S188: =IFERROR(INDEX(EM,MATCH(0,IF(ISBLANK(EM),1,COUNTIF(S$4:$S187,EM)),0)),"") -> 
S189: =IFERROR(INDEX(EM,MATCH(0,IF(ISBLANK(EM),1,COUNTIF(S$4:$S188,EM)),0)),"") -> 
S190: =IFERROR(INDEX(EM,MATCH(0,IF(ISBLANK(EM),1,COUNTIF(S$4:$S189,EM)),0)),"") -> 
S191: =IFERROR(INDEX(EM,MATCH(0,IF(ISBLANK(EM),1,COUNTIF(S$4:$S190,EM)),0)),"") -> 
S192: =IFERROR(INDEX(EM,MATCH(0,IF(ISBLANK(EM),1,COUNTIF(S$4:$S191,EM)),0)),"") -> 
S193: =IFERROR(INDEX(EM,MATCH(0,IF(ISBLANK(EM),1,COUNTIF(S$4:$S192,EM)),0)),"") -> 
S194: =IFERROR(INDEX(EM,MATCH(0,IF(ISBLANK(EM),1,COUNTIF(S$4:$S193,EM)),0)),"") -> 
S195: =IFERROR(INDEX(EM,MATCH(0,IF(ISBLANK(EM),1,COUNTIF(S$4:$S194,EM)),0)),"") -> 
S196: =IFERROR(INDEX(EM,MATCH(0,IF(ISBLANK(EM),1,COUNTIF(S$4:$S195,EM)),0)),"") -> 
S197: =IFERROR(INDEX(EM,MATCH(0,IF(ISBLANK(EM),1,COUNTIF(S$4:$S196,EM)),0)),"") -> 
S198: =IFERROR(INDEX(EM,MATCH(0,IF(ISBLANK(EM),1,COUNTIF(S$4:$S197,EM)),0)),"") -> 
S199: =IFERROR(INDEX(EM,MATCH(0,IF(ISBLANK(EM),1,COUNTIF(S$4:$S198,EM)),0)),"") -> 
S200: =IFERROR(INDEX(EM,MATCH(0,IF(ISBLANK(EM),1,COUNTIF(S$4:$S199,EM)),0)),"") -> 
... 52 more rows

Sheet مشتريات ومردودات المبيعات
N1: اسم المورد | O1: صافى الفترة
C2: المشتريات ومردودات المبيعات | N2: محمد صلاح | O2: =SUMIF(H:H,$N$2,J:J) -> 25500
B3: رقم الحركة | C3: التاريخ | D3: رقم الفاتورة / سند الدفع | E3: اسم الصنف | F3: العدد | G3: السعر | H3: اسم المورد | I3: المبلغ المدفوع | J3: القيمة | Q3: قائمة منسدله بدون تكرار او فراغات
A4: =CONCATENATE(COUNTIF($H$4:H4,H4),H4) -> 1حسام غالى | B4: =IF(J4<>"",1,0) -> 1 | C4: 2017-02-01 | D4: 1000 | E4: بنطلون جينز رجالى | F4: 100 | G4: 350 | H4: حسام غالى | I4: 5000 | J4: =IFERROR((F4*G4-I4),"") -> 30000 | Q4: =IFERROR(INDEX(HR,MATCH(0,IF(ISBLANK(HR),1,COUNTIF($Q$3:Q3,HR)),0)),"") -> حسام غالى | R4: =OFFSET($Q$4,,,COUNTIF($Q$4:$Q$1000,"?*")) -> حسام غالى
A5: =CONCATENATE(COUNTIF($H$4:H5,H5),H5) -> 1سعد سمير | B5: =IF(J5<>"",B4+1,0) -> 2 | C5: 2017-10-02 | D5: 1001 | E5: بنطلون جينز أولاد | F5: 300 | G5: 250 | H5: سعد سمير | I5: 0 | J5: =IFERROR((F5*G5-I5),"") -> 75000 | Q5: =IFERROR(INDEX(HR,MATCH(0,IF(ISBLANK(HR),1,COUNTIF($Q$3:Q4,HR)),0)),"") -> سعد سمير
A6: =CONCATENATE(COUNTIF($H$4:H6,H6),H6) -> 1محمد صلاح | B6: =IF(J6<>"",B5+1,0) -> 3 | C6: 2018-06-02 | D6: 1002 | E6: تى شيرت رجالى | F6: 50 | G6: 250 | H6: محمد صلاح | I6: 0 | J6: 12500 | Q6: =IFERROR(INDEX(HR,MATCH(0,IF(ISBLANK(HR),1,COUNTIF($Q$3:Q5,HR)),0)),"") -> محمد صلاح
A7: =CONCATENATE(COUNTIF($H$4:H7,H7),H7) -> 1شيكابالا | B7: 4 | C7: 2019-01-31 | D7: 1003 | E7: تى شيرت أولاد | F7: 20 | G7: 180 | H7: شيكابالا | I7: 0 | J7: 3600 | Q7: =IFERROR(INDEX(HR,MATCH(0,IF(ISBLANK(HR),1,COUNTIF($Q$3:Q6,HR)),0)),"") -> شيكابالا
A8: =CONCATENATE(COUNTIF($H$4:H8,H8),H8) -> 2حسام غالى | B8: 5 | C8: 2019-10-01 | D8: 1004 | E8: قميص كم طويل رجالى | F8: 20 | G8: 240 | H8: حسام غالى | I8: 0 | J8: 4800 | Q8: =IFERROR(INDEX(HR,MATCH(0,IF(ISBLANK(HR),1,COUNTIF($Q$3:Q7,HR)),0)),"") -> حسام عاشور
A9: =CONCATENATE(COUNTIF($H$4:H9,H9),H9) -> 3حسام غالى | B9: 6 | C9: 2020-05-31 | D9: 1005 | E9: قميص كم طويل أولاد | F9: 50 | G9: 190 | H9: حسام غالى | I9: 5000 | J9: 4500 | Q9: =IFERROR(INDEX(HR,MATCH(0,IF(ISBLANK(HR),1,COUNTIF($Q$3:Q8,HR)),0)),"") -> محمد هانى
A10: =CONCATENATE(COUNTIF($H$4:H10,H10),H10) -> 2شيكابالا | B10: 7 | C10: 2021-01-29 | D10: 1006 | E10: بنطلون قماش أولاد | F10: 40 | G10: 175 | H10: شيكابالا | I10: 7000 | J10: 0 | Q10: =IFERROR(INDEX(HR,MATCH(0,IF(ISBLANK(HR),1,COUNTIF($Q$3:Q9,HR)),0)),"") -> 
A11: =CONCATENATE(COUNTIF($H$4:H11,H11),H11) -> 2محمد صلاح | B11: 8 | C11: 2021-09-29 | D11: 1007 | E11: بنطلون قماش رجالى | F11: 65 | G11: 200 | H11: محمد صلاح | I11: 0 | J11: 13000 | Q11: =IFERROR(INDEX(HR,MATCH(0,IF(ISBLANK(HR),1,COUNTIF($Q$3:Q10,HR)),0)),"") -> 
A12: =CONCATENATE(COUNTIF($H$4:H12,H12),H12) -> 4حسام غالى | B12: 9 | C12: 2022-05-30 | D12: 1008 | E12: بدلة 3 قطع | F12: 30 | G12: 1500 | H12: حسام غالى | I12: 0 | J12: 45000 | Q12: =IFERROR(INDEX(HR,MATCH(0,IF(ISBLANK(HR),1,COUNTIF($Q$3:Q11,HR)),0)),"") -> 
A13: =CONCATENATE(COUNTIF($H$4:H13,H13),H13) -> 3شيكابالا | B13: 10 | C13: 2023-01-28 | D13: 1009 | E13: بدلة 2 قطعة | F13: 55 | G13: 1250 | H13: شيكابالا | I13: 0 | J13: 68750 | Q13: =IFERROR(INDEX(HR,MATCH(0,IF(ISBLANK(HR),1,COUNTIF($Q$3:Q12,HR)),0)),"") -> 
A14: =CONCATENATE(COUNTIF($H$4:H14,H14),H14) -> 0 | B14: 11 | J14: 0 | Q14: =IFERROR(INDEX(HR,MATCH(0,IF(ISBLANK(HR),1,COUNTIF($Q$3:Q13,HR)),0)),"") -> 
A15: =CONCATENATE(COUNTIF($H$4:H15,H15),H15) -> 5حسام غالى | B15: 12 | C15: 2024-05-28 | D15: 1011 | E15: كرفته باريس | F15: 45 | G15: 340 | H15: حسام غالى | I15: 0 | J15: 15300 | Q15: =IFERROR(INDEX(HR,MATCH(0,IF(ISBLANK(HR),1,COUNTIF($Q$3:Q14,HR)),0)),"") -> 
A16: =CONCATENATE(COUNTIF($H$4:H16,H16),H16) -> 6حسام غالى | B16: 13 | C16: 2025-01-26 | D16: 1012 | E16: قميص بدلة | F16: 100 | G16: 350 | H16: حسام غالى | I16: 0 | J16: 35000 | Q16: =IFERROR(INDEX(HR,MATCH(0,IF(ISBLANK(HR),1,COUNTIF($Q$3:Q15,HR)),0)),"") -> 
A17: =CONCATENATE(COUNTIF($H$4:H17,H17),H17) -> 1حسام عاشور | B17: 14 | C17: 20/10/2017 | D17: 1000 | E17: بنطلون جينز رجالى | F17: 30 | G17: 180 | H17: حسام عاشور | I17: 1000 | J17: 4400 | Q17: =IFERROR(INDEX(HR,MATCH(0,IF(ISBLANK(HR),1,COUNTIF($Q$3:Q16,HR)),0)),"") -> 
A18: =CONCATENATE(COUNTIF($H$4:H18,H18),H18) -> 1محمد هانى | B18: 15 | C18: 2017-10-22 | D18: 1010 | E18: كرفتة ستان | F18: 50 | G18: 275 | H18: محمد هانى | I18: 10000 | J18: 3750 | Q18: =IFERROR(INDEX(HR,MATCH(0,IF(ISBLANK(HR),1,COUNTIF($Q$3:Q17,HR)),0)),"") -> 
A19: =CONCATENATE(COUNTIF($H$4:H19,H19),H19) -> 2محمد هانى | B19: 16 | C19: 2017-10-22 | D19: 1004 | E19: قميص كم طويل رجالى | F19: 10 | G19: 250 | H19: محمد هانى | I19: 3000 | J19: -500 | Q19: =IFERROR(INDEX(HR,MATCH(0,IF(ISBLANK(HR),1,COUNTIF($Q$3:Q18,HR)),0)),"") -> 
A20: =CONCATENATE(COUNTIF($H$4:H20,H20),H20) -> 4شيكابالا | B20: 17 | C20: 2017-10-22 | D20: 1003 | E20: تى شيرت أولاد | F20: 60 | G20: 150 | H20: شيكابالا | I20: 20000 | J20: -11000 | Q20: =IFERROR(INDEX(HR,MATCH(0,IF(ISBLANK(HR),1,COUNTIF($Q$3:Q19,HR)),0)),"") -> 
A21: =CONCATENATE(COUNTIF($H$4:H21,H21),H21) -> 5شيكابالا | B21: 18 | C21: 2017-10-28 | D21: 1000 | E21: بنطلون جينز رجالى | F21: 80 | G21: 300 | H21: شيكابالا | I21: 5000 | J21: 19000 | Q21: =IFERROR(INDEX(HR,MATCH(0,IF(ISBLANK(HR),1,COUNTIF($Q$3:Q20,HR)),0)),"") -> 
A22: =CONCATENATE(COUNTIF($H$4:H22,H22),H22) -> 0 | B22: 19 | I22: 0 | J22: 0 | Q22: =IFERROR(INDEX(HR,MATCH(0,IF(ISBLANK(HR),1,COUNTIF($Q$3:Q21,HR)),0)),"") -> 
A23: =CONCATENATE(COUNTIF($H$4:H23,H23),H23) -> 0 | B23: 20 | I23: 0 | J23: 0 | Q23: =IFERROR(INDEX(HR,MATCH(0,IF(ISBLANK(HR),1,COUNTIF($Q$3:Q22,HR)),0)),"") -> 
A24: =CONCATENATE(COUNTIF($H$4:H24,H24),H24) -> 0 | B24: 21 | I24: 0 | J24: 0 | Q24: =IFERROR(INDEX(HR,MATCH(0,IF(ISBLANK(HR),1,COUNTIF($Q$3:Q23,HR)),0)),"") -> 
A25: =CONCATENATE(COUNTIF($H$4:H25,H25),H25) -> 0 | B25: 22 | I25: 0 | J25: 0 | Q25: =IFERROR(INDEX(HR,MATCH(0,IF(ISBLANK(HR),1,COUNTIF($Q$3:Q24,HR)),0)),"") -> 
A26: =CONCATENATE(COUNTIF($H$4:H26,H26),H26) -> 0 | B26: 23 | I26: 0 | J26: 0 | Q26: =IFERROR(INDEX(HR,MATCH(0,IF(ISBLANK(HR),1,COUNTIF($Q$3:Q25,HR)),0)),"") -> 
A27: =CONCATENATE(COUNTIF($H$4:H27,H27),H27) -> 0 | B27: 24 | I27: 0 | J27: 0 | Q27: =IFERROR(INDEX(HR,MATCH(0,COUNTIF($Q$3:Q26,HR),0)),"") -> 0
A28: =CONCATENATE(COUNTIF($H$4:H28,H28),H28) -> 0 | B28: 25 | I28: 0 | J28: 0 | Q28: =IFERROR(INDEX(HR,MATCH(0,COUNTIF($Q$3:Q27,HR),0)),"") -> 
A29: =CONCATENATE(COUNTIF($H$4:H29,H29),H29) -> 0 | B29: 26 | I29: 0 | J29: 0 | Q29: =IFERROR(INDEX(HR,MATCH(0,COUNTIF($Q$3:Q28,HR),0)),"") -> 
A30: =CONCATENATE(COUNTIF($H$4:H30,H30),H30) -> 0 | B30: 27 | I30: 0 | J30: 0 | Q30: =IFERROR(INDEX(HR,MATCH(0,COUNTIF($Q$3:Q29,HR),0)),"") -> 
A31: =CONCATENATE(COUNTIF($H$4:H31,H31),H31) -> 0 | B31: 28 | I31: 0 | J31: 0 | Q31: =IFERROR(INDEX(HR,MATCH(0,COUNTIF($Q$3:Q30,HR),0)),"") -> 
A32: =CONCATENATE(COUNTIF($H$4:H32,H32),H32) -> 0 | B32: 29 | I32: 0 | J32: 0
A33: =CONCATENATE(COUNTIF($H$4:H33,H33),H33) -> 0 | B33: 30 | I33: 0 | J33: =IFERROR((F33*G33-I33),"") -> 0
A34: =CONCATENATE(COUNTIF($H$4:H34,H34),H34) -> 0 | B34: 31 | I34: 0 | J34: 0
A35: =CONCATENATE(COUNTIF($H$4:H35,H35),H35) -> 0 | B35: 32 | I35: 0 | J35: 0
A36: =CONCATENATE(COUNTIF($H$4:H36,H36),H36) -> 0 | B36: 33 | I36: 0 | J36: 0
A37: =CONCATENATE(COUNTIF($H$4:H37,H37),H37) -> 0 | B37: 34 | I37: 0 | J37: 0
A38: =CONCATENATE(COUNTIF($H$4:H38,H38),H38) -> 0 | B38: 35 | I38: 0 | J38: 0
A39: =CONCATENATE(COUNTIF($H$4:H39,H39),H39) -> 0 | B39: 36 | I39: 0 | J39: 0
A40: =CONCATENATE(COUNTIF($H$4:H40,H40),H40) -> 0 | B40: 37 | I40: 0 | J40: 0
A41: =CONCATENATE(COUNTIF($H$4:H41,H41),H41) -> 0 | B41: 38 | I41: 0 | J41: 0
A42: =CONCATENATE(COUNTIF($H$4:H42,H42),H42) -> 0 | B42: 39 | I42: 0 | J42: 0
A43: =CONCATENATE(COUNTIF($H$4:H43,H43),H43) -> 0 | B43: 40 | I43: 0 | J43: 0
A44: =CONCATENATE(COUNTIF($H$4:H44,H44),H44) -> 0 | B44: 41 | I44: 0 | J44: 0
A45: =CONCATENATE(COUNTIF($H$4:H45,H45),H45) -> 0 | B45: 42 | I45: 0 | J45: 0
A46: =CONCATENATE(COUNTIF($H$4:H46,H46),H46) -> 0 | B46: 43 | I46: 0 | J46: 0
A47: =CONCATENATE(COUNTIF($H$4:H47,H47),H47) -> 0 | B47: 44 | I47: 0 | J47: 0
A48: =CONCATENATE(COUNTIF($H$4:H48,H48),H48) -> 0 | B48: 45 | I48: 0 | J48: 0
A49: =CONCATENATE(COUNTIF($H$4:H49,H49),H49) -> 0 | B49: 46 | I49: 0 | J49: 0
A50: =CONCATENATE(COUNTIF($H$4:H50,H50),H50) -> 0 | B50: 47 | I50: 0 | J50: 0
A51: =CONCATENATE(COUNTIF($H$4:H51,H51),H51) -> 0 | B51: 48 | I51: 0 | J51: 0
A52: =CONCATENATE(COUNTIF($H$4:H52,H52),H52) -> 0 | B52: 49 | I52: 0 | J52: 0
A53: =CONCATENATE(COUNTIF($H$4:H53,H53),H53) -> 0 | B53: 50 | I53: 0 | J53: 0
A54: =CONCATENATE(COUNTIF($H$4:H54,H54),H54) -> 0 | B54: 51 | I54: 0 | J54: 0
A55: =CONCATENATE(COUNTIF($H$4:H55,H55),H55) -> 0 | B55: 52 | I55: 0 | J55: 0
A56: =CONCATENATE(COUNTIF($H$4:H56,H56),H56) -> 0 | B56: 53 | I56: 0 | J56: 0
A57: =CONCATENATE(COUNTIF($H$4:H57,H57),H57) -> 0 | B57: 54 | I57: 0 | J57: 0
A58: =CONCATENATE(COUNTIF($H$4:H58,H58),H58) -> 0 | B58: 55 | I58: 0 | J58: 0
A59: =CONCATENATE(COUNTIF($H$4:H59,H59),H59) -> 0 | B59: 56 | I59: 0 | J59: 0
A60: =CONCATENATE(COUNTIF($H$4:H60,H60),H60) -> 0 | B60: 57 | I60: 0 | J60: 0
A61: =CONCATENATE(COUNTIF($H$4:H61,H61),H61) -> 0 | B61: 58 | I61: 0 | J61: 0
A62: =CONCATENATE(COUNTIF($H$4:H62,H62),H62) -> 0 | B62: 59 | I62: 0 | J62: 0
A63: =CONCATENATE(COUNTIF($H$4:H63,H63),H63) -> 0 | B63: 60 | I63: 0 | J63: 0
A64: =CONCATENATE(COUNTIF($H$4:H64,H64),H64) -> 0 | B64: 61 | I64: 0 | J64: 0
A65: =CONCATENATE(COUNTIF($H$4:H65,H65),H65) -> 0 | B65: 62 | I65: 0 | J65: 0
A66: =CONCATENATE(COUNTIF($H$4:H66,H66),H66) -> 0 | B66: 63 | I66: 0 | J66: 0
A67: =CONCATENATE(COUNTIF($H$4:H67,H67),H67) -> 0 | B67: 64 | I67: 0 | J67: 0
A68: =CONCATENATE(COUNTIF($H$4:H68,H68),H68) -> 0 | B68: 65 | I68: 0 | J68: 0
A69: =CONCATENATE(COUNTIF($H$4:H69,H69),H69) -> 0 | B69: 66 | I69: 0 | J69: 0
A70: =CONCATENATE(COUNTIF($H$4:H70,H70),H70) -> 0 | B70: =IF(J70<>"",B69+1,0) -> 67 | I70: 0 | J70: 0
A71: =CONCATENATE(COUNTIF($H$4:H71,H71),H71) -> 0 | B71: 68 | I71: 0 | J71: 0
A72: =CONCATENATE(COUNTIF($H$4:H72,H72),H72) -> 0 | B72: 69 | I72: 0 | J72: 0
A73: =CONCATENATE(COUNTIF($H$4:H73,H73),H73) -> 0 | B73: 70 | I73: 0 | J73: 0
A74: =CONCATENATE(COUNTIF($H$4:H74,H74),H74) -> 0 | B74: 71 | I74: 0 | J74: 0
A75: =CONCATENATE(COUNTIF($H$4:H75,H75),H75) -> 0 | B75: 72 | I75: 0 | J75: 0
A76: =CONCATENATE(COUNTIF($H$4:H76,H76),H76) -> 0 | B76: 73 | I76: 0 | J76: 0
A77: =CONCATENATE(COUNTIF($H$4:H77,H77),H77) -> 0 | B77: 74 | I77: 0 | J77: 0
A78: =CONCATENATE(COUNTIF($H$4:H78,H78),H78) -> 0 | B78: 75 | I78: 0 | J78: 0
A79: =CONCATENATE(COUNTIF($H$4:H79,H79),H79) -> 0 | B79: 76 | I79: 0 | J79: 0
A80: =CONCATENATE(COUNTIF($H$4:H80,H80),H80) -> 0 | B80: 77 | I80: 0 | J80: 0
A81: =CONCATENATE(COUNTIF($H$4:H81,H81),H81) -> 0 | B81: 78 | I81: 0 | J81: 0
A82: =CONCATENATE(COUNTIF($H$4:H82,H82),H82) -> 0 | B82: 79 | I82: 0 | J82: 0
A83: =CONCATENATE(COUNTIF($H$4:H83,H83),H83) -> 0 | B83: 80 | I83: 0 | J83: 0
A84: =CONCATENATE(COUNTIF($H$4:H84,H84),H84) -> 0 | B84: 81 | I84: 0 | J84: 0
A85: =CONCATENATE(COUNTIF($H$4:H85,H85),H85) -> 0 | B85: 82 | I85: 0 | J85: 0
A86: =CONCATENATE(COUNTIF($H$4:H86,H86),H86) -> 0 | B86: 83 | I86: 0 | J86: 0
A87: =CONCATENATE(COUNTIF($H$4:H87,H87),H87) -> 0 | B87: 84 | I87: 0 | J87: 0
A88: =CONCATENATE(COUNTIF($H$4:H88,H88),H88) -> 0 | B88: 85 | I88: 0 | J88: 0
A89: =CONCATENATE(COUNTIF($H$4:H89,H89),H89) -> 0 | B89: 86 | I89: 0 | J89: 0
A90: =CONCATENATE(COUNTIF($H$4:H90,H90),H90) -> 0 | B90: 87 | I90: 0 | J90: 0
A91: =CONCATENATE(COUNTIF($H$4:H91,H91),H91) -> 0 | B91: 88 | I91: 0 | J91: 0
A92: =CONCATENATE(COUNTIF($H$4:H92,H92),H92) -> 0 | B92: 89 | I92: 0 | J92: 0
A93: =CONCATENATE(COUNTIF($H$4:H93,H93),H93) -> 0 | B93: 90 | I93: 0 | J93: 0
A94: =CONCATENATE(COUNTIF($H$4:H94,H94),H94) -> 0 | B94: 91 | I94: 0 | J94: 0
A95: =CONCATENATE(COUNTIF($H$4:H95,H95),H95) -> 0 | B95: 92 | I95: 0 | J95: 0
A96: =CONCATENATE(COUNTIF($H$4:H96,H96),H96) -> 0 | B96: 93 | I96: 0 | J96: 0
A97: =CONCATENATE(COUNTIF($H$4:H97,H97),H97) -> 0 | B97: 94 | I97: 0 | J97: =IFERROR((F97*G97-I97),"") -> 0
A98: =CONCATENATE(COUNTIF($H$4:H98,H98),H98) -> 0 | B98: 95 | I98: 0 | J98: 0
A99: =CONCATENATE(COUNTIF($H$4:H99,H99),H99) -> 0 | B99: 96 | I99: 0 | J99: 0
A100: =CONCATENATE(COUNTIF($H$4:H100,H100),H100) -> 0 | B100: 97 | I100: 0 | J100: 0
A101: =CONCATENATE(COUNTIF($H$4:H101,H101),H101) -> 0 | B101: 98 | I101: 0 | J101: 0
A102: =CONCATENATE(COUNTIF($H$4:H102,H102),H102) -> 0 | B102: 99 | I102: 0 | J102: 0
A103: =CONCATENATE(COUNTIF($H$4:H103,H103),H103) -> 0 | B103: 100 | I103: 0 | J103: 0
A104: =CONCATENATE(COUNTIF($H$4:H104,H104),H104) -> 0 | B104: 101 | I104: 0 | J104: 0
A105: =CONCATENATE(COUNTIF($H$4:H105,H105),H105) -> 0 | B105: 102 | I105: 0 | J105: 0
A106: =CONCATENATE(COUNTIF($H$4:H106,H106),H106) -> 0 | B106: 103 | I106: 0 | J106: 0
A107: =CONCATENATE(COUNTIF($H$4:H107,H107),H107) -> 0 | B107: 104 | I107: 0 | J107: 0
A108: =CONCATENATE(COUNTIF($H$4:H108,H108),H108) -> 0 | B108: 105 | I108: 0 | J108: 0
A109: =CONCATENATE(COUNTIF($H$4:H109,H109),H109) -> 0 | B109: 106 | I109: 0 | J109: 0
A110: =CONCATENATE(COUNTIF($H$4:H110,H110),H110) -> 0 | B110: 107 | I110: 0 | J110: 0
A111: =CONCATENATE(COUNTIF($H$4:H111,H111),H111) -> 0 | B111: 108 | I111: 0 | J111: 0
A112: =CONCATENATE(COUNTIF($H$4:H112,H112),H112) -> 0 | B112: 109 | I112: 0 | J112: 0
A113: =CONCATENATE(COUNTIF($H$4:H113,H113),H113) -> 0 | B113: 110 | I113: 0 | J113: 0
A114: =CONCATENATE(COUNTIF($H$4:H114,H114),H114) -> 0 | B114: 111 | I114: 0 | J114: 0
A115: =CONCATENATE(COUNTIF($H$4:H115,H115),H115) -> 0 | B115: 112 | I115: 0 | J115: 0
A116: =CONCATENATE(COUNTIF($H$4:H116,H116),H116) -> 0 | B116: 113 | I116: 0 | J116: 0
A117: =CONCATENATE(COUNTIF($H$4:H117,H117),H117) -> 0 | B117: 114 | I117: 0 | J117: 0
A118: =CONCATENATE(COUNTIF($H$4:H118,H118),H118) -> 0 | B118: 115 | I118: 0 | J118: 0
A119: =CONCATENATE(COUNTIF($H$4:H119,H119),H119) -> 0 | B119: 116 | I119: 0 | J119: 0
A120: =CONCATENATE(COUNTIF($H$4:H120,H120),H120) -> 0 | B120: 117 | I120: 0 | J120: 0
A121: =CONCATENATE(COUNTIF($H$4:H121,H121),H121) -> 0 | B121: 118 | I121: 0 | J121: 0
A122: =CONCATENATE(COUNTIF($H$4:H122,H122),H122) -> 0 | B122: 119 | I122: 0 | J122: 0
A123: =CONCATENATE(COUNTIF($H$4:H123,H123),H123) -> 0 | B123: 120 | I123: 0 | J123: 0
A124: =CONCATENATE(COUNTIF($H$4:H124,H124),H124) -> 0 | B124: 121 | I124: 0 | J124: 0
A125: =CONCATENATE(COUNTIF($H$4:H125,H125),H125) -> 0 | B125: 122 | I125: 0 | J125: 0
A126: =CONCATENATE(COUNTIF($H$4:H126,H126),H126) -> 0 | B126: 123 | I126: 0 | J126: 0
A127: =CONCATENATE(COUNTIF($H$4:H127,H127),H127) -> 0 | B127: 124 | I127: 0 | J127: 0
A128: =CONCATENATE(COUNTIF($H$4:H128,H128),H128) -> 0 | B128: 125 | I128: 0 | J128: 0
A129: =CONCATENATE(COUNTIF($H$4:H129,H129),H129) -> 0 | B129: 126 | I129: 0 | J129: 0
A130: =CONCATENATE(COUNTIF($H$4:H130,H130),H130) -> 0 | B130: 127 | I130: 0 | J130: 0
A131: =CONCATENATE(COUNTIF($H$4:H131,H131),H131) -> 0 | B131: 128 | I131: 0 | J131: 0
A132: =CONCATENATE(COUNTIF($H$4:H132,H132),H132) -> 0 | B132: 129 | I132: 0 | J132: 0
A133: =CONCATENATE(COUNTIF($H$4:H133,H133),H133) -> 0 | B133: 130 | I133: 0 | J133: 0
A134: =CONCATENATE(COUNTIF($H$4:H134,H134),H134) -> 0 | B134: =IF(J134<>"",B133+1,0) -> 131 | I134: 0 | J134: 0
A135: =CONCATENATE(COUNTIF($H$4:H135,H135),H135) -> 0 | B135: 132 | I135: 0 | J135: 0
A136: =CONCATENATE(COUNTIF($H$4:H136,H136),H136) -> 0 | B136: 133 | I136: 0 | J136: 0
A137: =CONCATENATE(COUNTIF($H$4:H137,H137),H137) -> 0 | B137: 134 | I137: 0 | J137: 0
A138: =CONCATENATE(COUNTIF($H$4:H138,H138),H138) -> 0 | B138: 135 | I138: 0 | J138: 0
A139: =CONCATENATE(COUNTIF($H$4:H139,H139),H139) -> 0 | B139: 136 | I139: 0 | J139: 0
A140: =CONCATENATE(COUNTIF($H$4:H140,H140),H140) -> 0 | B140: 137 | I140: 0 | J140: 0
A141: =CONCATENATE(COUNTIF($H$4:H141,H141),H141) -> 0 | B141: 138 | I141: 0 | J141: 0
A142: =CONCATENATE(COUNTIF($H$4:H142,H142),H142) -> 0 | B142: 139 | I142: 0 | J142: 0
A143: =CONCATENATE(COUNTIF($H$4:H143,H143),H143) -> 0 | B143: 140 | I143: 0 | J143: 0
A144: =CONCATENATE(COUNTIF($H$4:H144,H144),H144) -> 0 | B144: 141 | I144: 0 | J144: 0
A145: =CONCATENATE(COUNTIF($H$4:H145,H145),H145) -> 0 | B145: 142 | I145: 0 | J145: 0
A146: =CONCATENATE(COUNTIF($H$4:H146,H146),H146) -> 0 | B146: 143 | I146: 0 | J146: 0
A147: =CONCATENATE(COUNTIF($H$4:H147,H147),H147) -> 0 | B147: 144 | I147: 0 | J147: 0
A148: =CONCATENATE(COUNTIF($H$4:H148,H148),H148) -> 0 | B148: 145 | I148: 0 | J148: 0
A149: =CONCATENATE(COUNTIF($H$4:H149,H149),H149) -> 0 | B149: 146 | I149: 0 | J149: 0
A150: =CONCATENATE(COUNTIF($H$4:H150,H150),H150) -> 0 | B150: 147 | I150: 0 | J150: 0
A151: =CONCATENATE(COUNTIF($H$4:H151,H151),H151) -> 0 | B151: 148 | I151: 0 | J151: 0
A152: =CONCATENATE(COUNTIF($H$4:H152,H152),H152) -> 0 | B152: 149 | I152: 0 | J152: 0
A153: =CONCATENATE(COUNTIF($H$4:H153,H153),H153) -> 0 | B153: 150 | I153: 0 | J153: 0
A154: =CONCATENATE(COUNTIF($H$4:H154,H154),H154) -> 0 | B154: 151 | I154: 0 | J154: 0
A155: =CONCATENATE(COUNTIF($H$4:H155,H155),H155) -> 0 | B155: 152 | I155: 0 | J155: 0
A156: =CONCATENATE(COUNTIF($H$4:H156,H156),H156) -> 0 | B156: 153 | I156: 0 | J156: 0
A157: =CONCATENATE(COUNTIF($H$4:H157,H157),H157) -> 0 | B157: 154 | I157: 0 | J157: 0
A158: =CONCATENATE(COUNTIF($H$4:H158,H158),H158) -> 0 | B158: 155 | I158: 0 | J158: 0
A159: =CONCATENATE(COUNTIF($H$4:H159,H159),H159) -> 0 | B159: 156 | I159: 0 | J159: 0
A160: =CONCATENATE(COUNTIF($H$4:H160,H160),H160) -> 0 | B160: 157 | I160: 0 | J160: 0
A161: =CONCATENATE(COUNTIF($H$4:H161,H161),H161) -> 0 | B161: 158 | I161: 0 | J161: =IFERROR((F161*G161-I161),"") -> 0
A162: =CONCATENATE(COUNTIF($H$4:H162,H162),H162) -> 0 | B162: 159 | I162: 0 | J162: 0
A163: =CONCATENATE(COUNTIF($H$4:H163,H163),H163) -> 0 | B163: 160 | I163: 0 | J163: 0
A164: =CONCATENATE(COUNTIF($H$4:H164,H164),H164) -> 0 | B164: 161 | I164: 0 | J164: 0
A165: =CONCATENATE(COUNTIF($H$4:H165,H165),H165) -> 0 | B165: 162 | I165: 0 | J165: 0
A166: =CONCATENATE(COUNTIF($H$4:H166,H166),H166) -> 0 | B166: 163 | I166: 0 | J166: 0
A167: =CONCATENATE(COUNTIF($H$4:H167,H167),H167) -> 0 | B167: 164 | I167: 0 | J167: 0
A168: =CONCATENATE(COUNTIF($H$4:H168,H168),H168) -> 0 | B168: 165 | I168: 0 | J168: 0
A169: =CONCATENATE(COUNTIF($H$4:H169,H169),H169) -> 0 | B169: 166 | I169: 0 | J169: 0
A170: =CONCATENATE(COUNTIF($H$4:H170,H170),H170) -> 0 | B170: 167 | I170: 0 | J170: 0
A171: =CONCATENATE(COUNTIF($H$4:H171,H171),H171) -> 0 | B171: 168 | I171: 0 | J171: 0
A172: =CONCATENATE(COUNTIF($H$4:H172,H172),H172) -> 0 | B172: 169 | I172: 0 | J172: 0
A173: =CONCATENATE(COUNTIF($H$4:H173,H173),H173) -> 0 | B173: 170 | I173: 0 | J173: 0
A174: =CONCATENATE(COUNTIF($H$4:H174,H174),H174) -> 0 | B174: 171 | I174: 0 | J174: 0
A175: =CONCATENATE(COUNTIF($H$4:H175,H175),H175) -> 0 | B175: 172 | I175: 0 | J175: 0
A176: =CONCATENATE(COUNTIF($H$4:H176,H176),H176) -> 0 | B176: 173 | I176: 0 | J176: 0
A177: =CONCATENATE(COUNTIF($H$4:H177,H177),H177) -> 0 | B177: 174 | I177: 0 | J177: 0
A178: =CONCATENATE(COUNTIF($H$4:H178,H178),H178) -> 0 | B178: 175 | I178: 0 | J178: 0
A179: =CONCATENATE(COUNTIF($H$4:H179,H179),H179) -> 0 | B179: 176 | I179: 0 | J179: 0
A180: =CONCATENATE(COUNTIF($H$4:H180,H180),H180) -> 0 | B180: 177 | I180: 0 | J180: 0
A181: =CONCATENATE(COUNTIF($H$4:H181,H181),H181) -> 0 | B181: 178 | I181: 0 | J181: 0
A182: =CONCATENATE(COUNTIF($H$4:H182,H182),H182) -> 0 | B182: 179 | I182: 0 | J182: 0
A183: =CONCATENATE(COUNTIF($H$4:H183,H183),H183) -> 0 | B183: 180 | I183: 0 | J183: 0
A184: =CONCATENATE(COUNTIF($H$4:H184,H184),H184) -> 0 | B184: 181 | I184: 0 | J184: 0
A185: =CONCATENATE(COUNTIF($H$4:H185,H185),H185) -> 0 | B185: 182 | I185: 0 | J185: 0
A186: =CONCATENATE(COUNTIF($H$4:H186,H186),H186) -> 0 | B186: 183 | I186: 0 | J186: 0
A187: =CONCATENATE(COUNTIF($H$4:H187,H187),H187) -> 0 | B187: 184 | I187: 0 | J187: 0
A188: =CONCATENATE(COUNTIF($H$4:H188,H188),H188) -> 0 | B188: 185 | I188: 0 | J188: 0
A189: =CONCATENATE(COUNTIF($H$4:H189,H189),H189) -> 0 | B189: 186 | I189: 0 | J189: 0
A190: =CONCATENATE(COUNTIF($H$4:H190,H190),H190) -> 0 | B190: 187 | I190: 0 | J190: 0
A191: =CONCATENATE(COUNTIF($H$4:H191,H191),H191) -> 0 | B191: 188 | I191: 0 | J191: 0
A192: =CONCATENATE(COUNTIF($H$4:H192,H192),H192) -> 0 | B192: 189 | I192: 0 | J192: 0
A193: =CONCATENATE(COUNTIF($H$4:H193,H193),H193) -> 0 | B193: 190 | I193: 0 | J193: 0
A194: =CONCATENATE(COUNTIF($H$4:H194,H194),H194) -> 0 | B194: 191 | I194: 0 | J194: 0
A195: =CONCATENATE(COUNTIF($H$4:H195,H195),H195) -> 0 | B195: 192 | I195: 0 | J195: 0
A196: =CONCATENATE(COUNTIF($H$4:H196,H196),H196) -> 0 | B196: 193 | I196: 0 | J196: 0 | Q196: =IFERROR(INDEX(HR,MATCH(0,IF(ISBLANK(HR),1,COUNTIF(#REF!,HR)),0)),"") -> 
A197: =CONCATENATE(COUNTIF($H$4:H197,H197),H197) -> 0 | B197: 194 | I197: 0 | J197: 0 | Q197: =IFERROR(INDEX(HR,MATCH(0,IF(ISBLANK(HR),1,COUNTIF($Q$3:Q196,HR)),0)),"") -> 
A198: =CONCATENATE(COUNTIF($H$4:H198,H198),H198) -> 0 | B198: =IF(J198<>"",B197+1,0) -> 195 | I198: 0 | J198: 0 | Q198: =IFERROR(INDEX(HR,MATCH(0,IF(ISBLANK(HR),1,COUNTIF($Q$3:Q197,HR)),0)),"") -> 
A199: =CONCATENATE(COUNTIF($H$4:H199,H199),H199) -> 0 | B199: 196 | I199: 0 | J199: 0 | Q199: =IFERROR(INDEX(HR,MATCH(0,IF(ISBLANK(HR),1,COUNTIF($Q$3:Q198,HR)),0)),"") -> 
A200: =CONCATENATE(COUNTIF($H$4:H200,H200),H200) -> 0 | B200: 197 | I200: 0 | J200: 0 | Q200: =IFERROR(INDEX(HR,MATCH(0,IF(ISBLANK(HR),1,COUNTIF($Q$3:Q199,HR)),0)),"") -> 
... 800 more rows

Sheet مبيعات ومردودات المشتريات
N1: اسم العميل | O1: صافى الفترة | V1: رجالى | W1: حريمى | X1: شبابى | Y1: أولاد | AB1: القسم | AC1: اسم الصنف
C2: المبيعات ومردودات المشتريات | N2: احمد الشناوى | O2: =SUMIF(H:H,$N$2,J:J) -> 400 | V2: بنطلون جينز رجالى XL | W2: عباية حريمى XL | X2: بوكليت شبابى L | Y2: بنطلون جينز أولاد ازرق | AB2: رجالى | AC2: بنطلون جينز رجالى L
A3: تسلس كل حركات العملاء | B3: رقم الحركة | C3: التاريخ | D3: رقم الفاتورة / سند القبض | E3: اسم الصنف | F3: العدد | G3: السعر | H3: اسم العميل | I3: المبلغ المدفوع | J3: القيمة | Q3: قائمة بدون تكرار | V3: بنطلون جينز رجالى L | W3: عباية حريمى L | X3: بوكليت شبابى M | Y3: بنطلون جينز أولاد اسود
A4: =CONCATENATE(COUNTIF($H$4:H4,H4),H4) -> 1احمد الشناوى | B4: =IF(J4<>"",1,0) -> 1 | C4: 2017-10-01 | D4: 1000 | E4: بنطلون جينز رجالى | F4: 30 | G4: 340 | H4: احمد الشناوى | I4: 6000 | J4: =IFERROR((F4*G4-I4),"") -> 4200 | Q4: =IFERROR(INDEX(Ro,MATCH(0,IF(ISBLANK(Ro),1,COUNTIF($Q$3:Q3,Ro)),0)),"") -> احمد الشناوى | R4: =OFFSET($Q$4,,,COUNTIF($Q$4:$Q$1000,"?*")) -> احمد الشناوى | V4: بنطلون جينز رجالى M | W4: عباية حريمى M | X4: بوكليت شبابى S | Y4: بنطلون جينز أولاد فاتح
A5: =CONCATENATE(COUNTIF($H$4:H5,H5),H5) -> 1احمد فتحى | B5: =IF(J5<>"",B4+1,0) -> 2 | C5: 2017-10-02 | D5: 1001 | E5: بنطلون جينز أولاد | F5: 25 | G5: 325 | H5: احمد فتحى | I5: 1000 | J5: 7125 | Q5: =IFERROR(INDEX(Ro,MATCH(0,IF(ISBLANK(Ro),1,COUNTIF($Q$3:Q4,Ro)),0)),"") -> احمد فتحى | V5: قميص رجالى كم طويل XL | W5: بلوزة حريمى L | X5: تى شيرت L | Y5: تى شيرت أولاد احمر
A6: =CONCATENATE(COUNTIF($H$4:H6,H6),H6) -> 1صلاح عاشور | B6: 3 | C6: 2017-01-03 | D6: 1002 | E6: تى شيرت رجالى | F6: 45 | G6: 180 | H6: صلاح عاشور | J6: 8100 | Q6: =IFERROR(INDEX(Ro,MATCH(0,IF(ISBLANK(Ro),1,COUNTIF($Q$3:Q5,Ro)),0)),"") -> صلاح عاشور | V6: قميص رجالى كم طويل L | W6: بلوزة حريمى M | X6: تى شيرت M | Y6: تى شيرت أولاد ازرق
A7: =CONCATENATE(COUNTIF($H$4:H7,H7),H7) -> 1شريف اكرامى | B7: 4 | C7: 2017-10-04 | D7: 1003 | E7: تى شيرت أولاد | F7: 50 | G7: 210 | H7: شريف اكرامى | I7: 300 | J7: =IFERROR((F7*G7-I7),"") -> 10200 | Q7: =IFERROR(INDEX(Ro,MATCH(0,IF(ISBLANK(Ro),1,COUNTIF($Q$3:Q6,Ro)),0)),"") -> شريف اكرامى | V7: قميص رجالى كم طويل M | W7: بلوزة حريمى S | X7: تى شيرت S | Y7: تى شيرت أولاد لبنى
A8: =CONCATENATE(COUNTIF($H$4:H8,H8),H8) -> 1باسم مرسى | B8: 5 | C8: 2017-10-05 | D8: 1004 | E8: قميص كم طويل رجالى | F8: 60 | G8: 190 | H8: باسم مرسى | J8: 11400 | Q8: =IFERROR(INDEX(Ro,MATCH(0,IF(ISBLANK(Ro),1,COUNTIF($Q$3:Q7,Ro)),0)),"") -> باسم مرسى | V8: تى شيرت رجالى XL | W8: شنطة حريمى ابيض | X8: بنطلون جينز شبابى مقاس 30 | Y8: قميص أولاد ابيض
A9: =CONCATENATE(COUNTIF($H$4:H9,H9),H9) -> 1خالد قمر | B9: 6 | C9: 2017-10-06 | D9: 1005 | E9: قميص كم طويل أولاد | F9: 90 | G9: 200 | H9: خالد قمر | J9: 18000 | Q9: =IFERROR(INDEX(Ro,MATCH(0,IF(ISBLANK(Ro),1,COUNTIF($Q$3:Q8,Ro)),0)),"") -> خالد قمر | V9: تى شيرت رجالى L | W9: شنطة حريمى اسود | X9: بنطلون جينز شبابى مقاس 28 | Y9: قميص أولاد كحلى
A10: =CONCATENATE(COUNTIF($H$4:H10,H10),H10) -> 2احمد فتحى | B10: 7 | C10: 2017-10-07 | D10: 1006 | E10: بنطلون قماش أولاد | F10: 90 | G10: 190 | H10: احمد فتحى | J10: 17100 | Q10: =IFERROR(INDEX(Ro,MATCH(0,IF(ISBLANK(Ro),1,COUNTIF($Q$3:Q9,Ro)),0)),"") -> مروان محسن | V10: تى شيرت رجالى M | W10: شنطة حريمى بنى | X10: بنطلون جينز شبابى مقاس 26 | Y10: قميص أولاد بيج
A11: =CONCATENATE(COUNTIF($H$4:H11,H11),H11) -> 2صلاح عاشور | B11: 8 | C11: 2017-10-08 | D11: 1007 | E11: بنطلون قماش رجالى | F11: 45 | G11: 350 | H11: صلاح عاشور | J11: 15750 | Q11: =IFERROR(INDEX(Ro,MATCH(0,IF(ISBLANK(Ro),1,COUNTIF($Q$3:Q10,Ro)),0)),"") -> عماد متعب
A12: =CONCATENATE(COUNTIF($H$4:H12,H12),H12) -> 2احمد الشناوى | B12: 9 | C12: 2017-10-09 | D12: 1008 | E12: بدلة 3 قطع | F12: 25 | G12: 260 | H12: احمد الشناوى | I12: 300 | J12: 6200 | Q12: =IFERROR(INDEX(Ro,MATCH(0,IF(ISBLANK(Ro),1,COUNTIF($Q$3:Q11,Ro)),0)),"") -> اكرم توفيق
A13: =CONCATENATE(COUNTIF($H$4:H13,H13),H13) -> 1مروان محسن | B13: 10 | C13: 2017-10-10 | D13: 1009 | E13: بدلة 2 قطعة | F13: 25 | G13: 260 | H13: مروان محسن | J13: 6500 | Q13: =IFERROR(INDEX(Ro,MATCH(0,IF(ISBLANK(Ro),1,COUNTIF($Q$3:Q12,Ro)),0)),"") -> احمد على
A14: =CONCATENATE(COUNTIF($H$4:H14,H14),H14) -> 1عماد متعب | B14: 11 | C14: 2017-10-11 | D14: 1010 | E14: كرفتة ستان | F14: 65 | G14: 200 | H14: عماد متعب | J14: 13000 | Q14: =IFERROR(INDEX(Ro,MATCH(0,IF(ISBLANK(Ro),1,COUNTIF($Q$3:Q13,Ro)),0)),"") -> احمد فتحى
A15: =CONCATENATE(COUNTIF($H$4:H15,H15),H15) -> 1اكرم توفيق | B15: 12 | C15: 2017-10-12 | D15: 1011 | E15: كرفته باريس | F15: 30 | G15: 1500 | H15: اكرم توفيق | J15: 45000 | Q15: =IFERROR(INDEX(Ro,MATCH(0,IF(ISBLANK(Ro),1,COUNTIF($Q$3:Q14,Ro)),0)),"") -> سلوم | X15: كيفية عمل قائمة منسدله مرتبطة بقائمة منسدله أخرى بكل سهوله
A16: =CONCATENATE(COUNTIF($H$4:H16,H16),H16) -> 1احمد على | B16: 13 | C16: 2017-10-13 | D16: 1012 | E16: قميص بدلة | F16: 25 | G16: 750 | H16: احمد على | J16: 18750 | Q16: =IFERROR(INDEX(Ro,MATCH(0,IF(ISBLANK(Ro),1,COUNTIF($Q$3:Q15,Ro)),0)),"") -> 
A17: =CONCATENATE(COUNTIF($H$4:H17,H17),H17) -> 2اكرم توفيق | B17: 14 | C17: 20/20/2017 | D17: 1001 | E17: بنطلون جينز رجالى | F17: 50 | G17: 370 | H17: اكرم توفيق | I17: 5000 | J17: 13500 | Q17: =IFERROR(INDEX(Ro,MATCH(0,IF(ISBLANK(Ro),1,COUNTIF($Q$3:Q16,Ro)),0)),"") -> 
A18: =CONCATENATE(COUNTIF($H$4:H18,H18),H18) -> 2خالد قمر | B18: 15 | C18: 2017-10-25 | D18: 1 | E18: بنطلون جينز رجالى | F18: 50 | G18: 400 | H18: خالد قمر | I18: 5000 | J18: 15000 | Q18: =IFERROR(INDEX(Ro,MATCH(0,IF(ISBLANK(Ro),1,COUNTIF($Q$3:Q17,Ro)),0)),"") -> 
A19: =CONCATENATE(COUNTIF($H$4:H19,H19),H19) -> 3خالد قمر | B19: 16 | C19: 2017-10-25 | D19: 1 | E19: بدلة 3 قطع | F19: 50 | G19: 1500 | H19: خالد قمر | J19: 75000 | Q19: =IFERROR(INDEX(Ro,MATCH(0,IF(ISBLANK(Ro),1,COUNTIF($Q$3:Q18,Ro)),0)),"") -> 
A20: =CONCATENATE(COUNTIF($H$4:H20,H20),H20) -> 3اكرم توفيق | B20: 17 | C20: 2017-10-28 | D20: 2 | E20: بنطلون جينز رجالى | F20: 12 | G20: 330 | H20: اكرم توفيق | I20: 1050 | J20: 2910 | Q20: =IFERROR(INDEX(Ro,MATCH(0,IF(ISBLANK(Ro),1,COUNTIF($Q$3:Q19,Ro)),0)),"") -> 
A21: =CONCATENATE(COUNTIF($H$4:H21,H21),H21) -> 4اكرم توفيق | B21: 18 | C21: 2017-10-28 | D21: 2 | E21: قميص كم طويل رجالى | F21: 10 | G21: 209 | H21: اكرم توفيق | J21: 2090 | Q21: =IFERROR(INDEX(Ro,MATCH(0,IF(ISBLANK(Ro),1,COUNTIF($Q$3:Q20,Ro)),0)),"") -> 
A22: =CONCATENATE(COUNTIF($H$4:H22,H22),H22) -> 1احمد فتحى | B22: 19 | C22: 2017-10-28 | D22: 3 | E22: بنطلون جينز رجالى | F22: 80 | G22: 330 | H22: احمد فتحى | I22: 6400 | J22: 20000 | Q22: =IFERROR(INDEX(Ro,MATCH(0,IF(ISBLANK(Ro),1,COUNTIF($Q$3:Q21,Ro)),0)),"") -> 
A23: =CONCATENATE(COUNTIF($H$4:H23,H23),H23) -> 2مروان محسن | B23: 20 | C23: 2017-10-28 | D23: 150 | E23: مبالغ نقدية | H23: مروان محسن | I23: 10000 | J23: -10000
A24: =CONCATENATE(COUNTIF($H$4:H24,H24),H24) -> 3احمد الشناوى | B24: 21 | C24: 2017-10-28 | D24: 155 | E24: دفعة نقدى | H24: احمد الشناوى | I24: 10000 | J24: -10000
A25: =CONCATENATE(COUNTIF($H$4:H25,H25),H25) -> 1سلوم | B25: 22 | C25: 2018-01-01 | D25: 1 | E25: ايفون 6 | F25: 3 | G25: 364 | H25: سلوم | I25: 200 | J25: 892
A26: =CONCATENATE(COUNTIF($H$4:H26,H26),H26) -> 2سلوم | B26: 23 | C26: 2018-01-01 | D26: 1 | E26: ايفون 6 | F26: 2 | G26: 364 | H26: سلوم | J26: 728
A27: =CONCATENATE(COUNTIF($H$4:H27,H27),H27) -> 1 | B27: 0
A28: =CONCATENATE(COUNTIF($H$4:H28,H28),H28) -> 2 | B28: 0
A29: =CONCATENATE(COUNTIF($H$4:H29,H29),H29) -> 3 | B29: 0
A30: =CONCATENATE(COUNTIF($H$4:H30,H30),H30) -> 4 | B30: 0
A31: =CONCATENATE(COUNTIF($H$4:H31,H31),H31) -> 5 | B31: 0
A32: =CONCATENATE(COUNTIF($H$4:H32,H32),H32) -> 6 | B32: 0
A33: =CONCATENATE(COUNTIF($H$4:H33,H33),H33) -> 7 | B33: 0
A34: =CONCATENATE(COUNTIF($H$4:H34,H34),H34) -> 8 | B34: 0
A35: =CONCATENATE(COUNTIF($H$4:H35,H35),H35) -> 9 | B35: 0
A36: =CONCATENATE(COUNTIF($H$4:H36,H36),H36) -> 10 | B36: 0
A37: =CONCATENATE(COUNTIF($H$4:H37,H37),H37) -> 11 | B37: 0
A38: =CONCATENATE(COUNTIF($H$4:H38,H38),H38) -> 12 | B38: 0
A39: =CONCATENATE(COUNTIF($H$4:H39,H39),H39) -> 13 | B39: 0
A40: =CONCATENATE(COUNTIF($H$4:H40,H40),H40) -> 14 | B40: 0
A41: =CONCATENATE(COUNTIF($H$4:H41,H41),H41) -> 15 | B41: 0
A42: =CONCATENATE(COUNTIF($H$4:H42,H42),H42) -> 3سلوم | B42: 1 | C42: 2018-01-01 | D42: 1 | H42: سلوم | I42: 100 | J42: -100
A43: =CONCATENATE(COUNTIF($H$4:H43,H43),H43) -> 4سلوم | B43: 2 | C43: 2017-12-13 | D43: 1 | H43: سلوم | I43: 250 | J43: -250
A44: =CONCATENATE(COUNTIF($H$4:H44,H44),H44) -> 0 | B44: 3 | J44: 0
A45: =CONCATENATE(COUNTIF($H$4:H45,H45),H45) -> 0 | B45: 4 | J45: 0
A46: =CONCATENATE(COUNTIF($H$4:H46,H46),H46) -> 0 | B46: 5 | J46: 0
A47: =CONCATENATE(COUNTIF($H$4:H47,H47),H47) -> 0 | B47: 6 | J47: 0
A48: =CONCATENATE(COUNTIF($H$4:H48,H48),H48) -> 0 | B48: 7 | J48: 0
A49: =CONCATENATE(COUNTIF($H$4:H49,H49),H49) -> 0 | B49: 8 | J49: 0
A50: =CONCATENATE(COUNTIF($H$4:H50,H50),H50) -> 0 | B50: 9 | J50: 0
A51: =CONCATENATE(COUNTIF($H$4:H51,H51),H51) -> 0 | B51: 10 | J51: 0
A52: =CONCATENATE(COUNTIF($H$4:H52,H52),H52) -> 0 | B52: 11 | J52: 0
A53: =CONCATENATE(COUNTIF($H$4:H53,H53),H53) -> 0 | B53: 12 | J53: 0
A54: =CONCATENATE(COUNTIF($H$4:H54,H54),H54) -> 0 | B54: 13 | J54: 0
A55: =CONCATENATE(COUNTIF($H$4:H55,H55),H55) -> 0 | B55: 14 | J55: 0
A56: =CONCATENATE(COUNTIF($H$4:H56,H56),H56) -> 0 | B56: 15 | J56: 0
A57: =CONCATENATE(COUNTIF($H$4:H57,H57),H57) -> 0 | B57: 16 | J57: 0
A58: =CONCATENATE(COUNTIF($H$4:H58,H58),H58) -> 0 | B58: 17 | J58: 0
A59: =CONCATENATE(COUNTIF($H$4:H59,H59),H59) -> 0 | B59: 18 | J59: 0
A60: =CONCATENATE(COUNTIF($H$4:H60,H60),H60) -> 0 | B60: 19 | J60: 0
A61: =CONCATENATE(COUNTIF($H$4:H61,H61),H61) -> 0 | B61: 20 | J61: 0
A62: =CONCATENATE(COUNTIF($H$4:H62,H62),H62) -> 0 | B62: 21 | J62: 0
A63: =CONCATENATE(COUNTIF($H$4:H63,H63),H63) -> 0 | B63: 22 | J63: 0
A64: =CONCATENATE(COUNTIF($H$4:H64,H64),H64) -> 0 | B64: 23 | J64: 0
A65: =CONCATENATE(COUNTIF($H$4:H65,H65),H65) -> 0 | B65: 24 | J65: 0
A66: =CONCATENATE(COUNTIF($H$4:H66,H66),H66) -> 0 | B66: 25 | J66: 0
A67: =CONCATENATE(COUNTIF($H$4:H67,H67),H67) -> 0 | B67: 26 | J67: 0
A68: =CONCATENATE(COUNTIF($H$4:H68,H68),H68) -> 0 | B68: 27 | J68: =IFERROR((F68*G68-I68),"") -> 0
A69: =CONCATENATE(COUNTIF($H$4:H69,H69),H69) -> 0 | B69: =IF(J69<>"",B68+1,0) -> 28 | J69: 0
A70: =CONCATENATE(COUNTIF($H$4:H70,H70),H70) -> 0 | B70: 29 | J70: 0
A71: =CONCATENATE(COUNTIF($H$4:H71,H71),H71) -> 0 | B71: 30 | J71: 0
A72: =CONCATENATE(COUNTIF($H$4:H72,H72),H72) -> 0 | B72: 31 | J72: 0
A73: =CONCATENATE(COUNTIF($H$4:H73,H73),H73) -> 0 | B73: 32 | J73: 0
A74: =CONCATENATE(COUNTIF($H$4:H74,H74),H74) -> 0 | B74: 33 | J74: 0
A75: =CONCATENATE(COUNTIF($H$4:H75,H75),H75) -> 0 | B75: 34 | J75: 0
A76: =CONCATENATE(COUNTIF($H$4:H76,H76),H76) -> 0 | B76: 35 | J76: 0
A77: =CONCATENATE(COUNTIF($H$4:H77,H77),H77) -> 0 | B77: 36 | J77: 0
A78: =CONCATENATE(COUNTIF($H$4:H78,H78),H78) -> 0 | B78: 37 | J78: 0
A79: =CONCATENATE(COUNTIF($H$4:H79,H79),H79) -> 0 | B79: 38 | J79: 0
A80: =CONCATENATE(COUNTIF($H$4:H80,H80),H80) -> 0 | B80: 39 | J80: 0
A81: =CONCATENATE(COUNTIF($H$4:H81,H81),H81) -> 0 | B81: 40 | J81: 0
A82: =CONCATENATE(COUNTIF($H$4:H82,H82),H82) -> 0 | B82: 41 | J82: 0
A83: =CONCATENATE(COUNTIF($H$4:H83,H83),H83) -> 0 | B83: 42 | J83: 0
A84: =CONCATENATE(COUNTIF($H$4:H84,H84),H84) -> 0 | B84: 43 | J84: 0
A85: =CONCATENATE(COUNTIF($H$4:H85,H85),H85) -> 0 | B85: 44 | J85: 0
A86: =CONCATENATE(COUNTIF($H$4:H86,H86),H86) -> 0 | B86: 45 | J86: 0
A87: =CONCATENATE(COUNTIF($H$4:H87,H87),H87) -> 0 | B87: 46 | J87: 0
A88: =CONCATENATE(COUNTIF($H$4:H88,H88),H88) -> 0 | B88: 47 | J88: 0
A89: =CONCATENATE(COUNTIF($H$4:H89,H89),H89) -> 0 | B89: 48 | J89: 0
A90: =CONCATENATE(COUNTIF($H$4:H90,H90),H90) -> 0 | B90: 49 | J90: 0
A91: =CONCATENATE(COUNTIF($H$4:H91,H91),H91) -> 0 | B91: 50 | J91: 0
A92: =CONCATENATE(COUNTIF($H$4:H92,H92),H92) -> 0 | B92: 51 | J92: 0
A93: =CONCATENATE(COUNTIF($H$4:H93,H93),H93) -> 0 | B93: 52 | J93: 0
A94: =CONCATENATE(COUNTIF($H$4:H94,H94),H94) -> 0 | B94: 53 | J94: 0
A95: =CONCATENATE(COUNTIF($H$4:H95,H95),H95) -> 0 | B95: 54 | J95: 0
A96: =CONCATENATE(COUNTIF($H$4:H96,H96),H96) -> 0 | B96: 55 | J96: 0
A97: =CONCATENATE(COUNTIF($H$4:H97,H97),H97) -> 0 | B97: 56 | J97: 0
A98: =CONCATENATE(COUNTIF($H$4:H98,H98),H98) -> 0 | B98: 57 | J98: 0
A99: =CONCATENATE(COUNTIF($H$4:H99,H99),H99) -> 0 | B99: 58 | J99: 0
A100: =CONCATENATE(COUNTIF($H$4:H100,H100),H100) -> 0 | B100: 59 | J100: 0
A101: =CONCATENATE(COUNTIF($H$4:H101,H101),H101) -> 0 | B101: 60 | J101: 0
A102: =CONCATENATE(COUNTIF($H$4:H102,H102),H102) -> 0 | B102: 61 | J102: 0
A103: =CONCATENATE(COUNTIF($H$4:H103,H103),H103) -> 0 | B103: 62 | J103: 0
A104: =CONCATENATE(COUNTIF($H$4:H104,H104),H104) -> 0 | B104: 63 | J104: 0
A105: =CONCATENATE(COUNTIF($H$4:H105,H105),H105) -> 0 | B105: 64 | J105: 0
A106: =CONCATENATE(COUNTIF($H$4:H106,H106),H106) -> 0 | B106: 65 | J106: 0
A107: =CONCATENATE(COUNTIF($H$4:H107,H107),H107) -> 0 | B107: 66 | J107: 0
A108: =CONCATENATE(COUNTIF($H$4:H108,H108),H108) -> 0 | B108: 67 | J108: 0
A109: =CONCATENATE(COUNTIF($H$4:H109,H109),H109) -> 0 | B109: 68 | J109: 0
A110: =CONCATENATE(COUNTIF($H$4:H110,H110),H110) -> 0 | B110: 69 | J110: 0
A111: =CONCATENATE(COUNTIF($H$4:H111,H111),H111) -> 0 | B111: 70 | J111: 0
A112: =CONCATENATE(COUNTIF($H$4:H112,H112),H112) -> 0 | B112: 71 | J112: 0
A113: =CONCATENATE(COUNTIF($H$4:H113,H113),H113) -> 0 | B113: 72 | J113: 0
A114: =CONCATENATE(COUNTIF($H$4:H114,H114),H114) -> 0 | B114: 73 | J114: 0
A115: =CONCATENATE(COUNTIF($H$4:H115,H115),H115) -> 0 | B115: 74 | J115: 0
A116: =CONCATENATE(COUNTIF($H$4:H116,H116),H116) -> 0 | B116: 75 | J116: 0
A117: =CONCATENATE(COUNTIF($H$4:H117,H117),H117) -> 0 | B117: 76 | J117: 0
A118: =CONCATENATE(COUNTIF($H$4:H118,H118),H118) -> 0 | B118: 77 | J118: 0
A119: =CONCATENATE(COUNTIF($H$4:H119,H119),H119) -> 0 | B119: 78 | J119: 0
A120: =CONCATENATE(COUNTIF($H$4:H120,H120),H120) -> 0 | B120: 79 | J120: 0
A121: =CONCATENATE(COUNTIF($H$4:H121,H121),H121) -> 0 | B121: 80 | J121: 0
A122: =CONCATENATE(COUNTIF($H$4:H122,H122),H122) -> 0 | B122: 81 | J122: 0
A123: =CONCATENATE(COUNTIF($H$4:H123,H123),H123) -> 0 | B123: 82 | J123: 0
A124: =CONCATENATE(COUNTIF($H$4:H124,H124),H124) -> 0 | B124: 83 | J124: 0
A125: =CONCATENATE(COUNTIF($H$4:H125,H125),H125) -> 0 | B125: 84 | J125: 0
A126: =CONCATENATE(COUNTIF($H$4:H126,H126),H126) -> 0 | B126: 85 | J126: 0
A127: =CONCATENATE(COUNTIF($H$4:H127,H127),H127) -> 0 | B127: 86 | J127: 0
A128: =CONCATENATE(COUNTIF($H$4:H128,H128),H128) -> 0 | B128: 87 | J128: 0
A129: =CONCATENATE(COUNTIF($H$4:H129,H129),H129) -> 0 | B129: 88 | J129: 0
A130: =CONCATENATE(COUNTIF($H$4:H130,H130),H130) -> 0 | B130: 89 | J130: 0
A131: =CONCATENATE(COUNTIF($H$4:H131,H131),H131) -> 0 | B131: 90 | J131: 0
A132: =CONCATENATE(COUNTIF($H$4:H132,H132),H132) -> 0 | B132: 91 | J132: =IFERROR((F132*G132-I132),"") -> 0
A133: =CONCATENATE(COUNTIF($H$4:H133,H133),H133) -> 0 | B133: =IF(J133<>"",B132+1,0) -> 92 | J133: 0
A134: =CONCATENATE(COUNTIF($H$4:H134,H134),H134) -> 0 | B134: 93 | J134: 0
A135: =CONCATENATE(COUNTIF($H$4:H135,H135),H135) -> 0 | B135: 94 | J135: 0
A136: =CONCATENATE(COUNTIF($H$4:H136,H136),H136) -> 0 | B136: 95 | J136: 0
A137: =CONCATENATE(COUNTIF($H$4:H137,H137),H137) -> 0 | B137: 96 | J137: 0
A138: =CONCATENATE(COUNTIF($H$4:H138,H138),H138) -> 0 | B138: 97 | J138: 0
A139: =CONCATENATE(COUNTIF($H$4:H139,H139),H139) -> 0 | B139: 98 | J139: 0
A140: =CONCATENATE(COUNTIF($H$4:H140,H140),H140) -> 0 | B140: 99 | J140: 0
A141: =CONCATENATE(COUNTIF($H$4:H141,H141),H141) -> 0 | B141: 100 | J141: 0
A142: =CONCATENATE(COUNTIF($H$4:H142,H142),H142) -> 0 | B142: 101 | J142: 0
A143: =CONCATENATE(COUNTIF($H$4:H143,H143),H143) -> 0 | B143: 102 | J143: 0
A144: =CONCATENATE(COUNTIF($H$4:H144,H144),H144) -> 0 | B144: 103 | J144: 0
A145: =CONCATENATE(COUNTIF($H$4:H145,H145),H145) -> 0 | B145: 104 | J145: 0
A146: =CONCATENATE(COUNTIF($H$4:H146,H146),H146) -> 0 | B146: 105 | J146: 0
A147: =CONCATENATE(COUNTIF($H$4:H147,H147),H147) -> 0 | B147: 106 | J147: 0
A148: =CONCATENATE(COUNTIF($H$4:H148,H148),H148) -> 0 | B148: 107 | J148: 0
A149: =CONCATENATE(COUNTIF($H$4:H149,H149),H149) -> 0 | B149: 108 | J149: 0
A150: =CONCATENATE(COUNTIF($H$4:H150,H150),H150) -> 0 | B150: 109 | J150: 0
A151: =CONCATENATE(COUNTIF($H$4:H151,H151),H151) -> 0 | B151: 110 | J151: 0
A152: =CONCATENATE(COUNTIF($H$4:H152,H152),H152) -> 0 | B152: 111 | J152: 0
A153: =CONCATENATE(COUNTIF($H$4:H153,H153),H153) -> 0 | B153: 112 | J153: 0
A154: =CONCATENATE(COUNTIF($H$4:H154,H154),H154) -> 0 | B154: 113 | J154: 0
A155: =CONCATENATE(COUNTIF($H$4:H155,H155),H155) -> 0 | B155: 114 | J155: 0
A156: =CONCATENATE(COUNTIF($H$4:H156,H156),H156) -> 0 | B156: 115 | J156: 0
A157: =CONCATENATE(COUNTIF($H$4:H157,H157),H157) -> 0 | B157: 116 | J157: 0
A158: =CONCATENATE(COUNTIF($H$4:H158,H158),H158) -> 0 | B158: 117 | J158: 0
A159: =CONCATENATE(COUNTIF($H$4:H159,H159),H159) -> 0 | B159: 118 | J159: 0
A160: =CONCATENATE(COUNTIF($H$4:H160,H160),H160) -> 0 | B160: 119 | J160: 0
A161: =CONCATENATE(COUNTIF($H$4:H161,H161),H161) -> 0 | B161: 120 | J161: 0
A162: =CONCATENATE(COUNTIF($H$4:H162,H162),H162) -> 0 | B162: 121 | J162: 0
A163: =CONCATENATE(COUNTIF($H$4:H163,H163),H163) -> 0 | B163: 122 | J163: 0
A164: =CONCATENATE(COUNTIF($H$4:H164,H164),H164) -> 0 | B164: 123 | J164: 0
A165: =CONCATENATE(COUNTIF($H$4:H165,H165),H165) -> 0 | B165: 124 | J165: 0
A166: =CONCATENATE(COUNTIF($H$4:H166,H166),H166) -> 0 | B166: 125 | J166: 0
A167: =CONCATENATE(COUNTIF($H$4:H167,H167),H167) -> 0 | B167: 126 | J167: 0
A168: =CONCATENATE(COUNTIF($H$4:H168,H168),H168) -> 0 | B168: 127 | J168: 0
A169: =CONCATENATE(COUNTIF($H$4:H169,H169),H169) -> 0 | B169: 128 | J169: 0
A170: =CONCATENATE(COUNTIF($H$4:H170,H170),H170) -> 0 | B170: 129 | J170: 0
A171: =CONCATENATE(COUNTIF($H$4:H171,H171),H171) -> 0 | B171: 130 | J171: 0
A172: =CONCATENATE(COUNTIF($H$4:H172,H172),H172) -> 0 | B172: 131 | J172: 0
A173: =CONCATENATE(COUNTIF($H$4:H173,H173),H173) -> 0 | B173: 132 | J173: 0
A174: =CONCATENATE(COUNTIF($H$4:H174,H174),H174) -> 0 | B174: 133 | J174: 0
A175: =CONCATENATE(COUNTIF($H$4:H175,H175),H175) -> 0 | B175: 134 | J175: 0
A176: =CONCATENATE(COUNTIF($H$4:H176,H176),H176) -> 0 | B176: 135 | J176: 0
A177: =CONCATENATE(COUNTIF($H$4:H177,H177),H177) -> 0 | B177: 136 | J177: 0
A178: =CONCATENATE(COUNTIF($H$4:H178,H178),H178) -> 0 | B178: 137 | J178: 0
A179: =CONCATENATE(COUNTIF($H$4:H179,H179),H179) -> 0 | B179: 138 | J179: 0
A180: =CONCATENATE(COUNTIF($H$4:H180,H180),H180) -> 0 | B180: 139 | J180: 0
A181: =CONCATENATE(COUNTIF($H$4:H181,H181),H181) -> 0 | B181: 140 | J181: 0
A182: =CONCATENATE(COUNTIF($H$4:H182,H182),H182) -> 0 | B182: 141 | J182: 0
A183: =CONCATENATE(COUNTIF($H$4:H183,H183),H183) -> 0 | B183: 142 | J183: 0
A184: =CONCATENATE(COUNTIF($H$4:H184,H184),H184) -> 0 | B184: 143 | J184: 0
A185: =CONCATENATE(COUNTIF($H$4:H185,H185),H185) -> 0 | B185: 144 | J185: 0
A186: =CONCATENATE(COUNTIF($H$4:H186,H186),H186) -> 0 | B186: 145 | J186: 0
A187: =CONCATENATE(COUNTIF($H$4:H187,H187),H187) -> 0 | B187: 146 | J187: 0
A188: =CONCATENATE(COUNTIF($H$4:H188,H188),H188) -> 0 | B188: 147 | J188: 0
A189: =CONCATENATE(COUNTIF($H$4:H189,H189),H189) -> 0 | B189: 148 | J189: 0
A190: =CONCATENATE(COUNTIF($H$4:H190,H190),H190) -> 0 | B190: 149 | J190: 0
A191: =CONCATENATE(COUNTIF($H$4:H191,H191),H191) -> 0 | B191: 150 | J191: 0
A192: =CONCATENATE(COUNTIF($H$4:H192,H192),H192) -> 0 | B192: 151 | J192: 0
A193: =CONCATENATE(COUNTIF($H$4:H193,H193),H193) -> 0 | B193: 152 | J193: 0
A194: =CONCATENATE(COUNTIF($H$4:H194,H194),H194) -> 0 | B194: 153 | J194: 0
A195: =CONCATENATE(COUNTIF($H$4:H195,H195),H195) -> 0 | B195: 154 | J195: 0
A196: =CONCATENATE(COUNTIF($H$4:H196,H196),H196) -> 0 | B196: 155 | J196: =IFERROR((F196*G196-I196),"") -> 0
A197: =CONCATENATE(COUNTIF($H$4:H197,H197),H197) -> 0 | B197: =IF(J197<>"",B196+1,0) -> 156 | J197: 0
A198: =CONCATENATE(COUNTIF($H$4:H198,H198),H198) -> 0 | B198: 157 | J198: 0
A199: =CONCATENATE(COUNTIF($H$4:H199,H199),H199) -> 0 | B199: 158 | J199: 0
A200: =CONCATENATE(COUNTIF($H$4:H200,H200),H200) -> 0 | B200: 159 | J200: 0
... 800 more rows

Sheet كشف حساب مورد
D1: كشف حساب مورد | G1: محمد صلاح | J1: صافى معاملات المورد | L1: =L100 -> 25500
D3: رقم الحركة | E3: التاريخ | F3: كود الصنف | G3: اسم الصنف | H3: العدد | I3: السعر | J3: اسم المورد | K3: المبلغ المدفوع | L3: القيمة
A4: =IF(B4="","",ROW()) ->  | B4: =IF($G$1='مشتريات ومردودات المبيعات'!$H$4:$H$1000,'مشتريات ومردودات المبيعات'!$A$4:$A$1000,"") ->  | C4: =IFERROR(VLOOKUP(SMALL($A$4:$A$100,ROW()-3),$A$4:$B$100,2,0),"") -> 1محمد صلاح | D4: =IFERROR(VLOOKUP($C4,'مشتريات ومردودات المبيعات'!$A$4:$N$1000,2,0),"") -> 3 | E4: =IFERROR(VLOOKUP($C4,'مشتريات ومردودات المبيعات'!$A$4:$N$1000,3,0),"") -> 2018-06-02 | F4: =IFERROR(VLOOKUP($C4,'مشتريات ومردودات المبيعات'!$A$4:$N$1000,4,0),"") -> 1002 | G4: =IFERROR(VLOOKUP($C4,'مشتريات ومردودات المبيعات'!$A$4:$N$1000,5,0),"") -> تى شيرت رجالى | H4: =IFERROR(VLOOKUP($C4,'مشتريات ومردودات المبيعات'!$A$4:$N$1000,6,0),"") -> 50 | I4: =IFERROR(VLOOKUP($C4,'مشتريات ومردودات المبيعات'!$A$4:$N$1000,7,0),"") -> 250 | J4: =IFERROR(VLOOKUP($C4,'مشتريات ومردودات المبيعات'!$A$4:$N$1000,8,0),"") -> محمد صلاح | K4: =IFERROR(VLOOKUP($C4,'مشتريات ومردودات المبيعات'!$A$4:$N$1000,9,0),"") -> 0 | L4: =IFERROR(VLOOKUP($C4,'مشتريات ومردودات المبيعات'!$A$4:$N$1000,10,0),"") -> 12500
A5: =IF(B5="","",ROW()) ->  | B5: =IF($G$1='مشتريات ومردودات المبيعات'!$H$4:$H$1000,'مشتريات ومردودات المبيعات'!$A$4:$A$1000,"") ->  | C5: =IFERROR(VLOOKUP(SMALL($A$4:$A$100,ROW()-3),$A$4:$B$100,2,0),"") -> 2محمد صلاح | D5: =IFERROR(VLOOKUP($C5,'مشتريات ومردودات المبيعات'!$A$4:$N$1000,2,0),"") -> 8 | E5: =IFERROR(VLOOKUP($C5,'مشتريات ومردودات المبيعات'!$A$4:$N$1000,3,0),"") -> 2021-09-29 | F5: =IFERROR(VLOOKUP($C5,'مشتريات ومردودات المبيعات'!$A$4:$N$1000,4,0),"") -> 1007 | G5: =IFERROR(VLOOKUP($C5,'مشتريات ومردودات المبيعات'!$A$4:$N$1000,5,0),"") -> بنطلون قماش رجالى | H5: =IFERROR(VLOOKUP($C5,'مشتريات ومردودات المبيعات'!$A$4:$N$1000,6,0),"") -> 65 | I5: =IFERROR(VLOOKUP($C5,'مشتريات ومردودات المبيعات'!$A$4:$N$1000,7,0),"") -> 200 | J5: =IFERROR(VLOOKUP($C5,'مشتريات ومردودات المبيعات'!$A$4:$N$1000,8,0),"") -> محمد صلاح | K5: =IFERROR(VLOOKUP($C5,'مشتريات ومردودات المبيعات'!$A$4:$N$1000,9,0),"") -> 0 | L5: =IFERROR(VLOOKUP($C5,'مشتريات ومردودات المبيعات'!$A$4:$N$1000,10,0),"") -> 13000
A6: 6 | B6: =IF($G$1='مشتريات ومردودات المبيعات'!$H$4:$H$1000,'مشتريات ومردودات المبيعات'!$A$4:$A$1000,"") -> 1محمد صلاح | D6: =IFERROR(VLOOKUP($C6,'مشتريات ومردودات المبيعات'!$A$4:$N$1000,2,0),"") ->  | E6: =IFERROR(VLOOKUP($C6,'مشتريات ومردودات المبيعات'!$A$4:$N$1000,3,0),"") ->  | F6: =IFERROR(VLOOKUP($C6,'مشتريات ومردودات المبيعات'!$A$4:$N$1000,4,0),"") ->  | G6: =IFERROR(VLOOKUP($C6,'مشتريات ومردودات المبيعات'!$A$4:$N$1000,5,0),"") ->  | H6: =IFERROR(VLOOKUP($C6,'مشتريات ومردودات المبيعات'!$A$4:$N$1000,6,0),"") ->  | I6: =IFERROR(VLOOKUP($C6,'مشتريات ومردودات المبيعات'!$A$4:$N$1000,7,0),"") ->  | J6: =IFERROR(VLOOKUP($C6,'مشتريات ومردودات المبيعات'!$A$4:$N$1000,8,0),"") ->  | K6: =IFERROR(VLOOKUP($C6,'مشتريات ومردودات المبيعات'!$A$4:$N$1000,9,0),"") ->  | L6: =IFERROR(VLOOKUP($C6,'مشتريات ومردودات المبيعات'!$A$4:$N$1000,10,0),"") -> 
B7: =IF($G$1='مشتريات ومردودات المبيعات'!$H$4:$H$1000,'مشتريات ومردودات المبيعات'!$A$4:$A$1000,"") ->  | D7: =IFERROR(VLOOKUP($C7,'مشتريات ومردودات المبيعات'!$A$4:$N$1000,2,0),"") ->  | E7: =IFERROR(VLOOKUP($C7,'مشتريات ومردودات المبيعات'!$A$4:$N$1000,3,0),"") ->  | F7: =IFERROR(VLOOKUP($C7,'مشتريات ومردودات المبيعات'!$A$4:$N$1000,4,0),"") ->  | G7: =IFERROR(VLOOKUP($C7,'مشتريات ومردودات المبيعات'!$A$4:$N$1000,5,0),"") ->  | H7: =IFERROR(VLOOKUP($C7,'مشتريات ومردودات المبيعات'!$A$4:$N$1000,6,0),"") ->  | I7: =IFERROR(VLOOKUP($C7,'مشتريات ومردودات المبيعات'!$A$4:$N$1000,7,0),"") ->  | J7: =IFERROR(VLOOKUP($C7,'مشتريات ومردودات المبيعات'!$A$4:$N$1000,8,0),"") ->  | K7: =IFERROR(VLOOKUP($C7,'مشتريات ومردودات المبيعات'!$A$4:$N$1000,9,0),"") ->  | L7: =IFERROR(VLOOKUP($C7,'مشتريات ومردودات المبيعات'!$A$4:$N$1000,10,0),"") -> 
B8: =IF($G$1='مشتريات ومردودات المبيعات'!$H$4:$H$1000,'مشتريات ومردودات المبيعات'!$A$4:$A$1000,"") ->  | D8: =IFERROR(VLOOKUP($C8,'مشتريات ومردودات المبيعات'!$A$4:$N$1000,2,0),"") ->  | E8: =IFERROR(VLOOKUP($C8,'مشتريات ومردودات المبيعات'!$A$4:$N$1000,3,0),"") ->  | F8: =IFERROR(VLOOKUP($C8,'مشتريات ومردودات المبيعات'!$A$4:$N$1000,4,0),"") ->  | G8: =IFERROR(VLOOKUP($C8,'مشتريات ومردودات المبيعات'!$A$4:$N$1000,5,0),"") ->  | H8: =IFERROR(VLOOKUP($C8,'مشتريات ومردودات المبيعات'!$A$4:$N$1000,6,0),"") ->  | I8: =IFERROR(VLOOKUP($C8,'مشتريات ومردودات المبيعات'!$A$4:$N$1000,7,0),"") ->  | J8: =IFERROR(VLOOKUP($C8,'مشتريات ومردودات المبيعات'!$A$4:$N$1000,8,0),"") ->  | K8: =IFERROR(VLOOKUP($C8,'مشتريات ومردودات المبيعات'!$A$4:$N$1000,9,0),"") ->  | L8: =IFERROR(VLOOKUP($C8,'مشتريات ومردودات المبيعات'!$A$4:$N$1000,10,0),"") -> 
B9: =IF($G$1='مشتريات ومردودات المبيعات'!$H$4:$H$1000,'مشتريات ومردودات المبيعات'!$A$4:$A$1000,"") ->  | D9: =IFERROR(VLOOKUP($C9,'مشتريات ومردودات المبيعات'!$A$4:$N$1000,2,0),"") ->  | E9: =IFERROR(VLOOKUP($C9,'مشتريات ومردودات المبيعات'!$A$4:$N$1000,3,0),"") ->  | F9: =IFERROR(VLOOKUP($C9,'مشتريات ومردودات المبيعات'!$A$4:$N$1000,4,0),"") ->  | G9: =IFERROR(VLOOKUP($C9,'مشتريات ومردودات المبيعات'!$A$4:$N$1000,5,0),"") ->  | H9: =IFERROR(VLOOKUP($C9,'مشتريات ومردودات المبيعات'!$A$4:$N$1000,6,0),"") ->  | I9: =IFERROR(VLOOKUP($C9,'مشتريات ومردودات المبيعات'!$A$4:$N$1000,7,0),"") ->  | J9: =IFERROR(VLOOKUP($C9,'مشتريات ومردودات المبيعات'!$A$4:$N$1000,8,0),"") ->  | K9: =IFERROR(VLOOKUP($C9,'مشتريات ومردودات المبيعات'!$A$4:$N$1000,9,0),"") ->  | L9: =IFERROR(VLOOKUP($C9,'مشتريات ومردودات المبيعات'!$A$4:$N$1000,10,0),"") -> 
B10: =IF($G$1='مشتريات ومردودات المبيعات'!$H$4:$H$1000,'مشتريات ومردودات المبيعات'!$A$4:$A$1000,"") ->  | D10: =IFERROR(VLOOKUP($C10,'مشتريات ومردودات المبيعات'!$A$4:$N$1000,2,0),"") ->  | E10: =IFERROR(VLOOKUP($C10,'مشتريات ومردودات المبيعات'!$A$4:$N$1000,3,0),"") ->  | F10: =IFERROR(VLOOKUP($C10,'مشتريات ومردودات المبيعات'!$A$4:$N$1000,4,0),"") ->  | G10: =IFERROR(VLOOKUP($C10,'مشتريات ومردودات المبيعات'!$A$4:$N$1000,5,0),"") ->  | H10: =IFERROR(VLOOKUP($C10,'مشتريات ومردودات المبيعات'!$A$4:$N$1000,6,0),"") ->  | I10: =IFERROR(VLOOKUP($C10,'مشتريات ومردودات المبيعات'!$A$4:$N$1000,7,0),"") ->  | J10: =IFERROR(VLOOKUP($C10,'مشتريات ومردودات المبيعات'!$A$4:$N$1000,8,0),"") ->  | K10: =IFERROR(VLOOKUP($C10,'مشتريات ومردودات المبيعات'!$A$4:$N$1000,9,0),"") ->  | L10: =IFERROR(VLOOKUP($C10,'مشتريات ومردودات المبيعات'!$A$4:$N$1000,10,0),"") -> 
A11: 11 | B11: =IF($G$1='مشتريات ومردودات المبيعات'!$H$4:$H$1000,'مشتريات ومردودات المبيعات'!$A$4:$A$1000,"") -> 2محمد صلاح | D11: =IFERROR(VLOOKUP($C11,'مشتريات ومردودات المبيعات'!$A$4:$N$1000,2,0),"") ->  | E11: =IFERROR(VLOOKUP($C11,'مشتريات ومردودات المبيعات'!$A$4:$N$1000,3,0),"") ->  | F11: =IFERROR(VLOOKUP($C11,'مشتريات ومردودات المبيعات'!$A$4:$N$1000,4,0),"") ->  | G11: =IFERROR(VLOOKUP($C11,'مشتريات ومردودات المبيعات'!$A$4:$N$1000,5,0),"") ->  | H11: =IFERROR(VLOOKUP($C11,'مشتريات ومردودات المبيعات'!$A$4:$N$1000,6,0),"") ->  | I11: =IFERROR(VLOOKUP($C11,'مشتريات ومردودات المبيعات'!$A$4:$N$1000,7,0),"") ->  | J11: =IFERROR(VLOOKUP($C11,'مشتريات ومردودات المبيعات'!$A$4:$N$1000,8,0),"") ->  | K11: =IFERROR(VLOOKUP($C11,'مشتريات ومردودات المبيعات'!$A$4:$N$1000,9,0),"") ->  | L11: =IFERROR(VLOOKUP($C11,'مشتريات ومردودات المبيعات'!$A$4:$N$1000,10,0),"") -> 
B12: =IF($G$1='مشتريات ومردودات المبيعات'!$H$4:$H$1000,'مشتريات ومردودات المبيعات'!$A$4:$A$1000,"") ->  | D12: =IFERROR(VLOOKUP($C12,'مشتريات ومردودات المبيعات'!$A$4:$N$1000,2,0),"") ->  | E12: =IFERROR(VLOOKUP($C12,'مشتريات ومردودات المبيعات'!$A$4:$N$1000,3,0),"") ->  | F12: =IFERROR(VLOOKUP($C12,'مشتريات ومردودات المبيعات'!$A$4:$N$1000,4,0),"") ->  | G12: =IFERROR(VLOOKUP($C12,'مشتريات ومردودات المبيعات'!$A$4:$N$1000,5,0),"") ->  | H12: =IFERROR(VLOOKUP($C12,'مشتريات ومردودات المبيعات'!$A$4:$N$1000,6,0),"") ->  | I12: =IFERROR(VLOOKUP($C12,'مشتريات ومردودات المبيعات'!$A$4:$N$1000,7,0),"") ->  | J12: =IFERROR(VLOOKUP($C12,'مشتريات ومردودات المبيعات'!$A$4:$N$1000,8,0),"") ->  | K12: =IFERROR(VLOOKUP($C12,'مشتريات ومردودات المبيعات'!$A$4:$N$1000,9,0),"") ->  | L12: =IFERROR(VLOOKUP($C12,'مشتريات ومردودات المبيعات'!$A$4:$N$1000,10,0),"") -> 
B13: =IF($G$1='مشتريات ومردودات المبيعات'!$H$4:$H$1000,'مشتريات ومردودات المبيعات'!$A$4:$A$1000,"") ->  | D13: =IFERROR(VLOOKUP($C13,'مشتريات ومردودات المبيعات'!$A$4:$N$1000,2,0),"") ->  | E13: =IFERROR(VLOOKUP($C13,'مشتريات ومردودات المبيعات'!$A$4:$N$1000,3,0),"") ->  | F13: =IFERROR(VLOOKUP($C13,'مشتريات ومردودات المبيعات'!$A$4:$N$1000,4,0),"") ->  | G13: =IFERROR(VLOOKUP($C13,'مشتريات ومردودات المبيعات'!$A$4:$N$1000,5,0),"") ->  | H13: =IFERROR(VLOOKUP($C13,'مشتريات ومردودات المبيعات'!$A$4:$N$1000,6,0),"") ->  | I13: =IFERROR(VLOOKUP($C13,'مشتريات ومردودات المبيعات'!$A$4:$N$1000,7,0),"") ->  | J13: =IFERROR(VLOOKUP($C13,'مشتريات ومردودات المبيعات'!$A$4:$N$1000,8,0),"") ->  | K13: =IFERROR(VLOOKUP($C13,'مشتريات ومردودات المبيعات'!$A$4:$N$1000,9,0),"") ->  | L13: =IFERROR(VLOOKUP($C13,'مشتريات ومردودات المبيعات'!$A$4:$N$1000,10,0),"") -> 
B14: =IF($G$1='مشتريات ومردودات المبيعات'!$H$4:$H$1000,'مشتريات ومردودات المبيعات'!$A$4:$A$1000,"") ->  | D14: =IFERROR(VLOOKUP($C14,'مشتريات ومردودات المبيعات'!$A$4:$N$1000,2,0),"") ->  | E14: =IFERROR(VLOOKUP($C14,'مشتريات ومردودات المبيعات'!$A$4:$N$1000,3,0),"") ->  | F14: =IFERROR(VLOOKUP($C14,'مشتريات ومردودات المبيعات'!$A$4:$N$1000,4,0),"") ->  | G14: =IFERROR(VLOOKUP($C14,'مشتريات ومردودات المبيعات'!$A$4:$N$1000,5,0),"") ->  | H14: =IFERROR(VLOOKUP($C14,'مشتريات ومردودات المبيعات'!$A$4:$N$1000,6,0),"") ->  | I14: =IFERROR(VLOOKUP($C14,'مشتريات ومردودات المبيعات'!$A$4:$N$1000,7,0),"") ->  | J14: =IFERROR(VLOOKUP($C14,'مشتريات ومردودات المبيعات'!$A$4:$N$1000,8,0),"") ->  | K14: =IFERROR(VLOOKUP($C14,'مشتريات ومردودات المبيعات'!$A$4:$N$1000,9,0),"") ->  | L14: =IFERROR(VLOOKUP($C14,'مشتريات ومردودات المبيعات'!$A$4:$N$1000,10,0),"") -> 
B15: =IF($G$1='مشتريات ومردودات المبيعات'!$H$4:$H$1000,'مشتريات ومردودات المبيعات'!$A$4:$A$1000,"") ->  | D15: =IFERROR(VLOOKUP($C15,'مشتريات ومردودات المبيعات'!$A$4:$N$1000,2,0),"") ->  | E15: =IFERROR(VLOOKUP($C15,'مشتريات ومردودات المبيعات'!$A$4:$N$1000,3,0),"") ->  | F15: =IFERROR(VLOOKUP($C15,'مشتريات ومردودات المبيعات'!$A$4:$N$1000,4,0),"") ->  | G15: =IFERROR(VLOOKUP($C15,'مشتريات ومردودات المبيعات'!$A$4:$N$1000,5,0),"") ->  | H15: =IFERROR(VLOOKUP($C15,'مشتريات ومردودات المبيعات'!$A$4:$N$1000,6,0),"") ->  | I15: =IFERROR(VLOOKUP($C15,'مشتريات ومردودات المبيعات'!$A$4:$N$1000,7,0),"") ->  | J15: =IFERROR(VLOOKUP($C15,'مشتريات ومردودات المبيعات'!$A$4:$N$1000,8,0),"") ->  | K15: =IFERROR(VLOOKUP($C15,'مشتريات ومردودات المبيعات'!$A$4:$N$1000,9,0),"") ->  | L15: =IFERROR(VLOOKUP($C15,'مشتريات ومردودات المبيعات'!$A$4:$N$1000,10,0),"") -> 
B16: =IF($G$1='مشتريات ومردودات المبيعات'!$H$4:$H$1000,'مشتريات ومردودات المبيعات'!$A$4:$A$1000,"") ->  | D16: =IFERROR(VLOOKUP($C16,'مشتريات ومردودات المبيعات'!$A$4:$N$1000,2,0),"") ->  | E16: =IFERROR(VLOOKUP($C16,'مشتريات ومردودات المبيعات'!$A$4:$N$1000,3,0),"") ->  | F16: =IFERROR(VLOOKUP($C16,'مشتريات ومردودات المبيعات'!$A$4:$N$1000,4,0),"") ->  | G16: =IFERROR(VLOOKUP($C16,'مشتريات ومردودات المبيعات'!$A$4:$N$1000,5,0),"") ->  | H16: =IFERROR(VLOOKUP($C16,'مشتريات ومردودات المبيعات'!$A$4:$N$1000,6,0),"") ->  | I16: =IFERROR(VLOOKUP($C16,'مشتريات ومردودات المبيعات'!$A$4:$N$1000,7,0),"") ->  | J16: =IFERROR(VLOOKUP($C16,'مشتريات ومردودات المبيعات'!$A$4:$N$1000,8,0),"") ->  | K16: =IFERROR(VLOOKUP($C16,'مشتريات ومردودات المبيعات'!$A$4:$N$1000,9,0),"") ->  | L16: =IFERROR(VLOOKUP($C16,'مشتريات ومردودات المبيعات'!$A$4:$N$1000,10,0),"") -> 
B17: =IF($G$1='مشتريات ومردودات المبيعات'!$H$4:$H$1000,'مشتريات ومردودات المبيعات'!$A$4:$A$1000,"") ->  | D17: =IFERROR(VLOOKUP($C17,'مشتريات ومردودات المبيعات'!$A$4:$N$1000,2,0),"") ->  | E17: =IFERROR(VLOOKUP($C17,'مشتريات ومردودات المبيعات'!$A$4:$N$1000,3,0),"") ->  | F17: =IFERROR(VLOOKUP($C17,'مشتريات ومردودات المبيعات'!$A$4:$N$1000,4,0),"") ->  | G17: =IFERROR(VLOOKUP($C17,'مشتريات ومردودات المبيعات'!$A$4:$N$1000,5,0),"") ->  | H17: =IFERROR(VLOOKUP($C17,'مشتريات ومردودات المبيعات'!$A$4:$N$1000,6,0),"") ->  | I17: =IFERROR(VLOOKUP($C17,'مشتريات ومردودات المبيعات'!$A$4:$N$1000,7,0),"") ->  | J17: =IFERROR(VLOOKUP($C17,'مشتريات ومردودات المبيعات'!$A$4:$N$1000,8,0),"") ->  | K17: =IFERROR(VLOOKUP($C17,'مشتريات ومردودات المبيعات'!$A$4:$N$1000,9,0),"") ->  | L17: =IFERROR(VLOOKUP($C17,'مشتريات ومردودات المبيعات'!$A$4:$N$1000,10,0),"") -> 
B18: =IF($G$1='مشتريات ومردودات المبيعات'!$H$4:$H$1000,'مشتريات ومردودات المبيعات'!$A$4:$A$1000,"") ->  | D18: =IFERROR(VLOOKUP($C18,'مشتريات ومردودات المبيعات'!$A$4:$N$1000,2,0),"") ->  | E18: =IFERROR(VLOOKUP($C18,'مشتريات ومردودات المبيعات'!$A$4:$N$1000,3,0),"") ->  | F18: =IFERROR(VLOOKUP($C18,'مشتريات ومردودات المبيعات'!$A$4:$N$1000,4,0),"") ->  | G18: =IFERROR(VLOOKUP($C18,'مشتريات ومردودات المبيعات'!$A$4:$N$1000,5,0),"") ->  | H18: =IFERROR(VLOOKUP($C18,'مشتريات ومردودات المبيعات'!$A$4:$N$1000,6,0),"") ->  | I18: =IFERROR(VLOOKUP($C18,'مشتريات ومردودات المبيعات'!$A$4:$N$1000,7,0),"") ->  | J18: =IFERROR(VLOOKUP($C18,'مشتريات ومردودات المبيعات'!$A$4:$N$1000,8,0),"") ->  | K18: =IFERROR(VLOOKUP($C18,'مشتريات ومردودات المبيعات'!$A$4:$N$1000,9,0),"") ->  | L18: =IFERROR(VLOOKUP($C18,'مشتريات ومردودات المبيعات'!$A$4:$N$1000,10,0),"") -> 
B19: =IF($G$1='مشتريات ومردودات المبيعات'!$H$4:$H$1000,'مشتريات ومردودات المبيعات'!$A$4:$A$1000,"") ->  | D19: =IFERROR(VLOOKUP($C19,'مشتريات ومردودات المبيعات'!$A$4:$N$1000,2,0),"") ->  | E19: =IFERROR(VLOOKUP($C19,'مشتريات ومردودات المبيعات'!$A$4:$N$1000,3,0),"") ->  | F19: =IFERROR(VLOOKUP($C19,'مشتريات ومردودات المبيعات'!$A$4:$N$1000,4,0),"") ->  | G19: =IFERROR(VLOOKUP($C19,'مشتريات ومردودات المبيعات'!$A$4:$N$1000,5,0),"") ->  | H19: =IFERROR(VLOOKUP($C19,'مشتريات ومردودات المبيعات'!$A$4:$N$1000,6,0),"") ->  | I19: =IFERROR(VLOOKUP($C19,'مشتريات ومردودات المبيعات'!$A$4:$N$1000,7,0),"") ->  | J19: =IFERROR(VLOOKUP($C19,'مشتريات ومردودات المبيعات'!$A$4:$N$1000,8,0),"") ->  | K19: =IFERROR(VLOOKUP($C19,'مشتريات ومردودات المبيعات'!$A$4:$N$1000,9,0),"") ->  | L19: =IFERROR(VLOOKUP($C19,'مشتريات ومردودات المبيعات'!$A$4:$N$1000,10,0),"") -> 
B20: =IF($G$1='مشتريات ومردودات المبيعات'!$H$4:$H$1000,'مشتريات ومردودات المبيعات'!$A$4:$A$1000,"") ->  | D20: =IFERROR(VLOOKUP($C20,'مشتريات ومردودات المبيعات'!$A$4:$N$1000,2,0),"") ->  | E20: =IFERROR(VLOOKUP($C20,'مشتريات ومردودات المبيعات'!$A$4:$N$1000,3,0),"") ->  | F20: =IFERROR(VLOOKUP($C20,'مشتريات ومردودات المبيعات'!$A$4:$N$1000,4,0),"") ->  | G20: =IFERROR(VLOOKUP($C20,'مشتريات ومردودات المبيعات'!$A$4:$N$1000,5,0),"") ->  | H20: =IFERROR(VLOOKUP($C20,'مشتريات ومردودات المبيعات'!$A$4:$N$1000,6,0),"") ->  | I20: =IFERROR(VLOOKUP($C20,'مشتريات ومردودات المبيعات'!$A$4:$N$1000,7,0),"") ->  | J20: =IFERROR(VLOOKUP($C20,'مشتريات ومردودات المبيعات'!$A$4:$N$1000,8,0),"") ->  | K20: =IFERROR(VLOOKUP($C20,'مشتريات ومردودات المبيعات'!$A$4:$N$1000,9,0),"") ->  | L20: =IFERROR(VLOOKUP($C20,'مشتريات ومردودات المبيعات'!$A$4:$N$1000,10,0),"") -> 
B21: =IF($G$1='مشتريات ومردودات المبيعات'!$H$4:$H$1000,'مشتريات ومردودات المبيعات'!$A$4:$A$1000,"") ->  | D21: =IFERROR(VLOOKUP($C21,'مشتريات ومردودات المبيعات'!$A$4:$N$1000,2,0),"") ->  | E21: =IFERROR(VLOOKUP($C21,'مشتريات ومردودات المبيعات'!$A$4:$N$1000,3,0),"") ->  | F21: =IFERROR(VLOOKUP($C21,'مشتريات ومردودات المبيعات'!$A$4:$N$1000,4,0),"") ->  | G21: =IFERROR(VLOOKUP($C21,'مشتريات ومردودات المبيعات'!$A$4:$N$1000,5,0),"") ->  | H21: =IFERROR(VLOOKUP($C21,'مشتريات ومردودات المبيعات'!$A$4:$N$1000,6,0),"") ->  | I21: =IFERROR(VLOOKUP($C21,'مشتريات ومردودات المبيعات'!$A$4:$N$1000,7,0),"") ->  | J21: =IFERROR(VLOOKUP($C21,'مشتريات ومردودات المبيعات'!$A$4:$N$1000,8,0),"") ->  | K21: =IFERROR(VLOOKUP($C21,'مشتريات ومردودات المبيعات'!$A$4:$N$1000,9,0),"") ->  | L21: =IFERROR(VLOOKUP($C21,'مشتريات ومردودات المبيعات'!$A$4:$N$1000,10,0),"") -> 
B22: =IF($G$1='مشتريات ومردودات المبيعات'!$H$4:$H$1000,'مشتريات ومردودات المبيعات'!$A$4:$A$1000,"") ->  | D22: =IFERROR(VLOOKUP($C22,'مشتريات ومردودات المبيعات'!$A$4:$N$1000,2,0),"") ->  | E22: =IFERROR(VLOOKUP($C22,'مشتريات ومردودات المبيعات'!$A$4:$N$1000,3,0),"") ->  | F22: =IFERROR(VLOOKUP($C22,'مشتريات ومردودات المبيعات'!$A$4:$N$1000,4,0),"") ->  | G22: =IFERROR(VLOOKUP($C22,'مشتريات ومردودات المبيعات'!$A$4:$N$1000,5,0),"") ->  | H22: =IFERROR(VLOOKUP($C22,'مشتريات ومردودات المبيعات'!$A$4:$N$1000,6,0),"") ->  | I22: =IFERROR(VLOOKUP($C22,'مشتريات ومردودات المبيعات'!$A$4:$N$1000,7,0),"") ->  | J22: =IFERROR(VLOOKUP($C22,'مشتريات ومردودات المبيعات'!$A$4:$N$1000,8,0),"") ->  | K22: =IFERROR(VLOOKUP($C22,'مشتريات ومردودات المبيعات'!$A$4:$N$1000,9,0),"") ->  | L22: =IFERROR(VLOOKUP($C22,'مشتريات ومردودات المبيعات'!$A$4:$N$1000,10,0),"") -> 
B23: =IF($G$1='مشتريات ومردودات المبيعات'!$H$4:$H$1000,'مشتريات ومردودات المبيعات'!$A$4:$A$1000,"") ->  | D23: =IFERROR(VLOOKUP($C23,'مشتريات ومردودات المبيعات'!$A$4:$N$1000,2,0),"") ->  | E23: =IFERROR(VLOOKUP($C23,'مشتريات ومردودات المبيعات'!$A$4:$N$1000,3,0),"") ->  | F23: =IFERROR(VLOOKUP($C23,'مشتريات ومردودات المبيعات'!$A$4:$N$1000,4,0),"") ->  | G23: =IFERROR(VLOOKUP($C23,'مشتريات ومردودات المبيعات'!$A$4:$N$1000,5,0),"") ->  | H23: =IFERROR(VLOOKUP($C23,'مشتريات ومردودات المبيعات'!$A$4:$N$1000,6,0),"") ->  | I23: =IFERROR(VLOOKUP($C23,'مشتريات ومردودات المبيعات'!$A$4:$N$1000,7,0),"") ->  | J23: =IFERROR(VLOOKUP($C23,'مشتريات ومردودات المبيعات'!$A$4:$N$1000,8,0),"") ->  | K23: =IFERROR(VLOOKUP($C23,'مشتريات ومردودات المبيعات'!$A$4:$N$1000,9,0),"") ->  | L23: =IFERROR(VLOOKUP($C23,'مشتريات ومردودات المبيعات'!$A$4:$N$1000,10,0),"") -> 
B24: =IF($G$1='مشتريات ومردودات المبيعات'!$H$4:$H$1000,'مشتريات ومردودات المبيعات'!$A$4:$A$1000,"") ->  | D24: =IFERROR(VLOOKUP($C24,'مشتريات ومردودات المبيعات'!$A$4:$N$1000,2,0),"") ->  | E24: =IFERROR(VLOOKUP($C24,'مشتريات ومردودات المبيعات'!$A$4:$N$1000,3,0),"") ->  | F24: =IFERROR(VLOOKUP($C24,'مشتريات ومردودات المبيعات'!$A$4:$N$1000,4,0),"") ->  | G24: =IFERROR(VLOOKUP($C24,'مشتريات ومردودات المبيعات'!$A$4:$N$1000,5,0),"") ->  | H24: =IFERROR(VLOOKUP($C24,'مشتريات ومردودات المبيعات'!$A$4:$N$1000,6,0),"") ->  | I24: =IFERROR(VLOOKUP($C24,'مشتريات ومردودات المبيعات'!$A$4:$N$1000,7,0),"") ->  | J24: =IFERROR(VLOOKUP($C24,'مشتريات ومردودات المبيعات'!$A$4:$N$1000,8,0),"") ->  | K24: =IFERROR(VLOOKUP($C24,'مشتريات ومردودات المبيعات'!$A$4:$N$1000,9,0),"") ->  | L24: =IFERROR(VLOOKUP($C24,'مشتريات ومردودات المبيعات'!$A$4:$N$1000,10,0),"") -> 
B25: =IF($G$1='مشتريات ومردودات المبيعات'!$H$4:$H$1000,'مشتريات ومردودات المبيعات'!$A$4:$A$1000,"") ->  | D25: =IFERROR(VLOOKUP($C25,'مشتريات ومردودات المبيعات'!$A$4:$N$1000,2,0),"") ->  | E25: =IFERROR(VLOOKUP($C25,'مشتريات ومردودات المبيعات'!$A$4:$N$1000,3,0),"") ->  | F25: =IFERROR(VLOOKUP($C25,'مشتريات ومردودات المبيعات'!$A$4:$N$1000,4,0),"") ->  | G25: =IFERROR(VLOOKUP($C25,'مشتريات ومردودات المبيعات'!$A$4:$N$1000,5,0),"") ->  | H25: =IFERROR(VLOOKUP($C25,'مشتريات ومردودات المبيعات'!$A$4:$N$1000,6,0),"") ->  | I25: =IFERROR(VLOOKUP($C25,'مشتريات ومردودات المبيعات'!$A$4:$N$1000,7,0),"") ->  | J25: =IFERROR(VLOOKUP($C25,'مشتريات ومردودات المبيعات'!$A$4:$N$1000,8,0),"") ->  | K25: =IFERROR(VLOOKUP($C25,'مشتريات ومردودات المبيعات'!$A$4:$N$1000,9,0),"") ->  | L25: =IFERROR(VLOOKUP($C25,'مشتريات ومردودات المبيعات'!$A$4:$N$1000,10,0),"") -> 
B26: =IF($G$1='مشتريات ومردودات المبيعات'!$H$4:$H$1000,'مشتريات ومردودات المبيعات'!$A$4:$A$1000,"") ->  | D26: =IFERROR(VLOOKUP($C26,'مشتريات ومردودات المبيعات'!$A$4:$N$1000,2,0),"") ->  | E26: =IFERROR(VLOOKUP($C26,'مشتريات ومردودات المبيعات'!$A$4:$N$1000,3,0),"") ->  | F26: =IFERROR(VLOOKUP($C26,'مشتريات ومردودات المبيعات'!$A$4:$N$1000,4,0),"") ->  | G26: =IFERROR(VLOOKUP($C26,'مشتريات ومردودات المبيعات'!$A$4:$N$1000,5,0),"") ->  | H26: =IFERROR(VLOOKUP($C26,'مشتريات ومردودات المبيعات'!$A$4:$N$1000,6,0),"") ->  | I26: =IFERROR(VLOOKUP($C26,'مشتريات ومردودات المبيعات'!$A$4:$N$1000,7,0),"") ->  | J26: =IFERROR(VLOOKUP($C26,'مشتريات ومردودات المبيعات'!$A$4:$N$1000,8,0),"") ->  | K26: =IFERROR(VLOOKUP($C26,'مشتريات ومردودات المبيعات'!$A$4:$N$1000,9,0),"") ->  | L26: =IFERROR(VLOOKUP($C26,'مشتريات ومردودات المبيعات'!$A$4:$N$1000,10,0),"") -> 
B27: =IF($G$1='مشتريات ومردودات المبيعات'!$H$4:$H$1000,'مشتريات ومردودات المبيعات'!$A$4:$A$1000,"") ->  | D27: =IFERROR(VLOOKUP($C27,'مشتريات ومردودات المبيعات'!$A$4:$N$1000,2,0),"") ->  | E27: =IFERROR(VLOOKUP($C27,'مشتريات ومردودات المبيعات'!$A$4:$N$1000,3,0),"") ->  | F27: =IFERROR(VLOOKUP($C27,'مشتريات ومردودات المبيعات'!$A$4:$N$1000,4,0),"") ->  | G27: =IFERROR(VLOOKUP($C27,'مشتريات ومردودات المبيعات'!$A$4:$N$1000,5,0),"") ->  | H27: =IFERROR(VLOOKUP($C27,'مشتريات ومردودات المبيعات'!$A$4:$N$1000,6,0),"") ->  | I27: =IFERROR(VLOOKUP($C27,'مشتريات ومردودات المبيعات'!$A$4:$N$1000,7,0),"") ->  | J27: =IFERROR(VLOOKUP($C27,'مشتريات ومردودات المبيعات'!$A$4:$N$1000,8,0),"") ->  | K27: =IFERROR(VLOOKUP($C27,'مشتريات ومردودات المبيعات'!$A$4:$N$1000,9,0),"") ->  | L27: =IFERROR(VLOOKUP($C27,'مشتريات ومردودات المبيعات'!$A$4:$N$1000,10,0),"") -> 
B28: =IF($G$1='مشتريات ومردودات المبيعات'!$H$4:$H$1000,'مشتريات ومردودات المبيعات'!$A$4:$A$1000,"") ->  | D28: =IFERROR(VLOOKUP($C28,'مشتريات ومردودات المبيعات'!$A$4:$N$1000,2,0),"") ->  | E28: =IFERROR(VLOOKUP($C28,'مشتريات ومردودات المبيعات'!$A$4:$N$1000,3,0),"") ->  | F28: =IFERROR(VLOOKUP($C28,'مشتريات ومردودات المبيعات'!$A$4:$N$1000,4,0),"") ->  | G28: =IFERROR(VLOOKUP($C28,'مشتريات ومردودات المبيعات'!$A$4:$N$1000,5,0),"") ->  | H28: =IFERROR(VLOOKUP($C28,'مشتريات ومردودات المبيعات'!$A$4:$N$1000,6,0),"") ->  | I28: =IFERROR(VLOOKUP($C28,'مشتريات ومردودات المبيعات'!$A$4:$N$1000,7,0),"") ->  | J28: =IFERROR(VLOOKUP($C28,'مشتريات ومردودات المبيعات'!$A$4:$N$1000,8,0),"") ->  | K28: =IFERROR(VLOOKUP($C28,'مشتريات ومردودات المبيعات'!$A$4:$N$1000,9,0),"") ->  | L28: =IFERROR(VLOOKUP($C28,'مشتريات ومردودات المبيعات'!$A$4:$N$1000,10,0),"") -> 
B29: =IF($G$1='مشتريات ومردودات المبيعات'!$H$4:$H$1000,'مشتريات ومردودات المبيعات'!$A$4:$A$1000,"") ->  | D29: =IFERROR(VLOOKUP($C29,'مشتريات ومردودات المبيعات'!$A$4:$N$1000,2,0),"") ->  | E29: =IFERROR(VLOOKUP($C29,'مشتريات ومردودات المبيعات'!$A$4:$N$1000,3,0),"") ->  | F29: =IFERROR(VLOOKUP($C29,'مشتريات ومردودات المبيعات'!$A$4:$N$1000,4,0),"") ->  | G29: =IFERROR(VLOOKUP($C29,'مشتريات ومردودات المبيعات'!$A$4:$N$1000,5,0),"") ->  | H29: =IFERROR(VLOOKUP($C29,'مشتريات ومردودات المبيعات'!$A$4:$N$1000,6,0),"") ->  | I29: =IFERROR(VLOOKUP($C29,'مشتريات ومردودات المبيعات'!$A$4:$N$1000,7,0),"") ->  | J29: =IFERROR(VLOOKUP($C29,'مشتريات ومردودات المبيعات'!$A$4:$N$1000,8,0),"") ->  | K29: =IFERROR(VLOOKUP($C29,'مشتريات ومردودات المبيعات'!$A$4:$N$1000,9,0),"") ->  | L29: =IFERROR(VLOOKUP($C29,'مشتريات ومردودات المبيعات'!$A$4:$N$1000,10,0),"") -> 
B30: =IF($G$1='مشتريات ومردودات المبيعات'!$H$4:$H$1000,'مشتريات ومردودات المبيعات'!$A$4:$A$1000,"") ->  | D30: =IFERROR(VLOOKUP($C30,'مشتريات ومردودات المبيعات'!$A$4:$N$1000,2,0),"") ->  | E30: =IFERROR(VLOOKUP($C30,'مشتريات ومردودات المبيعات'!$A$4:$N$1000,3,0),"") ->  | F30: =IFERROR(VLOOKUP($C30,'مشتريات ومردودات المبيعات'!$A$4:$N$1000,4,0),"") ->  | G30: =IFERROR(VLOOKUP($C30,'مشتريات ومردودات المبيعات'!$A$4:$N$1000,5,0),"") ->  | H30: =IFERROR(VLOOKUP($C30,'مشتريات ومردودات المبيعات'!$A$4:$N$1000,6,0),"") ->  | I30: =IFERROR(VLOOKUP($C30,'مشتريات ومردودات المبيعات'!$A$4:$N$1000,7,0),"") ->  | J30: =IFERROR(VLOOKUP($C30,'مشتريات ومردودات المبيعات'!$A$4:$N$1000,8,0),"") ->  | K30: =IFERROR(VLOOKUP($C30,'مشتريات ومردودات المبيعات'!$A$4:$N$1000,9,0),"") ->  | L30: =IFERROR(VLOOKUP($C30,'مشتريات ومردودات المبيعات'!$A$4:$N$1000,10,0),"") -> 
B31: =IF($G$1='مشتريات ومردودات المبيعات'!$H$4:$H$1000,'مشتريات ومردودات المبيعات'!$A$4:$A$1000,"") ->  | D31: =IFERROR(VLOOKUP($C31,'مشتريات ومردودات المبيعات'!$A$4:$N$1000,2,0),"") ->  | E31: =IFERROR(VLOOKUP($C31,'مشتريات ومردودات المبيعات'!$A$4:$N$1000,3,0),"") ->  | F31: =IFERROR(VLOOKUP($C31,'مشتريات ومردودات المبيعات'!$A$4:$N$1000,4,0),"") ->  | G31: =IFERROR(VLOOKUP($C31,'مشتريات ومردودات المبيعات'!$A$4:$N$1000,5,0),"") ->  | H31: =IFERROR(VLOOKUP($C31,'مشتريات ومردودات المبيعات'!$A$4:$N$1000,6,0),"") ->  | I31: =IFERROR(VLOOKUP($C31,'مشتريات ومردودات المبيعات'!$A$4:$N$1000,7,0),"") ->  | J31: =IFERROR(VLOOKUP($C31,'مشتريات ومردودات المبيعات'!$A$4:$N$1000,8,0),"") ->  | K31: =IFERROR(VLOOKUP($C31,'مشتريات ومردودات المبيعات'!$A$4:$N$1000,9,0),"") ->  | L31: =IFERROR(VLOOKUP($C31,'مشتريات ومردودات المبيعات'!$A$4:$N$1000,10,0),"") -> 
B32: =IF($G$1='مشتريات ومردودات المبيعات'!$H$4:$H$1000,'مشتريات ومردودات المبيعات'!$A$4:$A$1000,"") ->  | D32: =IFERROR(VLOOKUP($C32,'مشتريات ومردودات المبيعات'!$A$4:$N$1000,2,0),"") ->  | E32: =IFERROR(VLOOKUP($C32,'مشتريات ومردودات المبيعات'!$A$4:$N$1000,3,0),"") ->  | F32: =IFERROR(VLOOKUP($C32,'مشتريات ومردودات المبيعات'!$A$4:$N$1000,4,0),"") ->  | G32: =IFERROR(VLOOKUP($C32,'مشتريات ومردودات المبيعات'!$A$4:$N$1000,5,0),"") ->  | H32: =IFERROR(VLOOKUP($C32,'مشتريات ومردودات المبيعات'!$A$4:$N$1000,6,0),"") ->  | I32: =IFERROR(VLOOKUP($C32,'مشتريات ومردودات المبيعات'!$A$4:$N$1000,7,0),"") ->  | J32: =IFERROR(VLOOKUP($C32,'مشتريات ومردودات المبيعات'!$A$4:$N$1000,8,0),"") ->  | K32: =IFERROR(VLOOKUP($C32,'مشتريات ومردودات المبيعات'!$A$4:$N$1000,9,0),"") ->  | L32: =IFERROR(VLOOKUP($C32,'مشتريات ومردودات المبيعات'!$A$4:$N$1000,10,0),"") -> 
B33: =IF($G$1='مشتريات ومردودات المبيعات'!$H$4:$H$1000,'مشتريات ومردودات المبيعات'!$A$4:$A$1000,"") ->  | D33: =IFERROR(VLOOKUP($C33,'مشتريات ومردودات المبيعات'!$A$4:$N$1000,2,0),"") ->  | E33: =IFERROR(VLOOKUP($C33,'مشتريات ومردودات المبيعات'!$A$4:$N$1000,3,0),"") ->  | F33: =IFERROR(VLOOKUP($C33,'مشتريات ومردودات المبيعات'!$A$4:$N$1000,4,0),"") ->  | G33: =IFERROR(VLOOKUP($C33,'مشتريات ومردودات المبيعات'!$A$4:$N$1000,5,0),"") ->  | H33: =IFERROR(VLOOKUP($C33,'مشتريات ومردودات المبيعات'!$A$4:$N$1000,6,0),"") ->  | I33: =IFERROR(VLOOKUP($C33,'مشتريات ومردودات المبيعات'!$A$4:$N$1000,7,0),"") ->  | J33: =IFERROR(VLOOKUP($C33,'مشتريات ومردودات المبيعات'!$A$4:$N$1000,8,0),"") ->  | K33: =IFERROR(VLOOKUP($C33,'مشتريات ومردودات المبيعات'!$A$4:$N$1000,9,0),"") ->  | L33: =IFERROR(VLOOKUP($C33,'مشتريات ومردودات المبيعات'!$A$4:$N$1000,10,0),"") -> 
B34: =IF($G$1='مشتريات ومردودات المبيعات'!$H$4:$H$1000,'مشتريات ومردودات المبيعات'!$A$4:$A$1000,"") ->  | D34: =IFERROR(VLOOKUP($C34,'مشتريات ومردودات المبيعات'!$A$4:$N$1000,2,0),"") ->  | E34: =IFERROR(VLOOKUP($C34,'مشتريات ومردودات المبيعات'!$A$4:$N$1000,3,0),"") ->  | F34: =IFERROR(VLOOKUP($C34,'مشتريات ومردودات المبيعات'!$A$4:$N$1000,4,0),"") ->  | G34: =IFERROR(VLOOKUP($C34,'مشتريات ومردودات المبيعات'!$A$4:$N$1000,5,0),"") ->  | H34: =IFERROR(VLOOKUP($C34,'مشتريات ومردودات المبيعات'!$A$4:$N$1000,6,0),"") ->  | I34: =IFERROR(VLOOKUP($C34,'مشتريات ومردودات المبيعات'!$A$4:$N$1000,7,0),"") ->  | J34: =IFERROR(VLOOKUP($C34,'مشتريات ومردودات المبيعات'!$A$4:$N$1000,8,0),"") ->  | K34: =IFERROR(VLOOKUP($C34,'مشتريات ومردودات المبيعات'!$A$4:$N$1000,9,0),"") ->  | L34: =IFERROR(VLOOKUP($C34,'مشتريات ومردودات المبيعات'!$A$4:$N$1000,10,0),"") -> 
B35: =IF($G$1='مشتريات ومردودات المبيعات'!$H$4:$H$1000,'مشتريات ومردودات المبيعات'!$A$4:$A$1000,"") ->  | D35: =IFERROR(VLOOKUP($C35,'مشتريات ومردودات المبيعات'!$A$4:$N$1000,2,0),"") ->  | E35: =IFERROR(VLOOKUP($C35,'مشتريات ومردودات المبيعات'!$A$4:$N$1000,3,0),"") ->  | F35: =IFERROR(VLOOKUP($C35,'مشتريات ومردودات المبيعات'!$A$4:$N$1000,4,0),"") ->  | G35: =IFERROR(VLOOKUP($C35,'مشتريات ومردودات المبيعات'!$A$4:$N$1000,5,0),"") ->  | H35: =IFERROR(VLOOKUP($C35,'مشتريات ومردودات المبيعات'!$A$4:$N$1000,6,0),"") ->  | I35: =IFERROR(VLOOKUP($C35,'مشتريات ومردودات المبيعات'!$A$4:$N$1000,7,0),"") ->  | J35: =IFERROR(VLOOKUP($C35,'مشتريات ومردودات المبيعات'!$A$4:$N$1000,8,0),"") ->  | K35: =IFERROR(VLOOKUP($C35,'مشتريات ومردودات المبيعات'!$A$4:$N$1000,9,0),"") ->  | L35: =IFERROR(VLOOKUP($C35,'مشتريات ومردودات المبيعات'!$A$4:$N$1000,10,0),"") -> 
B36: =IF($G$1='مشتريات ومردودات المبيعات'!$H$4:$H$1000,'مشتريات ومردودات المبيعات'!$A$4:$A$1000,"") ->  | D36: =IFERROR(VLOOKUP($C36,'مشتريات ومردودات المبيعات'!$A$4:$N$1000,2,0),"") ->  | E36: =IFERROR(VLOOKUP($C36,'مشتريات ومردودات المبيعات'!$A$4:$N$1000,3,0),"") ->  | F36: =IFERROR(VLOOKUP($C36,'مشتريات ومردودات المبيعات'!$A$4:$N$1000,4,0),"") ->  | G36: =IFERROR(VLOOKUP($C36,'مشتريات ومردودات المبيعات'!$A$4:$N$1000,5,0),"") ->  | H36: =IFERROR(VLOOKUP($C36,'مشتريات ومردودات المبيعات'!$A$4:$N$1000,6,0),"") ->  | I36: =IFERROR(VLOOKUP($C36,'مشتريات ومردودات المبيعات'!$A$4:$N$1000,7,0),"") ->  | J36: =IFERROR(VLOOKUP($C36,'مشتريات ومردودات المبيعات'!$A$4:$N$1000,8,0),"") ->  | K36: =IFERROR(VLOOKUP($C36,'مشتريات ومردودات المبيعات'!$A$4:$N$1000,9,0),"") ->  | L36: =IFERROR(VLOOKUP($C36,'مشتريات ومردودات المبيعات'!$A$4:$N$1000,10,0),"") -> 
B37: =IF($G$1='مشتريات ومردودات المبيعات'!$H$4:$H$1000,'مشتريات ومردودات المبيعات'!$A$4:$A$1000,"") ->  | D37: =IFERROR(VLOOKUP($C37,'مشتريات ومردودات المبيعات'!$A$4:$N$1000,2,0),"") ->  | E37: =IFERROR(VLOOKUP($C37,'مشتريات ومردودات المبيعات'!$A$4:$N$1000,3,0),"") ->  | F37: =IFERROR(VLOOKUP($C37,'مشتريات ومردودات المبيعات'!$A$4:$N$1000,4,0),"") ->  | G37: =IFERROR(VLOOKUP($C37,'مشتريات ومردودات المبيعات'!$A$4:$N$1000,5,0),"") ->  | H37: =IFERROR(VLOOKUP($C37,'مشتريات ومردودات المبيعات'!$A$4:$N$1000,6,0),"") ->  | I37: =IFERROR(VLOOKUP($C37,'مشتريات ومردودات المبيعات'!$A$4:$N$1000,7,0),"") ->  | J37: =IFERROR(VLOOKUP($C37,'مشتريات ومردودات المبيعات'!$A$4:$N$1000,8,0),"") ->  | K37: =IFERROR(VLOOKUP($C37,'مشتريات ومردودات المبيعات'!$A$4:$N$1000,9,0),"") ->  | L37: =IFERROR(VLOOKUP($C37,'مشتريات ومردودات المبيعات'!$A$4:$N$1000,10,0),"") -> 
B38: =IF($G$1='مشتريات ومردودات المبيعات'!$H$4:$H$1000,'مشتريات ومردودات المبيعات'!$A$4:$A$1000,"") ->  | D38: =IFERROR(VLOOKUP($C38,'مشتريات ومردودات المبيعات'!$A$4:$N$1000,2,0),"") ->  | E38: =IFERROR(VLOOKUP($C38,'مشتريات ومردودات المبيعات'!$A$4:$N$1000,3,0),"") ->  | F38: =IFERROR(VLOOKUP($C38,'مشتريات ومردودات المبيعات'!$A$4:$N$1000,4,0),"") ->  | G38: =IFERROR(VLOOKUP($C38,'مشتريات ومردودات المبيعات'!$A$4:$N$1000,5,0),"") ->  | H38: =IFERROR(VLOOKUP($C38,'مشتريات ومردودات المبيعات'!$A$4:$N$1000,6,0),"") ->  | I38: =IFERROR(VLOOKUP($C38,'مشتريات ومردودات المبيعات'!$A$4:$N$1000,7,0),"") ->  | J38: =IFERROR(VLOOKUP($C38,'مشتريات ومردودات المبيعات'!$A$4:$N$1000,8,0),"") ->  | K38: =IFERROR(VLOOKUP($C38,'مشتريات ومردودات المبيعات'!$A$4:$N$1000,9,0),"") ->  | L38: =IFERROR(VLOOKUP($C38,'مشتريات ومردودات المبيعات'!$A$4:$N$1000,10,0),"") -> 
B39: =IF($G$1='مشتريات ومردودات المبيعات'!$H$4:$H$1000,'مشتريات ومردودات المبيعات'!$A$4:$A$1000,"") ->  | D39: =IFERROR(VLOOKUP($C39,'مشتريات ومردودات المبيعات'!$A$4:$N$1000,2,0),"") ->  | E39: =IFERROR(VLOOKUP($C39,'مشتريات ومردودات المبيعات'!$A$4:$N$1000,3,0),"") ->  | F39: =IFERROR(VLOOKUP($C39,'مشتريات ومردودات المبيعات'!$A$4:$N$1000,4,0),"") ->  | G39: =IFERROR(VLOOKUP($C39,'مشتريات ومردودات المبيعات'!$A$4:$N$1000,5,0),"") ->  | H39: =IFERROR(VLOOKUP($C39,'مشتريات ومردودات المبيعات'!$A$4:$N$1000,6,0),"") ->  | I39: =IFERROR(VLOOKUP($C39,'مشتريات ومردودات المبيعات'!$A$4:$N$1000,7,0),"") ->  | J39: =IFERROR(VLOOKUP($C39,'مشتريات ومردودات المبيعات'!$A$4:$N$1000,8,0),"") ->  | K39: =IFERROR(VLOOKUP($C39,'مشتريات ومردودات المبيعات'!$A$4:$N$1000,9,0),"") ->  | L39: =IFERROR(VLOOKUP($C39,'مشتريات ومردودات المبيعات'!$A$4:$N$1000,10,0),"") -> 
B40: =IF($G$1='مشتريات ومردودات المبيعات'!$H$4:$H$1000,'مشتريات ومردودات المبيعات'!$A$4:$A$1000,"") ->  | D40: =IFERROR(VLOOKUP($C40,'مشتريات ومردودات المبيعات'!$A$4:$N$1000,2,0),"") ->  | E40: =IFERROR(VLOOKUP($C40,'مشتريات ومردودات المبيعات'!$A$4:$N$1000,3,0),"") ->  | F40: =IFERROR(VLOOKUP($C40,'مشتريات ومردودات المبيعات'!$A$4:$N$1000,4,0),"") ->  | G40: =IFERROR(VLOOKUP($C40,'مشتريات ومردودات المبيعات'!$A$4:$N$1000,5,0),"") ->  | H40: =IFERROR(VLOOKUP($C40,'مشتريات ومردودات المبيعات'!$A$4:$N$1000,6,0),"") ->  | I40: =IFERROR(VLOOKUP($C40,'مشتريات ومردودات المبيعات'!$A$4:$N$1000,7,0),"") ->  | J40: =IFERROR(VLOOKUP($C40,'مشتريات ومردودات المبيعات'!$A$4:$N$1000,8,0),"") ->  | K40: =IFERROR(VLOOKUP($C40,'مشتريات ومردودات المبيعات'!$A$4:$N$1000,9,0),"") ->  | L40: =IFERROR(VLOOKUP($C40,'مشتريات ومردودات المبيعات'!$A$4:$N$1000,10,0),"") -> 
B41: =IF($G$1='مشتريات ومردودات المبيعات'!$H$4:$H$1000,'مشتريات ومردودات المبيعات'!$A$4:$A$1000,"") ->  | D41: =IFERROR(VLOOKUP($C41,'مشتريات ومردودات المبيعات'!$A$4:$N$1000,2,0),"") ->  | E41: =IFERROR(VLOOKUP($C41,'مشتريات ومردودات المبيعات'!$A$4:$N$1000,3,0),"") ->  | F41: =IFERROR(VLOOKUP($C41,'مشتريات ومردودات المبيعات'!$A$4:$N$1000,4,0),"") ->  | G41: =IFERROR(VLOOKUP($C41,'مشتريات ومردودات المبيعات'!$A$4:$N$1000,5,0),"") ->  | H41: =IFERROR(VLOOKUP($C41,'مشتريات ومردودات المبيعات'!$A$4:$N$1000,6,0),"") ->  | I41: =IFERROR(VLOOKUP($C41,'مشتريات ومردودات المبيعات'!$A$4:$N$1000,7,0),"") ->  | J41: =IFERROR(VLOOKUP($C41,'مشتريات ومردودات المبيعات'!$A$4:$N$1000,8,0),"") ->  | K41: =IFERROR(VLOOKUP($C41,'مشتريات ومردودات المبيعات'!$A$4:$N$1000,9,0),"") ->  | L41: =IFERROR(VLOOKUP($C41,'مشتريات ومردودات المبيعات'!$A$4:$N$1000,10,0),"") -> 
B42: =IF($G$1='مشتريات ومردودات المبيعات'!$H$4:$H$1000,'مشتريات ومردودات المبيعات'!$A$4:$A$1000,"") ->  | D42: =IFERROR(VLOOKUP($C42,'مشتريات ومردودات المبيعات'!$A$4:$N$1000,2,0),"") ->  | E42: =IFERROR(VLOOKUP($C42,'مشتريات ومردودات المبيعات'!$A$4:$N$1000,3,0),"") ->  | F42: =IFERROR(VLOOKUP($C42,'مشتريات ومردودات المبيعات'!$A$4:$N$1000,4,0),"") ->  | G42: =IFERROR(VLOOKUP($C42,'مشتريات ومردودات المبيعات'!$A$4:$N$1000,5,0),"") ->  | H42: =IFERROR(VLOOKUP($C42,'مشتريات ومردودات المبيعات'!$A$4:$N$1000,6,0),"") ->  | I42: =IFERROR(VLOOKUP($C42,'مشتريات ومردودات المبيعات'!$A$4:$N$1000,7,0),"") ->  | J42: =IFERROR(VLOOKUP($C42,'مشتريات ومردودات المبيعات'!$A$4:$N$1000,8,0),"") ->  | K42: =IFERROR(VLOOKUP($C42,'مشتريات ومردودات المبيعات'!$A$4:$N$1000,9,0),"") ->  | L42: =IFERROR(VLOOKUP($C42,'مشتريات ومردودات المبيعات'!$A$4:$N$1000,10,0),"") -> 
B43: =IF($G$1='مشتريات ومردودات المبيعات'!$H$4:$H$1000,'مشتريات ومردودات المبيعات'!$A$4:$A$1000,"") ->  | D43: =IFERROR(VLOOKUP($C43,'مشتريات ومردودات المبيعات'!$A$4:$N$1000,2,0),"") ->  | E43: =IFERROR(VLOOKUP($C43,'مشتريات ومردودات المبيعات'!$A$4:$N$1000,3,0),"") ->  | F43: =IFERROR(VLOOKUP($C43,'مشتريات ومردودات المبيعات'!$A$4:$N$1000,4,0),"") ->  | G43: =IFERROR(VLOOKUP($C43,'مشتريات ومردودات المبيعات'!$A$4:$N$1000,5,0),"") ->  | H43: =IFERROR(VLOOKUP($C43,'مشتريات ومردودات المبيعات'!$A$4:$N$1000,6,0),"") ->  | I43: =IFERROR(VLOOKUP($C43,'مشتريات ومردودات المبيعات'!$A$4:$N$1000,7,0),"") ->  | J43: =IFERROR(VLOOKUP($C43,'مشتريات ومردودات المبيعات'!$A$4:$N$1000,8,0),"") ->  | K43: =IFERROR(VLOOKUP($C43,'مشتريات ومردودات المبيعات'!$A$4:$N$1000,9,0),"") ->  | L43: =IFERROR(VLOOKUP($C43,'مشتريات ومردودات المبيعات'!$A$4:$N$1000,10,0),"") -> 
B44: =IF($G$1='مشتريات ومردودات المبيعات'!$H$4:$H$1000,'مشتريات ومردودات المبيعات'!$A$4:$A$1000,"") ->  | D44: =IFERROR(VLOOKUP($C44,'مشتريات ومردودات المبيعات'!$A$4:$N$1000,2,0),"") ->  | E44: =IFERROR(VLOOKUP($C44,'مشتريات ومردودات المبيعات'!$A$4:$N$1000,3,0),"") ->  | F44: =IFERROR(VLOOKUP($C44,'مشتريات ومردودات المبيعات'!$A$4:$N$1000,4,0),"") ->  | G44: =IFERROR(VLOOKUP($C44,'مشتريات ومردودات المبيعات'!$A$4:$N$1000,5,0),"") ->  | H44: =IFERROR(VLOOKUP($C44,'مشتريات ومردودات المبيعات'!$A$4:$N$1000,6,0),"") ->  | I44: =IFERROR(VLOOKUP($C44,'مشتريات ومردودات المبيعات'!$A$4:$N$1000,7,0),"") ->  | J44: =IFERROR(VLOOKUP($C44,'مشتريات ومردودات المبيعات'!$A$4:$N$1000,8,0),"") ->  | K44: =IFERROR(VLOOKUP($C44,'مشتريات ومردودات المبيعات'!$A$4:$N$1000,9,0),"") ->  | L44: =IFERROR(VLOOKUP($C44,'مشتريات ومردودات المبيعات'!$A$4:$N$1000,10,0),"") -> 
B45: =IF($G$1='مشتريات ومردودات المبيعات'!$H$4:$H$1000,'مشتريات ومردودات المبيعات'!$A$4:$A$1000,"") ->  | D45: =IFERROR(VLOOKUP($C45,'مشتريات ومردودات المبيعات'!$A$4:$N$1000,2,0),"") ->  | E45: =IFERROR(VLOOKUP($C45,'مشتريات ومردودات المبيعات'!$A$4:$N$1000,3,0),"") ->  | F45: =IFERROR(VLOOKUP($C45,'مشتريات ومردودات المبيعات'!$A$4:$N$1000,4,0),"") ->  | G45: =IFERROR(VLOOKUP($C45,'مشتريات ومردودات المبيعات'!$A$4:$N$1000,5,0),"") ->  | H45: =IFERROR(VLOOKUP($C45,'مشتريات ومردودات المبيعات'!$A$4:$N$1000,6,0),"") ->  | I45: =IFERROR(VLOOKUP($C45,'مشتريات ومردودات المبيعات'!$A$4:$N$1000,7,0),"") ->  | J45: =IFERROR(VLOOKUP($C45,'مشتريات ومردودات المبيعات'!$A$4:$N$1000,8,0),"") ->  | K45: =IFERROR(VLOOKUP($C45,'مشتريات ومردودات المبيعات'!$A$4:$N$1000,9,0),"") ->  | L45: =IFERROR(VLOOKUP($C45,'مشتريات ومردودات المبيعات'!$A$4:$N$1000,10,0),"") -> 
B46: =IF($G$1='مشتريات ومردودات المبيعات'!$H$4:$H$1000,'مشتريات ومردودات المبيعات'!$A$4:$A$1000,"") ->  | D46: =IFERROR(VLOOKUP($C46,'مشتريات ومردودات المبيعات'!$A$4:$N$1000,2,0),"") ->  | E46: =IFERROR(VLOOKUP($C46,'مشتريات ومردودات المبيعات'!$A$4:$N$1000,3,0),"") ->  | F46: =IFERROR(VLOOKUP($C46,'مشتريات ومردودات المبيعات'!$A$4:$N$1000,4,0),"") ->  | G46: =IFERROR(VLOOKUP($C46,'مشتريات ومردودات المبيعات'!$A$4:$N$1000,5,0),"") ->  | H46: =IFERROR(VLOOKUP($C46,'مشتريات ومردودات المبيعات'!$A$4:$N$1000,6,0),"") ->  | I46: =IFERROR(VLOOKUP($C46,'مشتريات ومردودات المبيعات'!$A$4:$N$1000,7,0),"") ->  | J46: =IFERROR(VLOOKUP($C46,'مشتريات ومردودات المبيعات'!$A$4:$N$1000,8,0),"") ->  | K46: =IFERROR(VLOOKUP($C46,'مشتريات ومردودات المبيعات'!$A$4:$N$1000,9,0),"") ->  | L46: =IFERROR(VLOOKUP($C46,'مشتريات ومردودات المبيعات'!$A$4:$N$1000,10,0),"") -> 
B47: =IF($G$1='مشتريات ومردودات المبيعات'!$H$4:$H$1000,'مشتريات ومردودات المبيعات'!$A$4:$A$1000,"") ->  | D47: =IFERROR(VLOOKUP($C47,'مشتريات ومردودات المبيعات'!$A$4:$N$1000,2,0),"") ->  | E47: =IFERROR(VLOOKUP($C47,'مشتريات ومردودات المبيعات'!$A$4:$N$1000,3,0),"") ->  | F47: =IFERROR(VLOOKUP($C47,'مشتريات ومردودات المبيعات'!$A$4:$N$1000,4,0),"") ->  | G47: =IFERROR(VLOOKUP($C47,'مشتريات ومردودات المبيعات'!$A$4:$N$1000,5,0),"") ->  | H47: =IFERROR(VLOOKUP($C47,'مشتريات ومردودات المبيعات'!$A$4:$N$1000,6,0),"") ->  | I47: =IFERROR(VLOOKUP($C47,'مشتريات ومردودات المبيعات'!$A$4:$N$1000,7,0),"") ->  | J47: =IFERROR(VLOOKUP($C47,'مشتريات ومردودات المبيعات'!$A$4:$N$1000,8,0),"") ->  | K47: =IFERROR(VLOOKUP($C47,'مشتريات ومردودات المبيعات'!$A$4:$N$1000,9,0),"") ->  | L47: =IFERROR(VLOOKUP($C47,'مشتريات ومردودات المبيعات'!$A$4:$N$1000,10,0),"") -> 
B48: =IF($G$1='مشتريات ومردودات المبيعات'!$H$4:$H$1000,'مشتريات ومردودات المبيعات'!$A$4:$A$1000,"") ->  | D48: =IFERROR(VLOOKUP($C48,'مشتريات ومردودات المبيعات'!$A$4:$N$1000,2,0),"") ->  | E48: =IFERROR(VLOOKUP($C48,'مشتريات ومردودات المبيعات'!$A$4:$N$1000,3,0),"") ->  | F48: =IFERROR(VLOOKUP($C48,'مشتريات ومردودات المبيعات'!$A$4:$N$1000,4,0),"") ->  | G48: =IFERROR(VLOOKUP($C48,'مشتريات ومردودات المبيعات'!$A$4:$N$1000,5,0),"") ->  | H48: =IFERROR(VLOOKUP($C48,'مشتريات ومردودات المبيعات'!$A$4:$N$1000,6,0),"") ->  | I48: =IFERROR(VLOOKUP($C48,'مشتريات ومردودات المبيعات'!$A$4:$N$1000,7,0),"") ->  | J48: =IFERROR(VLOOKUP($C48,'مشتريات ومردودات المبيعات'!$A$4:$N$1000,8,0),"") ->  | K48: =IFERROR(VLOOKUP($C48,'مشتريات ومردودات المبيعات'!$A$4:$N$1000,9,0),"") ->  | L48: =IFERROR(VLOOKUP($C48,'مشتريات ومردودات المبيعات'!$A$4:$N$1000,10,0),"") -> 
B49: =IF($G$1='مشتريات ومردودات المبيعات'!$H$4:$H$1000,'مشتريات ومردودات المبيعات'!$A$4:$A$1000,"") ->  | D49: =IFERROR(VLOOKUP($C49,'مشتريات ومردودات المبيعات'!$A$4:$N$1000,2,0),"") ->  | E49: =IFERROR(VLOOKUP($C49,'مشتريات ومردودات المبيعات'!$A$4:$N$1000,3,0),"") ->  | F49: =IFERROR(VLOOKUP($C49,'مشتريات ومردودات المبيعات'!$A$4:$N$1000,4,0),"") ->  | G49: =IFERROR(VLOOKUP($C49,'مشتريات ومردودات المبيعات'!$A$4:$N$1000,5,0),"") ->  | H49: =IFERROR(VLOOKUP($C49,'مشتريات ومردودات المبيعات'!$A$4:$N$1000,6,0),"") ->  | I49: =IFERROR(VLOOKUP($C49,'مشتريات ومردودات المبيعات'!$A$4:$N$1000,7,0),"") ->  | J49: =IFERROR(VLOOKUP($C49,'مشتريات ومردودات المبيعات'!$A$4:$N$1000,8,0),"") ->  | K49: =IFERROR(VLOOKUP($C49,'مشتريات ومردودات المبيعات'!$A$4:$N$1000,9,0),"") ->  | L49: =IFERROR(VLOOKUP($C49,'مشتريات ومردودات المبيعات'!$A$4:$N$1000,10,0),"") -> 
B50: =IF($G$1='مشتريات ومردودات المبيعات'!$H$4:$H$1000,'مشتريات ومردودات المبيعات'!$A$4:$A$1000,"") ->  | D50: =IFERROR(VLOOKUP($C50,'مشتريات ومردودات المبيعات'!$A$4:$N$1000,2,0),"") ->  | E50: =IFERROR(VLOOKUP($C50,'مشتريات ومردودات المبيعات'!$A$4:$N$1000,3,0),"") ->  | F50: =IFERROR(VLOOKUP($C50,'مشتريات ومردودات المبيعات'!$A$4:$N$1000,4,0),"") ->  | G50: =IFERROR(VLOOKUP($C50,'مشتريات ومردودات المبيعات'!$A$4:$N$1000,5,0),"") ->  | H50: =IFERROR(VLOOKUP($C50,'مشتريات ومردودات المبيعات'!$A$4:$N$1000,6,0),"") ->  | I50: =IFERROR(VLOOKUP($C50,'مشتريات ومردودات المبيعات'!$A$4:$N$1000,7,0),"") ->  | J50: =IFERROR(VLOOKUP($C50,'مشتريات ومردودات المبيعات'!$A$4:$N$1000,8,0),"") ->  | K50: =IFERROR(VLOOKUP($C50,'مشتريات ومردودات المبيعات'!$A$4:$N$1000,9,0),"") ->  | L50: =IFERROR(VLOOKUP($C50,'مشتريات ومردودات المبيعات'!$A$4:$N$1000,10,0),"") -> 
B51: =IF($G$1='مشتريات ومردودات المبيعات'!$H$4:$H$1000,'مشتريات ومردودات المبيعات'!$A$4:$A$1000,"") ->  | D51: =IFERROR(VLOOKUP($C51,'مشتريات ومردودات المبيعات'!$A$4:$N$1000,2,0),"") ->  | E51: =IFERROR(VLOOKUP($C51,'مشتريات ومردودات المبيعات'!$A$4:$N$1000,3,0),"") ->  | F51: =IFERROR(VLOOKUP($C51,'مشتريات ومردودات المبيعات'!$A$4:$N$1000,4,0),"") ->  | G51: =IFERROR(VLOOKUP($C51,'مشتريات ومردودات المبيعات'!$A$4:$N$1000,5,0),"") ->  | H51: =IFERROR(VLOOKUP($C51,'مشتريات ومردودات المبيعات'!$A$4:$N$1000,6,0),"") ->  | I51: =IFERROR(VLOOKUP($C51,'مشتريات ومردودات المبيعات'!$A$4:$N$1000,7,0),"") ->  | J51: =IFERROR(VLOOKUP($C51,'مشتريات ومردودات المبيعات'!$A$4:$N$1000,8,0),"") ->  | K51: =IFERROR(VLOOKUP($C51,'مشتريات ومردودات المبيعات'!$A$4:$N$1000,9,0),"") ->  | L51: =IFERROR(VLOOKUP($C51,'مشتريات ومردودات المبيعات'!$A$4:$N$1000,10,0),"") -> 
B52: =IF($G$1='مشتريات ومردودات المبيعات'!$H$4:$H$1000,'مشتريات ومردودات المبيعات'!$A$4:$A$1000,"") ->  | D52: =IFERROR(VLOOKUP($C52,'مشتريات ومردودات المبيعات'!$A$4:$N$1000,2,0),"") ->  | E52: =IFERROR(VLOOKUP($C52,'مشتريات ومردودات المبيعات'!$A$4:$N$1000,3,0),"") ->  | F52: =IFERROR(VLOOKUP($C52,'مشتريات ومردودات المبيعات'!$A$4:$N$1000,4,0),"") ->  | G52: =IFERROR(VLOOKUP($C52,'مشتريات ومردودات المبيعات'!$A$4:$N$1000,5,0),"") ->  | H52: =IFERROR(VLOOKUP($C52,'مشتريات ومردودات المبيعات'!$A$4:$N$1000,6,0),"") ->  | I52: =IFERROR(VLOOKUP($C52,'مشتريات ومردودات المبيعات'!$A$4:$N$1000,7,0),"") ->  | J52: =IFERROR(VLOOKUP($C52,'مشتريات ومردودات المبيعات'!$A$4:$N$1000,8,0),"") ->  | K52: =IFERROR(VLOOKUP($C52,'مشتريات ومردودات المبيعات'!$A$4:$N$1000,9,0),"") ->  | L52: =IFERROR(VLOOKUP($C52,'مشتريات ومردودات المبيعات'!$A$4:$N$1000,10,0),"") -> 
B53: =IF($G$1='مشتريات ومردودات المبيعات'!$H$4:$H$1000,'مشتريات ومردودات المبيعات'!$A$4:$A$1000,"") ->  | D53: =IFERROR(VLOOKUP($C53,'مشتريات ومردودات المبيعات'!$A$4:$N$1000,2,0),"") ->  | E53: =IFERROR(VLOOKUP($C53,'مشتريات ومردودات المبيعات'!$A$4:$N$1000,3,0),"") ->  | F53: =IFERROR(VLOOKUP($C53,'مشتريات ومردودات المبيعات'!$A$4:$N$1000,4,0),"") ->  | G53: =IFERROR(VLOOKUP($C53,'مشتريات ومردودات المبيعات'!$A$4:$N$1000,5,0),"") ->  | H53: =IFERROR(VLOOKUP($C53,'مشتريات ومردودات المبيعات'!$A$4:$N$1000,6,0),"") ->  | I53: =IFERROR(VLOOKUP($C53,'مشتريات ومردودات المبيعات'!$A$4:$N$1000,7,0),"") ->  | J53: =IFERROR(VLOOKUP($C53,'مشتريات ومردودات المبيعات'!$A$4:$N$1000,8,0),"") ->  | K53: =IFERROR(VLOOKUP($C53,'مشتريات ومردودات المبيعات'!$A$4:$N$1000,9,0),"") ->  | L53: =IFERROR(VLOOKUP($C53,'مشتريات ومردودات المبيعات'!$A$4:$N$1000,10,0),"") -> 
B54: =IF($G$1='مشتريات ومردودات المبيعات'!$H$4:$H$1000,'مشتريات ومردودات المبيعات'!$A$4:$A$1000,"") ->  | D54: =IFERROR(VLOOKUP($C54,'مشتريات ومردودات المبيعات'!$A$4:$N$1000,2,0),"") ->  | E54: =IFERROR(VLOOKUP($C54,'مشتريات ومردودات المبيعات'!$A$4:$N$1000,3,0),"") ->  | F54: =IFERROR(VLOOKUP($C54,'مشتريات ومردودات المبيعات'!$A$4:$N$1000,4,0),"") ->  | G54: =IFERROR(VLOOKUP($C54,'مشتريات ومردودات المبيعات'!$A$4:$N$1000,5,0),"") ->  | H54: =IFERROR(VLOOKUP($C54,'مشتريات ومردودات المبيعات'!$A$4:$N$1000,6,0),"") ->  | I54: =IFERROR(VLOOKUP($C54,'مشتريات ومردودات المبيعات'!$A$4:$N$1000,7,0),"") ->  | J54: =IFERROR(VLOOKUP($C54,'مشتريات ومردودات المبيعات'!$A$4:$N$1000,8,0),"") ->  | K54: =IFERROR(VLOOKUP($C54,'مشتريات ومردودات المبيعات'!$A$4:$N$1000,9,0),"") ->  | L54: =IFERROR(VLOOKUP($C54,'مشتريات ومردودات المبيعات'!$A$4:$N$1000,10,0),"") -> 
B55: =IF($G$1='مشتريات ومردودات المبيعات'!$H$4:$H$1000,'مشتريات ومردودات المبيعات'!$A$4:$A$1000,"") ->  | D55: =IFERROR(VLOOKUP($C55,'مشتريات ومردودات المبيعات'!$A$4:$N$1000,2,0),"") ->  | E55: =IFERROR(VLOOKUP($C55,'مشتريات ومردودات المبيعات'!$A$4:$N$1000,3,0),"") ->  | F55: =IFERROR(VLOOKUP($C55,'مشتريات ومردودات المبيعات'!$A$4:$N$1000,4,0),"") ->  | G55: =IFERROR(VLOOKUP($C55,'مشتريات ومردودات المبيعات'!$A$4:$N$1000,5,0),"") ->  | H55: =IFERROR(VLOOKUP($C55,'مشتريات ومردودات المبيعات'!$A$4:$N$1000,6,0),"") ->  | I55: =IFERROR(VLOOKUP($C55,'مشتريات ومردودات المبيعات'!$A$4:$N$1000,7,0),"") ->  | J55: =IFERROR(VLOOKUP($C55,'مشتريات ومردودات المبيعات'!$A$4:$N$1000,8,0),"") ->  | K55: =IFERROR(VLOOKUP($C55,'مشتريات ومردودات المبيعات'!$A$4:$N$1000,9,0),"") ->  | L55: =IFERROR(VLOOKUP($C55,'مشتريات ومردودات المبيعات'!$A$4:$N$1000,10,0),"") -> 
B56: =IF($G$1='مشتريات ومردودات المبيعات'!$H$4:$H$1000,'مشتريات ومردودات المبيعات'!$A$4:$A$1000,"") ->  | D56: =IFERROR(VLOOKUP($C56,'مشتريات ومردودات المبيعات'!$A$4:$N$1000,2,0),"") ->  | E56: =IFERROR(VLOOKUP($C56,'مشتريات ومردودات المبيعات'!$A$4:$N$1000,3,0),"") ->  | F56: =IFERROR(VLOOKUP($C56,'مشتريات ومردودات المبيعات'!$A$4:$N$1000,4,0),"") ->  | G56: =IFERROR(VLOOKUP($C56,'مشتريات ومردودات المبيعات'!$A$4:$N$1000,5,0),"") ->  | H56: =IFERROR(VLOOKUP($C56,'مشتريات ومردودات المبيعات'!$A$4:$N$1000,6,0),"") ->  | I56: =IFERROR(VLOOKUP($C56,'مشتريات ومردودات المبيعات'!$A$4:$N$1000,7,0),"") ->  | J56: =IFERROR(VLOOKUP($C56,'مشتريات ومردودات المبيعات'!$A$4:$N$1000,8,0),"") ->  | K56: =IFERROR(VLOOKUP($C56,'مشتريات ومردودات المبيعات'!$A$4:$N$1000,9,0),"") ->  | L56: =IFERROR(VLOOKUP($C56,'مشتريات ومردودات المبيعات'!$A$4:$N$1000,10,0),"") -> 
B57: =IF($G$1='مشتريات ومردودات المبيعات'!$H$4:$H$1000,'مشتريات ومردودات المبيعات'!$A$4:$A$1000,"") ->  | D57: =IFERROR(VLOOKUP($C57,'مشتريات ومردودات المبيعات'!$A$4:$N$1000,2,0),"") ->  | E57: =IFERROR(VLOOKUP($C57,'مشتريات ومردودات المبيعات'!$A$4:$N$1000,3,0),"") ->  | F57: =IFERROR(VLOOKUP($C57,'مشتريات ومردودات المبيعات'!$A$4:$N$1000,4,0),"") ->  | G57: =IFERROR(VLOOKUP($C57,'مشتريات ومردودات المبيعات'!$A$4:$N$1000,5,0),"") ->  | H57: =IFERROR(VLOOKUP($C57,'مشتريات ومردودات المبيعات'!$A$4:$N$1000,6,0),"") ->  | I57: =IFERROR(VLOOKUP($C57,'مشتريات ومردودات المبيعات'!$A$4:$N$1000,7,0),"") ->  | J57: =IFERROR(VLOOKUP($C57,'مشتريات ومردودات المبيعات'!$A$4:$N$1000,8,0),"") ->  | K57: =IFERROR(VLOOKUP($C57,'مشتريات ومردودات المبيعات'!$A$4:$N$1000,9,0),"") ->  | L57: =IFERROR(VLOOKUP($C57,'مشتريات ومردودات المبيعات'!$A$4:$N$1000,10,0),"") -> 
B58: =IF($G$1='مشتريات ومردودات المبيعات'!$H$4:$H$1000,'مشتريات ومردودات المبيعات'!$A$4:$A$1000,"") ->  | D58: =IFERROR(VLOOKUP($C58,'مشتريات ومردودات المبيعات'!$A$4:$N$1000,2,0),"") ->  | E58: =IFERROR(VLOOKUP($C58,'مشتريات ومردودات المبيعات'!$A$4:$N$1000,3,0),"") ->  | F58: =IFERROR(VLOOKUP($C58,'مشتريات ومردودات المبيعات'!$A$4:$N$1000,4,0),"") ->  | G58: =IFERROR(VLOOKUP($C58,'مشتريات ومردودات المبيعات'!$A$4:$N$1000,5,0),"") ->  | H58: =IFERROR(VLOOKUP($C58,'مشتريات ومردودات المبيعات'!$A$4:$N$1000,6,0),"") ->  | I58: =IFERROR(VLOOKUP($C58,'مشتريات ومردودات المبيعات'!$A$4:$N$1000,7,0),"") ->  | J58: =IFERROR(VLOOKUP($C58,'مشتريات ومردودات المبيعات'!$A$4:$N$1000,8,0),"") ->  | K58: =IFERROR(VLOOKUP($C58,'مشتريات ومردودات المبيعات'!$A$4:$N$1000,9,0),"") ->  | L58: =IFERROR(VLOOKUP($C58,'مشتريات ومردودات المبيعات'!$A$4:$N$1000,10,0),"") -> 
B59: =IF($G$1='مشتريات ومردودات المبيعات'!$H$4:$H$1000,'مشتريات ومردودات المبيعات'!$A$4:$A$1000,"") ->  | D59: =IFERROR(VLOOKUP($C59,'مشتريات ومردودات المبيعات'!$A$4:$N$1000,2,0),"") ->  | E59: =IFERROR(VLOOKUP($C59,'مشتريات ومردودات المبيعات'!$A$4:$N$1000,3,0),"") ->  | F59: =IFERROR(VLOOKUP($C59,'مشتريات ومردودات المبيعات'!$A$4:$N$1000,4,0),"") ->  | G59: =IFERROR(VLOOKUP($C59,'مشتريات ومردودات المبيعات'!$A$4:$N$1000,5,0),"") ->  | H59: =IFERROR(VLOOKUP($C59,'مشتريات ومردودات المبيعات'!$A$4:$N$1000,6,0),"") ->  | I59: =IFERROR(VLOOKUP($C59,'مشتريات ومردودات المبيعات'!$A$4:$N$1000,7,0),"") ->  | J59: =IFERROR(VLOOKUP($C59,'مشتريات ومردودات المبيعات'!$A$4:$N$1000,8,0),"") ->  | K59: =IFERROR(VLOOKUP($C59,'مشتريات ومردودات المبيعات'!$A$4:$N$1000,9,0),"") ->  | L59: =IFERROR(VLOOKUP($C59,'مشتريات ومردودات المبيعات'!$A$4:$N$1000,10,0),"") -> 
B60: =IF($G$1='مشتريات ومردودات المبيعات'!$H$4:$H$1000,'مشتريات ومردودات المبيعات'!$A$4:$A$1000,"") ->  | D60: =IFERROR(VLOOKUP($C60,'مشتريات ومردودات المبيعات'!$A$4:$N$1000,2,0),"") ->  | E60: =IFERROR(VLOOKUP($C60,'مشتريات ومردودات المبيعات'!$A$4:$N$1000,3,0),"") ->  | F60: =IFERROR(VLOOKUP($C60,'مشتريات ومردودات المبيعات'!$A$4:$N$1000,4,0),"") ->  | G60: =IFERROR(VLOOKUP($C60,'مشتريات ومردودات المبيعات'!$A$4:$N$1000,5,0),"") ->  | H60: =IFERROR(VLOOKUP($C60,'مشتريات ومردودات المبيعات'!$A$4:$N$1000,6,0),"") ->  | I60: =IFERROR(VLOOKUP($C60,'مشتريات ومردودات المبيعات'!$A$4:$N$1000,7,0),"") ->  | J60: =IFERROR(VLOOKUP($C60,'مشتريات ومردودات المبيعات'!$A$4:$N$1000,8,0),"") ->  | K60: =IFERROR(VLOOKUP($C60,'مشتريات ومردودات المبيعات'!$A$4:$N$1000,9,0),"") ->  | L60: =IFERROR(VLOOKUP($C60,'مشتريات ومردودات المبيعات'!$A$4:$N$1000,10,0),"") -> 
B61: =IF($G$1='مشتريات ومردودات المبيعات'!$H$4:$H$1000,'مشتريات ومردودات المبيعات'!$A$4:$A$1000,"") ->  | D61: =IFERROR(VLOOKUP($C61,'مشتريات ومردودات المبيعات'!$A$4:$N$1000,2,0),"") ->  | E61: =IFERROR(VLOOKUP($C61,'مشتريات ومردودات المبيعات'!$A$4:$N$1000,3,0),"") ->  | F61: =IFERROR(VLOOKUP($C61,'مشتريات ومردودات المبيعات'!$A$4:$N$1000,4,0),"") ->  | G61: =IFERROR(VLOOKUP($C61,'مشتريات ومردودات المبيعات'!$A$4:$N$1000,5,0),"") ->  | H61: =IFERROR(VLOOKUP($C61,'مشتريات ومردودات المبيعات'!$A$4:$N$1000,6,0),"") ->  | I61: =IFERROR(VLOOKUP($C61,'مشتريات ومردودات المبيعات'!$A$4:$N$1000,7,0),"") ->  | J61: =IFERROR(VLOOKUP($C61,'مشتريات ومردودات المبيعات'!$A$4:$N$1000,8,0),"") ->  | K61: =IFERROR(VLOOKUP($C61,'مشتريات ومردودات المبيعات'!$A$4:$N$1000,9,0),"") ->  | L61: =IFERROR(VLOOKUP($C61,'مشتريات ومردودات المبيعات'!$A$4:$N$1000,10,0),"") -> 
B62: =IF($G$1='مشتريات ومردودات المبيعات'!$H$4:$H$1000,'مشتريات ومردودات المبيعات'!$A$4:$A$1000,"") ->  | D62: =IFERROR(VLOOKUP($C62,'مشتريات ومردودات المبيعات'!$A$4:$N$1000,2,0),"") ->  | E62: =IFERROR(VLOOKUP($C62,'مشتريات ومردودات المبيعات'!$A$4:$N$1000,3,0),"") ->  | F62: =IFERROR(VLOOKUP($C62,'مشتريات ومردودات المبيعات'!$A$4:$N$1000,4,0),"") ->  | G62: =IFERROR(VLOOKUP($C62,'مشتريات ومردودات المبيعات'!$A$4:$N$1000,5,0),"") ->  | H62: =IFERROR(VLOOKUP($C62,'مشتريات ومردودات المبيعات'!$A$4:$N$1000,6,0),"") ->  | I62: =IFERROR(VLOOKUP($C62,'مشتريات ومردودات المبيعات'!$A$4:$N$1000,7,0),"") ->  | J62: =IFERROR(VLOOKUP($C62,'مشتريات ومردودات المبيعات'!$A$4:$N$1000,8,0),"") ->  | K62: =IFERROR(VLOOKUP($C62,'مشتريات ومردودات المبيعات'!$A$4:$N$1000,9,0),"") ->  | L62: =IFERROR(VLOOKUP($C62,'مشتريات ومردودات المبيعات'!$A$4:$N$1000,10,0),"") -> 
B63: =IF($G$1='مشتريات ومردودات المبيعات'!$H$4:$H$1000,'مشتريات ومردودات المبيعات'!$A$4:$A$1000,"") ->  | D63: =IFERROR(VLOOKUP($C63,'مشتريات ومردودات المبيعات'!$A$4:$N$1000,2,0),"") ->  | E63: =IFERROR(VLOOKUP($C63,'مشتريات ومردودات المبيعات'!$A$4:$N$1000,3,0),"") ->  | F63: =IFERROR(VLOOKUP($C63,'مشتريات ومردودات المبيعات'!$A$4:$N$1000,4,0),"") ->  | G63: =IFERROR(VLOOKUP($C63,'مشتريات ومردودات المبيعات'!$A$4:$N$1000,5,0),"") ->  | H63: =IFERROR(VLOOKUP($C63,'مشتريات ومردودات المبيعات'!$A$4:$N$1000,6,0),"") ->  | I63: =IFERROR(VLOOKUP($C63,'مشتريات ومردودات المبيعات'!$A$4:$N$1000,7,0),"") ->  | J63: =IFERROR(VLOOKUP($C63,'مشتريات ومردودات المبيعات'!$A$4:$N$1000,8,0),"") ->  | K63: =IFERROR(VLOOKUP($C63,'مشتريات ومردودات المبيعات'!$A$4:$N$1000,9,0),"") ->  | L63: =IFERROR(VLOOKUP($C63,'مشتريات ومردودات المبيعات'!$A$4:$N$1000,10,0),"") -> 
B64: =IF($G$1='مشتريات ومردودات المبيعات'!$H$4:$H$1000,'مشتريات ومردودات المبيعات'!$A$4:$A$1000,"") ->  | D64: =IFERROR(VLOOKUP($C64,'مشتريات ومردودات المبيعات'!$A$4:$N$1000,2,0),"") ->  | E64: =IFERROR(VLOOKUP($C64,'مشتريات ومردودات المبيعات'!$A$4:$N$1000,3,0),"") ->  | F64: =IFERROR(VLOOKUP($C64,'مشتريات ومردودات المبيعات'!$A$4:$N$1000,4,0),"") ->  | G64: =IFERROR(VLOOKUP($C64,'مشتريات ومردودات المبيعات'!$A$4:$N$1000,5,0),"") ->  | H64: =IFERROR(VLOOKUP($C64,'مشتريات ومردودات المبيعات'!$A$4:$N$1000,6,0),"") ->  | I64: =IFERROR(VLOOKUP($C64,'مشتريات ومردودات المبيعات'!$A$4:$N$1000,7,0),"") ->  | J64: =IFERROR(VLOOKUP($C64,'مشتريات ومردودات المبيعات'!$A$4:$N$1000,8,0),"") ->  | K64: =IFERROR(VLOOKUP($C64,'مشتريات ومردودات المبيعات'!$A$4:$N$1000,9,0),"") ->  | L64: =IFERROR(VLOOKUP($C64,'مشتريات ومردودات المبيعات'!$A$4:$N$1000,10,0),"") -> 
B65: =IF($G$1='مشتريات ومردودات المبيعات'!$H$4:$H$1000,'مشتريات ومردودات المبيعات'!$A$4:$A$1000,"") ->  | D65: =IFERROR(VLOOKUP($C65,'مشتريات ومردودات المبيعات'!$A$4:$N$1000,2,0),"") ->  | E65: =IFERROR(VLOOKUP($C65,'مشتريات ومردودات المبيعات'!$A$4:$N$1000,3,0),"") ->  | F65: =IFERROR(VLOOKUP($C65,'مشتريات ومردودات المبيعات'!$A$4:$N$1000,4,0),"") ->  | G65: =IFERROR(VLOOKUP($C65,'مشتريات ومردودات المبيعات'!$A$4:$N$1000,5,0),"") ->  | H65: =IFERROR(VLOOKUP($C65,'مشتريات ومردودات المبيعات'!$A$4:$N$1000,6,0),"") ->  | I65: =IFERROR(VLOOKUP($C65,'مشتريات ومردودات المبيعات'!$A$4:$N$1000,7,0),"") ->  | J65: =IFERROR(VLOOKUP($C65,'مشتريات ومردودات المبيعات'!$A$4:$N$1000,8,0),"") ->  | K65: =IFERROR(VLOOKUP($C65,'مشتريات ومردودات المبيعات'!$A$4:$N$1000,9,0),"") ->  | L65: =IFERROR(VLOOKUP($C65,'مشتريات ومردودات المبيعات'!$A$4:$N$1000,10,0),"") -> 
B66: =IF($G$1='مشتريات ومردودات المبيعات'!$H$4:$H$1000,'مشتريات ومردودات المبيعات'!$A$4:$A$1000,"") ->  | D66: =IFERROR(VLOOKUP($C66,'مشتريات ومردودات المبيعات'!$A$4:$N$1000,2,0),"") ->  | E66: =IFERROR(VLOOKUP($C66,'مشتريات ومردودات المبيعات'!$A$4:$N$1000,3,0),"") ->  | F66: =IFERROR(VLOOKUP($C66,'مشتريات ومردودات المبيعات'!$A$4:$N$1000,4,0),"") ->  | G66: =IFERROR(VLOOKUP($C66,'مشتريات ومردودات المبيعات'!$A$4:$N$1000,5,0),"") ->  | H66: =IFERROR(VLOOKUP($C66,'مشتريات ومردودات المبيعات'!$A$4:$N$1000,6,0),"") ->  | I66: =IFERROR(VLOOKUP($C66,'مشتريات ومردودات المبيعات'!$A$4:$N$1000,7,0),"") ->  | J66: =IFERROR(VLOOKUP($C66,'مشتريات ومردودات المبيعات'!$A$4:$N$1000,8,0),"") ->  | K66: =IFERROR(VLOOKUP($C66,'مشتريات ومردودات المبيعات'!$A$4:$N$1000,9,0),"") ->  | L66: =IFERROR(VLOOKUP($C66,'مشتريات ومردودات المبيعات'!$A$4:$N$1000,10,0),"") -> 
B67: =IF($G$1='مشتريات ومردودات المبيعات'!$H$4:$H$1000,'مشتريات ومردودات المبيعات'!$A$4:$A$1000,"") ->  | D67: =IFERROR(VLOOKUP($C67,'مشتريات ومردودات المبيعات'!$A$4:$N$1000,2,0),"") ->  | E67: =IFERROR(VLOOKUP($C67,'مشتريات ومردودات المبيعات'!$A$4:$N$1000,3,0),"") ->  | F67: =IFERROR(VLOOKUP($C67,'مشتريات ومردودات المبيعات'!$A$4:$N$1000,4,0),"") ->  | G67: =IFERROR(VLOOKUP($C67,'مشتريات ومردودات المبيعات'!$A$4:$N$1000,5,0),"") ->  | H67: =IFERROR(VLOOKUP($C67,'مشتريات ومردودات المبيعات'!$A$4:$N$1000,6,0),"") ->  | I67: =IFERROR(VLOOKUP($C67,'مشتريات ومردودات المبيعات'!$A$4:$N$1000,7,0),"") ->  | J67: =IFERROR(VLOOKUP($C67,'مشتريات ومردودات المبيعات'!$A$4:$N$1000,8,0),"") ->  | K67: =IFERROR(VLOOKUP($C67,'مشتريات ومردودات المبيعات'!$A$4:$N$1000,9,0),"") ->  | L67: =IFERROR(VLOOKUP($C67,'مشتريات ومردودات المبيعات'!$A$4:$N$1000,10,0),"") -> 
B68: =IF($G$1='مشتريات ومردودات المبيعات'!$H$4:$H$1000,'مشتريات ومردودات المبيعات'!$A$4:$A$1000,"") ->  | D68: =IFERROR(VLOOKUP($C68,'مشتريات ومردودات المبيعات'!$A$4:$N$1000,2,0),"") ->  | E68: =IFERROR(VLOOKUP($C68,'مشتريات ومردودات المبيعات'!$A$4:$N$1000,3,0),"") ->  | F68: =IFERROR(VLOOKUP($C68,'مشتريات ومردودات المبيعات'!$A$4:$N$1000,4,0),"") ->  | G68: =IFERROR(VLOOKUP($C68,'مشتريات ومردودات المبيعات'!$A$4:$N$1000,5,0),"") ->  | H68: =IFERROR(VLOOKUP($C68,'مشتريات ومردودات المبيعات'!$A$4:$N$1000,6,0),"") ->  | I68: =IFERROR(VLOOKUP($C68,'مشتريات ومردودات المبيعات'!$A$4:$N$1000,7,0),"") ->  | J68: =IFERROR(VLOOKUP($C68,'مشتريات ومردودات المبيعات'!$A$4:$N$1000,8,0),"") ->  | K68: =IFERROR(VLOOKUP($C68,'مشتريات ومردودات المبيعات'!$A$4:$N$1000,9,0),"") ->  | L68: =IFERROR(VLOOKUP($C68,'مشتريات ومردودات المبيعات'!$A$4:$N$1000,10,0),"") -> 
A69: =IF(B69="","",ROW()) ->  | B69: =IF($G$1='مشتريات ومردودات المبيعات'!$H$4:$H$1000,'مشتريات ومردودات المبيعات'!$A$4:$A$1000,"") ->  | C69: =IFERROR(VLOOKUP(SMALL($A$4:$A$100,ROW()-3),$A$4:$B$100,2,0),"") ->  | D69: =IFERROR(VLOOKUP($C69,'مشتريات ومردودات المبيعات'!$A$4:$N$1000,2,0),"") ->  | E69: =IFERROR(VLOOKUP($C69,'مشتريات ومردودات المبيعات'!$A$4:$N$1000,3,0),"") ->  | F69: =IFERROR(VLOOKUP($C69,'مشتريات ومردودات المبيعات'!$A$4:$N$1000,4,0),"") ->  | G69: =IFERROR(VLOOKUP($C69,'مشتريات ومردودات المبيعات'!$A$4:$N$1000,5,0),"") ->  | H69: =IFERROR(VLOOKUP($C69,'مشتريات ومردودات المبيعات'!$A$4:$N$1000,6,0),"") ->  | I69: =IFERROR(VLOOKUP($C69,'مشتريات ومردودات المبيعات'!$A$4:$N$1000,7,0),"") ->  | J69: =IFERROR(VLOOKUP($C69,'مشتريات ومردودات المبيعات'!$A$4:$N$1000,8,0),"") ->  | K69: =IFERROR(VLOOKUP($C69,'مشتريات ومردودات المبيعات'!$A$4:$N$1000,9,0),"") ->  | L69: =IFERROR(VLOOKUP($C69,'مشتريات ومردودات المبيعات'!$A$4:$N$1000,10,0),"") -> 
B70: =IF($G$1='مشتريات ومردودات المبيعات'!$H$4:$H$1000,'مشتريات ومردودات المبيعات'!$A$4:$A$1000,"") ->  | D70: =IFERROR(VLOOKUP($C70,'مشتريات ومردودات المبيعات'!$A$4:$N$1000,2,0),"") ->  | E70: =IFERROR(VLOOKUP($C70,'مشتريات ومردودات المبيعات'!$A$4:$N$1000,3,0),"") ->  | F70: =IFERROR(VLOOKUP($C70,'مشتريات ومردودات المبيعات'!$A$4:$N$1000,4,0),"") ->  | G70: =IFERROR(VLOOKUP($C70,'مشتريات ومردودات المبيعات'!$A$4:$N$1000,5,0),"") ->  | H70: =IFERROR(VLOOKUP($C70,'مشتريات ومردودات المبيعات'!$A$4:$N$1000,6,0),"") ->  | I70: =IFERROR(VLOOKUP($C70,'مشتريات ومردودات المبيعات'!$A$4:$N$1000,7,0),"") ->  | J70: =IFERROR(VLOOKUP($C70,'مشتريات ومردودات المبيعات'!$A$4:$N$1000,8,0),"") ->  | K70: =IFERROR(VLOOKUP($C70,'مشتريات ومردودات المبيعات'!$A$4:$N$1000,9,0),"") ->  | L70: =IFERROR(VLOOKUP($C70,'مشتريات ومردودات المبيعات'!$A$4:$N$1000,10,0),"") -> 
B71: =IF($G$1='مشتريات ومردودات المبيعات'!$H$4:$H$1000,'مشتريات ومردودات المبيعات'!$A$4:$A$1000,"") ->  | D71: =IFERROR(VLOOKUP($C71,'مشتريات ومردودات المبيعات'!$A$4:$N$1000,2,0),"") ->  | E71: =IFERROR(VLOOKUP($C71,'مشتريات ومردودات المبيعات'!$A$4:$N$1000,3,0),"") ->  | F71: =IFERROR(VLOOKUP($C71,'مشتريات ومردودات المبيعات'!$A$4:$N$1000,4,0),"") ->  | G71: =IFERROR(VLOOKUP($C71,'مشتريات ومردودات المبيعات'!$A$4:$N$1000,5,0),"") ->  | H71: =IFERROR(VLOOKUP($C71,'مشتريات ومردودات المبيعات'!$A$4:$N$1000,6,0),"") ->  | I71: =IFERROR(VLOOKUP($C71,'مشتريات ومردودات المبيعات'!$A$4:$N$1000,7,0),"") ->  | J71: =IFERROR(VLOOKUP($C71,'مشتريات ومردودات المبيعات'!$A$4:$N$1000,8,0),"") ->  | K71: =IFERROR(VLOOKUP($C71,'مشتريات ومردودات المبيعات'!$A$4:$N$1000,9,0),"") ->  | L71: =IFERROR(VLOOKUP($C71,'مشتريات ومردودات المبيعات'!$A$4:$N$1000,10,0),"") -> 
B72: =IF($G$1='مشتريات ومردودات المبيعات'!$H$4:$H$1000,'مشتريات ومردودات المبيعات'!$A$4:$A$1000,"") ->  | D72: =IFERROR(VLOOKUP($C72,'مشتريات ومردودات المبيعات'!$A$4:$N$1000,2,0),"") ->  | E72: =IFERROR(VLOOKUP($C72,'مشتريات ومردودات المبيعات'!$A$4:$N$1000,3,0),"") ->  | F72: =IFERROR(VLOOKUP($C72,'مشتريات ومردودات المبيعات'!$A$4:$N$1000,4,0),"") ->  | G72: =IFERROR(VLOOKUP($C72,'مشتريات ومردودات المبيعات'!$A$4:$N$1000,5,0),"") ->  | H72: =IFERROR(VLOOKUP($C72,'مشتريات ومردودات المبيعات'!$A$4:$N$1000,6,0),"") ->  | I72: =IFERROR(VLOOKUP($C72,'مشتريات ومردودات المبيعات'!$A$4:$N$1000,7,0),"") ->  | J72: =IFERROR(VLOOKUP($C72,'مشتريات ومردودات المبيعات'!$A$4:$N$1000,8,0),"") ->  | K72: =IFERROR(VLOOKUP($C72,'مشتريات ومردودات المبيعات'!$A$4:$N$1000,9,0),"") ->  | L72: =IFERROR(VLOOKUP($C72,'مشتريات ومردودات المبيعات'!$A$4:$N$1000,10,0),"") -> 
B73: =IF($G$1='مشتريات ومردودات المبيعات'!$H$4:$H$1000,'مشتريات ومردودات المبيعات'!$A$4:$A$1000,"") ->  | D73: =IFERROR(VLOOKUP($C73,'مشتريات ومردودات المبيعات'!$A$4:$N$1000,2,0),"") ->  | E73: =IFERROR(VLOOKUP($C73,'مشتريات ومردودات المبيعات'!$A$4:$N$1000,3,0),"") ->  | F73: =IFERROR(VLOOKUP($C73,'مشتريات ومردودات المبيعات'!$A$4:$N$1000,4,0),"") ->  | G73: =IFERROR(VLOOKUP($C73,'مشتريات ومردودات المبيعات'!$A$4:$N$1000,5,0),"") ->  | H73: =IFERROR(VLOOKUP($C73,'مشتريات ومردودات المبيعات'!$A$4:$N$1000,6,0),"") ->  | I73: =IFERROR(VLOOKUP($C73,'مشتريات ومردودات المبيعات'!$A$4:$N$1000,7,0),"") ->  | J73: =IFERROR(VLOOKUP($C73,'مشتريات ومردودات المبيعات'!$A$4:$N$1000,8,0),"") ->  | K73: =IFERROR(VLOOKUP($C73,'مشتريات ومردودات المبيعات'!$A$4:$N$1000,9,0),"") ->  | L73: =IFERROR(VLOOKUP($C73,'مشتريات ومردودات المبيعات'!$A$4:$N$1000,10,0),"") -> 
B74: =IF($G$1='مشتريات ومردودات المبيعات'!$H$4:$H$1000,'مشتريات ومردودات المبيعات'!$A$4:$A$1000,"") ->  | D74: =IFERROR(VLOOKUP($C74,'مشتريات ومردودات المبيعات'!$A$4:$N$1000,2,0),"") ->  | E74: =IFERROR(VLOOKUP($C74,'مشتريات ومردودات المبيعات'!$A$4:$N$1000,3,0),"") ->  | F74: =IFERROR(VLOOKUP($C74,'مشتريات ومردودات المبيعات'!$A$4:$N$1000,4,0),"") ->  | G74: =IFERROR(VLOOKUP($C74,'مشتريات ومردودات المبيعات'!$A$4:$N$1000,5,0),"") ->  | H74: =IFERROR(VLOOKUP($C74,'مشتريات ومردودات المبيعات'!$A$4:$N$1000,6,0),"") ->  | I74: =IFERROR(VLOOKUP($C74,'مشتريات ومردودات المبيعات'!$A$4:$N$1000,7,0),"") ->  | J74: =IFERROR(VLOOKUP($C74,'مشتريات ومردودات المبيعات'!$A$4:$N$1000,8,0),"") ->  | K74: =IFERROR(VLOOKUP($C74,'مشتريات ومردودات المبيعات'!$A$4:$N$1000,9,0),"") ->  | L74: =IFERROR(VLOOKUP($C74,'مشتريات ومردودات المبيعات'!$A$4:$N$1000,10,0),"") -> 
B75: =IF($G$1='مشتريات ومردودات المبيعات'!$H$4:$H$1000,'مشتريات ومردودات المبيعات'!$A$4:$A$1000,"") ->  | D75: =IFERROR(VLOOKUP($C75,'مشتريات ومردودات المبيعات'!$A$4:$N$1000,2,0),"") ->  | E75: =IFERROR(VLOOKUP($C75,'مشتريات ومردودات المبيعات'!$A$4:$N$1000,3,0),"") ->  | F75: =IFERROR(VLOOKUP($C75,'مشتريات ومردودات المبيعات'!$A$4:$N$1000,4,0),"") ->  | G75: =IFERROR(VLOOKUP($C75,'مشتريات ومردودات المبيعات'!$A$4:$N$1000,5,0),"") ->  | H75: =IFERROR(VLOOKUP($C75,'مشتريات ومردودات المبيعات'!$A$4:$N$1000,6,0),"") ->  | I75: =IFERROR(VLOOKUP($C75,'مشتريات ومردودات المبيعات'!$A$4:$N$1000,7,0),"") ->  | J75: =IFERROR(VLOOKUP($C75,'مشتريات ومردودات المبيعات'!$A$4:$N$1000,8,0),"") ->  | K75: =IFERROR(VLOOKUP($C75,'مشتريات ومردودات المبيعات'!$A$4:$N$1000,9,0),"") ->  | L75: =IFERROR(VLOOKUP($C75,'مشتريات ومردودات المبيعات'!$A$4:$N$1000,10,0),"") -> 
B76: =IF($G$1='مشتريات ومردودات المبيعات'!$H$4:$H$1000,'مشتريات ومردودات المبيعات'!$A$4:$A$1000,"") ->  | D76: =IFERROR(VLOOKUP($C76,'مشتريات ومردودات المبيعات'!$A$4:$N$1000,2,0),"") ->  | E76: =IFERROR(VLOOKUP($C76,'مشتريات ومردودات المبيعات'!$A$4:$N$1000,3,0),"") ->  | F76: =IFERROR(VLOOKUP($C76,'مشتريات ومردودات المبيعات'!$A$4:$N$1000,4,0),"") ->  | G76: =IFERROR(VLOOKUP($C76,'مشتريات ومردودات المبيعات'!$A$4:$N$1000,5,0),"") ->  | H76: =IFERROR(VLOOKUP($C76,'مشتريات ومردودات المبيعات'!$A$4:$N$1000,6,0),"") ->  | I76: =IFERROR(VLOOKUP($C76,'مشتريات ومردودات المبيعات'!$A$4:$N$1000,7,0),"") ->  | J76: =IFERROR(VLOOKUP($C76,'مشتريات ومردودات المبيعات'!$A$4:$N$1000,8,0),"") ->  | K76: =IFERROR(VLOOKUP($C76,'مشتريات ومردودات المبيعات'!$A$4:$N$1000,9,0),"") ->  | L76: =IFERROR(VLOOKUP($C76,'مشتريات ومردودات المبيعات'!$A$4:$N$1000,10,0),"") -> 
B77: =IF($G$1='مشتريات ومردودات المبيعات'!$H$4:$H$1000,'مشتريات ومردودات المبيعات'!$A$4:$A$1000,"") ->  | D77: =IFERROR(VLOOKUP($C77,'مشتريات ومردودات المبيعات'!$A$4:$N$1000,2,0),"") ->  | E77: =IFERROR(VLOOKUP($C77,'مشتريات ومردودات المبيعات'!$A$4:$N$1000,3,0),"") ->  | F77: =IFERROR(VLOOKUP($C77,'مشتريات ومردودات المبيعات'!$A$4:$N$1000,4,0),"") ->  | G77: =IFERROR(VLOOKUP($C77,'مشتريات ومردودات المبيعات'!$A$4:$N$1000,5,0),"") ->  | H77: =IFERROR(VLOOKUP($C77,'مشتريات ومردودات المبيعات'!$A$4:$N$1000,6,0),"") ->  | I77: =IFERROR(VLOOKUP($C77,'مشتريات ومردودات المبيعات'!$A$4:$N$1000,7,0),"") ->  | J77: =IFERROR(VLOOKUP($C77,'مشتريات ومردودات المبيعات'!$A$4:$N$1000,8,0),"") ->  | K77: =IFERROR(VLOOKUP($C77,'مشتريات ومردودات المبيعات'!$A$4:$N$1000,9,0),"") ->  | L77: =IFERROR(VLOOKUP($C77,'مشتريات ومردودات المبيعات'!$A$4:$N$1000,10,0),"") -> 
B78: =IF($G$1='مشتريات ومردودات المبيعات'!$H$4:$H$1000,'مشتريات ومردودات المبيعات'!$A$4:$A$1000,"") ->  | D78: =IFERROR(VLOOKUP($C78,'مشتريات ومردودات المبيعات'!$A$4:$N$1000,2,0),"") ->  | E78: =IFERROR(VLOOKUP($C78,'مشتريات ومردودات المبيعات'!$A$4:$N$1000,3,0),"") ->  | F78: =IFERROR(VLOOKUP($C78,'مشتريات ومردودات المبيعات'!$A$4:$N$1000,4,0),"") ->  | G78: =IFERROR(VLOOKUP($C78,'مشتريات ومردودات المبيعات'!$A$4:$N$1000,5,0),"") ->  | H78: =IFERROR(VLOOKUP($C78,'مشتريات ومردودات المبيعات'!$A$4:$N$1000,6,0),"") ->  | I78: =IFERROR(VLOOKUP($C78,'مشتريات ومردودات المبيعات'!$A$4:$N$1000,7,0),"") ->  | J78: =IFERROR(VLOOKUP($C78,'مشتريات ومردودات المبيعات'!$A$4:$N$1000,8,0),"") ->  | K78: =IFERROR(VLOOKUP($C78,'مشتريات ومردودات المبيعات'!$A$4:$N$1000,9,0),"") ->  | L78: =IFERROR(VLOOKUP($C78,'مشتريات ومردودات المبيعات'!$A$4:$N$1000,10,0),"") -> 
B79: =IF($G$1='مشتريات ومردودات المبيعات'!$H$4:$H$1000,'مشتريات ومردودات المبيعات'!$A$4:$A$1000,"") ->  | D79: =IFERROR(VLOOKUP($C79,'مشتريات ومردودات المبيعات'!$A$4:$N$1000,2,0),"") ->  | E79: =IFERROR(VLOOKUP($C79,'مشتريات ومردودات المبيعات'!$A$4:$N$1000,3,0),"") ->  | F79: =IFERROR(VLOOKUP($C79,'مشتريات ومردودات المبيعات'!$A$4:$N$1000,4,0),"") ->  | G79: =IFERROR(VLOOKUP($C79,'مشتريات ومردودات المبيعات'!$A$4:$N$1000,5,0),"") ->  | H79: =IFERROR(VLOOKUP($C79,'مشتريات ومردودات المبيعات'!$A$4:$N$1000,6,0),"") ->  | I79: =IFERROR(VLOOKUP($C79,'مشتريات ومردودات المبيعات'!$A$4:$N$1000,7,0),"") ->  | J79: =IFERROR(VLOOKUP($C79,'مشتريات ومردودات المبيعات'!$A$4:$N$1000,8,0),"") ->  | K79: =IFERROR(VLOOKUP($C79,'مشتريات ومردودات المبيعات'!$A$4:$N$1000,9,0),"") ->  | L79: =IFERROR(VLOOKUP($C79,'مشتريات ومردودات المبيعات'!$A$4:$N$1000,10,0),"") -> 
B80: =IF($G$1='مشتريات ومردودات المبيعات'!$H$4:$H$1000,'مشتريات ومردودات المبيعات'!$A$4:$A$1000,"") ->  | D80: =IFERROR(VLOOKUP($C80,'مشتريات ومردودات المبيعات'!$A$4:$N$1000,2,0),"") ->  | E80: =IFERROR(VLOOKUP($C80,'مشتريات ومردودات المبيعات'!$A$4:$N$1000,3,0),"") ->  | F80: =IFERROR(VLOOKUP($C80,'مشتريات ومردودات المبيعات'!$A$4:$N$1000,4,0),"") ->  | G80: =IFERROR(VLOOKUP($C80,'مشتريات ومردودات المبيعات'!$A$4:$N$1000,5,0),"") ->  | H80: =IFERROR(VLOOKUP($C80,'مشتريات ومردودات المبيعات'!$A$4:$N$1000,6,0),"") ->  | I80: =IFERROR(VLOOKUP($C80,'مشتريات ومردودات المبيعات'!$A$4:$N$1000,7,0),"") ->  | J80: =IFERROR(VLOOKUP($C80,'مشتريات ومردودات المبيعات'!$A$4:$N$1000,8,0),"") ->  | K80: =IFERROR(VLOOKUP($C80,'مشتريات ومردودات المبيعات'!$A$4:$N$1000,9,0),"") ->  | L80: =IFERROR(VLOOKUP($C80,'مشتريات ومردودات المبيعات'!$A$4:$N$1000,10,0),"") -> 
B81: =IF($G$1='مشتريات ومردودات المبيعات'!$H$4:$H$1000,'مشتريات ومردودات المبيعات'!$A$4:$A$1000,"") ->  | D81: =IFERROR(VLOOKUP($C81,'مشتريات ومردودات المبيعات'!$A$4:$N$1000,2,0),"") ->  | E81: =IFERROR(VLOOKUP($C81,'مشتريات ومردودات المبيعات'!$A$4:$N$1000,3,0),"") ->  | F81: =IFERROR(VLOOKUP($C81,'مشتريات ومردودات المبيعات'!$A$4:$N$1000,4,0),"") ->  | G81: =IFERROR(VLOOKUP($C81,'مشتريات ومردودات المبيعات'!$A$4:$N$1000,5,0),"") ->  | H81: =IFERROR(VLOOKUP($C81,'مشتريات ومردودات المبيعات'!$A$4:$N$1000,6,0),"") ->  | I81: =IFERROR(VLOOKUP($C81,'مشتريات ومردودات المبيعات'!$A$4:$N$1000,7,0),"") ->  | J81: =IFERROR(VLOOKUP($C81,'مشتريات ومردودات المبيعات'!$A$4:$N$1000,8,0),"") ->  | K81: =IFERROR(VLOOKUP($C81,'مشتريات ومردودات المبيعات'!$A$4:$N$1000,9,0),"") ->  | L81: =IFERROR(VLOOKUP($C81,'مشتريات ومردودات المبيعات'!$A$4:$N$1000,10,0),"") -> 
B82: =IF($G$1='مشتريات ومردودات المبيعات'!$H$4:$H$1000,'مشتريات ومردودات المبيعات'!$A$4:$A$1000,"") ->  | D82: =IFERROR(VLOOKUP($C82,'مشتريات ومردودات المبيعات'!$A$4:$N$1000,2,0),"") ->  | E82: =IFERROR(VLOOKUP($C82,'مشتريات ومردودات المبيعات'!$A$4:$N$1000,3,0),"") ->  | F82: =IFERROR(VLOOKUP($C82,'مشتريات ومردودات المبيعات'!$A$4:$N$1000,4,0),"") ->  | G82: =IFERROR(VLOOKUP($C82,'مشتريات ومردودات المبيعات'!$A$4:$N$1000,5,0),"") ->  | H82: =IFERROR(VLOOKUP($C82,'مشتريات ومردودات المبيعات'!$A$4:$N$1000,6,0),"") ->  | I82: =IFERROR(VLOOKUP($C82,'مشتريات ومردودات المبيعات'!$A$4:$N$1000,7,0),"") ->  | J82: =IFERROR(VLOOKUP($C82,'مشتريات ومردودات المبيعات'!$A$4:$N$1000,8,0),"") ->  | K82: =IFERROR(VLOOKUP($C82,'مشتريات ومردودات المبيعات'!$A$4:$N$1000,9,0),"") ->  | L82: =IFERROR(VLOOKUP($C82,'مشتريات ومردودات المبيعات'!$A$4:$N$1000,10,0),"") -> 
B83: =IF($G$1='مشتريات ومردودات المبيعات'!$H$4:$H$1000,'مشتريات ومردودات المبيعات'!$A$4:$A$1000,"") ->  | D83: =IFERROR(VLOOKUP($C83,'مشتريات ومردودات المبيعات'!$A$4:$N$1000,2,0),"") ->  | E83: =IFERROR(VLOOKUP($C83,'مشتريات ومردودات المبيعات'!$A$4:$N$1000,3,0),"") ->  | F83: =IFERROR(VLOOKUP($C83,'مشتريات ومردودات المبيعات'!$A$4:$N$1000,4,0),"") ->  | G83: =IFERROR(VLOOKUP($C83,'مشتريات ومردودات المبيعات'!$A$4:$N$1000,5,0),"") ->  | H83: =IFERROR(VLOOKUP($C83,'مشتريات ومردودات المبيعات'!$A$4:$N$1000,6,0),"") ->  | I83: =IFERROR(VLOOKUP($C83,'مشتريات ومردودات المبيعات'!$A$4:$N$1000,7,0),"") ->  | J83: =IFERROR(VLOOKUP($C83,'مشتريات ومردودات المبيعات'!$A$4:$N$1000,8,0),"") ->  | K83: =IFERROR(VLOOKUP($C83,'مشتريات ومردودات المبيعات'!$A$4:$N$1000,9,0),"") ->  | L83: =IFERROR(VLOOKUP($C83,'مشتريات ومردودات المبيعات'!$A$4:$N$1000,10,0),"") -> 
B84: =IF($G$1='مشتريات ومردودات المبيعات'!$H$4:$H$1000,'مشتريات ومردودات المبيعات'!$A$4:$A$1000,"") ->  | D84: =IFERROR(VLOOKUP($C84,'مشتريات ومردودات المبيعات'!$A$4:$N$1000,2,0),"") ->  | E84: =IFERROR(VLOOKUP($C84,'مشتريات ومردودات المبيعات'!$A$4:$N$1000,3,0),"") ->  | F84: =IFERROR(VLOOKUP($C84,'مشتريات ومردودات المبيعات'!$A$4:$N$1000,4,0),"") ->  | G84: =IFERROR(VLOOKUP($C84,'مشتريات ومردودات المبيعات'!$A$4:$N$1000,5,0),"") ->  | H84: =IFERROR(VLOOKUP($C84,'مشتريات ومردودات المبيعات'!$A$4:$N$1000,6,0),"") ->  | I84: =IFERROR(VLOOKUP($C84,'مشتريات ومردودات المبيعات'!$A$4:$N$1000,7,0),"") ->  | J84: =IFERROR(VLOOKUP($C84,'مشتريات ومردودات المبيعات'!$A$4:$N$1000,8,0),"") ->  | K84: =IFERROR(VLOOKUP($C84,'مشتريات ومردودات المبيعات'!$A$4:$N$1000,9,0),"") ->  | L84: =IFERROR(VLOOKUP($C84,'مشتريات ومردودات المبيعات'!$A$4:$N$1000,10,0),"") -> 
B85: =IF($G$1='مشتريات ومردودات المبيعات'!$H$4:$H$1000,'مشتريات ومردودات المبيعات'!$A$4:$A$1000,"") ->  | D85: =IFERROR(VLOOKUP($C85,'مشتريات ومردودات المبيعات'!$A$4:$N$1000,2,0),"") ->  | E85: =IFERROR(VLOOKUP($C85,'مشتريات ومردودات المبيعات'!$A$4:$N$1000,3,0),"") ->  | F85: =IFERROR(VLOOKUP($C85,'مشتريات ومردودات المبيعات'!$A$4:$N$1000,4,0),"") ->  | G85: =IFERROR(VLOOKUP($C85,'مشتريات ومردودات المبيعات'!$A$4:$N$1000,5,0),"") ->  | H85: =IFERROR(VLOOKUP($C85,'مشتريات ومردودات المبيعات'!$A$4:$N$1000,6,0),"") ->  | I85: =IFERROR(VLOOKUP($C85,'مشتريات ومردودات المبيعات'!$A$4:$N$1000,7,0),"") ->  | J85: =IFERROR(VLOOKUP($C85,'مشتريات ومردودات المبيعات'!$A$4:$N$1000,8,0),"") ->  | K85: =IFERROR(VLOOKUP($C85,'مشتريات ومردودات المبيعات'!$A$4:$N$1000,9,0),"") ->  | L85: =IFERROR(VLOOKUP($C85,'مشتريات ومردودات المبيعات'!$A$4:$N$1000,10,0),"") -> 
B86: =IF($G$1='مشتريات ومردودات المبيعات'!$H$4:$H$1000,'مشتريات ومردودات المبيعات'!$A$4:$A$1000,"") ->  | D86: =IFERROR(VLOOKUP($C86,'مشتريات ومردودات المبيعات'!$A$4:$N$1000,2,0),"") ->  | E86: =IFERROR(VLOOKUP($C86,'مشتريات ومردودات المبيعات'!$A$4:$N$1000,3,0),"") ->  | F86: =IFERROR(VLOOKUP($C86,'مشتريات ومردودات المبيعات'!$A$4:$N$1000,4,0),"") ->  | G86: =IFERROR(VLOOKUP($C86,'مشتريات ومردودات المبيعات'!$A$4:$N$1000,5,0),"") ->  | H86: =IFERROR(VLOOKUP($C86,'مشتريات ومردودات المبيعات'!$A$4:$N$1000,6,0),"") ->  | I86: =IFERROR(VLOOKUP($C86,'مشتريات ومردودات المبيعات'!$A$4:$N$1000,7,0),"") ->  | J86: =IFERROR(VLOOKUP($C86,'مشتريات ومردودات المبيعات'!$A$4:$N$1000,8,0),"") ->  | K86: =IFERROR(VLOOKUP($C86,'مشتريات ومردودات المبيعات'!$A$4:$N$1000,9,0),"") ->  | L86: =IFERROR(VLOOKUP($C86,'مشتريات ومردودات المبيعات'!$A$4:$N$1000,10,0),"") -> 
B87: =IF($G$1='مشتريات ومردودات المبيعات'!$H$4:$H$1000,'مشتريات ومردودات المبيعات'!$A$4:$A$1000,"") ->  | D87: =IFERROR(VLOOKUP($C87,'مشتريات ومردودات المبيعات'!$A$4:$N$1000,2,0),"") ->  | E87: =IFERROR(VLOOKUP($C87,'مشتريات ومردودات المبيعات'!$A$4:$N$1000,3,0),"") ->  | F87: =IFERROR(VLOOKUP($C87,'مشتريات ومردودات المبيعات'!$A$4:$N$1000,4,0),"") ->  | G87: =IFERROR(VLOOKUP($C87,'مشتريات ومردودات المبيعات'!$A$4:$N$1000,5,0),"") ->  | H87: =IFERROR(VLOOKUP($C87,'مشتريات ومردودات المبيعات'!$A$4:$N$1000,6,0),"") ->  | I87: =IFERROR(VLOOKUP($C87,'مشتريات ومردودات المبيعات'!$A$4:$N$1000,7,0),"") ->  | J87: =IFERROR(VLOOKUP($C87,'مشتريات ومردودات المبيعات'!$A$4:$N$1000,8,0),"") ->  | K87: =IFERROR(VLOOKUP($C87,'مشتريات ومردودات المبيعات'!$A$4:$N$1000,9,0),"") ->  | L87: =IFERROR(VLOOKUP($C87,'مشتريات ومردودات المبيعات'!$A$4:$N$1000,10,0),"") -> 
B88: =IF($G$1='مشتريات ومردودات المبيعات'!$H$4:$H$1000,'مشتريات ومردودات المبيعات'!$A$4:$A$1000,"") ->  | D88: =IFERROR(VLOOKUP($C88,'مشتريات ومردودات المبيعات'!$A$4:$N$1000,2,0),"") ->  | E88: =IFERROR(VLOOKUP($C88,'مشتريات ومردودات المبيعات'!$A$4:$N$1000,3,0),"") ->  | F88: =IFERROR(VLOOKUP($C88,'مشتريات ومردودات المبيعات'!$A$4:$N$1000,4,0),"") ->  | G88: =IFERROR(VLOOKUP($C88,'مشتريات ومردودات المبيعات'!$A$4:$N$1000,5,0),"") ->  | H88: =IFERROR(VLOOKUP($C88,'مشتريات ومردودات المبيعات'!$A$4:$N$1000,6,0),"") ->  | I88: =IFERROR(VLOOKUP($C88,'مشتريات ومردودات المبيعات'!$A$4:$N$1000,7,0),"") ->  | J88: =IFERROR(VLOOKUP($C88,'مشتريات ومردودات المبيعات'!$A$4:$N$1000,8,0),"") ->  | K88: =IFERROR(VLOOKUP($C88,'مشتريات ومردودات المبيعات'!$A$4:$N$1000,9,0),"") ->  | L88: =IFERROR(VLOOKUP($C88,'مشتريات ومردودات المبيعات'!$A$4:$N$1000,10,0),"") -> 
B89: =IF($G$1='مشتريات ومردودات المبيعات'!$H$4:$H$1000,'مشتريات ومردودات المبيعات'!$A$4:$A$1000,"") ->  | D89: =IFERROR(VLOOKUP($C89,'مشتريات ومردودات المبيعات'!$A$4:$N$1000,2,0),"") ->  | E89: =IFERROR(VLOOKUP($C89,'مشتريات ومردودات المبيعات'!$A$4:$N$1000,3,0),"") ->  | F89: =IFERROR(VLOOKUP($C89,'مشتريات ومردودات المبيعات'!$A$4:$N$1000,4,0),"") ->  | G89: =IFERROR(VLOOKUP($C89,'مشتريات ومردودات المبيعات'!$A$4:$N$1000,5,0),"") ->  | H89: =IFERROR(VLOOKUP($C89,'مشتريات ومردودات المبيعات'!$A$4:$N$1000,6,0),"") ->  | I89: =IFERROR(VLOOKUP($C89,'مشتريات ومردودات المبيعات'!$A$4:$N$1000,7,0),"") ->  | J89: =IFERROR(VLOOKUP($C89,'مشتريات ومردودات المبيعات'!$A$4:$N$1000,8,0),"") ->  | K89: =IFERROR(VLOOKUP($C89,'مشتريات ومردودات المبيعات'!$A$4:$N$1000,9,0),"") ->  | L89: =IFERROR(VLOOKUP($C89,'مشتريات ومردودات المبيعات'!$A$4:$N$1000,10,0),"") -> 
B90: =IF($G$1='مشتريات ومردودات المبيعات'!$H$4:$H$1000,'مشتريات ومردودات المبيعات'!$A$4:$A$1000,"") ->  | D90: =IFERROR(VLOOKUP($C90,'مشتريات ومردودات المبيعات'!$A$4:$N$1000,2,0),"") ->  | E90: =IFERROR(VLOOKUP($C90,'مشتريات ومردودات المبيعات'!$A$4:$N$1000,3,0),"") ->  | F90: =IFERROR(VLOOKUP($C90,'مشتريات ومردودات المبيعات'!$A$4:$N$1000,4,0),"") ->  | G90: =IFERROR(VLOOKUP($C90,'مشتريات ومردودات المبيعات'!$A$4:$N$1000,5,0),"") ->  | H90: =IFERROR(VLOOKUP($C90,'مشتريات ومردودات المبيعات'!$A$4:$N$1000,6,0),"") ->  | I90: =IFERROR(VLOOKUP($C90,'مشتريات ومردودات المبيعات'!$A$4:$N$1000,7,0),"") ->  | J90: =IFERROR(VLOOKUP($C90,'مشتريات ومردودات المبيعات'!$A$4:$N$1000,8,0),"") ->  | K90: =IFERROR(VLOOKUP($C90,'مشتريات ومردودات المبيعات'!$A$4:$N$1000,9,0),"") ->  | L90: =IFERROR(VLOOKUP($C90,'مشتريات ومردودات المبيعات'!$A$4:$N$1000,10,0),"") -> 
B91: =IF($G$1='مشتريات ومردودات المبيعات'!$H$4:$H$1000,'مشتريات ومردودات المبيعات'!$A$4:$A$1000,"") ->  | D91: =IFERROR(VLOOKUP($C91,'مشتريات ومردودات المبيعات'!$A$4:$N$1000,2,0),"") ->  | E91: =IFERROR(VLOOKUP($C91,'مشتريات ومردودات المبيعات'!$A$4:$N$1000,3,0),"") ->  | F91: =IFERROR(VLOOKUP($C91,'مشتريات ومردودات المبيعات'!$A$4:$N$1000,4,0),"") ->  | G91: =IFERROR(VLOOKUP($C91,'مشتريات ومردودات المبيعات'!$A$4:$N$1000,5,0),"") ->  | H91: =IFERROR(VLOOKUP($C91,'مشتريات ومردودات المبيعات'!$A$4:$N$1000,6,0),"") ->  | I91: =IFERROR(VLOOKUP($C91,'مشتريات ومردودات المبيعات'!$A$4:$N$1000,7,0),"") ->  | J91: =IFERROR(VLOOKUP($C91,'مشتريات ومردودات المبيعات'!$A$4:$N$1000,8,0),"") ->  | K91: =IFERROR(VLOOKUP($C91,'مشتريات ومردودات المبيعات'!$A$4:$N$1000,9,0),"") ->  | L91: =IFERROR(VLOOKUP($C91,'مشتريات ومردودات المبيعات'!$A$4:$N$1000,10,0),"") -> 
B92: =IF($G$1='مشتريات ومردودات المبيعات'!$H$4:$H$1000,'مشتريات ومردودات المبيعات'!$A$4:$A$1000,"") ->  | D92: =IFERROR(VLOOKUP($C92,'مشتريات ومردودات المبيعات'!$A$4:$N$1000,2,0),"") ->  | E92: =IFERROR(VLOOKUP($C92,'مشتريات ومردودات المبيعات'!$A$4:$N$1000,3,0),"") ->  | F92: =IFERROR(VLOOKUP($C92,'مشتريات ومردودات المبيعات'!$A$4:$N$1000,4,0),"") ->  | G92: =IFERROR(VLOOKUP($C92,'مشتريات ومردودات المبيعات'!$A$4:$N$1000,5,0),"") ->  | H92: =IFERROR(VLOOKUP($C92,'مشتريات ومردودات المبيعات'!$A$4:$N$1000,6,0),"") ->  | I92: =IFERROR(VLOOKUP($C92,'مشتريات ومردودات المبيعات'!$A$4:$N$1000,7,0),"") ->  | J92: =IFERROR(VLOOKUP($C92,'مشتريات ومردودات المبيعات'!$A$4:$N$1000,8,0),"") ->  | K92: =IFERROR(VLOOKUP($C92,'مشتريات ومردودات المبيعات'!$A$4:$N$1000,9,0),"") ->  | L92: =IFERROR(VLOOKUP($C92,'مشتريات ومردودات المبيعات'!$A$4:$N$1000,10,0),"") -> 
B93: =IF($G$1='مشتريات ومردودات المبيعات'!$H$4:$H$1000,'مشتريات ومردودات المبيعات'!$A$4:$A$1000,"") ->  | D93: =IFERROR(VLOOKUP($C93,'مشتريات ومردودات المبيعات'!$A$4:$N$1000,2,0),"") ->  | E93: =IFERROR(VLOOKUP($C93,'مشتريات ومردودات المبيعات'!$A$4:$N$1000,3,0),"") ->  | F93: =IFERROR(VLOOKUP($C93,'مشتريات ومردودات المبيعات'!$A$4:$N$1000,4,0),"") ->  | G93: =IFERROR(VLOOKUP($C93,'مشتريات ومردودات المبيعات'!$A$4:$N$1000,5,0),"") ->  | H93: =IFERROR(VLOOKUP($C93,'مشتريات ومردودات المبيعات'!$A$4:$N$1000,6,0),"") ->  | I93: =IFERROR(VLOOKUP($C93,'مشتريات ومردودات المبيعات'!$A$4:$N$1000,7,0),"") ->  | J93: =IFERROR(VLOOKUP($C93,'مشتريات ومردودات المبيعات'!$A$4:$N$1000,8,0),"") ->  | K93: =IFERROR(VLOOKUP($C93,'مشتريات ومردودات المبيعات'!$A$4:$N$1000,9,0),"") ->  | L93: =IFERROR(VLOOKUP($C93,'مشتريات ومردودات المبيعات'!$A$4:$N$1000,10,0),"") -> 
B94: =IF($G$1='مشتريات ومردودات المبيعات'!$H$4:$H$1000,'مشتريات ومردودات المبيعات'!$A$4:$A$1000,"") ->  | D94: =IFERROR(VLOOKUP($C94,'مشتريات ومردودات المبيعات'!$A$4:$N$1000,2,0),"") ->  | E94: =IFERROR(VLOOKUP($C94,'مشتريات ومردودات المبيعات'!$A$4:$N$1000,3,0),"") ->  | F94: =IFERROR(VLOOKUP($C94,'مشتريات ومردودات المبيعات'!$A$4:$N$1000,4,0),"") ->  | G94: =IFERROR(VLOOKUP($C94,'مشتريات ومردودات المبيعات'!$A$4:$N$1000,5,0),"") ->  | H94: =IFERROR(VLOOKUP($C94,'مشتريات ومردودات المبيعات'!$A$4:$N$1000,6,0),"") ->  | I94: =IFERROR(VLOOKUP($C94,'مشتريات ومردودات المبيعات'!$A$4:$N$1000,7,0),"") ->  | J94: =IFERROR(VLOOKUP($C94,'مشتريات ومردودات المبيعات'!$A$4:$N$1000,8,0),"") ->  | K94: =IFERROR(VLOOKUP($C94,'مشتريات ومردودات المبيعات'!$A$4:$N$1000,9,0),"") ->  | L94: =IFERROR(VLOOKUP($C94,'مشتريات ومردودات المبيعات'!$A$4:$N$1000,10,0),"") -> 
B95: =IF($G$1='مشتريات ومردودات المبيعات'!$H$4:$H$1000,'مشتريات ومردودات المبيعات'!$A$4:$A$1000,"") ->  | D95: =IFERROR(VLOOKUP($C95,'مشتريات ومردودات المبيعات'!$A$4:$N$1000,2,0),"") ->  | E95: =IFERROR(VLOOKUP($C95,'مشتريات ومردودات المبيعات'!$A$4:$N$1000,3,0),"") ->  | F95: =IFERROR(VLOOKUP($C95,'مشتريات ومردودات المبيعات'!$A$4:$N$1000,4,0),"") ->  | G95: =IFERROR(VLOOKUP($C95,'مشتريات ومردودات المبيعات'!$A$4:$N$1000,5,0),"") ->  | H95: =IFERROR(VLOOKUP($C95,'مشتريات ومردودات المبيعات'!$A$4:$N$1000,6,0),"") ->  | I95: =IFERROR(VLOOKUP($C95,'مشتريات ومردودات المبيعات'!$A$4:$N$1000,7,0),"") ->  | J95: =IFERROR(VLOOKUP($C95,'مشتريات ومردودات المبيعات'!$A$4:$N$1000,8,0),"") ->  | K95: =IFERROR(VLOOKUP($C95,'مشتريات ومردودات المبيعات'!$A$4:$N$1000,9,0),"") ->  | L95: =IFERROR(VLOOKUP($C95,'مشتريات ومردودات المبيعات'!$A$4:$N$1000,10,0),"") -> 
B96: =IF($G$1='مشتريات ومردودات المبيعات'!$H$4:$H$1000,'مشتريات ومردودات المبيعات'!$A$4:$A$1000,"") ->  | D96: =IFERROR(VLOOKUP($C96,'مشتريات ومردودات المبيعات'!$A$4:$N$1000,2,0),"") ->  | E96: =IFERROR(VLOOKUP($C96,'مشتريات ومردودات المبيعات'!$A$4:$N$1000,3,0),"") ->  | F96: =IFERROR(VLOOKUP($C96,'مشتريات ومردودات المبيعات'!$A$4:$N$1000,4,0),"") ->  | G96: =IFERROR(VLOOKUP($C96,'مشتريات ومردودات المبيعات'!$A$4:$N$1000,5,0),"") ->  | H96: =IFERROR(VLOOKUP($C96,'مشتريات ومردودات المبيعات'!$A$4:$N$1000,6,0),"") ->  | I96: =IFERROR(VLOOKUP($C96,'مشتريات ومردودات المبيعات'!$A$4:$N$1000,7,0),"") ->  | J96: =IFERROR(VLOOKUP($C96,'مشتريات ومردودات المبيعات'!$A$4:$N$1000,8,0),"") ->  | K96: =IFERROR(VLOOKUP($C96,'مشتريات ومردودات المبيعات'!$A$4:$N$1000,9,0),"") ->  | L96: =IFERROR(VLOOKUP($C96,'مشتريات ومردودات المبيعات'!$A$4:$N$1000,10,0),"") -> 
B97: =IF($G$1='مشتريات ومردودات المبيعات'!$H$4:$H$1000,'مشتريات ومردودات المبيعات'!$A$4:$A$1000,"") ->  | D97: =IFERROR(VLOOKUP($C97,'مشتريات ومردودات المبيعات'!$A$4:$N$1000,2,0),"") ->  | E97: =IFERROR(VLOOKUP($C97,'مشتريات ومردودات المبيعات'!$A$4:$N$1000,3,0),"") ->  | F97: =IFERROR(VLOOKUP($C97,'مشتريات ومردودات المبيعات'!$A$4:$N$1000,4,0),"") ->  | G97: =IFERROR(VLOOKUP($C97,'مشتريات ومردودات المبيعات'!$A$4:$N$1000,5,0),"") ->  | H97: =IFERROR(VLOOKUP($C97,'مشتريات ومردودات المبيعات'!$A$4:$N$1000,6,0),"") ->  | I97: =IFERROR(VLOOKUP($C97,'مشتريات ومردودات المبيعات'!$A$4:$N$1000,7,0),"") ->  | J97: =IFERROR(VLOOKUP($C97,'مشتريات ومردودات المبيعات'!$A$4:$N$1000,8,0),"") ->  | K97: =IFERROR(VLOOKUP($C97,'مشتريات ومردودات المبيعات'!$A$4:$N$1000,9,0),"") ->  | L97: =IFERROR(VLOOKUP($C97,'مشتريات ومردودات المبيعات'!$A$4:$N$1000,10,0),"") -> 
B98: =IF($G$1='مشتريات ومردودات المبيعات'!$H$4:$H$1000,'مشتريات ومردودات المبيعات'!$A$4:$A$1000,"") ->  | D98: =IFERROR(VLOOKUP($C98,'مشتريات ومردودات المبيعات'!$A$4:$N$1000,2,0),"") ->  | E98: =IFERROR(VLOOKUP($C98,'مشتريات ومردودات المبيعات'!$A$4:$N$1000,3,0),"") ->  | F98: =IFERROR(VLOOKUP($C98,'مشتريات ومردودات المبيعات'!$A$4:$N$1000,4,0),"") ->  | G98: =IFERROR(VLOOKUP($C98,'مشتريات ومردودات المبيعات'!$A$4:$N$1000,5,0),"") ->  | H98: =IFERROR(VLOOKUP($C98,'مشتريات ومردودات المبيعات'!$A$4:$N$1000,6,0),"") ->  | I98: =IFERROR(VLOOKUP($C98,'مشتريات ومردودات المبيعات'!$A$4:$N$1000,7,0),"") ->  | J98: =IFERROR(VLOOKUP($C98,'مشتريات ومردودات المبيعات'!$A$4:$N$1000,8,0),"") ->  | K98: =IFERROR(VLOOKUP($C98,'مشتريات ومردودات المبيعات'!$A$4:$N$1000,9,0),"") ->  | L98: =IFERROR(VLOOKUP($C98,'مشتريات ومردودات المبيعات'!$A$4:$N$1000,10,0),"") -> 
B99: =IF($G$1='مشتريات ومردودات المبيعات'!$H$4:$H$1000,'مشتريات ومردودات المبيعات'!$A$4:$A$1000,"") ->  | D99: =IFERROR(VLOOKUP($C99,'مشتريات ومردودات المبيعات'!$A$4:$N$1000,2,0),"") ->  | E99: =IFERROR(VLOOKUP($C99,'مشتريات ومردودات المبيعات'!$A$4:$N$1000,3,0),"") ->  | F99: =IFERROR(VLOOKUP($C99,'مشتريات ومردودات المبيعات'!$A$4:$N$1000,4,0),"") ->  | G99: =IFERROR(VLOOKUP($C99,'مشتريات ومردودات المبيعات'!$A$4:$N$1000,5,0),"") ->  | H99: =IFERROR(VLOOKUP($C99,'مشتريات ومردودات المبيعات'!$A$4:$N$1000,6,0),"") ->  | I99: =IFERROR(VLOOKUP($C99,'مشتريات ومردودات المبيعات'!$A$4:$N$1000,7,0),"") ->  | J99: =IFERROR(VLOOKUP($C99,'مشتريات ومردودات المبيعات'!$A$4:$N$1000,8,0),"") ->  | K99: =IFERROR(VLOOKUP($C99,'مشتريات ومردودات المبيعات'!$A$4:$N$1000,9,0),"") ->  | L99: =IFERROR(VLOOKUP($C99,'مشتريات ومردودات المبيعات'!$A$4:$N$1000,10,0),"") -> 
B100: =IF($G$1='مشتريات ومردودات المبيعات'!$H$4:$H$1000,'مشتريات ومردودات المبيعات'!$A$4:$A$1000,"") ->  | K100: =SUM(K4:K99) -> 0 | L100: =SUM(L4:L99) -> 25500

Sheet كشف حساب عميل
D1: كشف حساب العميل | G1: سلوم | J1: صافى معاملات العميل | L1: =L100 -> 1270
D3: رقم الحركة | E3: التاريخ | F3: كود الصنف | G3: اسم الصنف | H3: العدد | I3: السعر | J3: اسم المورد | K3: المبلغ المدفوع | L3: القيمة
A4: =IF(B4="","",ROW()) ->  | B4: =IF($G$1='مبيعات ومردودات المشتريات'!$H$4:$H$1000,'مبيعات ومردودات المشتريات'!$A$4:$A$1000,"") ->  | C4: =IFERROR(VLOOKUP(SMALL($A$4:$A$100,ROW()-3),$A$4:$B$100,2,0),"") -> 1سلوم | D4: =IFERROR(VLOOKUP($C4,'مبيعات ومردودات المشتريات'!$A$4:$N$1000,COLUMN()-2,0),"") -> 22 | E4: =IFERROR(VLOOKUP($C4,'مبيعات ومردودات المشتريات'!$A$4:$N$1000,COLUMN()-2,0),"") -> 2018-01-01 | F4: =IFERROR(VLOOKUP($C4,'مبيعات ومردودات المشتريات'!$A$4:$N$1000,COLUMN()-2,0),"") -> 1 | G4: =IFERROR(VLOOKUP($C4,'مبيعات ومردودات المشتريات'!$A$4:$N$1000,COLUMN()-2,0),"") -> ايفون 6 | H4: =IFERROR(VLOOKUP($C4,'مبيعات ومردودات المشتريات'!$A$4:$N$1000,COLUMN()-2,0),"") -> 3 | I4: =IFERROR(VLOOKUP($C4,'مبيعات ومردودات المشتريات'!$A$4:$N$1000,COLUMN()-2,0),"") -> 364 | J4: =IFERROR(VLOOKUP($C4,'مبيعات ومردودات المشتريات'!$A$4:$N$1000,COLUMN()-2,0),"") -> سلوم | K4: 0 | L4: =IFERROR(VLOOKUP($C4,'مبيعات ومردودات المشتريات'!$A$4:$N$1000,COLUMN()-2,0),"") -> 892
A5: =IF(B5="","",ROW()) ->  | B5: =IF($G$1='مبيعات ومردودات المشتريات'!$H$4:$H$1000,'مبيعات ومردودات المشتريات'!$A$4:$A$1000,"") ->  | C5: =IFERROR(VLOOKUP(SMALL($A$4:$A$100,ROW()-3),$A$4:$B$100,2,0),"") -> 2سلوم | D5: =IFERROR(VLOOKUP($C5,'مبيعات ومردودات المشتريات'!$A$4:$N$1000,COLUMN()-2,0),"") -> 23 | E5: =IFERROR(VLOOKUP($C5,'مبيعات ومردودات المشتريات'!$A$4:$N$1000,COLUMN()-2,0),"") -> 2018-01-01 | F5: =IFERROR(VLOOKUP($C5,'مبيعات ومردودات المشتريات'!$A$4:$N$1000,COLUMN()-2,0),"") -> 1 | G5: =IFERROR(VLOOKUP($C5,'مبيعات ومردودات المشتريات'!$A$4:$N$1000,COLUMN()-2,0),"") -> ايفون 6 | H5: =IFERROR(VLOOKUP($C5,'مبيعات ومردودات المشتريات'!$A$4:$N$1000,COLUMN()-2,0),"") -> 2 | I5: =IFERROR(VLOOKUP($C5,'مبيعات ومردودات المشتريات'!$A$4:$N$1000,COLUMN()-2,0),"") -> 364 | J5: =IFERROR(VLOOKUP($C5,'مبيعات ومردودات المشتريات'!$A$4:$N$1000,COLUMN()-2,0),"") -> سلوم | K5: 0 | L5: =IFERROR(VLOOKUP($C5,'مبيعات ومردودات المشتريات'!$A$4:$N$1000,COLUMN()-2,0),"") -> 728
B6: =IF($G$1='مبيعات ومردودات المشتريات'!$H$4:$H$1000,'مبيعات ومردودات المشتريات'!$A$4:$A$1000,"") ->  | C6: 3سلوم | D6: =IFERROR(VLOOKUP($C6,'مبيعات ومردودات المشتريات'!$A$4:$N$1000,COLUMN()-2,0),"") -> 1 | E6: =IFERROR(VLOOKUP($C6,'مبيعات ومردودات المشتريات'!$A$4:$N$1000,COLUMN()-2,0),"") -> 2018-01-01 | F6: =IFERROR(VLOOKUP($C6,'مبيعات ومردودات المشتريات'!$A$4:$N$1000,COLUMN()-2,0),"") -> 1 | G6: =IFERROR(VLOOKUP($C6,'مبيعات ومردودات المشتريات'!$A$4:$N$1000,COLUMN()-2,0),"") -> 0 | H6: =IFERROR(VLOOKUP($C6,'مبيعات ومردودات المشتريات'!$A$4:$N$1000,COLUMN()-2,0),"") -> 0 | I6: =IFERROR(VLOOKUP($C6,'مبيعات ومردودات المشتريات'!$A$4:$N$1000,COLUMN()-2,0),"") -> 0 | J6: =IFERROR(VLOOKUP($C6,'مبيعات ومردودات المشتريات'!$A$4:$N$1000,COLUMN()-2,0),"") -> سلوم | K6: =IFERROR(VLOOKUP($C6,'مبيعات ومردودات المشتريات'!$A$4:$N$1000,COLUMN()-2,0),"") -> 100 | L6: =IFERROR(VLOOKUP($C6,'مبيعات ومردودات المشتريات'!$A$4:$N$1000,COLUMN()-2,0),"") -> -100
B7: =IF($G$1='مبيعات ومردودات المشتريات'!$H$4:$H$1000,'مبيعات ومردودات المشتريات'!$A$4:$A$1000,"") ->  | C7: 4سلوم | D7: =IFERROR(VLOOKUP($C7,'مبيعات ومردودات المشتريات'!$A$4:$N$1000,COLUMN()-2,0),"") -> 2 | E7: =IFERROR(VLOOKUP($C7,'مبيعات ومردودات المشتريات'!$A$4:$N$1000,COLUMN()-2,0),"") -> 2017-12-13 | F7: =IFERROR(VLOOKUP($C7,'مبيعات ومردودات المشتريات'!$A$4:$N$1000,COLUMN()-2,0),"") -> 1 | G7: =IFERROR(VLOOKUP($C7,'مبيعات ومردودات المشتريات'!$A$4:$N$1000,COLUMN()-2,0),"") -> 0 | H7: =IFERROR(VLOOKUP($C7,'مبيعات ومردودات المشتريات'!$A$4:$N$1000,COLUMN()-2,0),"") -> 0 | I7: =IFERROR(VLOOKUP($C7,'مبيعات ومردودات المشتريات'!$A$4:$N$1000,COLUMN()-2,0),"") -> 0 | J7: =IFERROR(VLOOKUP($C7,'مبيعات ومردودات المشتريات'!$A$4:$N$1000,COLUMN()-2,0),"") -> سلوم | K7: =IFERROR(VLOOKUP($C7,'مبيعات ومردودات المشتريات'!$A$4:$N$1000,COLUMN()-2,0),"") -> 250 | L7: =IFERROR(VLOOKUP($C7,'مبيعات ومردودات المشتريات'!$A$4:$N$1000,COLUMN()-2,0),"") -> -250
B8: =IF($G$1='مبيعات ومردودات المشتريات'!$H$4:$H$1000,'مبيعات ومردودات المشتريات'!$A$4:$A$1000,"") ->  | D8: =IFERROR(VLOOKUP($C8,'مبيعات ومردودات المشتريات'!$A$4:$N$1000,COLUMN()-2,0),"") ->  | E8: =IFERROR(VLOOKUP($C8,'مبيعات ومردودات المشتريات'!$A$4:$N$1000,COLUMN()-2,0),"") ->  | F8: =IFERROR(VLOOKUP($C8,'مبيعات ومردودات المشتريات'!$A$4:$N$1000,COLUMN()-2,0),"") ->  | G8: =IFERROR(VLOOKUP($C8,'مبيعات ومردودات المشتريات'!$A$4:$N$1000,COLUMN()-2,0),"") ->  | H8: =IFERROR(VLOOKUP($C8,'مبيعات ومردودات المشتريات'!$A$4:$N$1000,COLUMN()-2,0),"") ->  | I8: =IFERROR(VLOOKUP($C8,'مبيعات ومردودات المشتريات'!$A$4:$N$1000,COLUMN()-2,0),"") ->  | J8: =IFERROR(VLOOKUP($C8,'مبيعات ومردودات المشتريات'!$A$4:$N$1000,COLUMN()-2,0),"") ->  | K8: =IFERROR(VLOOKUP($C8,'مبيعات ومردودات المشتريات'!$A$4:$N$1000,COLUMN()-2,0),"") ->  | L8: =IFERROR(VLOOKUP($C8,'مبيعات ومردودات المشتريات'!$A$4:$N$1000,COLUMN()-2,0),"") -> 
B9: =IF($G$1='مبيعات ومردودات المشتريات'!$H$4:$H$1000,'مبيعات ومردودات المشتريات'!$A$4:$A$1000,"") ->  | D9: =IFERROR(VLOOKUP($C9,'مبيعات ومردودات المشتريات'!$A$4:$N$1000,COLUMN()-2,0),"") ->  | E9: =IFERROR(VLOOKUP($C9,'مبيعات ومردودات المشتريات'!$A$4:$N$1000,COLUMN()-2,0),"") ->  | F9: =IFERROR(VLOOKUP($C9,'مبيعات ومردودات المشتريات'!$A$4:$N$1000,COLUMN()-2,0),"") ->  | G9: =IFERROR(VLOOKUP($C9,'مبيعات ومردودات المشتريات'!$A$4:$N$1000,COLUMN()-2,0),"") ->  | H9: =IFERROR(VLOOKUP($C9,'مبيعات ومردودات المشتريات'!$A$4:$N$1000,COLUMN()-2,0),"") ->  | I9: =IFERROR(VLOOKUP($C9,'مبيعات ومردودات المشتريات'!$A$4:$N$1000,COLUMN()-2,0),"") ->  | J9: =IFERROR(VLOOKUP($C9,'مبيعات ومردودات المشتريات'!$A$4:$N$1000,COLUMN()-2,0),"") ->  | K9: =IFERROR(VLOOKUP($C9,'مبيعات ومردودات المشتريات'!$A$4:$N$1000,COLUMN()-2,0),"") ->  | L9: =IFERROR(VLOOKUP($C9,'مبيعات ومردودات المشتريات'!$A$4:$N$1000,COLUMN()-2,0),"") -> 
B10: =IF($G$1='مبيعات ومردودات المشتريات'!$H$4:$H$1000,'مبيعات ومردودات المشتريات'!$A$4:$A$1000,"") ->  | D10: =IFERROR(VLOOKUP($C10,'مبيعات ومردودات المشتريات'!$A$4:$N$1000,COLUMN()-2,0),"") ->  | E10: =IFERROR(VLOOKUP($C10,'مبيعات ومردودات المشتريات'!$A$4:$N$1000,COLUMN()-2,0),"") ->  | F10: =IFERROR(VLOOKUP($C10,'مبيعات ومردودات المشتريات'!$A$4:$N$1000,COLUMN()-2,0),"") ->  | G10: =IFERROR(VLOOKUP($C10,'مبيعات ومردودات المشتريات'!$A$4:$N$1000,COLUMN()-2,0),"") ->  | H10: =IFERROR(VLOOKUP($C10,'مبيعات ومردودات المشتريات'!$A$4:$N$1000,COLUMN()-2,0),"") ->  | I10: =IFERROR(VLOOKUP($C10,'مبيعات ومردودات المشتريات'!$A$4:$N$1000,COLUMN()-2,0),"") ->  | J10: =IFERROR(VLOOKUP($C10,'مبيعات ومردودات المشتريات'!$A$4:$N$1000,COLUMN()-2,0),"") ->  | K10: =IFERROR(VLOOKUP($C10,'مبيعات ومردودات المشتريات'!$A$4:$N$1000,COLUMN()-2,0),"") ->  | L10: =IFERROR(VLOOKUP($C10,'مبيعات ومردودات المشتريات'!$A$4:$N$1000,COLUMN()-2,0),"") -> 
B11: =IF($G$1='مبيعات ومردودات المشتريات'!$H$4:$H$1000,'مبيعات ومردودات المشتريات'!$A$4:$A$1000,"") ->  | D11: =IFERROR(VLOOKUP($C11,'مبيعات ومردودات المشتريات'!$A$4:$N$1000,COLUMN()-2,0),"") ->  | E11: =IFERROR(VLOOKUP($C11,'مبيعات ومردودات المشتريات'!$A$4:$N$1000,COLUMN()-2,0),"") ->  | F11: =IFERROR(VLOOKUP($C11,'مبيعات ومردودات المشتريات'!$A$4:$N$1000,COLUMN()-2,0),"") ->  | G11: =IFERROR(VLOOKUP($C11,'مبيعات ومردودات المشتريات'!$A$4:$N$1000,COLUMN()-2,0),"") ->  | H11: =IFERROR(VLOOKUP($C11,'مبيعات ومردودات المشتريات'!$A$4:$N$1000,COLUMN()-2,0),"") ->  | I11: =IFERROR(VLOOKUP($C11,'مبيعات ومردودات المشتريات'!$A$4:$N$1000,COLUMN()-2,0),"") ->  | J11: =IFERROR(VLOOKUP($C11,'مبيعات ومردودات المشتريات'!$A$4:$N$1000,COLUMN()-2,0),"") ->  | K11: =IFERROR(VLOOKUP($C11,'مبيعات ومردودات المشتريات'!$A$4:$N$1000,COLUMN()-2,0),"") ->  | L11: =IFERROR(VLOOKUP($C11,'مبيعات ومردودات المشتريات'!$A$4:$N$1000,COLUMN()-2,0),"") -> 
B12: =IF($G$1='مبيعات ومردودات المشتريات'!$H$4:$H$1000,'مبيعات ومردودات المشتريات'!$A$4:$A$1000,"") ->  | D12: =IFERROR(VLOOKUP($C12,'مبيعات ومردودات المشتريات'!$A$4:$N$1000,COLUMN()-2,0),"") ->  | E12: =IFERROR(VLOOKUP($C12,'مبيعات ومردودات المشتريات'!$A$4:$N$1000,COLUMN()-2,0),"") ->  | F12: =IFERROR(VLOOKUP($C12,'مبيعات ومردودات المشتريات'!$A$4:$N$1000,COLUMN()-2,0),"") ->  | G12: =IFERROR(VLOOKUP($C12,'مبيعات ومردودات المشتريات'!$A$4:$N$1000,COLUMN()-2,0),"") ->  | H12: =IFERROR(VLOOKUP($C12,'مبيعات ومردودات المشتريات'!$A$4:$N$1000,COLUMN()-2,0),"") ->  | I12: =IFERROR(VLOOKUP($C12,'مبيعات ومردودات المشتريات'!$A$4:$N$1000,COLUMN()-2,0),"") ->  | J12: =IFERROR(VLOOKUP($C12,'مبيعات ومردودات المشتريات'!$A$4:$N$1000,COLUMN()-2,0),"") ->  | K12: =IFERROR(VLOOKUP($C12,'مبيعات ومردودات المشتريات'!$A$4:$N$1000,COLUMN()-2,0),"") ->  | L12: =IFERROR(VLOOKUP($C12,'مبيعات ومردودات المشتريات'!$A$4:$N$1000,COLUMN()-2,0),"") -> 
B13: =IF($G$1='مبيعات ومردودات المشتريات'!$H$4:$H$1000,'مبيعات ومردودات المشتريات'!$A$4:$A$1000,"") ->  | D13: =IFERROR(VLOOKUP($C13,'مبيعات ومردودات المشتريات'!$A$4:$N$1000,COLUMN()-2,0),"") ->  | E13: =IFERROR(VLOOKUP($C13,'مبيعات ومردودات المشتريات'!$A$4:$N$1000,COLUMN()-2,0),"") ->  | F13: =IFERROR(VLOOKUP($C13,'مبيعات ومردودات المشتريات'!$A$4:$N$1000,COLUMN()-2,0),"") ->  | G13: =IFERROR(VLOOKUP($C13,'مبيعات ومردودات المشتريات'!$A$4:$N$1000,COLUMN()-2,0),"") ->  | H13: =IFERROR(VLOOKUP($C13,'مبيعات ومردودات المشتريات'!$A$4:$N$1000,COLUMN()-2,0),"") ->  | I13: =IFERROR(VLOOKUP($C13,'مبيعات ومردودات المشتريات'!$A$4:$N$1000,COLUMN()-2,0),"") ->  | J13: =IFERROR(VLOOKUP($C13,'مبيعات ومردودات المشتريات'!$A$4:$N$1000,COLUMN()-2,0),"") ->  | K13: =IFERROR(VLOOKUP($C13,'مبيعات ومردودات المشتريات'!$A$4:$N$1000,COLUMN()-2,0),"") ->  | L13: =IFERROR(VLOOKUP($C13,'مبيعات ومردودات المشتريات'!$A$4:$N$1000,COLUMN()-2,0),"") -> 
B14: =IF($G$1='مبيعات ومردودات المشتريات'!$H$4:$H$1000,'مبيعات ومردودات المشتريات'!$A$4:$A$1000,"") ->  | D14: =IFERROR(VLOOKUP($C14,'مبيعات ومردودات المشتريات'!$A$4:$N$1000,COLUMN()-2,0),"") ->  | E14: =IFERROR(VLOOKUP($C14,'مبيعات ومردودات المشتريات'!$A$4:$N$1000,COLUMN()-2,0),"") ->  | F14: =IFERROR(VLOOKUP($C14,'مبيعات ومردودات المشتريات'!$A$4:$N$1000,COLUMN()-2,0),"") ->  | G14: =IFERROR(VLOOKUP($C14,'مبيعات ومردودات المشتريات'!$A$4:$N$1000,COLUMN()-2,0),"") ->  | H14: =IFERROR(VLOOKUP($C14,'مبيعات ومردودات المشتريات'!$A$4:$N$1000,COLUMN()-2,0),"") ->  | I14: =IFERROR(VLOOKUP($C14,'مبيعات ومردودات المشتريات'!$A$4:$N$1000,COLUMN()-2,0),"") ->  | J14: =IFERROR(VLOOKUP($C14,'مبيعات ومردودات المشتريات'!$A$4:$N$1000,COLUMN()-2,0),"") ->  | K14: =IFERROR(VLOOKUP($C14,'مبيعات ومردودات المشتريات'!$A$4:$N$1000,COLUMN()-2,0),"") ->  | L14: =IFERROR(VLOOKUP($C14,'مبيعات ومردودات المشتريات'!$A$4:$N$1000,COLUMN()-2,0),"") -> 
B15: =IF($G$1='مبيعات ومردودات المشتريات'!$H$4:$H$1000,'مبيعات ومردودات المشتريات'!$A$4:$A$1000,"") ->  | D15: =IFERROR(VLOOKUP($C15,'مبيعات ومردودات المشتريات'!$A$4:$N$1000,COLUMN()-2,0),"") ->  | E15: =IFERROR(VLOOKUP($C15,'مبيعات ومردودات المشتريات'!$A$4:$N$1000,COLUMN()-2,0),"") ->  | F15: =IFERROR(VLOOKUP($C15,'مبيعات ومردودات المشتريات'!$A$4:$N$1000,COLUMN()-2,0),"") ->  | G15: =IFERROR(VLOOKUP($C15,'مبيعات ومردودات المشتريات'!$A$4:$N$1000,COLUMN()-2,0),"") ->  | H15: =IFERROR(VLOOKUP($C15,'مبيعات ومردودات المشتريات'!$A$4:$N$1000,COLUMN()-2,0),"") ->  | I15: =IFERROR(VLOOKUP($C15,'مبيعات ومردودات المشتريات'!$A$4:$N$1000,COLUMN()-2,0),"") ->  | J15: =IFERROR(VLOOKUP($C15,'مبيعات ومردودات المشتريات'!$A$4:$N$1000,COLUMN()-2,0),"") ->  | K15: =IFERROR(VLOOKUP($C15,'مبيعات ومردودات المشتريات'!$A$4:$N$1000,COLUMN()-2,0),"") ->  | L15: =IFERROR(VLOOKUP($C15,'مبيعات ومردودات المشتريات'!$A$4:$N$1000,COLUMN()-2,0),"") -> 
B16: =IF($G$1='مبيعات ومردودات المشتريات'!$H$4:$H$1000,'مبيعات ومردودات المشتريات'!$A$4:$A$1000,"") ->  | D16: =IFERROR(VLOOKUP($C16,'مبيعات ومردودات المشتريات'!$A$4:$N$1000,COLUMN()-2,0),"") ->  | E16: =IFERROR(VLOOKUP($C16,'مبيعات ومردودات المشتريات'!$A$4:$N$1000,COLUMN()-2,0),"") ->  | F16: =IFERROR(VLOOKUP($C16,'مبيعات ومردودات المشتريات'!$A$4:$N$1000,COLUMN()-2,0),"") ->  | G16: =IFERROR(VLOOKUP($C16,'مبيعات ومردودات المشتريات'!$A$4:$N$1000,COLUMN()-2,0),"") ->  | H16: =IFERROR(VLOOKUP($C16,'مبيعات ومردودات المشتريات'!$A$4:$N$1000,COLUMN()-2,0),"") ->  | I16: =IFERROR(VLOOKUP($C16,'مبيعات ومردودات المشتريات'!$A$4:$N$1000,COLUMN()-2,0),"") ->  | J16: =IFERROR(VLOOKUP($C16,'مبيعات ومردودات المشتريات'!$A$4:$N$1000,COLUMN()-2,0),"") ->  | K16: =IFERROR(VLOOKUP($C16,'مبيعات ومردودات المشتريات'!$A$4:$N$1000,COLUMN()-2,0),"") ->  | L16: =IFERROR(VLOOKUP($C16,'مبيعات ومردودات المشتريات'!$A$4:$N$1000,COLUMN()-2,0),"") -> 
B17: =IF($G$1='مبيعات ومردودات المشتريات'!$H$4:$H$1000,'مبيعات ومردودات المشتريات'!$A$4:$A$1000,"") ->  | D17: =IFERROR(VLOOKUP($C17,'مبيعات ومردودات المشتريات'!$A$4:$N$1000,COLUMN()-2,0),"") ->  | E17: =IFERROR(VLOOKUP($C17,'مبيعات ومردودات المشتريات'!$A$4:$N$1000,COLUMN()-2,0),"") ->  | F17: =IFERROR(VLOOKUP($C17,'مبيعات ومردودات المشتريات'!$A$4:$N$1000,COLUMN()-2,0),"") ->  | G17: =IFERROR(VLOOKUP($C17,'مبيعات ومردودات المشتريات'!$A$4:$N$1000,COLUMN()-2,0),"") ->  | H17: =IFERROR(VLOOKUP($C17,'مبيعات ومردودات المشتريات'!$A$4:$N$1000,COLUMN()-2,0),"") ->  | I17: =IFERROR(VLOOKUP($C17,'مبيعات ومردودات المشتريات'!$A$4:$N$1000,COLUMN()-2,0),"") ->  | J17: =IFERROR(VLOOKUP($C17,'مبيعات ومردودات المشتريات'!$A$4:$N$1000,COLUMN()-2,0),"") ->  | K17: =IFERROR(VLOOKUP($C17,'مبيعات ومردودات المشتريات'!$A$4:$N$1000,COLUMN()-2,0),"") ->  | L17: =IFERROR(VLOOKUP($C17,'مبيعات ومردودات المشتريات'!$A$4:$N$1000,COLUMN()-2,0),"") -> 
B18: =IF($G$1='مبيعات ومردودات المشتريات'!$H$4:$H$1000,'مبيعات ومردودات المشتريات'!$A$4:$A$1000,"") ->  | D18: =IFERROR(VLOOKUP($C18,'مبيعات ومردودات المشتريات'!$A$4:$N$1000,COLUMN()-2,0),"") ->  | E18: =IFERROR(VLOOKUP($C18,'مبيعات ومردودات المشتريات'!$A$4:$N$1000,COLUMN()-2,0),"") ->  | F18: =IFERROR(VLOOKUP($C18,'مبيعات ومردودات المشتريات'!$A$4:$N$1000,COLUMN()-2,0),"") ->  | G18: =IFERROR(VLOOKUP($C18,'مبيعات ومردودات المشتريات'!$A$4:$N$1000,COLUMN()-2,0),"") ->  | H18: =IFERROR(VLOOKUP($C18,'مبيعات ومردودات المشتريات'!$A$4:$N$1000,COLUMN()-2,0),"") ->  | I18: =IFERROR(VLOOKUP($C18,'مبيعات ومردودات المشتريات'!$A$4:$N$1000,COLUMN()-2,0),"") ->  | J18: =IFERROR(VLOOKUP($C18,'مبيعات ومردودات المشتريات'!$A$4:$N$1000,COLUMN()-2,0),"") ->  | K18: =IFERROR(VLOOKUP($C18,'مبيعات ومردودات المشتريات'!$A$4:$N$1000,COLUMN()-2,0),"") ->  | L18: =IFERROR(VLOOKUP($C18,'مبيعات ومردودات المشتريات'!$A$4:$N$1000,COLUMN()-2,0),"") -> 
B19: =IF($G$1='مبيعات ومردودات المشتريات'!$H$4:$H$1000,'مبيعات ومردودات المشتريات'!$A$4:$A$1000,"") ->  | D19: =IFERROR(VLOOKUP($C19,'مبيعات ومردودات المشتريات'!$A$4:$N$1000,COLUMN()-2,0),"") ->  | E19: =IFERROR(VLOOKUP($C19,'مبيعات ومردودات المشتريات'!$A$4:$N$1000,COLUMN()-2,0),"") ->  | F19: =IFERROR(VLOOKUP($C19,'مبيعات ومردودات المشتريات'!$A$4:$N$1000,COLUMN()-2,0),"") ->  | G19: =IFERROR(VLOOKUP($C19,'مبيعات ومردودات المشتريات'!$A$4:$N$1000,COLUMN()-2,0),"") ->  | H19: =IFERROR(VLOOKUP($C19,'مبيعات ومردودات المشتريات'!$A$4:$N$1000,COLUMN()-2,0),"") ->  | I19: =IFERROR(VLOOKUP($C19,'مبيعات ومردودات المشتريات'!$A$4:$N$1000,COLUMN()-2,0),"") ->  | J19: =IFERROR(VLOOKUP($C19,'مبيعات ومردودات المشتريات'!$A$4:$N$1000,COLUMN()-2,0),"") ->  | K19: =IFERROR(VLOOKUP($C19,'مبيعات ومردودات المشتريات'!$A$4:$N$1000,COLUMN()-2,0),"") ->  | L19: =IFERROR(VLOOKUP($C19,'مبيعات ومردودات المشتريات'!$A$4:$N$1000,COLUMN()-2,0),"") -> 
B20: =IF($G$1='مبيعات ومردودات المشتريات'!$H$4:$H$1000,'مبيعات ومردودات المشتريات'!$A$4:$A$1000,"") ->  | D20: =IFERROR(VLOOKUP($C20,'مبيعات ومردودات المشتريات'!$A$4:$N$1000,COLUMN()-2,0),"") ->  | E20: =IFERROR(VLOOKUP($C20,'مبيعات ومردودات المشتريات'!$A$4:$N$1000,COLUMN()-2,0),"") ->  | F20: =IFERROR(VLOOKUP($C20,'مبيعات ومردودات المشتريات'!$A$4:$N$1000,COLUMN()-2,0),"") ->  | G20: =IFERROR(VLOOKUP($C20,'مبيعات ومردودات المشتريات'!$A$4:$N$1000,COLUMN()-2,0),"") ->  | H20: =IFERROR(VLOOKUP($C20,'مبيعات ومردودات المشتريات'!$A$4:$N$1000,COLUMN()-2,0),"") ->  | I20: =IFERROR(VLOOKUP($C20,'مبيعات ومردودات المشتريات'!$A$4:$N$1000,COLUMN()-2,0),"") ->  | J20: =IFERROR(VLOOKUP($C20,'مبيعات ومردودات المشتريات'!$A$4:$N$1000,COLUMN()-2,0),"") ->  | K20: =IFERROR(VLOOKUP($C20,'مبيعات ومردودات المشتريات'!$A$4:$N$1000,COLUMN()-2,0),"") ->  | L20: =IFERROR(VLOOKUP($C20,'مبيعات ومردودات المشتريات'!$A$4:$N$1000,COLUMN()-2,0),"") -> 
B21: =IF($G$1='مبيعات ومردودات المشتريات'!$H$4:$H$1000,'مبيعات ومردودات المشتريات'!$A$4:$A$1000,"") ->  | D21: =IFERROR(VLOOKUP($C21,'مبيعات ومردودات المشتريات'!$A$4:$N$1000,COLUMN()-2,0),"") ->  | E21: =IFERROR(VLOOKUP($C21,'مبيعات ومردودات المشتريات'!$A$4:$N$1000,COLUMN()-2,0),"") ->  | F21: =IFERROR(VLOOKUP($C21,'مبيعات ومردودات المشتريات'!$A$4:$N$1000,COLUMN()-2,0),"") ->  | G21: =IFERROR(VLOOKUP($C21,'مبيعات ومردودات المشتريات'!$A$4:$N$1000,COLUMN()-2,0),"") ->  | H21: =IFERROR(VLOOKUP($C21,'مبيعات ومردودات المشتريات'!$A$4:$N$1000,COLUMN()-2,0),"") ->  | I21: =IFERROR(VLOOKUP($C21,'مبيعات ومردودات المشتريات'!$A$4:$N$1000,COLUMN()-2,0),"") ->  | J21: =IFERROR(VLOOKUP($C21,'مبيعات ومردودات المشتريات'!$A$4:$N$1000,COLUMN()-2,0),"") ->  | K21: =IFERROR(VLOOKUP($C21,'مبيعات ومردودات المشتريات'!$A$4:$N$1000,COLUMN()-2,0),"") ->  | L21: =IFERROR(VLOOKUP($C21,'مبيعات ومردودات المشتريات'!$A$4:$N$1000,COLUMN()-2,0),"") -> 
B22: =IF($G$1='مبيعات ومردودات المشتريات'!$H$4:$H$1000,'مبيعات ومردودات المشتريات'!$A$4:$A$1000,"") ->  | D22: =IFERROR(VLOOKUP($C22,'مبيعات ومردودات المشتريات'!$A$4:$N$1000,COLUMN()-2,0),"") ->  | E22: =IFERROR(VLOOKUP($C22,'مبيعات ومردودات المشتريات'!$A$4:$N$1000,COLUMN()-2,0),"") ->  | F22: =IFERROR(VLOOKUP($C22,'مبيعات ومردودات المشتريات'!$A$4:$N$1000,COLUMN()-2,0),"") ->  | G22: =IFERROR(VLOOKUP($C22,'مبيعات ومردودات المشتريات'!$A$4:$N$1000,COLUMN()-2,0),"") ->  | H22: =IFERROR(VLOOKUP($C22,'مبيعات ومردودات المشتريات'!$A$4:$N$1000,COLUMN()-2,0),"") ->  | I22: =IFERROR(VLOOKUP($C22,'مبيعات ومردودات المشتريات'!$A$4:$N$1000,COLUMN()-2,0),"") ->  | J22: =IFERROR(VLOOKUP($C22,'مبيعات ومردودات المشتريات'!$A$4:$N$1000,COLUMN()-2,0),"") ->  | K22: =IFERROR(VLOOKUP($C22,'مبيعات ومردودات المشتريات'!$A$4:$N$1000,COLUMN()-2,0),"") ->  | L22: =IFERROR(VLOOKUP($C22,'مبيعات ومردودات المشتريات'!$A$4:$N$1000,COLUMN()-2,0),"") -> 
B23: =IF($G$1='مبيعات ومردودات المشتريات'!$H$4:$H$1000,'مبيعات ومردودات المشتريات'!$A$4:$A$1000,"") ->  | D23: =IFERROR(VLOOKUP($C23,'مبيعات ومردودات المشتريات'!$A$4:$N$1000,COLUMN()-2,0),"") ->  | E23: =IFERROR(VLOOKUP($C23,'مبيعات ومردودات المشتريات'!$A$4:$N$1000,COLUMN()-2,0),"") ->  | F23: =IFERROR(VLOOKUP($C23,'مبيعات ومردودات المشتريات'!$A$4:$N$1000,COLUMN()-2,0),"") ->  | G23: =IFERROR(VLOOKUP($C23,'مبيعات ومردودات المشتريات'!$A$4:$N$1000,COLUMN()-2,0),"") ->  | H23: =IFERROR(VLOOKUP($C23,'مبيعات ومردودات المشتريات'!$A$4:$N$1000,COLUMN()-2,0),"") ->  | I23: =IFERROR(VLOOKUP($C23,'مبيعات ومردودات المشتريات'!$A$4:$N$1000,COLUMN()-2,0),"") ->  | J23: =IFERROR(VLOOKUP($C23,'مبيعات ومردودات المشتريات'!$A$4:$N$1000,COLUMN()-2,0),"") ->  | K23: =IFERROR(VLOOKUP($C23,'مبيعات ومردودات المشتريات'!$A$4:$N$1000,COLUMN()-2,0),"") ->  | L23: =IFERROR(VLOOKUP($C23,'مبيعات ومردودات المشتريات'!$A$4:$N$1000,COLUMN()-2,0),"") -> 
B24: =IF($G$1='مبيعات ومردودات المشتريات'!$H$4:$H$1000,'مبيعات ومردودات المشتريات'!$A$4:$A$1000,"") ->  | D24: =IFERROR(VLOOKUP($C24,'مبيعات ومردودات المشتريات'!$A$4:$N$1000,COLUMN()-2,0),"") ->  | E24: =IFERROR(VLOOKUP($C24,'مبيعات ومردودات المشتريات'!$A$4:$N$1000,COLUMN()-2,0),"") ->  | F24: =IFERROR(VLOOKUP($C24,'مبيعات ومردودات المشتريات'!$A$4:$N$1000,COLUMN()-2,0),"") ->  | G24: =IFERROR(VLOOKUP($C24,'مبيعات ومردودات المشتريات'!$A$4:$N$1000,COLUMN()-2,0),"") ->  | H24: =IFERROR(VLOOKUP($C24,'مبيعات ومردودات المشتريات'!$A$4:$N$1000,COLUMN()-2,0),"") ->  | I24: =IFERROR(VLOOKUP($C24,'مبيعات ومردودات المشتريات'!$A$4:$N$1000,COLUMN()-2,0),"") ->  | J24: =IFERROR(VLOOKUP($C24,'مبيعات ومردودات المشتريات'!$A$4:$N$1000,COLUMN()-2,0),"") ->  | K24: =IFERROR(VLOOKUP($C24,'مبيعات ومردودات المشتريات'!$A$4:$N$1000,COLUMN()-2,0),"") ->  | L24: =IFERROR(VLOOKUP($C24,'مبيعات ومردودات المشتريات'!$A$4:$N$1000,COLUMN()-2,0),"") -> 
A25: 25 | B25: =IF($G$1='مبيعات ومردودات المشتريات'!$H$4:$H$1000,'مبيعات ومردودات المشتريات'!$A$4:$A$1000,"") -> 1سلوم | D25: =IFERROR(VLOOKUP($C25,'مبيعات ومردودات المشتريات'!$A$4:$N$1000,COLUMN()-2,0),"") ->  | E25: =IFERROR(VLOOKUP($C25,'مبيعات ومردودات المشتريات'!$A$4:$N$1000,COLUMN()-2,0),"") ->  | F25: =IFERROR(VLOOKUP($C25,'مبيعات ومردودات المشتريات'!$A$4:$N$1000,COLUMN()-2,0),"") ->  | G25: =IFERROR(VLOOKUP($C25,'مبيعات ومردودات المشتريات'!$A$4:$N$1000,COLUMN()-2,0),"") ->  | H25: =IFERROR(VLOOKUP($C25,'مبيعات ومردودات المشتريات'!$A$4:$N$1000,COLUMN()-2,0),"") ->  | I25: =IFERROR(VLOOKUP($C25,'مبيعات ومردودات المشتريات'!$A$4:$N$1000,COLUMN()-2,0),"") ->  | J25: =IFERROR(VLOOKUP($C25,'مبيعات ومردودات المشتريات'!$A$4:$N$1000,COLUMN()-2,0),"") ->  | K25: =IFERROR(VLOOKUP($C25,'مبيعات ومردودات المشتريات'!$A$4:$N$1000,COLUMN()-2,0),"") ->  | L25: =IFERROR(VLOOKUP($C25,'مبيعات ومردودات المشتريات'!$A$4:$N$1000,COLUMN()-2,0),"") -> 
A26: 26 | B26: =IF($G$1='مبيعات ومردودات المشتريات'!$H$4:$H$1000,'مبيعات ومردودات المشتريات'!$A$4:$A$1000,"") -> 2سلوم | D26: =IFERROR(VLOOKUP($C26,'مبيعات ومردودات المشتريات'!$A$4:$N$1000,COLUMN()-2,0),"") ->  | E26: =IFERROR(VLOOKUP($C26,'مبيعات ومردودات المشتريات'!$A$4:$N$1000,COLUMN()-2,0),"") ->  | F26: =IFERROR(VLOOKUP($C26,'مبيعات ومردودات المشتريات'!$A$4:$N$1000,COLUMN()-2,0),"") ->  | G26: =IFERROR(VLOOKUP($C26,'مبيعات ومردودات المشتريات'!$A$4:$N$1000,COLUMN()-2,0),"") ->  | H26: =IFERROR(VLOOKUP($C26,'مبيعات ومردودات المشتريات'!$A$4:$N$1000,COLUMN()-2,0),"") ->  | I26: =IFERROR(VLOOKUP($C26,'مبيعات ومردودات المشتريات'!$A$4:$N$1000,COLUMN()-2,0),"") ->  | J26: =IFERROR(VLOOKUP($C26,'مبيعات ومردودات المشتريات'!$A$4:$N$1000,COLUMN()-2,0),"") ->  | K26: =IFERROR(VLOOKUP($C26,'مبيعات ومردودات المشتريات'!$A$4:$N$1000,COLUMN()-2,0),"") ->  | L26: =IFERROR(VLOOKUP($C26,'مبيعات ومردودات المشتريات'!$A$4:$N$1000,COLUMN()-2,0),"") -> 
B27: =IF($G$1='مبيعات ومردودات المشتريات'!$H$4:$H$1000,'مبيعات ومردودات المشتريات'!$A$4:$A$1000,"") ->  | D27: =IFERROR(VLOOKUP($C27,'مبيعات ومردودات المشتريات'!$A$4:$N$1000,COLUMN()-2,0),"") ->  | E27: =IFERROR(VLOOKUP($C27,'مبيعات ومردودات المشتريات'!$A$4:$N$1000,COLUMN()-2,0),"") ->  | F27: =IFERROR(VLOOKUP($C27,'مبيعات ومردودات المشتريات'!$A$4:$N$1000,COLUMN()-2,0),"") ->  | G27: =IFERROR(VLOOKUP($C27,'مبيعات ومردودات المشتريات'!$A$4:$N$1000,COLUMN()-2,0),"") ->  | H27: =IFERROR(VLOOKUP($C27,'مبيعات ومردودات المشتريات'!$A$4:$N$1000,COLUMN()-2,0),"") ->  | I27: =IFERROR(VLOOKUP($C27,'مبيعات ومردودات المشتريات'!$A$4:$N$1000,COLUMN()-2,0),"") ->  | J27: =IFERROR(VLOOKUP($C27,'مبيعات ومردودات المشتريات'!$A$4:$N$1000,COLUMN()-2,0),"") ->  | K27: =IFERROR(VLOOKUP($C27,'مبيعات ومردودات المشتريات'!$A$4:$N$1000,COLUMN()-2,0),"") ->  | L27: =IFERROR(VLOOKUP($C27,'مبيعات ومردودات المشتريات'!$A$4:$N$1000,COLUMN()-2,0),"") -> 
B28: =IF($G$1='مبيعات ومردودات المشتريات'!$H$4:$H$1000,'مبيعات ومردودات المشتريات'!$A$4:$A$1000,"") ->  | D28: =IFERROR(VLOOKUP($C28,'مبيعات ومردودات المشتريات'!$A$4:$N$1000,COLUMN()-2,0),"") ->  | E28: =IFERROR(VLOOKUP($C28,'مبيعات ومردودات المشتريات'!$A$4:$N$1000,COLUMN()-2,0),"") ->  | F28: =IFERROR(VLOOKUP($C28,'مبيعات ومردودات المشتريات'!$A$4:$N$1000,COLUMN()-2,0),"") ->  | G28: =IFERROR(VLOOKUP($C28,'مبيعات ومردودات المشتريات'!$A$4:$N$1000,COLUMN()-2,0),"") ->  | H28: =IFERROR(VLOOKUP($C28,'مبيعات ومردودات المشتريات'!$A$4:$N$1000,COLUMN()-2,0),"") ->  | I28: =IFERROR(VLOOKUP($C28,'مبيعات ومردودات المشتريات'!$A$4:$N$1000,COLUMN()-2,0),"") ->  | J28: =IFERROR(VLOOKUP($C28,'مبيعات ومردودات المشتريات'!$A$4:$N$1000,COLUMN()-2,0),"") ->  | K28: =IFERROR(VLOOKUP($C28,'مبيعات ومردودات المشتريات'!$A$4:$N$1000,COLUMN()-2,0),"") ->  | L28: =IFERROR(VLOOKUP($C28,'مبيعات ومردودات المشتريات'!$A$4:$N$1000,COLUMN()-2,0),"") -> 
B29: =IF($G$1='مبيعات ومردودات المشتريات'!$H$4:$H$1000,'مبيعات ومردودات المشتريات'!$A$4:$A$1000,"") ->  | D29: =IFERROR(VLOOKUP($C29,'مبيعات ومردودات المشتريات'!$A$4:$N$1000,COLUMN()-2,0),"") ->  | E29: =IFERROR(VLOOKUP($C29,'مبيعات ومردودات المشتريات'!$A$4:$N$1000,COLUMN()-2,0),"") ->  | F29: =IFERROR(VLOOKUP($C29,'مبيعات ومردودات المشتريات'!$A$4:$N$1000,COLUMN()-2,0),"") ->  | G29: =IFERROR(VLOOKUP($C29,'مبيعات ومردودات المشتريات'!$A$4:$N$1000,COLUMN()-2,0),"") ->  | H29: =IFERROR(VLOOKUP($C29,'مبيعات ومردودات المشتريات'!$A$4:$N$1000,COLUMN()-2,0),"") ->  | I29: =IFERROR(VLOOKUP($C29,'مبيعات ومردودات المشتريات'!$A$4:$N$1000,COLUMN()-2,0),"") ->  | J29: =IFERROR(VLOOKUP($C29,'مبيعات ومردودات المشتريات'!$A$4:$N$1000,COLUMN()-2,0),"") ->  | K29: =IFERROR(VLOOKUP($C29,'مبيعات ومردودات المشتريات'!$A$4:$N$1000,COLUMN()-2,0),"") ->  | L29: =IFERROR(VLOOKUP($C29,'مبيعات ومردودات المشتريات'!$A$4:$N$1000,COLUMN()-2,0),"") -> 
B30: =IF($G$1='مبيعات ومردودات المشتريات'!$H$4:$H$1000,'مبيعات ومردودات المشتريات'!$A$4:$A$1000,"") ->  | D30: =IFERROR(VLOOKUP($C30,'مبيعات ومردودات المشتريات'!$A$4:$N$1000,COLUMN()-2,0),"") ->  | E30: =IFERROR(VLOOKUP($C30,'مبيعات ومردودات المشتريات'!$A$4:$N$1000,COLUMN()-2,0),"") ->  | F30: =IFERROR(VLOOKUP($C30,'مبيعات ومردودات المشتريات'!$A$4:$N$1000,COLUMN()-2,0),"") ->  | G30: =IFERROR(VLOOKUP($C30,'مبيعات ومردودات المشتريات'!$A$4:$N$1000,COLUMN()-2,0),"") ->  | H30: =IFERROR(VLOOKUP($C30,'مبيعات ومردودات المشتريات'!$A$4:$N$1000,COLUMN()-2,0),"") ->  | I30: =IFERROR(VLOOKUP($C30,'مبيعات ومردودات المشتريات'!$A$4:$N$1000,COLUMN()-2,0),"") ->  | J30: =IFERROR(VLOOKUP($C30,'مبيعات ومردودات المشتريات'!$A$4:$N$1000,COLUMN()-2,0),"") ->  | K30: =IFERROR(VLOOKUP($C30,'مبيعات ومردودات المشتريات'!$A$4:$N$1000,COLUMN()-2,0),"") ->  | L30: =IFERROR(VLOOKUP($C30,'مبيعات ومردودات المشتريات'!$A$4:$N$1000,COLUMN()-2,0),"") -> 
B31: =IF($G$1='مبيعات ومردودات المشتريات'!$H$4:$H$1000,'مبيعات ومردودات المشتريات'!$A$4:$A$1000,"") ->  | D31: =IFERROR(VLOOKUP($C31,'مبيعات ومردودات المشتريات'!$A$4:$N$1000,COLUMN()-2,0),"") ->  | E31: =IFERROR(VLOOKUP($C31,'مبيعات ومردودات المشتريات'!$A$4:$N$1000,COLUMN()-2,0),"") ->  | F31: =IFERROR(VLOOKUP($C31,'مبيعات ومردودات المشتريات'!$A$4:$N$1000,COLUMN()-2,0),"") ->  | G31: =IFERROR(VLOOKUP($C31,'مبيعات ومردودات المشتريات'!$A$4:$N$1000,COLUMN()-2,0),"") ->  | H31: =IFERROR(VLOOKUP($C31,'مبيعات ومردودات المشتريات'!$A$4:$N$1000,COLUMN()-2,0),"") ->  | I31: =IFERROR(VLOOKUP($C31,'مبيعات ومردودات المشتريات'!$A$4:$N$1000,COLUMN()-2,0),"") ->  | J31: =IFERROR(VLOOKUP($C31,'مبيعات ومردودات المشتريات'!$A$4:$N$1000,COLUMN()-2,0),"") ->  | K31: =IFERROR(VLOOKUP($C31,'مبيعات ومردودات المشتريات'!$A$4:$N$1000,COLUMN()-2,0),"") ->  | L31: =IFERROR(VLOOKUP($C31,'مبيعات ومردودات المشتريات'!$A$4:$N$1000,COLUMN()-2,0),"") -> 
B32: =IF($G$1='مبيعات ومردودات المشتريات'!$H$4:$H$1000,'مبيعات ومردودات المشتريات'!$A$4:$A$1000,"") ->  | D32: =IFERROR(VLOOKUP($C32,'مبيعات ومردودات المشتريات'!$A$4:$N$1000,COLUMN()-2,0),"") ->  | E32: =IFERROR(VLOOKUP($C32,'مبيعات ومردودات المشتريات'!$A$4:$N$1000,COLUMN()-2,0),"") ->  | F32: =IFERROR(VLOOKUP($C32,'مبيعات ومردودات المشتريات'!$A$4:$N$1000,COLUMN()-2,0),"") ->  | G32: =IFERROR(VLOOKUP($C32,'مبيعات ومردودات المشتريات'!$A$4:$N$1000,COLUMN()-2,0),"") ->  | H32: =IFERROR(VLOOKUP($C32,'مبيعات ومردودات المشتريات'!$A$4:$N$1000,COLUMN()-2,0),"") ->  | I32: =IFERROR(VLOOKUP($C32,'مبيعات ومردودات المشتريات'!$A$4:$N$1000,COLUMN()-2,0),"") ->  | J32: =IFERROR(VLOOKUP($C32,'مبيعات ومردودات المشتريات'!$A$4:$N$1000,COLUMN()-2,0),"") ->  | K32: =IFERROR(VLOOKUP($C32,'مبيعات ومردودات المشتريات'!$A$4:$N$1000,COLUMN()-2,0),"") ->  | L32: =IFERROR(VLOOKUP($C32,'مبيعات ومردودات المشتريات'!$A$4:$N$1000,COLUMN()-2,0),"") -> 
B33: =IF($G$1='مبيعات ومردودات المشتريات'!$H$4:$H$1000,'مبيعات ومردودات المشتريات'!$A$4:$A$1000,"") ->  | D33: =IFERROR(VLOOKUP($C33,'مبيعات ومردودات المشتريات'!$A$4:$N$1000,COLUMN()-2,0),"") ->  | E33: =IFERROR(VLOOKUP($C33,'مبيعات ومردودات المشتريات'!$A$4:$N$1000,COLUMN()-2,0),"") ->  | F33: =IFERROR(VLOOKUP($C33,'مبيعات ومردودات المشتريات'!$A$4:$N$1000,COLUMN()-2,0),"") ->  | G33: =IFERROR(VLOOKUP($C33,'مبيعات ومردودات المشتريات'!$A$4:$N$1000,COLUMN()-2,0),"") ->  | H33: =IFERROR(VLOOKUP($C33,'مبيعات ومردودات المشتريات'!$A$4:$N$1000,COLUMN()-2,0),"") ->  | I33: =IFERROR(VLOOKUP($C33,'مبيعات ومردودات المشتريات'!$A$4:$N$1000,COLUMN()-2,0),"") ->  | J33: =IFERROR(VLOOKUP($C33,'مبيعات ومردودات المشتريات'!$A$4:$N$1000,COLUMN()-2,0),"") ->  | K33: =IFERROR(VLOOKUP($C33,'مبيعات ومردودات المشتريات'!$A$4:$N$1000,COLUMN()-2,0),"") ->  | L33: =IFERROR(VLOOKUP($C33,'مبيعات ومردودات المشتريات'!$A$4:$N$1000,COLUMN()-2,0),"") -> 
B34: =IF($G$1='مبيعات ومردودات المشتريات'!$H$4:$H$1000,'مبيعات ومردودات المشتريات'!$A$4:$A$1000,"") ->  | D34: =IFERROR(VLOOKUP($C34,'مبيعات ومردودات المشتريات'!$A$4:$N$1000,COLUMN()-2,0),"") ->  | E34: =IFERROR(VLOOKUP($C34,'مبيعات ومردودات المشتريات'!$A$4:$N$1000,COLUMN()-2,0),"") ->  | F34: =IFERROR(VLOOKUP($C34,'مبيعات ومردودات المشتريات'!$A$4:$N$1000,COLUMN()-2,0),"") ->  | G34: =IFERROR(VLOOKUP($C34,'مبيعات ومردودات المشتريات'!$A$4:$N$1000,COLUMN()-2,0),"") ->  | H34: =IFERROR(VLOOKUP($C34,'مبيعات ومردودات المشتريات'!$A$4:$N$1000,COLUMN()-2,0),"") ->  | I34: =IFERROR(VLOOKUP($C34,'مبيعات ومردودات المشتريات'!$A$4:$N$1000,COLUMN()-2,0),"") ->  | J34: =IFERROR(VLOOKUP($C34,'مبيعات ومردودات المشتريات'!$A$4:$N$1000,COLUMN()-2,0),"") ->  | K34: =IFERROR(VLOOKUP($C34,'مبيعات ومردودات المشتريات'!$A$4:$N$1000,COLUMN()-2,0),"") ->  | L34: =IFERROR(VLOOKUP($C34,'مبيعات ومردودات المشتريات'!$A$4:$N$1000,COLUMN()-2,0),"") -> 
B35: =IF($G$1='مبيعات ومردودات المشتريات'!$H$4:$H$1000,'مبيعات ومردودات المشتريات'!$A$4:$A$1000,"") ->  | D35: =IFERROR(VLOOKUP($C35,'مبيعات ومردودات المشتريات'!$A$4:$N$1000,COLUMN()-2,0),"") ->  | E35: =IFERROR(VLOOKUP($C35,'مبيعات ومردودات المشتريات'!$A$4:$N$1000,COLUMN()-2,0),"") ->  | F35: =IFERROR(VLOOKUP($C35,'مبيعات ومردودات المشتريات'!$A$4:$N$1000,COLUMN()-2,0),"") ->  | G35: =IFERROR(VLOOKUP($C35,'مبيعات ومردودات المشتريات'!$A$4:$N$1000,COLUMN()-2,0),"") ->  | H35: =IFERROR(VLOOKUP($C35,'مبيعات ومردودات المشتريات'!$A$4:$N$1000,COLUMN()-2,0),"") ->  | I35: =IFERROR(VLOOKUP($C35,'مبيعات ومردودات المشتريات'!$A$4:$N$1000,COLUMN()-2,0),"") ->  | J35: =IFERROR(VLOOKUP($C35,'مبيعات ومردودات المشتريات'!$A$4:$N$1000,COLUMN()-2,0),"") ->  | K35: =IFERROR(VLOOKUP($C35,'مبيعات ومردودات المشتريات'!$A$4:$N$1000,COLUMN()-2,0),"") ->  | L35: =IFERROR(VLOOKUP($C35,'مبيعات ومردودات المشتريات'!$A$4:$N$1000,COLUMN()-2,0),"") -> 
B36: =IF($G$1='مبيعات ومردودات المشتريات'!$H$4:$H$1000,'مبيعات ومردودات المشتريات'!$A$4:$A$1000,"") ->  | D36: =IFERROR(VLOOKUP($C36,'مبيعات ومردودات المشتريات'!$A$4:$N$1000,COLUMN()-2,0),"") ->  | E36: =IFERROR(VLOOKUP($C36,'مبيعات ومردودات المشتريات'!$A$4:$N$1000,COLUMN()-2,0),"") ->  | F36: =IFERROR(VLOOKUP($C36,'مبيعات ومردودات المشتريات'!$A$4:$N$1000,COLUMN()-2,0),"") ->  | G36: =IFERROR(VLOOKUP($C36,'مبيعات ومردودات المشتريات'!$A$4:$N$1000,COLUMN()-2,0),"") ->  | H36: =IFERROR(VLOOKUP($C36,'مبيعات ومردودات المشتريات'!$A$4:$N$1000,COLUMN()-2,0),"") ->  | I36: =IFERROR(VLOOKUP($C36,'مبيعات ومردودات المشتريات'!$A$4:$N$1000,COLUMN()-2,0),"") ->  | J36: =IFERROR(VLOOKUP($C36,'مبيعات ومردودات المشتريات'!$A$4:$N$1000,COLUMN()-2,0),"") ->  | K36: =IFERROR(VLOOKUP($C36,'مبيعات ومردودات المشتريات'!$A$4:$N$1000,COLUMN()-2,0),"") ->  | L36: =IFERROR(VLOOKUP($C36,'مبيعات ومردودات المشتريات'!$A$4:$N$1000,COLUMN()-2,0),"") -> 
B37: =IF($G$1='مبيعات ومردودات المشتريات'!$H$4:$H$1000,'مبيعات ومردودات المشتريات'!$A$4:$A$1000,"") ->  | D37: =IFERROR(VLOOKUP($C37,'مبيعات ومردودات المشتريات'!$A$4:$N$1000,COLUMN()-2,0),"") ->  | E37: =IFERROR(VLOOKUP($C37,'مبيعات ومردودات المشتريات'!$A$4:$N$1000,COLUMN()-2,0),"") ->  | F37: =IFERROR(VLOOKUP($C37,'مبيعات ومردودات المشتريات'!$A$4:$N$1000,COLUMN()-2,0),"") ->  | G37: =IFERROR(VLOOKUP($C37,'مبيعات ومردودات المشتريات'!$A$4:$N$1000,COLUMN()-2,0),"") ->  | H37: =IFERROR(VLOOKUP($C37,'مبيعات ومردودات المشتريات'!$A$4:$N$1000,COLUMN()-2,0),"") ->  | I37: =IFERROR(VLOOKUP($C37,'مبيعات ومردودات المشتريات'!$A$4:$N$1000,COLUMN()-2,0),"") ->  | J37: =IFERROR(VLOOKUP($C37,'مبيعات ومردودات المشتريات'!$A$4:$N$1000,COLUMN()-2,0),"") ->  | K37: =IFERROR(VLOOKUP($C37,'مبيعات ومردودات المشتريات'!$A$4:$N$1000,COLUMN()-2,0),"") ->  | L37: =IFERROR(VLOOKUP($C37,'مبيعات ومردودات المشتريات'!$A$4:$N$1000,COLUMN()-2,0),"") -> 
B38: =IF($G$1='مبيعات ومردودات المشتريات'!$H$4:$H$1000,'مبيعات ومردودات المشتريات'!$A$4:$A$1000,"") ->  | D38: =IFERROR(VLOOKUP($C38,'مبيعات ومردودات المشتريات'!$A$4:$N$1000,COLUMN()-2,0),"") ->  | E38: =IFERROR(VLOOKUP($C38,'مبيعات ومردودات المشتريات'!$A$4:$N$1000,COLUMN()-2,0),"") ->  | F38: =IFERROR(VLOOKUP($C38,'مبيعات ومردودات المشتريات'!$A$4:$N$1000,COLUMN()-2,0),"") ->  | G38: =IFERROR(VLOOKUP($C38,'مبيعات ومردودات المشتريات'!$A$4:$N$1000,COLUMN()-2,0),"") ->  | H38: =IFERROR(VLOOKUP($C38,'مبيعات ومردودات المشتريات'!$A$4:$N$1000,COLUMN()-2,0),"") ->  | I38: =IFERROR(VLOOKUP($C38,'مبيعات ومردودات المشتريات'!$A$4:$N$1000,COLUMN()-2,0),"") ->  | J38: =IFERROR(VLOOKUP($C38,'مبيعات ومردودات المشتريات'!$A$4:$N$1000,COLUMN()-2,0),"") ->  | K38: =IFERROR(VLOOKUP($C38,'مبيعات ومردودات المشتريات'!$A$4:$N$1000,COLUMN()-2,0),"") ->  | L38: =IFERROR(VLOOKUP($C38,'مبيعات ومردودات المشتريات'!$A$4:$N$1000,COLUMN()-2,0),"") -> 
B39: =IF($G$1='مبيعات ومردودات المشتريات'!$H$4:$H$1000,'مبيعات ومردودات المشتريات'!$A$4:$A$1000,"") ->  | D39: =IFERROR(VLOOKUP($C39,'مبيعات ومردودات المشتريات'!$A$4:$N$1000,COLUMN()-2,0),"") ->  | E39: =IFERROR(VLOOKUP($C39,'مبيعات ومردودات المشتريات'!$A$4:$N$1000,COLUMN()-2,0),"") ->  | F39: =IFERROR(VLOOKUP($C39,'مبيعات ومردودات المشتريات'!$A$4:$N$1000,COLUMN()-2,0),"") ->  | G39: =IFERROR(VLOOKUP($C39,'مبيعات ومردودات المشتريات'!$A$4:$N$1000,COLUMN()-2,0),"") ->  | H39: =IFERROR(VLOOKUP($C39,'مبيعات ومردودات المشتريات'!$A$4:$N$1000,COLUMN()-2,0),"") ->  | I39: =IFERROR(VLOOKUP($C39,'مبيعات ومردودات المشتريات'!$A$4:$N$1000,COLUMN()-2,0),"") ->  | J39: =IFERROR(VLOOKUP($C39,'مبيعات ومردودات المشتريات'!$A$4:$N$1000,COLUMN()-2,0),"") ->  | K39: =IFERROR(VLOOKUP($C39,'مبيعات ومردودات المشتريات'!$A$4:$N$1000,COLUMN()-2,0),"") ->  | L39: =IFERROR(VLOOKUP($C39,'مبيعات ومردودات المشتريات'!$A$4:$N$1000,COLUMN()-2,0),"") -> 
B40: =IF($G$1='مبيعات ومردودات المشتريات'!$H$4:$H$1000,'مبيعات ومردودات المشتريات'!$A$4:$A$1000,"") ->  | D40: =IFERROR(VLOOKUP($C40,'مبيعات ومردودات المشتريات'!$A$4:$N$1000,COLUMN()-2,0),"") ->  | E40: =IFERROR(VLOOKUP($C40,'مبيعات ومردودات المشتريات'!$A$4:$N$1000,COLUMN()-2,0),"") ->  | F40: =IFERROR(VLOOKUP($C40,'مبيعات ومردودات المشتريات'!$A$4:$N$1000,COLUMN()-2,0),"") ->  | G40: =IFERROR(VLOOKUP($C40,'مبيعات ومردودات المشتريات'!$A$4:$N$1000,COLUMN()-2,0),"") ->  | H40: =IFERROR(VLOOKUP($C40,'مبيعات ومردودات المشتريات'!$A$4:$N$1000,COLUMN()-2,0),"") ->  | I40: =IFERROR(VLOOKUP($C40,'مبيعات ومردودات المشتريات'!$A$4:$N$1000,COLUMN()-2,0),"") ->  | J40: =IFERROR(VLOOKUP($C40,'مبيعات ومردودات المشتريات'!$A$4:$N$1000,COLUMN()-2,0),"") ->  | K40: =IFERROR(VLOOKUP($C40,'مبيعات ومردودات المشتريات'!$A$4:$N$1000,COLUMN()-2,0),"") ->  | L40: =IFERROR(VLOOKUP($C40,'مبيعات ومردودات المشتريات'!$A$4:$N$1000,COLUMN()-2,0),"") -> 
B41: =IF($G$1='مبيعات ومردودات المشتريات'!$H$4:$H$1000,'مبيعات ومردودات المشتريات'!$A$4:$A$1000,"") ->  | D41: =IFERROR(VLOOKUP($C41,'مبيعات ومردودات المشتريات'!$A$4:$N$1000,COLUMN()-2,0),"") ->  | E41: =IFERROR(VLOOKUP($C41,'مبيعات ومردودات المشتريات'!$A$4:$N$1000,COLUMN()-2,0),"") ->  | F41: =IFERROR(VLOOKUP($C41,'مبيعات ومردودات المشتريات'!$A$4:$N$1000,COLUMN()-2,0),"") ->  | G41: =IFERROR(VLOOKUP($C41,'مبيعات ومردودات المشتريات'!$A$4:$N$1000,COLUMN()-2,0),"") ->  | H41: =IFERROR(VLOOKUP($C41,'مبيعات ومردودات المشتريات'!$A$4:$N$1000,COLUMN()-2,0),"") ->  | I41: =IFERROR(VLOOKUP($C41,'مبيعات ومردودات المشتريات'!$A$4:$N$1000,COLUMN()-2,0),"") ->  | J41: =IFERROR(VLOOKUP($C41,'مبيعات ومردودات المشتريات'!$A$4:$N$1000,COLUMN()-2,0),"") ->  | K41: =IFERROR(VLOOKUP($C41,'مبيعات ومردودات المشتريات'!$A$4:$N$1000,COLUMN()-2,0),"") ->  | L41: =IFERROR(VLOOKUP($C41,'مبيعات ومردودات المشتريات'!$A$4:$N$1000,COLUMN()-2,0),"") -> 
A42: 42 | B42: =IF($G$1='مبيعات ومردودات المشتريات'!$H$4:$H$1000,'مبيعات ومردودات المشتريات'!$A$4:$A$1000,"") -> 3سلوم | D42: =IFERROR(VLOOKUP($C42,'مبيعات ومردودات المشتريات'!$A$4:$N$1000,COLUMN()-2,0),"") ->  | E42: =IFERROR(VLOOKUP($C42,'مبيعات ومردودات المشتريات'!$A$4:$N$1000,COLUMN()-2,0),"") ->  | F42: =IFERROR(VLOOKUP($C42,'مبيعات ومردودات المشتريات'!$A$4:$N$1000,COLUMN()-2,0),"") ->  | G42: =IFERROR(VLOOKUP($C42,'مبيعات ومردودات المشتريات'!$A$4:$N$1000,COLUMN()-2,0),"") ->  | H42: =IFERROR(VLOOKUP($C42,'مبيعات ومردودات المشتريات'!$A$4:$N$1000,COLUMN()-2,0),"") ->  | I42: =IFERROR(VLOOKUP($C42,'مبيعات ومردودات المشتريات'!$A$4:$N$1000,COLUMN()-2,0),"") ->  | J42: =IFERROR(VLOOKUP($C42,'مبيعات ومردودات المشتريات'!$A$4:$N$1000,COLUMN()-2,0),"") ->  | K42: =IFERROR(VLOOKUP($C42,'مبيعات ومردودات المشتريات'!$A$4:$N$1000,COLUMN()-2,0),"") ->  | L42: =IFERROR(VLOOKUP($C42,'مبيعات ومردودات المشتريات'!$A$4:$N$1000,COLUMN()-2,0),"") -> 
A43: 43 | B43: =IF($G$1='مبيعات ومردودات المشتريات'!$H$4:$H$1000,'مبيعات ومردودات المشتريات'!$A$4:$A$1000,"") -> 4سلوم | D43: =IFERROR(VLOOKUP($C43,'مبيعات ومردودات المشتريات'!$A$4:$N$1000,COLUMN()-2,0),"") ->  | E43: =IFERROR(VLOOKUP($C43,'مبيعات ومردودات المشتريات'!$A$4:$N$1000,COLUMN()-2,0),"") ->  | F43: =IFERROR(VLOOKUP($C43,'مبيعات ومردودات المشتريات'!$A$4:$N$1000,COLUMN()-2,0),"") ->  | G43: =IFERROR(VLOOKUP($C43,'مبيعات ومردودات المشتريات'!$A$4:$N$1000,COLUMN()-2,0),"") ->  | H43: =IFERROR(VLOOKUP($C43,'مبيعات ومردودات المشتريات'!$A$4:$N$1000,COLUMN()-2,0),"") ->  | I43: =IFERROR(VLOOKUP($C43,'مبيعات ومردودات المشتريات'!$A$4:$N$1000,COLUMN()-2,0),"") ->  | J43: =IFERROR(VLOOKUP($C43,'مبيعات ومردودات المشتريات'!$A$4:$N$1000,COLUMN()-2,0),"") ->  | K43: =IFERROR(VLOOKUP($C43,'مبيعات ومردودات المشتريات'!$A$4:$N$1000,COLUMN()-2,0),"") ->  | L43: =IFERROR(VLOOKUP($C43,'مبيعات ومردودات المشتريات'!$A$4:$N$1000,COLUMN()-2,0),"") -> 
B44: =IF($G$1='مبيعات ومردودات المشتريات'!$H$4:$H$1000,'مبيعات ومردودات المشتريات'!$A$4:$A$1000,"") ->  | D44: =IFERROR(VLOOKUP($C44,'مبيعات ومردودات المشتريات'!$A$4:$N$1000,COLUMN()-2,0),"") ->  | E44: =IFERROR(VLOOKUP($C44,'مبيعات ومردودات المشتريات'!$A$4:$N$1000,COLUMN()-2,0),"") ->  | F44: =IFERROR(VLOOKUP($C44,'مبيعات ومردودات المشتريات'!$A$4:$N$1000,COLUMN()-2,0),"") ->  | G44: =IFERROR(VLOOKUP($C44,'مبيعات ومردودات المشتريات'!$A$4:$N$1000,COLUMN()-2,0),"") ->  | H44: =IFERROR(VLOOKUP($C44,'مبيعات ومردودات المشتريات'!$A$4:$N$1000,COLUMN()-2,0),"") ->  | I44: =IFERROR(VLOOKUP($C44,'مبيعات ومردودات المشتريات'!$A$4:$N$1000,COLUMN()-2,0),"") ->  | J44: =IFERROR(VLOOKUP($C44,'مبيعات ومردودات المشتريات'!$A$4:$N$1000,COLUMN()-2,0),"") ->  | K44: =IFERROR(VLOOKUP($C44,'مبيعات ومردودات المشتريات'!$A$4:$N$1000,COLUMN()-2,0),"") ->  | L44: =IFERROR(VLOOKUP($C44,'مبيعات ومردودات المشتريات'!$A$4:$N$1000,COLUMN()-2,0),"") -> 
B45: =IF($G$1='مبيعات ومردودات المشتريات'!$H$4:$H$1000,'مبيعات ومردودات المشتريات'!$A$4:$A$1000,"") ->  | D45: =IFERROR(VLOOKUP($C45,'مبيعات ومردودات المشتريات'!$A$4:$N$1000,COLUMN()-2,0),"") ->  | E45: =IFERROR(VLOOKUP($C45,'مبيعات ومردودات المشتريات'!$A$4:$N$1000,COLUMN()-2,0),"") ->  | F45: =IFERROR(VLOOKUP($C45,'مبيعات ومردودات المشتريات'!$A$4:$N$1000,COLUMN()-2,0),"") ->  | G45: =IFERROR(VLOOKUP($C45,'مبيعات ومردودات المشتريات'!$A$4:$N$1000,COLUMN()-2,0),"") ->  | H45: =IFERROR(VLOOKUP($C45,'مبيعات ومردودات المشتريات'!$A$4:$N$1000,COLUMN()-2,0),"") ->  | I45: =IFERROR(VLOOKUP($C45,'مبيعات ومردودات المشتريات'!$A$4:$N$1000,COLUMN()-2,0),"") ->  | J45: =IFERROR(VLOOKUP($C45,'مبيعات ومردودات المشتريات'!$A$4:$N$1000,COLUMN()-2,0),"") ->  | K45: =IFERROR(VLOOKUP($C45,'مبيعات ومردودات المشتريات'!$A$4:$N$1000,COLUMN()-2,0),"") ->  | L45: =IFERROR(VLOOKUP($C45,'مبيعات ومردودات المشتريات'!$A$4:$N$1000,COLUMN()-2,0),"") -> 
B46: =IF($G$1='مبيعات ومردودات المشتريات'!$H$4:$H$1000,'مبيعات ومردودات المشتريات'!$A$4:$A$1000,"") ->  | D46: =IFERROR(VLOOKUP($C46,'مبيعات ومردودات المشتريات'!$A$4:$N$1000,COLUMN()-2,0),"") ->  | E46: =IFERROR(VLOOKUP($C46,'مبيعات ومردودات المشتريات'!$A$4:$N$1000,COLUMN()-2,0),"") ->  | F46: =IFERROR(VLOOKUP($C46,'مبيعات ومردودات المشتريات'!$A$4:$N$1000,COLUMN()-2,0),"") ->  | G46: =IFERROR(VLOOKUP($C46,'مبيعات ومردودات المشتريات'!$A$4:$N$1000,COLUMN()-2,0),"") ->  | H46: =IFERROR(VLOOKUP($C46,'مبيعات ومردودات المشتريات'!$A$4:$N$1000,COLUMN()-2,0),"") ->  | I46: =IFERROR(VLOOKUP($C46,'مبيعات ومردودات المشتريات'!$A$4:$N$1000,COLUMN()-2,0),"") ->  | J46: =IFERROR(VLOOKUP($C46,'مبيعات ومردودات المشتريات'!$A$4:$N$1000,COLUMN()-2,0),"") ->  | K46: =IFERROR(VLOOKUP($C46,'مبيعات ومردودات المشتريات'!$A$4:$N$1000,COLUMN()-2,0),"") ->  | L46: =IFERROR(VLOOKUP($C46,'مبيعات ومردودات المشتريات'!$A$4:$N$1000,COLUMN()-2,0),"") -> 
B47: =IF($G$1='مبيعات ومردودات المشتريات'!$H$4:$H$1000,'مبيعات ومردودات المشتريات'!$A$4:$A$1000,"") ->  | D47: =IFERROR(VLOOKUP($C47,'مبيعات ومردودات المشتريات'!$A$4:$N$1000,COLUMN()-2,0),"") ->  | E47: =IFERROR(VLOOKUP($C47,'مبيعات ومردودات المشتريات'!$A$4:$N$1000,COLUMN()-2,0),"") ->  | F47: =IFERROR(VLOOKUP($C47,'مبيعات ومردودات المشتريات'!$A$4:$N$1000,COLUMN()-2,0),"") ->  | G47: =IFERROR(VLOOKUP($C47,'مبيعات ومردودات المشتريات'!$A$4:$N$1000,COLUMN()-2,0),"") ->  | H47: =IFERROR(VLOOKUP($C47,'مبيعات ومردودات المشتريات'!$A$4:$N$1000,COLUMN()-2,0),"") ->  | I47: =IFERROR(VLOOKUP($C47,'مبيعات ومردودات المشتريات'!$A$4:$N$1000,COLUMN()-2,0),"") ->  | J47: =IFERROR(VLOOKUP($C47,'مبيعات ومردودات المشتريات'!$A$4:$N$1000,COLUMN()-2,0),"") ->  | K47: =IFERROR(VLOOKUP($C47,'مبيعات ومردودات المشتريات'!$A$4:$N$1000,COLUMN()-2,0),"") ->  | L47: =IFERROR(VLOOKUP($C47,'مبيعات ومردودات المشتريات'!$A$4:$N$1000,COLUMN()-2,0),"") -> 
B48: =IF($G$1='مبيعات ومردودات المشتريات'!$H$4:$H$1000,'مبيعات ومردودات المشتريات'!$A$4:$A$1000,"") ->  | D48: =IFERROR(VLOOKUP($C48,'مبيعات ومردودات المشتريات'!$A$4:$N$1000,COLUMN()-2,0),"") ->  | E48: =IFERROR(VLOOKUP($C48,'مبيعات ومردودات المشتريات'!$A$4:$N$1000,COLUMN()-2,0),"") ->  | F48: =IFERROR(VLOOKUP($C48,'مبيعات ومردودات المشتريات'!$A$4:$N$1000,COLUMN()-2,0),"") ->  | G48: =IFERROR(VLOOKUP($C48,'مبيعات ومردودات المشتريات'!$A$4:$N$1000,COLUMN()-2,0),"") ->  | H48: =IFERROR(VLOOKUP($C48,'مبيعات ومردودات المشتريات'!$A$4:$N$1000,COLUMN()-2,0),"") ->  | I48: =IFERROR(VLOOKUP($C48,'مبيعات ومردودات المشتريات'!$A$4:$N$1000,COLUMN()-2,0),"") ->  | J48: =IFERROR(VLOOKUP($C48,'مبيعات ومردودات المشتريات'!$A$4:$N$1000,COLUMN()-2,0),"") ->  | K48: =IFERROR(VLOOKUP($C48,'مبيعات ومردودات المشتريات'!$A$4:$N$1000,COLUMN()-2,0),"") ->  | L48: =IFERROR(VLOOKUP($C48,'مبيعات ومردودات المشتريات'!$A$4:$N$1000,COLUMN()-2,0),"") -> 
B49: =IF($G$1='مبيعات ومردودات المشتريات'!$H$4:$H$1000,'مبيعات ومردودات المشتريات'!$A$4:$A$1000,"") ->  | D49: =IFERROR(VLOOKUP($C49,'مبيعات ومردودات المشتريات'!$A$4:$N$1000,COLUMN()-2,0),"") ->  | E49: =IFERROR(VLOOKUP($C49,'مبيعات ومردودات المشتريات'!$A$4:$N$1000,COLUMN()-2,0),"") ->  | F49: =IFERROR(VLOOKUP($C49,'مبيعات ومردودات المشتريات'!$A$4:$N$1000,COLUMN()-2,0),"") ->  | G49: =IFERROR(VLOOKUP($C49,'مبيعات ومردودات المشتريات'!$A$4:$N$1000,COLUMN()-2,0),"") ->  | H49: =IFERROR(VLOOKUP($C49,'مبيعات ومردودات المشتريات'!$A$4:$N$1000,COLUMN()-2,0),"") ->  | I49: =IFERROR(VLOOKUP($C49,'مبيعات ومردودات المشتريات'!$A$4:$N$1000,COLUMN()-2,0),"") ->  | J49: =IFERROR(VLOOKUP($C49,'مبيعات ومردودات المشتريات'!$A$4:$N$1000,COLUMN()-2,0),"") ->  | K49: =IFERROR(VLOOKUP($C49,'مبيعات ومردودات المشتريات'!$A$4:$N$1000,COLUMN()-2,0),"") ->  | L49: =IFERROR(VLOOKUP($C49,'مبيعات ومردودات المشتريات'!$A$4:$N$1000,COLUMN()-2,0),"") -> 
B50: =IF($G$1='مبيعات ومردودات المشتريات'!$H$4:$H$1000,'مبيعات ومردودات المشتريات'!$A$4:$A$1000,"") ->  | D50: =IFERROR(VLOOKUP($C50,'مبيعات ومردودات المشتريات'!$A$4:$N$1000,COLUMN()-2,0),"") ->  | E50: =IFERROR(VLOOKUP($C50,'مبيعات ومردودات المشتريات'!$A$4:$N$1000,COLUMN()-2,0),"") ->  | F50: =IFERROR(VLOOKUP($C50,'مبيعات ومردودات المشتريات'!$A$4:$N$1000,COLUMN()-2,0),"") ->  | G50: =IFERROR(VLOOKUP($C50,'مبيعات ومردودات المشتريات'!$A$4:$N$1000,COLUMN()-2,0),"") ->  | H50: =IFERROR(VLOOKUP($C50,'مبيعات ومردودات المشتريات'!$A$4:$N$1000,COLUMN()-2,0),"") ->  | I50: =IFERROR(VLOOKUP($C50,'مبيعات ومردودات المشتريات'!$A$4:$N$1000,COLUMN()-2,0),"") ->  | J50: =IFERROR(VLOOKUP($C50,'مبيعات ومردودات المشتريات'!$A$4:$N$1000,COLUMN()-2,0),"") ->  | K50: =IFERROR(VLOOKUP($C50,'مبيعات ومردودات المشتريات'!$A$4:$N$1000,COLUMN()-2,0),"") ->  | L50: =IFERROR(VLOOKUP($C50,'مبيعات ومردودات المشتريات'!$A$4:$N$1000,COLUMN()-2,0),"") -> 
B51: =IF($G$1='مبيعات ومردودات المشتريات'!$H$4:$H$1000,'مبيعات ومردودات المشتريات'!$A$4:$A$1000,"") ->  | D51: =IFERROR(VLOOKUP($C51,'مبيعات ومردودات المشتريات'!$A$4:$N$1000,COLUMN()-2,0),"") ->  | E51: =IFERROR(VLOOKUP($C51,'مبيعات ومردودات المشتريات'!$A$4:$N$1000,COLUMN()-2,0),"") ->  | F51: =IFERROR(VLOOKUP($C51,'مبيعات ومردودات المشتريات'!$A$4:$N$1000,COLUMN()-2,0),"") ->  | G51: =IFERROR(VLOOKUP($C51,'مبيعات ومردودات المشتريات'!$A$4:$N$1000,COLUMN()-2,0),"") ->  | H51: =IFERROR(VLOOKUP($C51,'مبيعات ومردودات المشتريات'!$A$4:$N$1000,COLUMN()-2,0),"") ->  | I51: =IFERROR(VLOOKUP($C51,'مبيعات ومردودات المشتريات'!$A$4:$N$1000,COLUMN()-2,0),"") ->  | J51: =IFERROR(VLOOKUP($C51,'مبيعات ومردودات المشتريات'!$A$4:$N$1000,COLUMN()-2,0),"") ->  | K51: =IFERROR(VLOOKUP($C51,'مبيعات ومردودات المشتريات'!$A$4:$N$1000,COLUMN()-2,0),"") ->  | L51: =IFERROR(VLOOKUP($C51,'مبيعات ومردودات المشتريات'!$A$4:$N$1000,COLUMN()-2,0),"") -> 
B52: =IF($G$1='مبيعات ومردودات المشتريات'!$H$4:$H$1000,'مبيعات ومردودات المشتريات'!$A$4:$A$1000,"") ->  | D52: =IFERROR(VLOOKUP($C52,'مبيعات ومردودات المشتريات'!$A$4:$N$1000,COLUMN()-2,0),"") ->  | E52: =IFERROR(VLOOKUP($C52,'مبيعات ومردودات المشتريات'!$A$4:$N$1000,COLUMN()-2,0),"") ->  | F52: =IFERROR(VLOOKUP($C52,'مبيعات ومردودات المشتريات'!$A$4:$N$1000,COLUMN()-2,0),"") ->  | G52: =IFERROR(VLOOKUP($C52,'مبيعات ومردودات المشتريات'!$A$4:$N$1000,COLUMN()-2,0),"") ->  | H52: =IFERROR(VLOOKUP($C52,'مبيعات ومردودات المشتريات'!$A$4:$N$1000,COLUMN()-2,0),"") ->  | I52: =IFERROR(VLOOKUP($C52,'مبيعات ومردودات المشتريات'!$A$4:$N$1000,COLUMN()-2,0),"") ->  | J52: =IFERROR(VLOOKUP($C52,'مبيعات ومردودات المشتريات'!$A$4:$N$1000,COLUMN()-2,0),"") ->  | K52: =IFERROR(VLOOKUP($C52,'مبيعات ومردودات المشتريات'!$A$4:$N$1000,COLUMN()-2,0),"") ->  | L52: =IFERROR(VLOOKUP($C52,'مبيعات ومردودات المشتريات'!$A$4:$N$1000,COLUMN()-2,0),"") -> 
B53: =IF($G$1='مبيعات ومردودات المشتريات'!$H$4:$H$1000,'مبيعات ومردودات المشتريات'!$A$4:$A$1000,"") ->  | D53: =IFERROR(VLOOKUP($C53,'مبيعات ومردودات المشتريات'!$A$4:$N$1000,COLUMN()-2,0),"") ->  | E53: =IFERROR(VLOOKUP($C53,'مبيعات ومردودات المشتريات'!$A$4:$N$1000,COLUMN()-2,0),"") ->  | F53: =IFERROR(VLOOKUP($C53,'مبيعات ومردودات المشتريات'!$A$4:$N$1000,COLUMN()-2,0),"") ->  | G53: =IFERROR(VLOOKUP($C53,'مبيعات ومردودات المشتريات'!$A$4:$N$1000,COLUMN()-2,0),"") ->  | H53: =IFERROR(VLOOKUP($C53,'مبيعات ومردودات المشتريات'!$A$4:$N$1000,COLUMN()-2,0),"") ->  | I53: =IFERROR(VLOOKUP($C53,'مبيعات ومردودات المشتريات'!$A$4:$N$1000,COLUMN()-2,0),"") ->  | J53: =IFERROR(VLOOKUP($C53,'مبيعات ومردودات المشتريات'!$A$4:$N$1000,COLUMN()-2,0),"") ->  | K53: =IFERROR(VLOOKUP($C53,'مبيعات ومردودات المشتريات'!$A$4:$N$1000,COLUMN()-2,0),"") ->  | L53: =IFERROR(VLOOKUP($C53,'مبيعات ومردودات المشتريات'!$A$4:$N$1000,COLUMN()-2,0),"") -> 
B54: =IF($G$1='مبيعات ومردودات المشتريات'!$H$4:$H$1000,'مبيعات ومردودات المشتريات'!$A$4:$A$1000,"") ->  | D54: =IFERROR(VLOOKUP($C54,'مبيعات ومردودات المشتريات'!$A$4:$N$1000,COLUMN()-2,0),"") ->  | E54: =IFERROR(VLOOKUP($C54,'مبيعات ومردودات المشتريات'!$A$4:$N$1000,COLUMN()-2,0),"") ->  | F54: =IFERROR(VLOOKUP($C54,'مبيعات ومردودات المشتريات'!$A$4:$N$1000,COLUMN()-2,0),"") ->  | G54: =IFERROR(VLOOKUP($C54,'مبيعات ومردودات المشتريات'!$A$4:$N$1000,COLUMN()-2,0),"") ->  | H54: =IFERROR(VLOOKUP($C54,'مبيعات ومردودات المشتريات'!$A$4:$N$1000,COLUMN()-2,0),"") ->  | I54: =IFERROR(VLOOKUP($C54,'مبيعات ومردودات المشتريات'!$A$4:$N$1000,COLUMN()-2,0),"") ->  | J54: =IFERROR(VLOOKUP($C54,'مبيعات ومردودات المشتريات'!$A$4:$N$1000,COLUMN()-2,0),"") ->  | K54: =IFERROR(VLOOKUP($C54,'مبيعات ومردودات المشتريات'!$A$4:$N$1000,COLUMN()-2,0),"") ->  | L54: =IFERROR(VLOOKUP($C54,'مبيعات ومردودات المشتريات'!$A$4:$N$1000,COLUMN()-2,0),"") -> 
B55: =IF($G$1='مبيعات ومردودات المشتريات'!$H$4:$H$1000,'مبيعات ومردودات المشتريات'!$A$4:$A$1000,"") ->  | D55: =IFERROR(VLOOKUP($C55,'مبيعات ومردودات المشتريات'!$A$4:$N$1000,COLUMN()-2,0),"") ->  | E55: =IFERROR(VLOOKUP($C55,'مبيعات ومردودات المشتريات'!$A$4:$N$1000,COLUMN()-2,0),"") ->  | F55: =IFERROR(VLOOKUP($C55,'مبيعات ومردودات المشتريات'!$A$4:$N$1000,COLUMN()-2,0),"") ->  | G55: =IFERROR(VLOOKUP($C55,'مبيعات ومردودات المشتريات'!$A$4:$N$1000,COLUMN()-2,0),"") ->  | H55: =IFERROR(VLOOKUP($C55,'مبيعات ومردودات المشتريات'!$A$4:$N$1000,COLUMN()-2,0),"") ->  | I55: =IFERROR(VLOOKUP($C55,'مبيعات ومردودات المشتريات'!$A$4:$N$1000,COLUMN()-2,0),"") ->  | J55: =IFERROR(VLOOKUP($C55,'مبيعات ومردودات المشتريات'!$A$4:$N$1000,COLUMN()-2,0),"") ->  | K55: =IFERROR(VLOOKUP($C55,'مبيعات ومردودات المشتريات'!$A$4:$N$1000,COLUMN()-2,0),"") ->  | L55: =IFERROR(VLOOKUP($C55,'مبيعات ومردودات المشتريات'!$A$4:$N$1000,COLUMN()-2,0),"") -> 
B56: =IF($G$1='مبيعات ومردودات المشتريات'!$H$4:$H$1000,'مبيعات ومردودات المشتريات'!$A$4:$A$1000,"") ->  | D56: =IFERROR(VLOOKUP($C56,'مبيعات ومردودات المشتريات'!$A$4:$N$1000,COLUMN()-2,0),"") ->  | E56: =IFERROR(VLOOKUP($C56,'مبيعات ومردودات المشتريات'!$A$4:$N$1000,COLUMN()-2,0),"") ->  | F56: =IFERROR(VLOOKUP($C56,'مبيعات ومردودات المشتريات'!$A$4:$N$1000,COLUMN()-2,0),"") ->  | G56: =IFERROR(VLOOKUP($C56,'مبيعات ومردودات المشتريات'!$A$4:$N$1000,COLUMN()-2,0),"") ->  | H56: =IFERROR(VLOOKUP($C56,'مبيعات ومردودات المشتريات'!$A$4:$N$1000,COLUMN()-2,0),"") ->  | I56: =IFERROR(VLOOKUP($C56,'مبيعات ومردودات المشتريات'!$A$4:$N$1000,COLUMN()-2,0),"") ->  | J56: =IFERROR(VLOOKUP($C56,'مبيعات ومردودات المشتريات'!$A$4:$N$1000,COLUMN()-2,0),"") ->  | K56: =IFERROR(VLOOKUP($C56,'مبيعات ومردودات المشتريات'!$A$4:$N$1000,COLUMN()-2,0),"") ->  | L56: =IFERROR(VLOOKUP($C56,'مبيعات ومردودات المشتريات'!$A$4:$N$1000,COLUMN()-2,0),"") -> 
B57: =IF($G$1='مبيعات ومردودات المشتريات'!$H$4:$H$1000,'مبيعات ومردودات المشتريات'!$A$4:$A$1000,"") ->  | D57: =IFERROR(VLOOKUP($C57,'مبيعات ومردودات المشتريات'!$A$4:$N$1000,COLUMN()-2,0),"") ->  | E57: =IFERROR(VLOOKUP($C57,'مبيعات ومردودات المشتريات'!$A$4:$N$1000,COLUMN()-2,0),"") ->  | F57: =IFERROR(VLOOKUP($C57,'مبيعات ومردودات المشتريات'!$A$4:$N$1000,COLUMN()-2,0),"") ->  | G57: =IFERROR(VLOOKUP($C57,'مبيعات ومردودات المشتريات'!$A$4:$N$1000,COLUMN()-2,0),"") ->  | H57: =IFERROR(VLOOKUP($C57,'مبيعات ومردودات المشتريات'!$A$4:$N$1000,COLUMN()-2,0),"") ->  | I57: =IFERROR(VLOOKUP($C57,'مبيعات ومردودات المشتريات'!$A$4:$N$1000,COLUMN()-2,0),"") ->  | J57: =IFERROR(VLOOKUP($C57,'مبيعات ومردودات المشتريات'!$A$4:$N$1000,COLUMN()-2,0),"") ->  | K57: =IFERROR(VLOOKUP($C57,'مبيعات ومردودات المشتريات'!$A$4:$N$1000,COLUMN()-2,0),"") ->  | L57: =IFERROR(VLOOKUP($C57,'مبيعات ومردودات المشتريات'!$A$4:$N$1000,COLUMN()-2,0),"") -> 
B58: =IF($G$1='مبيعات ومردودات المشتريات'!$H$4:$H$1000,'مبيعات ومردودات المشتريات'!$A$4:$A$1000,"") ->  | D58: =IFERROR(VLOOKUP($C58,'مبيعات ومردودات المشتريات'!$A$4:$N$1000,COLUMN()-2,0),"") ->  | E58: =IFERROR(VLOOKUP($C58,'مبيعات ومردودات المشتريات'!$A$4:$N$1000,COLUMN()-2,0),"") ->  | F58: =IFERROR(VLOOKUP($C58,'مبيعات ومردودات المشتريات'!$A$4:$N$1000,COLUMN()-2,0),"") ->  | G58: =IFERROR(VLOOKUP($C58,'مبيعات ومردودات المشتريات'!$A$4:$N$1000,COLUMN()-2,0),"") ->  | H58: =IFERROR(VLOOKUP($C58,'مبيعات ومردودات المشتريات'!$A$4:$N$1000,COLUMN()-2,0),"") ->  | I58: =IFERROR(VLOOKUP($C58,'مبيعات ومردودات المشتريات'!$A$4:$N$1000,COLUMN()-2,0),"") ->  | J58: =IFERROR(VLOOKUP($C58,'مبيعات ومردودات المشتريات'!$A$4:$N$1000,COLUMN()-2,0),"") ->  | K58: =IFERROR(VLOOKUP($C58,'مبيعات ومردودات المشتريات'!$A$4:$N$1000,COLUMN()-2,0),"") ->  | L58: =IFERROR(VLOOKUP($C58,'مبيعات ومردودات المشتريات'!$A$4:$N$1000,COLUMN()-2,0),"") -> 
B59: =IF($G$1='مبيعات ومردودات المشتريات'!$H$4:$H$1000,'مبيعات ومردودات المشتريات'!$A$4:$A$1000,"") ->  | D59: =IFERROR(VLOOKUP($C59,'مبيعات ومردودات المشتريات'!$A$4:$N$1000,COLUMN()-2,0),"") ->  | E59: =IFERROR(VLOOKUP($C59,'مبيعات ومردودات المشتريات'!$A$4:$N$1000,COLUMN()-2,0),"") ->  | F59: =IFERROR(VLOOKUP($C59,'مبيعات ومردودات المشتريات'!$A$4:$N$1000,COLUMN()-2,0),"") ->  | G59: =IFERROR(VLOOKUP($C59,'مبيعات ومردودات المشتريات'!$A$4:$N$1000,COLUMN()-2,0),"") ->  | H59: =IFERROR(VLOOKUP($C59,'مبيعات ومردودات المشتريات'!$A$4:$N$1000,COLUMN()-2,0),"") ->  | I59: =IFERROR(VLOOKUP($C59,'مبيعات ومردودات المشتريات'!$A$4:$N$1000,COLUMN()-2,0),"") ->  | J59: =IFERROR(VLOOKUP($C59,'مبيعات ومردودات المشتريات'!$A$4:$N$1000,COLUMN()-2,0),"") ->  | K59: =IFERROR(VLOOKUP($C59,'مبيعات ومردودات المشتريات'!$A$4:$N$1000,COLUMN()-2,0),"") ->  | L59: =IFERROR(VLOOKUP($C59,'مبيعات ومردودات المشتريات'!$A$4:$N$1000,COLUMN()-2,0),"") -> 
B60: =IF($G$1='مبيعات ومردودات المشتريات'!$H$4:$H$1000,'مبيعات ومردودات المشتريات'!$A$4:$A$1000,"") ->  | D60: =IFERROR(VLOOKUP($C60,'مبيعات ومردودات المشتريات'!$A$4:$N$1000,COLUMN()-2,0),"") ->  | E60: =IFERROR(VLOOKUP($C60,'مبيعات ومردودات المشتريات'!$A$4:$N$1000,COLUMN()-2,0),"") ->  | F60: =IFERROR(VLOOKUP($C60,'مبيعات ومردودات المشتريات'!$A$4:$N$1000,COLUMN()-2,0),"") ->  | G60: =IFERROR(VLOOKUP($C60,'مبيعات ومردودات المشتريات'!$A$4:$N$1000,COLUMN()-2,0),"") ->  | H60: =IFERROR(VLOOKUP($C60,'مبيعات ومردودات المشتريات'!$A$4:$N$1000,COLUMN()-2,0),"") ->  | I60: =IFERROR(VLOOKUP($C60,'مبيعات ومردودات المشتريات'!$A$4:$N$1000,COLUMN()-2,0),"") ->  | J60: =IFERROR(VLOOKUP($C60,'مبيعات ومردودات المشتريات'!$A$4:$N$1000,COLUMN()-2,0),"") ->  | K60: =IFERROR(VLOOKUP($C60,'مبيعات ومردودات المشتريات'!$A$4:$N$1000,COLUMN()-2,0),"") ->  | L60: =IFERROR(VLOOKUP($C60,'مبيعات ومردودات المشتريات'!$A$4:$N$1000,COLUMN()-2,0),"") -> 
B61: =IF($G$1='مبيعات ومردودات المشتريات'!$H$4:$H$1000,'مبيعات ومردودات المشتريات'!$A$4:$A$1000,"") ->  | D61: =IFERROR(VLOOKUP($C61,'مبيعات ومردودات المشتريات'!$A$4:$N$1000,COLUMN()-2,0),"") ->  | E61: =IFERROR(VLOOKUP($C61,'مبيعات ومردودات المشتريات'!$A$4:$N$1000,COLUMN()-2,0),"") ->  | F61: =IFERROR(VLOOKUP($C61,'مبيعات ومردودات المشتريات'!$A$4:$N$1000,COLUMN()-2,0),"") ->  | G61: =IFERROR(VLOOKUP($C61,'مبيعات ومردودات المشتريات'!$A$4:$N$1000,COLUMN()-2,0),"") ->  | H61: =IFERROR(VLOOKUP($C61,'مبيعات ومردودات المشتريات'!$A$4:$N$1000,COLUMN()-2,0),"") ->  | I61: =IFERROR(VLOOKUP($C61,'مبيعات ومردودات المشتريات'!$A$4:$N$1000,COLUMN()-2,0),"") ->  | J61: =IFERROR(VLOOKUP($C61,'مبيعات ومردودات المشتريات'!$A$4:$N$1000,COLUMN()-2,0),"") ->  | K61: =IFERROR(VLOOKUP($C61,'مبيعات ومردودات المشتريات'!$A$4:$N$1000,COLUMN()-2,0),"") ->  | L61: =IFERROR(VLOOKUP($C61,'مبيعات ومردودات المشتريات'!$A$4:$N$1000,COLUMN()-2,0),"") -> 
B62: =IF($G$1='مبيعات ومردودات المشتريات'!$H$4:$H$1000,'مبيعات ومردودات المشتريات'!$A$4:$A$1000,"") ->  | D62: =IFERROR(VLOOKUP($C62,'مبيعات ومردودات المشتريات'!$A$4:$N$1000,COLUMN()-2,0),"") ->  | E62: =IFERROR(VLOOKUP($C62,'مبيعات ومردودات المشتريات'!$A$4:$N$1000,COLUMN()-2,0),"") ->  | F62: =IFERROR(VLOOKUP($C62,'مبيعات ومردودات المشتريات'!$A$4:$N$1000,COLUMN()-2,0),"") ->  | G62: =IFERROR(VLOOKUP($C62,'مبيعات ومردودات المشتريات'!$A$4:$N$1000,COLUMN()-2,0),"") ->  | H62: =IFERROR(VLOOKUP($C62,'مبيعات ومردودات المشتريات'!$A$4:$N$1000,COLUMN()-2,0),"") ->  | I62: =IFERROR(VLOOKUP($C62,'مبيعات ومردودات المشتريات'!$A$4:$N$1000,COLUMN()-2,0),"") ->  | J62: =IFERROR(VLOOKUP($C62,'مبيعات ومردودات المشتريات'!$A$4:$N$1000,COLUMN()-2,0),"") ->  | K62: =IFERROR(VLOOKUP($C62,'مبيعات ومردودات المشتريات'!$A$4:$N$1000,COLUMN()-2,0),"") ->  | L62: =IFERROR(VLOOKUP($C62,'مبيعات ومردودات المشتريات'!$A$4:$N$1000,COLUMN()-2,0),"") -> 
B63: =IF($G$1='مبيعات ومردودات المشتريات'!$H$4:$H$1000,'مبيعات ومردودات المشتريات'!$A$4:$A$1000,"") ->  | D63: =IFERROR(VLOOKUP($C63,'مبيعات ومردودات المشتريات'!$A$4:$N$1000,COLUMN()-2,0),"") ->  | E63: =IFERROR(VLOOKUP($C63,'مبيعات ومردودات المشتريات'!$A$4:$N$1000,COLUMN()-2,0),"") ->  | F63: =IFERROR(VLOOKUP($C63,'مبيعات ومردودات المشتريات'!$A$4:$N$1000,COLUMN()-2,0),"") ->  | G63: =IFERROR(VLOOKUP($C63,'مبيعات ومردودات المشتريات'!$A$4:$N$1000,COLUMN()-2,0),"") ->  | H63: =IFERROR(VLOOKUP($C63,'مبيعات ومردودات المشتريات'!$A$4:$N$1000,COLUMN()-2,0),"") ->  | I63: =IFERROR(VLOOKUP($C63,'مبيعات ومردودات المشتريات'!$A$4:$N$1000,COLUMN()-2,0),"") ->  | J63: =IFERROR(VLOOKUP($C63,'مبيعات ومردودات المشتريات'!$A$4:$N$1000,COLUMN()-2,0),"") ->  | K63: =IFERROR(VLOOKUP($C63,'مبيعات ومردودات المشتريات'!$A$4:$N$1000,COLUMN()-2,0),"") ->  | L63: =IFERROR(VLOOKUP($C63,'مبيعات ومردودات المشتريات'!$A$4:$N$1000,COLUMN()-2,0),"") -> 
B64: =IF($G$1='مبيعات ومردودات المشتريات'!$H$4:$H$1000,'مبيعات ومردودات المشتريات'!$A$4:$A$1000,"") ->  | D64: =IFERROR(VLOOKUP($C64,'مبيعات ومردودات المشتريات'!$A$4:$N$1000,COLUMN()-2,0),"") ->  | E64: =IFERROR(VLOOKUP($C64,'مبيعات ومردودات المشتريات'!$A$4:$N$1000,COLUMN()-2,0),"") ->  | F64: =IFERROR(VLOOKUP($C64,'مبيعات ومردودات المشتريات'!$A$4:$N$1000,COLUMN()-2,0),"") ->  | G64: =IFERROR(VLOOKUP($C64,'مبيعات ومردودات المشتريات'!$A$4:$N$1000,COLUMN()-2,0),"") ->  | H64: =IFERROR(VLOOKUP($C64,'مبيعات ومردودات المشتريات'!$A$4:$N$1000,COLUMN()-2,0),"") ->  | I64: =IFERROR(VLOOKUP($C64,'مبيعات ومردودات المشتريات'!$A$4:$N$1000,COLUMN()-2,0),"") ->  | J64: =IFERROR(VLOOKUP($C64,'مبيعات ومردودات المشتريات'!$A$4:$N$1000,COLUMN()-2,0),"") ->  | K64: =IFERROR(VLOOKUP($C64,'مبيعات ومردودات المشتريات'!$A$4:$N$1000,COLUMN()-2,0),"") ->  | L64: =IFERROR(VLOOKUP($C64,'مبيعات ومردودات المشتريات'!$A$4:$N$1000,COLUMN()-2,0),"") -> 
B65: =IF($G$1='مبيعات ومردودات المشتريات'!$H$4:$H$1000,'مبيعات ومردودات المشتريات'!$A$4:$A$1000,"") ->  | D65: =IFERROR(VLOOKUP($C65,'مبيعات ومردودات المشتريات'!$A$4:$N$1000,COLUMN()-2,0),"") ->  | E65: =IFERROR(VLOOKUP($C65,'مبيعات ومردودات المشتريات'!$A$4:$N$1000,COLUMN()-2,0),"") ->  | F65: =IFERROR(VLOOKUP($C65,'مبيعات ومردودات المشتريات'!$A$4:$N$1000,COLUMN()-2,0),"") ->  | G65: =IFERROR(VLOOKUP($C65,'مبيعات ومردودات المشتريات'!$A$4:$N$1000,COLUMN()-2,0),"") ->  | H65: =IFERROR(VLOOKUP($C65,'مبيعات ومردودات المشتريات'!$A$4:$N$1000,COLUMN()-2,0),"") ->  | I65: =IFERROR(VLOOKUP($C65,'مبيعات ومردودات المشتريات'!$A$4:$N$1000,COLUMN()-2,0),"") ->  | J65: =IFERROR(VLOOKUP($C65,'مبيعات ومردودات المشتريات'!$A$4:$N$1000,COLUMN()-2,0),"") ->  | K65: =IFERROR(VLOOKUP($C65,'مبيعات ومردودات المشتريات'!$A$4:$N$1000,COLUMN()-2,0),"") ->  | L65: =IFERROR(VLOOKUP($C65,'مبيعات ومردودات المشتريات'!$A$4:$N$1000,COLUMN()-2,0),"") -> 
B66: =IF($G$1='مبيعات ومردودات المشتريات'!$H$4:$H$1000,'مبيعات ومردودات المشتريات'!$A$4:$A$1000,"") ->  | D66: =IFERROR(VLOOKUP($C66,'مبيعات ومردودات المشتريات'!$A$4:$N$1000,COLUMN()-2,0),"") ->  | E66: =IFERROR(VLOOKUP($C66,'مبيعات ومردودات المشتريات'!$A$4:$N$1000,COLUMN()-2,0),"") ->  | F66: =IFERROR(VLOOKUP($C66,'مبيعات ومردودات المشتريات'!$A$4:$N$1000,COLUMN()-2,0),"") ->  | G66: =IFERROR(VLOOKUP($C66,'مبيعات ومردودات المشتريات'!$A$4:$N$1000,COLUMN()-2,0),"") ->  | H66: =IFERROR(VLOOKUP($C66,'مبيعات ومردودات المشتريات'!$A$4:$N$1000,COLUMN()-2,0),"") ->  | I66: =IFERROR(VLOOKUP($C66,'مبيعات ومردودات المشتريات'!$A$4:$N$1000,COLUMN()-2,0),"") ->  | J66: =IFERROR(VLOOKUP($C66,'مبيعات ومردودات المشتريات'!$A$4:$N$1000,COLUMN()-2,0),"") ->  | K66: =IFERROR(VLOOKUP($C66,'مبيعات ومردودات المشتريات'!$A$4:$N$1000,COLUMN()-2,0),"") ->  | L66: =IFERROR(VLOOKUP($C66,'مبيعات ومردودات المشتريات'!$A$4:$N$1000,COLUMN()-2,0),"") -> 
B67: =IF($G$1='مبيعات ومردودات المشتريات'!$H$4:$H$1000,'مبيعات ومردودات المشتريات'!$A$4:$A$1000,"") ->  | D67: =IFERROR(VLOOKUP($C67,'مبيعات ومردودات المشتريات'!$A$4:$N$1000,COLUMN()-2,0),"") ->  | E67: =IFERROR(VLOOKUP($C67,'مبيعات ومردودات المشتريات'!$A$4:$N$1000,COLUMN()-2,0),"") ->  | F67: =IFERROR(VLOOKUP($C67,'مبيعات ومردودات المشتريات'!$A$4:$N$1000,COLUMN()-2,0),"") ->  | G67: =IFERROR(VLOOKUP($C67,'مبيعات ومردودات المشتريات'!$A$4:$N$1000,COLUMN()-2,0),"") ->  | H67: =IFERROR(VLOOKUP($C67,'مبيعات ومردودات المشتريات'!$A$4:$N$1000,COLUMN()-2,0),"") ->  | I67: =IFERROR(VLOOKUP($C67,'مبيعات ومردودات المشتريات'!$A$4:$N$1000,COLUMN()-2,0),"") ->  | J67: =IFERROR(VLOOKUP($C67,'مبيعات ومردودات المشتريات'!$A$4:$N$1000,COLUMN()-2,0),"") ->  | K67: =IFERROR(VLOOKUP($C67,'مبيعات ومردودات المشتريات'!$A$4:$N$1000,COLUMN()-2,0),"") ->  | L67: =IFERROR(VLOOKUP($C67,'مبيعات ومردودات المشتريات'!$A$4:$N$1000,COLUMN()-2,0),"") -> 
B68: =IF($G$1='مبيعات ومردودات المشتريات'!$H$4:$H$1000,'مبيعات ومردودات المشتريات'!$A$4:$A$1000,"") ->  | D68: =IFERROR(VLOOKUP($C68,'مبيعات ومردودات المشتريات'!$A$4:$N$1000,COLUMN()-2,0),"") ->  | E68: =IFERROR(VLOOKUP($C68,'مبيعات ومردودات المشتريات'!$A$4:$N$1000,COLUMN()-2,0),"") ->  | F68: =IFERROR(VLOOKUP($C68,'مبيعات ومردودات المشتريات'!$A$4:$N$1000,COLUMN()-2,0),"") ->  | G68: =IFERROR(VLOOKUP($C68,'مبيعات ومردودات المشتريات'!$A$4:$N$1000,COLUMN()-2,0),"") ->  | H68: =IFERROR(VLOOKUP($C68,'مبيعات ومردودات المشتريات'!$A$4:$N$1000,COLUMN()-2,0),"") ->  | I68: =IFERROR(VLOOKUP($C68,'مبيعات ومردودات المشتريات'!$A$4:$N$1000,COLUMN()-2,0),"") ->  | J68: =IFERROR(VLOOKUP($C68,'مبيعات ومردودات المشتريات'!$A$4:$N$1000,COLUMN()-2,0),"") ->  | K68: =IFERROR(VLOOKUP($C68,'مبيعات ومردودات المشتريات'!$A$4:$N$1000,COLUMN()-2,0),"") ->  | L68: =IFERROR(VLOOKUP($C68,'مبيعات ومردودات المشتريات'!$A$4:$N$1000,COLUMN()-2,0),"") -> 
A69: =IF(B69="","",ROW()) ->  | B69: =IF($G$1='مبيعات ومردودات المشتريات'!$H$4:$H$1000,'مبيعات ومردودات المشتريات'!$A$4:$A$1000,"") ->  | C69: =IFERROR(VLOOKUP(SMALL($A$4:$A$100,ROW()-3),$A$4:$B$100,2,0),"") ->  | D69: =IFERROR(VLOOKUP($C69,'مبيعات ومردودات المشتريات'!$A$4:$N$1000,COLUMN()-2,0),"") ->  | E69: =IFERROR(VLOOKUP($C69,'مبيعات ومردودات المشتريات'!$A$4:$N$1000,COLUMN()-2,0),"") ->  | F69: =IFERROR(VLOOKUP($C69,'مبيعات ومردودات المشتريات'!$A$4:$N$1000,COLUMN()-2,0),"") ->  | G69: =IFERROR(VLOOKUP($C69,'مبيعات ومردودات المشتريات'!$A$4:$N$1000,COLUMN()-2,0),"") ->  | H69: =IFERROR(VLOOKUP($C69,'مبيعات ومردودات المشتريات'!$A$4:$N$1000,COLUMN()-2,0),"") ->  | I69: =IFERROR(VLOOKUP($C69,'مبيعات ومردودات المشتريات'!$A$4:$N$1000,COLUMN()-2,0),"") ->  | J69: =IFERROR(VLOOKUP($C69,'مبيعات ومردودات المشتريات'!$A$4:$N$1000,COLUMN()-2,0),"") ->  | K69: =IFERROR(VLOOKUP($C69,'مبيعات ومردودات المشتريات'!$A$4:$N$1000,COLUMN()-2,0),"") ->  | L69: =IFERROR(VLOOKUP($C69,'مبيعات ومردودات المشتريات'!$A$4:$N$1000,COLUMN()-2,0),"") -> 
B70: =IF($G$1='مبيعات ومردودات المشتريات'!$H$4:$H$1000,'مبيعات ومردودات المشتريات'!$A$4:$A$1000,"") ->  | D70: =IFERROR(VLOOKUP($C70,'مبيعات ومردودات المشتريات'!$A$4:$N$1000,COLUMN()-2,0),"") ->  | E70: =IFERROR(VLOOKUP($C70,'مبيعات ومردودات المشتريات'!$A$4:$N$1000,COLUMN()-2,0),"") ->  | F70: =IFERROR(VLOOKUP($C70,'مبيعات ومردودات المشتريات'!$A$4:$N$1000,COLUMN()-2,0),"") ->  | G70: =IFERROR(VLOOKUP($C70,'مبيعات ومردودات المشتريات'!$A$4:$N$1000,COLUMN()-2,0),"") ->  | H70: =IFERROR(VLOOKUP($C70,'مبيعات ومردودات المشتريات'!$A$4:$N$1000,COLUMN()-2,0),"") ->  | I70: =IFERROR(VLOOKUP($C70,'مبيعات ومردودات المشتريات'!$A$4:$N$1000,COLUMN()-2,0),"") ->  | J70: =IFERROR(VLOOKUP($C70,'مبيعات ومردودات المشتريات'!$A$4:$N$1000,COLUMN()-2,0),"") ->  | K70: =IFERROR(VLOOKUP($C70,'مبيعات ومردودات المشتريات'!$A$4:$N$1000,COLUMN()-2,0),"") ->  | L70: =IFERROR(VLOOKUP($C70,'مبيعات ومردودات المشتريات'!$A$4:$N$1000,COLUMN()-2,0),"") -> 
B71: =IF($G$1='مبيعات ومردودات المشتريات'!$H$4:$H$1000,'مبيعات ومردودات المشتريات'!$A$4:$A$1000,"") ->  | D71: =IFERROR(VLOOKUP($C71,'مبيعات ومردودات المشتريات'!$A$4:$N$1000,COLUMN()-2,0),"") ->  | E71: =IFERROR(VLOOKUP($C71,'مبيعات ومردودات المشتريات'!$A$4:$N$1000,COLUMN()-2,0),"") ->  | F71: =IFERROR(VLOOKUP($C71,'مبيعات ومردودات المشتريات'!$A$4:$N$1000,COLUMN()-2,0),"") ->  | G71: =IFERROR(VLOOKUP($C71,'مبيعات ومردودات المشتريات'!$A$4:$N$1000,COLUMN()-2,0),"") ->  | H71: =IFERROR(VLOOKUP($C71,'مبيعات ومردودات المشتريات'!$A$4:$N$1000,COLUMN()-2,0),"") ->  | I71: =IFERROR(VLOOKUP($C71,'مبيعات ومردودات المشتريات'!$A$4:$N$1000,COLUMN()-2,0),"") ->  | J71: =IFERROR(VLOOKUP($C71,'مبيعات ومردودات المشتريات'!$A$4:$N$1000,COLUMN()-2,0),"") ->  | K71: =IFERROR(VLOOKUP($C71,'مبيعات ومردودات المشتريات'!$A$4:$N$1000,COLUMN()-2,0),"") ->  | L71: =IFERROR(VLOOKUP($C71,'مبيعات ومردودات المشتريات'!$A$4:$N$1000,COLUMN()-2,0),"") -> 
B72: =IF($G$1='مبيعات ومردودات المشتريات'!$H$4:$H$1000,'مبيعات ومردودات المشتريات'!$A$4:$A$1000,"") ->  | D72: =IFERROR(VLOOKUP($C72,'مبيعات ومردودات المشتريات'!$A$4:$N$1000,COLUMN()-2,0),"") ->  | E72: =IFERROR(VLOOKUP($C72,'مبيعات ومردودات المشتريات'!$A$4:$N$1000,COLUMN()-2,0),"") ->  | F72: =IFERROR(VLOOKUP($C72,'مبيعات ومردودات المشتريات'!$A$4:$N$1000,COLUMN()-2,0),"") ->  | G72: =IFERROR(VLOOKUP($C72,'مبيعات ومردودات المشتريات'!$A$4:$N$1000,COLUMN()-2,0),"") ->  | H72: =IFERROR(VLOOKUP($C72,'مبيعات ومردودات المشتريات'!$A$4:$N$1000,COLUMN()-2,0),"") ->  | I72: =IFERROR(VLOOKUP($C72,'مبيعات ومردودات المشتريات'!$A$4:$N$1000,COLUMN()-2,0),"") ->  | J72: =IFERROR(VLOOKUP($C72,'مبيعات ومردودات المشتريات'!$A$4:$N$1000,COLUMN()-2,0),"") ->  | K72: =IFERROR(VLOOKUP($C72,'مبيعات ومردودات المشتريات'!$A$4:$N$1000,COLUMN()-2,0),"") ->  | L72: =IFERROR(VLOOKUP($C72,'مبيعات ومردودات المشتريات'!$A$4:$N$1000,COLUMN()-2,0),"") -> 
B73: =IF($G$1='مبيعات ومردودات المشتريات'!$H$4:$H$1000,'مبيعات ومردودات المشتريات'!$A$4:$A$1000,"") ->  | D73: =IFERROR(VLOOKUP($C73,'مبيعات ومردودات المشتريات'!$A$4:$N$1000,COLUMN()-2,0),"") ->  | E73: =IFERROR(VLOOKUP($C73,'مبيعات ومردودات المشتريات'!$A$4:$N$1000,COLUMN()-2,0),"") ->  | F73: =IFERROR(VLOOKUP($C73,'مبيعات ومردودات المشتريات'!$A$4:$N$1000,COLUMN()-2,0),"") ->  | G73: =IFERROR(VLOOKUP($C73,'مبيعات ومردودات المشتريات'!$A$4:$N$1000,COLUMN()-2,0),"") ->  | H73: =IFERROR(VLOOKUP($C73,'مبيعات ومردودات المشتريات'!$A$4:$N$1000,COLUMN()-2,0),"") ->  | I73: =IFERROR(VLOOKUP($C73,'مبيعات ومردودات المشتريات'!$A$4:$N$1000,COLUMN()-2,0),"") ->  | J73: =IFERROR(VLOOKUP($C73,'مبيعات ومردودات المشتريات'!$A$4:$N$1000,COLUMN()-2,0),"") ->  | K73: =IFERROR(VLOOKUP($C73,'مبيعات ومردودات المشتريات'!$A$4:$N$1000,COLUMN()-2,0),"") ->  | L73: =IFERROR(VLOOKUP($C73,'مبيعات ومردودات المشتريات'!$A$4:$N$1000,COLUMN()-2,0),"") -> 
B74: =IF($G$1='مبيعات ومردودات المشتريات'!$H$4:$H$1000,'مبيعات ومردودات المشتريات'!$A$4:$A$1000,"") ->  | D74: =IFERROR(VLOOKUP($C74,'مبيعات ومردودات المشتريات'!$A$4:$N$1000,COLUMN()-2,0),"") ->  | E74: =IFERROR(VLOOKUP($C74,'مبيعات ومردودات المشتريات'!$A$4:$N$1000,COLUMN()-2,0),"") ->  | F74: =IFERROR(VLOOKUP($C74,'مبيعات ومردودات المشتريات'!$A$4:$N$1000,COLUMN()-2,0),"") ->  | G74: =IFERROR(VLOOKUP($C74,'مبيعات ومردودات المشتريات'!$A$4:$N$1000,COLUMN()-2,0),"") ->  | H74: =IFERROR(VLOOKUP($C74,'مبيعات ومردودات المشتريات'!$A$4:$N$1000,COLUMN()-2,0),"") ->  | I74: =IFERROR(VLOOKUP($C74,'مبيعات ومردودات المشتريات'!$A$4:$N$1000,COLUMN()-2,0),"") ->  | J74: =IFERROR(VLOOKUP($C74,'مبيعات ومردودات المشتريات'!$A$4:$N$1000,COLUMN()-2,0),"") ->  | K74: =IFERROR(VLOOKUP($C74,'مبيعات ومردودات المشتريات'!$A$4:$N$1000,COLUMN()-2,0),"") ->  | L74: =IFERROR(VLOOKUP($C74,'مبيعات ومردودات المشتريات'!$A$4:$N$1000,COLUMN()-2,0),"") -> 
B75: =IF($G$1='مبيعات ومردودات المشتريات'!$H$4:$H$1000,'مبيعات ومردودات المشتريات'!$A$4:$A$1000,"") ->  | D75: =IFERROR(VLOOKUP($C75,'مبيعات ومردودات المشتريات'!$A$4:$N$1000,COLUMN()-2,0),"") ->  | E75: =IFERROR(VLOOKUP($C75,'مبيعات ومردودات المشتريات'!$A$4:$N$1000,COLUMN()-2,0),"") ->  | F75: =IFERROR(VLOOKUP($C75,'مبيعات ومردودات المشتريات'!$A$4:$N$1000,COLUMN()-2,0),"") ->  | G75: =IFERROR(VLOOKUP($C75,'مبيعات ومردودات المشتريات'!$A$4:$N$1000,COLUMN()-2,0),"") ->  | H75: =IFERROR(VLOOKUP($C75,'مبيعات ومردودات المشتريات'!$A$4:$N$1000,COLUMN()-2,0),"") ->  | I75: =IFERROR(VLOOKUP($C75,'مبيعات ومردودات المشتريات'!$A$4:$N$1000,COLUMN()-2,0),"") ->  | J75: =IFERROR(VLOOKUP($C75,'مبيعات ومردودات المشتريات'!$A$4:$N$1000,COLUMN()-2,0),"") ->  | K75: =IFERROR(VLOOKUP($C75,'مبيعات ومردودات المشتريات'!$A$4:$N$1000,COLUMN()-2,0),"") ->  | L75: =IFERROR(VLOOKUP($C75,'مبيعات ومردودات المشتريات'!$A$4:$N$1000,COLUMN()-2,0),"") -> 
B76: =IF($G$1='مبيعات ومردودات المشتريات'!$H$4:$H$1000,'مبيعات ومردودات المشتريات'!$A$4:$A$1000,"") ->  | D76: =IFERROR(VLOOKUP($C76,'مبيعات ومردودات المشتريات'!$A$4:$N$1000,COLUMN()-2,0),"") ->  | E76: =IFERROR(VLOOKUP($C76,'مبيعات ومردودات المشتريات'!$A$4:$N$1000,COLUMN()-2,0),"") ->  | F76: =IFERROR(VLOOKUP($C76,'مبيعات ومردودات المشتريات'!$A$4:$N$1000,COLUMN()-2,0),"") ->  | G76: =IFERROR(VLOOKUP($C76,'مبيعات ومردودات المشتريات'!$A$4:$N$1000,COLUMN()-2,0),"") ->  | H76: =IFERROR(VLOOKUP($C76,'مبيعات ومردودات المشتريات'!$A$4:$N$1000,COLUMN()-2,0),"") ->  | I76: =IFERROR(VLOOKUP($C76,'مبيعات ومردودات المشتريات'!$A$4:$N$1000,COLUMN()-2,0),"") ->  | J76: =IFERROR(VLOOKUP($C76,'مبيعات ومردودات المشتريات'!$A$4:$N$1000,COLUMN()-2,0),"") ->  | K76: =IFERROR(VLOOKUP($C76,'مبيعات ومردودات المشتريات'!$A$4:$N$1000,COLUMN()-2,0),"") ->  | L76: =IFERROR(VLOOKUP($C76,'مبيعات ومردودات المشتريات'!$A$4:$N$1000,COLUMN()-2,0),"") -> 
B77: =IF($G$1='مبيعات ومردودات المشتريات'!$H$4:$H$1000,'مبيعات ومردودات المشتريات'!$A$4:$A$1000,"") ->  | D77: =IFERROR(VLOOKUP($C77,'مبيعات ومردودات المشتريات'!$A$4:$N$1000,COLUMN()-2,0),"") ->  | E77: =IFERROR(VLOOKUP($C77,'مبيعات ومردودات المشتريات'!$A$4:$N$1000,COLUMN()-2,0),"") ->  | F77: =IFERROR(VLOOKUP($C77,'مبيعات ومردودات المشتريات'!$A$4:$N$1000,COLUMN()-2,0),"") ->  | G77: =IFERROR(VLOOKUP($C77,'مبيعات ومردودات المشتريات'!$A$4:$N$1000,COLUMN()-2,0),"") ->  | H77: =IFERROR(VLOOKUP($C77,'مبيعات ومردودات المشتريات'!$A$4:$N$1000,COLUMN()-2,0),"") ->  | I77: =IFERROR(VLOOKUP($C77,'مبيعات ومردودات المشتريات'!$A$4:$N$1000,COLUMN()-2,0),"") ->  | J77: =IFERROR(VLOOKUP($C77,'مبيعات ومردودات المشتريات'!$A$4:$N$1000,COLUMN()-2,0),"") ->  | K77: =IFERROR(VLOOKUP($C77,'مبيعات ومردودات المشتريات'!$A$4:$N$1000,COLUMN()-2,0),"") ->  | L77: =IFERROR(VLOOKUP($C77,'مبيعات ومردودات المشتريات'!$A$4:$N$1000,COLUMN()-2,0),"") -> 
B78: =IF($G$1='مبيعات ومردودات المشتريات'!$H$4:$H$1000,'مبيعات ومردودات المشتريات'!$A$4:$A$1000,"") ->  | D78: =IFERROR(VLOOKUP($C78,'مبيعات ومردودات المشتريات'!$A$4:$N$1000,COLUMN()-2,0),"") ->  | E78: =IFERROR(VLOOKUP($C78,'مبيعات ومردودات المشتريات'!$A$4:$N$1000,COLUMN()-2,0),"") ->  | F78: =IFERROR(VLOOKUP($C78,'مبيعات ومردودات المشتريات'!$A$4:$N$1000,COLUMN()-2,0),"") ->  | G78: =IFERROR(VLOOKUP($C78,'مبيعات ومردودات المشتريات'!$A$4:$N$1000,COLUMN()-2,0),"") ->  | H78: =IFERROR(VLOOKUP($C78,'مبيعات ومردودات المشتريات'!$A$4:$N$1000,COLUMN()-2,0),"") ->  | I78: =IFERROR(VLOOKUP($C78,'مبيعات ومردودات المشتريات'!$A$4:$N$1000,COLUMN()-2,0),"") ->  | J78: =IFERROR(VLOOKUP($C78,'مبيعات ومردودات المشتريات'!$A$4:$N$1000,COLUMN()-2,0),"") ->  | K78: =IFERROR(VLOOKUP($C78,'مبيعات ومردودات المشتريات'!$A$4:$N$1000,COLUMN()-2,0),"") ->  | L78: =IFERROR(VLOOKUP($C78,'مبيعات ومردودات المشتريات'!$A$4:$N$1000,COLUMN()-2,0),"") -> 
B79: =IF($G$1='مبيعات ومردودات المشتريات'!$H$4:$H$1000,'مبيعات ومردودات المشتريات'!$A$4:$A$1000,"") ->  | D79: =IFERROR(VLOOKUP($C79,'مبيعات ومردودات المشتريات'!$A$4:$N$1000,COLUMN()-2,0),"") ->  | E79: =IFERROR(VLOOKUP($C79,'مبيعات ومردودات المشتريات'!$A$4:$N$1000,COLUMN()-2,0),"") ->  | F79: =IFERROR(VLOOKUP($C79,'مبيعات ومردودات المشتريات'!$A$4:$N$1000,COLUMN()-2,0),"") ->  | G79: =IFERROR(VLOOKUP($C79,'مبيعات ومردودات المشتريات'!$A$4:$N$1000,COLUMN()-2,0),"") ->  | H79: =IFERROR(VLOOKUP($C79,'مبيعات ومردودات المشتريات'!$A$4:$N$1000,COLUMN()-2,0),"") ->  | I79: =IFERROR(VLOOKUP($C79,'مبيعات ومردودات المشتريات'!$A$4:$N$1000,COLUMN()-2,0),"") ->  | J79: =IFERROR(VLOOKUP($C79,'مبيعات ومردودات المشتريات'!$A$4:$N$1000,COLUMN()-2,0),"") ->  | K79: =IFERROR(VLOOKUP($C79,'مبيعات ومردودات المشتريات'!$A$4:$N$1000,COLUMN()-2,0),"") ->  | L79: =IFERROR(VLOOKUP($C79,'مبيعات ومردودات المشتريات'!$A$4:$N$1000,COLUMN()-2,0),"") -> 
B80: =IF($G$1='مبيعات ومردودات المشتريات'!$H$4:$H$1000,'مبيعات ومردودات المشتريات'!$A$4:$A$1000,"") ->  | D80: =IFERROR(VLOOKUP($C80,'مبيعات ومردودات المشتريات'!$A$4:$N$1000,COLUMN()-2,0),"") ->  | E80: =IFERROR(VLOOKUP($C80,'مبيعات ومردودات المشتريات'!$A$4:$N$1000,COLUMN()-2,0),"") ->  | F80: =IFERROR(VLOOKUP($C80,'مبيعات ومردودات المشتريات'!$A$4:$N$1000,COLUMN()-2,0),"") ->  | G80: =IFERROR(VLOOKUP($C80,'مبيعات ومردودات المشتريات'!$A$4:$N$1000,COLUMN()-2,0),"") ->  | H80: =IFERROR(VLOOKUP($C80,'مبيعات ومردودات المشتريات'!$A$4:$N$1000,COLUMN()-2,0),"") ->  | I80: =IFERROR(VLOOKUP($C80,'مبيعات ومردودات المشتريات'!$A$4:$N$1000,COLUMN()-2,0),"") ->  | J80: =IFERROR(VLOOKUP($C80,'مبيعات ومردودات المشتريات'!$A$4:$N$1000,COLUMN()-2,0),"") ->  | K80: =IFERROR(VLOOKUP($C80,'مبيعات ومردودات المشتريات'!$A$4:$N$1000,COLUMN()-2,0),"") ->  | L80: =IFERROR(VLOOKUP($C80,'مبيعات ومردودات المشتريات'!$A$4:$N$1000,COLUMN()-2,0),"") -> 
B81: =IF($G$1='مبيعات ومردودات المشتريات'!$H$4:$H$1000,'مبيعات ومردودات المشتريات'!$A$4:$A$1000,"") ->  | D81: =IFERROR(VLOOKUP($C81,'مبيعات ومردودات المشتريات'!$A$4:$N$1000,COLUMN()-2,0),"") ->  | E81: =IFERROR(VLOOKUP($C81,'مبيعات ومردودات المشتريات'!$A$4:$N$1000,COLUMN()-2,0),"") ->  | F81: =IFERROR(VLOOKUP($C81,'مبيعات ومردودات المشتريات'!$A$4:$N$1000,COLUMN()-2,0),"") ->  | G81: =IFERROR(VLOOKUP($C81,'مبيعات ومردودات المشتريات'!$A$4:$N$1000,COLUMN()-2,0),"") ->  | H81: =IFERROR(VLOOKUP($C81,'مبيعات ومردودات المشتريات'!$A$4:$N$1000,COLUMN()-2,0),"") ->  | I81: =IFERROR(VLOOKUP($C81,'مبيعات ومردودات المشتريات'!$A$4:$N$1000,COLUMN()-2,0),"") ->  | J81: =IFERROR(VLOOKUP($C81,'مبيعات ومردودات المشتريات'!$A$4:$N$1000,COLUMN()-2,0),"") ->  | K81: =IFERROR(VLOOKUP($C81,'مبيعات ومردودات المشتريات'!$A$4:$N$1000,COLUMN()-2,0),"") ->  | L81: =IFERROR(VLOOKUP($C81,'مبيعات ومردودات المشتريات'!$A$4:$N$1000,COLUMN()-2,0),"") -> 
B82: =IF($G$1='مبيعات ومردودات المشتريات'!$H$4:$H$1000,'مبيعات ومردودات المشتريات'!$A$4:$A$1000,"") ->  | D82: =IFERROR(VLOOKUP($C82,'مبيعات ومردودات المشتريات'!$A$4:$N$1000,COLUMN()-2,0),"") ->  | E82: =IFERROR(VLOOKUP($C82,'مبيعات ومردودات المشتريات'!$A$4:$N$1000,COLUMN()-2,0),"") ->  | F82: =IFERROR(VLOOKUP($C82,'مبيعات ومردودات المشتريات'!$A$4:$N$1000,COLUMN()-2,0),"") ->  | G82: =IFERROR(VLOOKUP($C82,'مبيعات ومردودات المشتريات'!$A$4:$N$1000,COLUMN()-2,0),"") ->  | H82: =IFERROR(VLOOKUP($C82,'مبيعات ومردودات المشتريات'!$A$4:$N$1000,COLUMN()-2,0),"") ->  | I82: =IFERROR(VLOOKUP($C82,'مبيعات ومردودات المشتريات'!$A$4:$N$1000,COLUMN()-2,0),"") ->  | J82: =IFERROR(VLOOKUP($C82,'مبيعات ومردودات المشتريات'!$A$4:$N$1000,COLUMN()-2,0),"") ->  | K82: =IFERROR(VLOOKUP($C82,'مبيعات ومردودات المشتريات'!$A$4:$N$1000,COLUMN()-2,0),"") ->  | L82: =IFERROR(VLOOKUP($C82,'مبيعات ومردودات المشتريات'!$A$4:$N$1000,COLUMN()-2,0),"") -> 
B83: =IF($G$1='مبيعات ومردودات المشتريات'!$H$4:$H$1000,'مبيعات ومردودات المشتريات'!$A$4:$A$1000,"") ->  | D83: =IFERROR(VLOOKUP($C83,'مبيعات ومردودات المشتريات'!$A$4:$N$1000,COLUMN()-2,0),"") ->  | E83: =IFERROR(VLOOKUP($C83,'مبيعات ومردودات المشتريات'!$A$4:$N$1000,COLUMN()-2,0),"") ->  | F83: =IFERROR(VLOOKUP($C83,'مبيعات ومردودات المشتريات'!$A$4:$N$1000,COLUMN()-2,0),"") ->  | G83: =IFERROR(VLOOKUP($C83,'مبيعات ومردودات المشتريات'!$A$4:$N$1000,COLUMN()-2,0),"") ->  | H83: =IFERROR(VLOOKUP($C83,'مبيعات ومردودات المشتريات'!$A$4:$N$1000,COLUMN()-2,0),"") ->  | I83: =IFERROR(VLOOKUP($C83,'مبيعات ومردودات المشتريات'!$A$4:$N$1000,COLUMN()-2,0),"") ->  | J83: =IFERROR(VLOOKUP($C83,'مبيعات ومردودات المشتريات'!$A$4:$N$1000,COLUMN()-2,0),"") ->  | K83: =IFERROR(VLOOKUP($C83,'مبيعات ومردودات المشتريات'!$A$4:$N$1000,COLUMN()-2,0),"") ->  | L83: =IFERROR(VLOOKUP($C83,'مبيعات ومردودات المشتريات'!$A$4:$N$1000,COLUMN()-2,0),"") -> 
B84: =IF($G$1='مبيعات ومردودات المشتريات'!$H$4:$H$1000,'مبيعات ومردودات المشتريات'!$A$4:$A$1000,"") ->  | D84: =IFERROR(VLOOKUP($C84,'مبيعات ومردودات المشتريات'!$A$4:$N$1000,COLUMN()-2,0),"") ->  | E84: =IFERROR(VLOOKUP($C84,'مبيعات ومردودات المشتريات'!$A$4:$N$1000,COLUMN()-2,0),"") ->  | F84: =IFERROR(VLOOKUP($C84,'مبيعات ومردودات المشتريات'!$A$4:$N$1000,COLUMN()-2,0),"") ->  | G84: =IFERROR(VLOOKUP($C84,'مبيعات ومردودات المشتريات'!$A$4:$N$1000,COLUMN()-2,0),"") ->  | H84: =IFERROR(VLOOKUP($C84,'مبيعات ومردودات المشتريات'!$A$4:$N$1000,COLUMN()-2,0),"") ->  | I84: =IFERROR(VLOOKUP($C84,'مبيعات ومردودات المشتريات'!$A$4:$N$1000,COLUMN()-2,0),"") ->  | J84: =IFERROR(VLOOKUP($C84,'مبيعات ومردودات المشتريات'!$A$4:$N$1000,COLUMN()-2,0),"") ->  | K84: =IFERROR(VLOOKUP($C84,'مبيعات ومردودات المشتريات'!$A$4:$N$1000,COLUMN()-2,0),"") ->  | L84: =IFERROR(VLOOKUP($C84,'مبيعات ومردودات المشتريات'!$A$4:$N$1000,COLUMN()-2,0),"") -> 
B85: =IF($G$1='مبيعات ومردودات المشتريات'!$H$4:$H$1000,'مبيعات ومردودات المشتريات'!$A$4:$A$1000,"") ->  | D85: =IFERROR(VLOOKUP($C85,'مبيعات ومردودات المشتريات'!$A$4:$N$1000,COLUMN()-2,0),"") ->  | E85: =IFERROR(VLOOKUP($C85,'مبيعات ومردودات المشتريات'!$A$4:$N$1000,COLUMN()-2,0),"") ->  | F85: =IFERROR(VLOOKUP($C85,'مبيعات ومردودات المشتريات'!$A$4:$N$1000,COLUMN()-2,0),"") ->  | G85: =IFERROR(VLOOKUP($C85,'مبيعات ومردودات المشتريات'!$A$4:$N$1000,COLUMN()-2,0),"") ->  | H85: =IFERROR(VLOOKUP($C85,'مبيعات ومردودات المشتريات'!$A$4:$N$1000,COLUMN()-2,0),"") ->  | I85: =IFERROR(VLOOKUP($C85,'مبيعات ومردودات المشتريات'!$A$4:$N$1000,COLUMN()-2,0),"") ->  | J85: =IFERROR(VLOOKUP($C85,'مبيعات ومردودات المشتريات'!$A$4:$N$1000,COLUMN()-2,0),"") ->  | K85: =IFERROR(VLOOKUP($C85,'مبيعات ومردودات المشتريات'!$A$4:$N$1000,COLUMN()-2,0),"") ->  | L85: =IFERROR(VLOOKUP($C85,'مبيعات ومردودات المشتريات'!$A$4:$N$1000,COLUMN()-2,0),"") -> 
B86: =IF($G$1='مبيعات ومردودات المشتريات'!$H$4:$H$1000,'مبيعات ومردودات المشتريات'!$A$4:$A$1000,"") ->  | D86: =IFERROR(VLOOKUP($C86,'مبيعات ومردودات المشتريات'!$A$4:$N$1000,COLUMN()-2,0),"") ->  | E86: =IFERROR(VLOOKUP($C86,'مبيعات ومردودات المشتريات'!$A$4:$N$1000,COLUMN()-2,0),"") ->  | F86: =IFERROR(VLOOKUP($C86,'مبيعات ومردودات المشتريات'!$A$4:$N$1000,COLUMN()-2,0),"") ->  | G86: =IFERROR(VLOOKUP($C86,'مبيعات ومردودات المشتريات'!$A$4:$N$1000,COLUMN()-2,0),"") ->  | H86: =IFERROR(VLOOKUP($C86,'مبيعات ومردودات المشتريات'!$A$4:$N$1000,COLUMN()-2,0),"") ->  | I86: =IFERROR(VLOOKUP($C86,'مبيعات ومردودات المشتريات'!$A$4:$N$1000,COLUMN()-2,0),"") ->  | J86: =IFERROR(VLOOKUP($C86,'مبيعات ومردودات المشتريات'!$A$4:$N$1000,COLUMN()-2,0),"") ->  | K86: =IFERROR(VLOOKUP($C86,'مبيعات ومردودات المشتريات'!$A$4:$N$1000,COLUMN()-2,0),"") ->  | L86: =IFERROR(VLOOKUP($C86,'مبيعات ومردودات المشتريات'!$A$4:$N$1000,COLUMN()-2,0),"") -> 
B87: =IF($G$1='مبيعات ومردودات المشتريات'!$H$4:$H$1000,'مبيعات ومردودات المشتريات'!$A$4:$A$1000,"") ->  | D87: =IFERROR(VLOOKUP($C87,'مبيعات ومردودات المشتريات'!$A$4:$N$1000,COLUMN()-2,0),"") ->  | E87: =IFERROR(VLOOKUP($C87,'مبيعات ومردودات المشتريات'!$A$4:$N$1000,COLUMN()-2,0),"") ->  | F87: =IFERROR(VLOOKUP($C87,'مبيعات ومردودات المشتريات'!$A$4:$N$1000,COLUMN()-2,0),"") ->  | G87: =IFERROR(VLOOKUP($C87,'مبيعات ومردودات المشتريات'!$A$4:$N$1000,COLUMN()-2,0),"") ->  | H87: =IFERROR(VLOOKUP($C87,'مبيعات ومردودات المشتريات'!$A$4:$N$1000,COLUMN()-2,0),"") ->  | I87: =IFERROR(VLOOKUP($C87,'مبيعات ومردودات المشتريات'!$A$4:$N$1000,COLUMN()-2,0),"") ->  | J87: =IFERROR(VLOOKUP($C87,'مبيعات ومردودات المشتريات'!$A$4:$N$1000,COLUMN()-2,0),"") ->  | K87: =IFERROR(VLOOKUP($C87,'مبيعات ومردودات المشتريات'!$A$4:$N$1000,COLUMN()-2,0),"") ->  | L87: =IFERROR(VLOOKUP($C87,'مبيعات ومردودات المشتريات'!$A$4:$N$1000,COLUMN()-2,0),"") -> 
B88: =IF($G$1='مبيعات ومردودات المشتريات'!$H$4:$H$1000,'مبيعات ومردودات المشتريات'!$A$4:$A$1000,"") ->  | D88: =IFERROR(VLOOKUP($C88,'مبيعات ومردودات المشتريات'!$A$4:$N$1000,COLUMN()-2,0),"") ->  | E88: =IFERROR(VLOOKUP($C88,'مبيعات ومردودات المشتريات'!$A$4:$N$1000,COLUMN()-2,0),"") ->  | F88: =IFERROR(VLOOKUP($C88,'مبيعات ومردودات المشتريات'!$A$4:$N$1000,COLUMN()-2,0),"") ->  | G88: =IFERROR(VLOOKUP($C88,'مبيعات ومردودات المشتريات'!$A$4:$N$1000,COLUMN()-2,0),"") ->  | H88: =IFERROR(VLOOKUP($C88,'مبيعات ومردودات المشتريات'!$A$4:$N$1000,COLUMN()-2,0),"") ->  | I88: =IFERROR(VLOOKUP($C88,'مبيعات ومردودات المشتريات'!$A$4:$N$1000,COLUMN()-2,0),"") ->  | J88: =IFERROR(VLOOKUP($C88,'مبيعات ومردودات المشتريات'!$A$4:$N$1000,COLUMN()-2,0),"") ->  | K88: =IFERROR(VLOOKUP($C88,'مبيعات ومردودات المشتريات'!$A$4:$N$1000,COLUMN()-2,0),"") ->  | L88: =IFERROR(VLOOKUP($C88,'مبيعات ومردودات المشتريات'!$A$4:$N$1000,COLUMN()-2,0),"") -> 
B89: =IF($G$1='مبيعات ومردودات المشتريات'!$H$4:$H$1000,'مبيعات ومردودات المشتريات'!$A$4:$A$1000,"") ->  | D89: =IFERROR(VLOOKUP($C89,'مبيعات ومردودات المشتريات'!$A$4:$N$1000,COLUMN()-2,0),"") ->  | E89: =IFERROR(VLOOKUP($C89,'مبيعات ومردودات المشتريات'!$A$4:$N$1000,COLUMN()-2,0),"") ->  | F89: =IFERROR(VLOOKUP($C89,'مبيعات ومردودات المشتريات'!$A$4:$N$1000,COLUMN()-2,0),"") ->  | G89: =IFERROR(VLOOKUP($C89,'مبيعات ومردودات المشتريات'!$A$4:$N$1000,COLUMN()-2,0),"") ->  | H89: =IFERROR(VLOOKUP($C89,'مبيعات ومردودات المشتريات'!$A$4:$N$1000,COLUMN()-2,0),"") ->  | I89: =IFERROR(VLOOKUP($C89,'مبيعات ومردودات المشتريات'!$A$4:$N$1000,COLUMN()-2,0),"") ->  | J89: =IFERROR(VLOOKUP($C89,'مبيعات ومردودات المشتريات'!$A$4:$N$1000,COLUMN()-2,0),"") ->  | K89: =IFERROR(VLOOKUP($C89,'مبيعات ومردودات المشتريات'!$A$4:$N$1000,COLUMN()-2,0),"") ->  | L89: =IFERROR(VLOOKUP($C89,'مبيعات ومردودات المشتريات'!$A$4:$N$1000,COLUMN()-2,0),"") -> 
B90: =IF($G$1='مبيعات ومردودات المشتريات'!$H$4:$H$1000,'مبيعات ومردودات المشتريات'!$A$4:$A$1000,"") ->  | D90: =IFERROR(VLOOKUP($C90,'مبيعات ومردودات المشتريات'!$A$4:$N$1000,COLUMN()-2,0),"") ->  | E90: =IFERROR(VLOOKUP($C90,'مبيعات ومردودات المشتريات'!$A$4:$N$1000,COLUMN()-2,0),"") ->  | F90: =IFERROR(VLOOKUP($C90,'مبيعات ومردودات المشتريات'!$A$4:$N$1000,COLUMN()-2,0),"") ->  | G90: =IFERROR(VLOOKUP($C90,'مبيعات ومردودات المشتريات'!$A$4:$N$1000,COLUMN()-2,0),"") ->  | H90: =IFERROR(VLOOKUP($C90,'مبيعات ومردودات المشتريات'!$A$4:$N$1000,COLUMN()-2,0),"") ->  | I90: =IFERROR(VLOOKUP($C90,'مبيعات ومردودات المشتريات'!$A$4:$N$1000,COLUMN()-2,0),"") ->  | J90: =IFERROR(VLOOKUP($C90,'مبيعات ومردودات المشتريات'!$A$4:$N$1000,COLUMN()-2,0),"") ->  | K90: =IFERROR(VLOOKUP($C90,'مبيعات ومردودات المشتريات'!$A$4:$N$1000,COLUMN()-2,0),"") ->  | L90: =IFERROR(VLOOKUP($C90,'مبيعات ومردودات المشتريات'!$A$4:$N$1000,COLUMN()-2,0),"") -> 
B91: =IF($G$1='مبيعات ومردودات المشتريات'!$H$4:$H$1000,'مبيعات ومردودات المشتريات'!$A$4:$A$1000,"") ->  | D91: =IFERROR(VLOOKUP($C91,'مبيعات ومردودات المشتريات'!$A$4:$N$1000,COLUMN()-2,0),"") ->  | E91: =IFERROR(VLOOKUP($C91,'مبيعات ومردودات المشتريات'!$A$4:$N$1000,COLUMN()-2,0),"") ->  | F91: =IFERROR(VLOOKUP($C91,'مبيعات ومردودات المشتريات'!$A$4:$N$1000,COLUMN()-2,0),"") ->  | G91: =IFERROR(VLOOKUP($C91,'مبيعات ومردودات المشتريات'!$A$4:$N$1000,COLUMN()-2,0),"") ->  | H91: =IFERROR(VLOOKUP($C91,'مبيعات ومردودات المشتريات'!$A$4:$N$1000,COLUMN()-2,0),"") ->  | I91: =IFERROR(VLOOKUP($C91,'مبيعات ومردودات المشتريات'!$A$4:$N$1000,COLUMN()-2,0),"") ->  | J91: =IFERROR(VLOOKUP($C91,'مبيعات ومردودات المشتريات'!$A$4:$N$1000,COLUMN()-2,0),"") ->  | K91: =IFERROR(VLOOKUP($C91,'مبيعات ومردودات المشتريات'!$A$4:$N$1000,COLUMN()-2,0),"") ->  | L91: =IFERROR(VLOOKUP($C91,'مبيعات ومردودات المشتريات'!$A$4:$N$1000,COLUMN()-2,0),"") -> 
B92: =IF($G$1='مبيعات ومردودات المشتريات'!$H$4:$H$1000,'مبيعات ومردودات المشتريات'!$A$4:$A$1000,"") ->  | D92: =IFERROR(VLOOKUP($C92,'مبيعات ومردودات المشتريات'!$A$4:$N$1000,COLUMN()-2,0),"") ->  | E92: =IFERROR(VLOOKUP($C92,'مبيعات ومردودات المشتريات'!$A$4:$N$1000,COLUMN()-2,0),"") ->  | F92: =IFERROR(VLOOKUP($C92,'مبيعات ومردودات المشتريات'!$A$4:$N$1000,COLUMN()-2,0),"") ->  | G92: =IFERROR(VLOOKUP($C92,'مبيعات ومردودات المشتريات'!$A$4:$N$1000,COLUMN()-2,0),"") ->  | H92: =IFERROR(VLOOKUP($C92,'مبيعات ومردودات المشتريات'!$A$4:$N$1000,COLUMN()-2,0),"") ->  | I92: =IFERROR(VLOOKUP($C92,'مبيعات ومردودات المشتريات'!$A$4:$N$1000,COLUMN()-2,0),"") ->  | J92: =IFERROR(VLOOKUP($C92,'مبيعات ومردودات المشتريات'!$A$4:$N$1000,COLUMN()-2,0),"") ->  | K92: =IFERROR(VLOOKUP($C92,'مبيعات ومردودات المشتريات'!$A$4:$N$1000,COLUMN()-2,0),"") ->  | L92: =IFERROR(VLOOKUP($C92,'مبيعات ومردودات المشتريات'!$A$4:$N$1000,COLUMN()-2,0),"") -> 
B93: =IF($G$1='مبيعات ومردودات المشتريات'!$H$4:$H$1000,'مبيعات ومردودات المشتريات'!$A$4:$A$1000,"") ->  | D93: =IFERROR(VLOOKUP($C93,'مبيعات ومردودات المشتريات'!$A$4:$N$1000,COLUMN()-2,0),"") ->  | E93: =IFERROR(VLOOKUP($C93,'مبيعات ومردودات المشتريات'!$A$4:$N$1000,COLUMN()-2,0),"") ->  | F93: =IFERROR(VLOOKUP($C93,'مبيعات ومردودات المشتريات'!$A$4:$N$1000,COLUMN()-2,0),"") ->  | G93: =IFERROR(VLOOKUP($C93,'مبيعات ومردودات المشتريات'!$A$4:$N$1000,COLUMN()-2,0),"") ->  | H93: =IFERROR(VLOOKUP($C93,'مبيعات ومردودات المشتريات'!$A$4:$N$1000,COLUMN()-2,0),"") ->  | I93: =IFERROR(VLOOKUP($C93,'مبيعات ومردودات المشتريات'!$A$4:$N$1000,COLUMN()-2,0),"") ->  | J93: =IFERROR(VLOOKUP($C93,'مبيعات ومردودات المشتريات'!$A$4:$N$1000,COLUMN()-2,0),"") ->  | K93: =IFERROR(VLOOKUP($C93,'مبيعات ومردودات المشتريات'!$A$4:$N$1000,COLUMN()-2,0),"") ->  | L93: =IFERROR(VLOOKUP($C93,'مبيعات ومردودات المشتريات'!$A$4:$N$1000,COLUMN()-2,0),"") -> 
B94: =IF($G$1='مبيعات ومردودات المشتريات'!$H$4:$H$1000,'مبيعات ومردودات المشتريات'!$A$4:$A$1000,"") ->  | D94: =IFERROR(VLOOKUP($C94,'مبيعات ومردودات المشتريات'!$A$4:$N$1000,COLUMN()-2,0),"") ->  | E94: =IFERROR(VLOOKUP($C94,'مبيعات ومردودات المشتريات'!$A$4:$N$1000,COLUMN()-2,0),"") ->  | F94: =IFERROR(VLOOKUP($C94,'مبيعات ومردودات المشتريات'!$A$4:$N$1000,COLUMN()-2,0),"") ->  | G94: =IFERROR(VLOOKUP($C94,'مبيعات ومردودات المشتريات'!$A$4:$N$1000,COLUMN()-2,0),"") ->  | H94: =IFERROR(VLOOKUP($C94,'مبيعات ومردودات المشتريات'!$A$4:$N$1000,COLUMN()-2,0),"") ->  | I94: =IFERROR(VLOOKUP($C94,'مبيعات ومردودات المشتريات'!$A$4:$N$1000,COLUMN()-2,0),"") ->  | J94: =IFERROR(VLOOKUP($C94,'مبيعات ومردودات المشتريات'!$A$4:$N$1000,COLUMN()-2,0),"") ->  | K94: =IFERROR(VLOOKUP($C94,'مبيعات ومردودات المشتريات'!$A$4:$N$1000,COLUMN()-2,0),"") ->  | L94: =IFERROR(VLOOKUP($C94,'مبيعات ومردودات المشتريات'!$A$4:$N$1000,COLUMN()-2,0),"") -> 
B95: =IF($G$1='مبيعات ومردودات المشتريات'!$H$4:$H$1000,'مبيعات ومردودات المشتريات'!$A$4:$A$1000,"") ->  | D95: =IFERROR(VLOOKUP($C95,'مبيعات ومردودات المشتريات'!$A$4:$N$1000,COLUMN()-2,0),"") ->  | E95: =IFERROR(VLOOKUP($C95,'مبيعات ومردودات المشتريات'!$A$4:$N$1000,COLUMN()-2,0),"") ->  | F95: =IFERROR(VLOOKUP($C95,'مبيعات ومردودات المشتريات'!$A$4:$N$1000,COLUMN()-2,0),"") ->  | G95: =IFERROR(VLOOKUP($C95,'مبيعات ومردودات المشتريات'!$A$4:$N$1000,COLUMN()-2,0),"") ->  | H95: =IFERROR(VLOOKUP($C95,'مبيعات ومردودات المشتريات'!$A$4:$N$1000,COLUMN()-2,0),"") ->  | I95: =IFERROR(VLOOKUP($C95,'مبيعات ومردودات المشتريات'!$A$4:$N$1000,COLUMN()-2,0),"") ->  | J95: =IFERROR(VLOOKUP($C95,'مبيعات ومردودات المشتريات'!$A$4:$N$1000,COLUMN()-2,0),"") ->  | K95: =IFERROR(VLOOKUP($C95,'مبيعات ومردودات المشتريات'!$A$4:$N$1000,COLUMN()-2,0),"") ->  | L95: =IFERROR(VLOOKUP($C95,'مبيعات ومردودات المشتريات'!$A$4:$N$1000,COLUMN()-2,0),"") -> 
B96: =IF($G$1='مبيعات ومردودات المشتريات'!$H$4:$H$1000,'مبيعات ومردودات المشتريات'!$A$4:$A$1000,"") ->  | D96: =IFERROR(VLOOKUP($C96,'مبيعات ومردودات المشتريات'!$A$4:$N$1000,COLUMN()-2,0),"") ->  | E96: =IFERROR(VLOOKUP($C96,'مبيعات ومردودات المشتريات'!$A$4:$N$1000,COLUMN()-2,0),"") ->  | F96: =IFERROR(VLOOKUP($C96,'مبيعات ومردودات المشتريات'!$A$4:$N$1000,COLUMN()-2,0),"") ->  | G96: =IFERROR(VLOOKUP($C96,'مبيعات ومردودات المشتريات'!$A$4:$N$1000,COLUMN()-2,0),"") ->  | H96: =IFERROR(VLOOKUP($C96,'مبيعات ومردودات المشتريات'!$A$4:$N$1000,COLUMN()-2,0),"") ->  | I96: =IFERROR(VLOOKUP($C96,'مبيعات ومردودات المشتريات'!$A$4:$N$1000,COLUMN()-2,0),"") ->  | J96: =IFERROR(VLOOKUP($C96,'مبيعات ومردودات المشتريات'!$A$4:$N$1000,COLUMN()-2,0),"") ->  | K96: =IFERROR(VLOOKUP($C96,'مبيعات ومردودات المشتريات'!$A$4:$N$1000,COLUMN()-2,0),"") ->  | L96: =IFERROR(VLOOKUP($C96,'مبيعات ومردودات المشتريات'!$A$4:$N$1000,COLUMN()-2,0),"") -> 
B97: =IF($G$1='مبيعات ومردودات المشتريات'!$H$4:$H$1000,'مبيعات ومردودات المشتريات'!$A$4:$A$1000,"") ->  | D97: =IFERROR(VLOOKUP($C97,'مبيعات ومردودات المشتريات'!$A$4:$N$1000,COLUMN()-2,0),"") ->  | E97: =IFERROR(VLOOKUP($C97,'مبيعات ومردودات المشتريات'!$A$4:$N$1000,COLUMN()-2,0),"") ->  | F97: =IFERROR(VLOOKUP($C97,'مبيعات ومردودات المشتريات'!$A$4:$N$1000,COLUMN()-2,0),"") ->  | G97: =IFERROR(VLOOKUP($C97,'مبيعات ومردودات المشتريات'!$A$4:$N$1000,COLUMN()-2,0),"") ->  | H97: =IFERROR(VLOOKUP($C97,'مبيعات ومردودات المشتريات'!$A$4:$N$1000,COLUMN()-2,0),"") ->  | I97: =IFERROR(VLOOKUP($C97,'مبيعات ومردودات المشتريات'!$A$4:$N$1000,COLUMN()-2,0),"") ->  | J97: =IFERROR(VLOOKUP($C97,'مبيعات ومردودات المشتريات'!$A$4:$N$1000,COLUMN()-2,0),"") ->  | K97: =IFERROR(VLOOKUP($C97,'مبيعات ومردودات المشتريات'!$A$4:$N$1000,COLUMN()-2,0),"") ->  | L97: =IFERROR(VLOOKUP($C97,'مبيعات ومردودات المشتريات'!$A$4:$N$1000,COLUMN()-2,0),"") -> 
B98: =IF($G$1='مبيعات ومردودات المشتريات'!$H$4:$H$1000,'مبيعات ومردودات المشتريات'!$A$4:$A$1000,"") ->  | D98: =IFERROR(VLOOKUP($C98,'مبيعات ومردودات المشتريات'!$A$4:$N$1000,COLUMN()-2,0),"") ->  | E98: =IFERROR(VLOOKUP($C98,'مبيعات ومردودات المشتريات'!$A$4:$N$1000,COLUMN()-2,0),"") ->  | F98: =IFERROR(VLOOKUP($C98,'مبيعات ومردودات المشتريات'!$A$4:$N$1000,COLUMN()-2,0),"") ->  | G98: =IFERROR(VLOOKUP($C98,'مبيعات ومردودات المشتريات'!$A$4:$N$1000,COLUMN()-2,0),"") ->  | H98: =IFERROR(VLOOKUP($C98,'مبيعات ومردودات المشتريات'!$A$4:$N$1000,COLUMN()-2,0),"") ->  | I98: =IFERROR(VLOOKUP($C98,'مبيعات ومردودات المشتريات'!$A$4:$N$1000,COLUMN()-2,0),"") ->  | J98: =IFERROR(VLOOKUP($C98,'مبيعات ومردودات المشتريات'!$A$4:$N$1000,COLUMN()-2,0),"") ->  | K98: =IFERROR(VLOOKUP($C98,'مبيعات ومردودات المشتريات'!$A$4:$N$1000,COLUMN()-2,0),"") ->  | L98: =IFERROR(VLOOKUP($C98,'مبيعات ومردودات المشتريات'!$A$4:$N$1000,COLUMN()-2,0),"") -> 
B99: =IF($G$1='مبيعات ومردودات المشتريات'!$H$4:$H$1000,'مبيعات ومردودات المشتريات'!$A$4:$A$1000,"") ->  | D99: =IFERROR(VLOOKUP($C99,'مبيعات ومردودات المشتريات'!$A$4:$N$1000,COLUMN()-2,0),"") ->  | E99: =IFERROR(VLOOKUP($C99,'مبيعات ومردودات المشتريات'!$A$4:$N$1000,COLUMN()-2,0),"") ->  | F99: =IFERROR(VLOOKUP($C99,'مبيعات ومردودات المشتريات'!$A$4:$N$1000,COLUMN()-2,0),"") ->  | G99: =IFERROR(VLOOKUP($C99,'مبيعات ومردودات المشتريات'!$A$4:$N$1000,COLUMN()-2,0),"") ->  | H99: =IFERROR(VLOOKUP($C99,'مبيعات ومردودات المشتريات'!$A$4:$N$1000,COLUMN()-2,0),"") ->  | I99: =IFERROR(VLOOKUP($C99,'مبيعات ومردودات المشتريات'!$A$4:$N$1000,COLUMN()-2,0),"") ->  | J99: =IFERROR(VLOOKUP($C99,'مبيعات ومردودات المشتريات'!$A$4:$N$1000,COLUMN()-2,0),"") ->  | K99: =IFERROR(VLOOKUP($C99,'مبيعات ومردودات المشتريات'!$A$4:$N$1000,COLUMN()-2,0),"") ->  | L99: =IFERROR(VLOOKUP($C99,'مبيعات ومردودات المشتريات'!$A$4:$N$1000,COLUMN()-2,0),"") -> 
B100: =IF($G$1='مبيعات ومردودات المشتريات'!$H$4:$H$1000,'مبيعات ومردودات المشتريات'!$A$4:$A$1000,"") ->  | K100: =SUM(K4:K99) -> 350 | L100: =SUM(L4:L99) -> 1270

Sheet سند قبض ودفع
A1: رقم الموبيل | C1: اسم الشركة او اسم المحل | F1: سجل التجارى
A2: 010 0000000 | C2: سند قبض | F2: 45454454
A5: رقم السند / الشيك | B5: 1 | C5: اسم العميل : | E5: البيان
A7: طريقة الدفع : | C7: التاريخ : | E7: رقم الشيك
A9: المبلغ : | C9: فقط وقدره : | D9: =kh_TextNum(B9,0,"جنيه","جنيهات","قرشا لاغير",2) -> 
A11: مسحوب على بنك
A22: رقم الموبيل | C22: اسم الشركة او اسم المحل | F22: سجل التجارى
A23: 010 0000000 | C23: سند دفع | F23: 45454454
A26: اسم المصنع | D26: البيان
A28: طريقة الدفع : | C28: التاريخ | E28: رقم السند او الشيك
A30: المبلغ : | D30: =kh_TextNum(B30,0,"جنيه","جنيهات","قرشا لاغير",2) -> 
A32: مسحوب على بنك

Sheet ورقة7 (hidden)

Sheet ورقة8 (hidden)

Sheet ورقة9 (hidden)

Sheet ورقة10 (hidden)
